Workbook

Sheet Оглавление
B1: Содержание
B3: Инф-я
B4: Соответствие критериям
A5: Балансы | B5: Баланс энергии
B6: Баланс мощности
A7: УЕ | B7: УЕ ВЛЭП 2015-2018
B8: УЕ ТП 2015-2018
B9: Подконтрольные расходы
A10: Неподконтрольные расходы | B10: Расчет аморт. max срок
B11: Справка по ОС
B12: Ввод выбытие ОС
B13: Свод по амортизации
B14: Отчислен во внебюдж фонды
B15: Расходы рег. орг-ий
B16: Аренда имущества
B17: Плата за землю
B18: Транспортный налог
B19: Налог на имущество
B20: Налог на прибыль
B21: Негативное воздействие на ОС
B22: Услуги ФСК
B23: Прочие НР
B24: КВЛ
B25: Выпадающий доход
B26: Возврат заемных средств
A27: Расчеты по выпадающим доходам | B27: Расчет выпадающих до 15 кВт
B28: Расчет выпадающих до 150 кВт
B29: СВОД по % по рассрочке
B30: Заявитель1
B31: Заявитель2
B32: Заявитель3
B33: Заявитель4
A34: Корр-ки | B34: Корр. ПР
B35: Корр. ПО
B36: Корр. НР
B37: Корр. ИП
B38: Корр. КНК
A39: ИТОГИ | B39: НВВ содержание
B40: НВВ по данным предпр.
B41: НВВ по данным экспертов
B42: НВВ на потери
B43: НВВ для шаблона ЕИАС
B44: Таблица № 8.2.
B45: Тарифы
A46: Формы для показателя КНК | B46: Форма 1.1
B47: Форма 1.2
B48: Форма 2.1
B49: Форма 2.2
B50: форма 2.3
B51: форма 2.4
B52: форма 3

Sheet Инф-я
A2: Расчет НВВ на услуги по передаче электрической энергии, устанавливаемых с применением метода долгосрочной индексации необходимой валовой выручки
B5: Информация об организации
A7: № п/п | B7: Требуемая информация | C7: Данные об организации
A8: 1. | B8: Наименование организации в соответствии с уставом:
B9: полное наименование организации | C9: Общество с ограниченной ответственностью "Энергетик"
B10: сокращенное название организации | C10: ООО "Энергетик"
A11: 2. | B11: Муниципальное образование | C11: Владимирская область, Александровский район
A12: 3. | B12: Адрес организации:
B13: юридический адрес | C13: 601640, Владимирская обл, г.Карабаново, ул. Вокзальная, д. 9
B14: фактический адрес (месторасположение) | C14: 601640, Владимирская обл, г.Карабаново, ул. Вокзальная, д. 9
A15: 4. | B15: ИНН | C15: 3311023373
A16: 5. | B16: КПП | C16: 331101001
A17: 6. | B17: ФИО руководителя организации | C17: Окунев Василий Михайлович
B18: контактный телефон/факс | C18: 8-49244-5-24-72
B19: е-mail | C19: оао-energetik@yandex.ru
A20: 7. | B20: ФИО начальника ПЭО | C20: Ивановский Михаил Владимирович
B21: контактный телефон/факс | C21: 8-49244-5-26-01
A22: 8. | B22: ФИО ответственного за электрохозяйство
B23: контактный телефон/факс
A24: 9. | B24: ФИО главного бухгалтера | C24: Макарова Галина Юрьевна
B25: контактный телефон/факс | C25: 8-49244-5-10-79
A26: 10. | B26: ФИО непосредственного исполнителя | C26: Тимакова Марина Андреевна
B27: контактный телефон/факс | C27: 8-49244-5-22-81
B28: е-mail | C28: оао-energetik@yandex.ru
A29: 11. | B29: Банковские реквизиты:
B30: расчетный счет | C30: 40702810710000002518
B31: банк | C31: Владимирское отделение №8611 ПАО Сбербанк
B32: корреспондентский счет | C32: 30101810000000000602
B33: БИК | C33: 041708602
A35: В конце книги Excel размещены листы серого цвета для заполнения шаблона "Расчет фактических показателей надежности и качества за 2016 год". Согласно п. 14 Постановления Правительства от 31.12.2009 г. № 1220 организации предоставляют регулирующим органам до 1 апреля года, следующего за отчетным, отчетные данные, используемые при расчете фактических значений показателей надежности и качества.
A37: Согласно п. 9 Постановления Правительства РФ от 21.01.2004 г. № 24 "Об утверждении стандартов раскрытия информации субъектами оптового и розничных рынков электрической энергии":
A38: "Субъекты рынков электрической энергии раскрывают следующую информацию:
A39: г) предложение о размере цен (тарифов), долгосрочных параметров регулирования (при применении метода доходности инвестированного капитала или метода долгосрочной необходимой валовой выручки), подлежащих регулированию в соответствии с Основами ценообразования в области регулируемых цен (тарифов) в электроэнергетике, утвержденными постановлением Правительства Российской Федерации от 29 декабря 2011 г. № 1178".
A40: Согласно п. 9.1 Правил государственного регулирования (пересмотра, применения) цен (тарифов) в электроэнергктике, утвержденных постановлением Правительства РФ от 29 декабря 2011 г. N 1178:
A41: "Регулирующий орган отказывает в открытии дела об установлении цены (тарифа), в случае если регулируемая организация не опубликовала предложение о размере цен (тарифов) и долгосрочных параметров регулирования (при применении метода доходности инвестированного капитала или метода долгосрочной индексации необходимой валовой выручки), подлежащих регулированию, в порядке, установленном стандартами раскрытия информации субъектами оптового и розничных рынков электрической энергии, утвержденными постановлением Правительства Российской Федерации от 21 января 2004 г. N 24, или указанное опубликованное предложение не соответствует предложению, представляемому в орган регулирования".
A100: 1 | B100: ООО «Радугагорэнерго»
A101: 2 | B101: МУП «Горэлектросеть» г. Муром
A102: 3 | B102: МУП «Александровэлектросеть»
A103: 4 | B103: ООО «СтройГарант»
A104: 5 | B104: ООО «Костеревские городские электрические сети»
A105: 6 | B105: ООО «Ковровэлектросетьремонт»
A106: 7 | B106: ООО «ПромРЭС»
A107: 8 | B107: ООО «ПромЭнерго» г. Судогда
A108: 9 | B108: ОАО «Энергетик» г. Карабаново
A109: 10 | B109: ООО «Электросистемы»
A110: 11 | B110: ООО «Ярцево-Энерго»
A111: 12 | B111: ПАО «Ставровский завод АТО»
A112: 13 | B112: ООО «ЭнергоАктив»

Sheet Соответствие критериям
A2: Критерии отнесения владельцев объектов электросетевого хозяйства к территориальным сетевым организациям (утв. постановлением Правительства РФ от 28 февраля 2015 г. N 184)
A4: ='Инф-я'!C9 -> Общество с ограниченной ответственностью "Энергетик"
A6: № п./п. | B6: Наименование показателя | C6: Ед. измерения | D6: Значение | E6: Представляемые обосновывающие материалы
A7: 1 | B7: 2 | C7: 3 | D7: 4 | E7: 5
A8: 1. | B8: Владение на праве собственности и (или) на ином законном основании на срок не менее долгосрочного периода регулирования трансформаторными и иными подстанциями с установленными силовыми трансформаторами (автотрансформаторами), расположенными и используемыми для осуществления регулируемой деятельности в административных границах субъекта Российской Федерации, сумма номинальных мощностей которых составляет не менее 10 МВА. | C8: МВА | D8: 16.423 | E8: Согласно пункта 17 Правил государственного регулирования (пересмотра, применения) цен (тарифов) в электроэнергетике, утвержденных Постановлением Правительства РФ от 29 декабря 2011 г. N 1178: К заявлениям, направленным в соответствии с пунктами 12, 14 и 16 настоящих Правил, организации, осуществляющие регулируемую деятельность, и органы исполнительной власти субъектов Российской Федерации в области государственного регулирования тарифов прилагают следующие обосновывающие материалы: . . . 13) документы, подтверждающие осуществление (фактическое или планируемое) регулируемой деятельности, - документы, подтверждающие право собственности или иные законные основания владения в отношении объектов, используемых для осуществления деятельности, и (или) договоры на осуществление регулируемой деятельности (при реорганизации юридического лица - передаточные акты); . . . 15) справка о наличии официального сайта в сети Интернет и выделенного абонентского номера для обращений потребителей услуг по передаче электрической энергии и (или) технологическому присоединению, подписанная руководителем или иным уполномоченным лицом заявителя и заверенная печатью заявителя; 16) утвержденные руководителем или иным уполномоченным лицом заявителя и заверенные печатью заявителя (при наличии печати) схемы соединений электрической сети заявителя с обозначением трансформаторных и иных подстанций, а также линий электропередачи, указанных в пунктах 1 и 2 критериев отнесения владельцев объектов электросетевого хозяйства к территориальным сетевым организациям, утвержденных постановлением Правительства Российской Федерации от 28 февраля 2015 г. N 184 "Об отнесении владельцев объектов электросетевого хозяйства к территориальным сетевым организациям" (далее - критерии отнесения владельцев объектов электросетевого хозяйства к территориальным сетевым организациям).
A9: 2. | B9: Владение на праве собственности и (или) на ином законном основании на срок не менее долгосрочного периода регулирования линиями электропередачи (воздушными и (или) кабельными), расположенными и используемыми для осуществления регулируемой деятельности в административных границах субъекта Российской Федерации, непосредственно соединенными с трансформаторными и иными подстанциями, указанными в пункте 1 настоящих критериев, сумма протяженностей которых по трассе составляет не менее 15 км, не менее 2 из следующих проектных номинальных классов напряжения: | C9: км | D9: =D10+D11+D12+D13 -> 208.33
B10: 110 кВ и выше; | C10: км
B11: 35 кВ; | C11: км
B12: 1 - 20 кВ; | C12: км | D12: 59.41
B13: ниже 1 кВ - трехфазных участков линий электропередачи. | C13: км | D13: 148.92
A14: 3. | B14: 3. Отсутствие за 3 предшествующих расчетных периода регулирования 3 фактов применения органами исполнительной власти субъектов Российской Федерации в области государственного регулирования тарифов понижающих коэффициентов, позволяющих обеспечить соответствие уровня тарифов, установленных для владельца объектов электросетевого хозяйства, уровню надежности и качества поставляемых товаров и оказываемых услуг, а также корректировки цен (тарифов), установленных на долгосрочный период регулирования, в случае представления владельцем объектов электросетевого хозяйства, для которого такие цены (тарифы) установлены, недостоверных отчетных данных, используемых при расчете фактических значений показателей надежности и качества поставляемых товаров и оказываемых услуг, или непредставления таких данных. | C14: х | D14: нет
A15: 4. | B15: 4. Наличие выделенного абонентского номера для обращений потребителей услуг по передаче электрической энергии и (или) технологическому присоединению. | C15: х | D15: 8-49244-5-23-60
A16: 5. | B16: 5. Наличие официального сайта в информационно-телекоммуникационной сети "Интернет". | C16: х | D16: www.оао-energetik.ru
A17: 6. | B17: 6. Отсутствие во владении и (или) пользовании объектов электросетевого хозяйства, расположенных в административных границах субъекта Российской Федерации и используемых для осуществления регулируемой деятельности в указанных границах, принадлежащих на праве собственности или ином законном основании иному лицу, владеющему объектом по производству электрической энергии (мощности), который расположен в административных границах соответствующего субъекта Российской Федерации и с использованием которого осуществляется производство электрической энергии и мощности с целью ее продажи на оптовом рынке электрической энергии (мощности) и (или) розничных рынках электрической энергии. | C17: х | D17: нет
B19: Руководитель организации | D19: ='Инф-я'!C17 -> Окунев Василий Михайлович

Sheet Баланс энергии
A3: Баланс электрической энергии по сетям ВН, СН1, СН2, и НН
A4: ='Инф-я'!C9 -> Общество с ограниченной ответственностью "Энергетик"
AY5: млн. кВт.ч.
A6: № п.п. | B6: Показатели | C6: Принято регулирующим органом на 2016 год | H6: Факт за 1 полугодие 2016 года | M6: Факт за 2 полугодие 2016 года | R6: Факт за 2016 год | W6: Принято регулирующим органом на 1 полугодие 2017 года | AB6: Принято регулирующим органом на 2 полугодие 2017 года | AG6: Принято регулирующим органом на 2017 год | AL6: По данным организации на 1 полугодие 2018 года | AQ6: По данным организации на 2 полугодие 2018 года | AV6: По данным организации на 2018 год | BA6: Принято регулирующим органом на 1 полугодие 2018 года | BF6: Принято регулирующим органом на 2 полугодие 2018 года | BK6: Принято регулирующим органом на 2018 год
C7: Всего | D7: ВН | E7: СН1 | F7: СН2 | G7: НН | H7: Всего | I7: ВН | J7: СН1 | K7: СН2 | L7: НН | M7: Всего | N7: ВН | O7: СН1 | P7: СН2 | Q7: НН | R7: Всего | S7: ВН | T7: СН1 | U7: СН2 | V7: НН | W7: Всего | X7: ВН | Y7: СН1 | Z7: СН2 | AA7: НН | AB7: Всего | AC7: ВН | AD7: СН1 | AE7: СН2 | AF7: НН | AG7: Всего | AH7: ВН | AI7: СН1 | AJ7: СН2 | AK7: НН | AL7: Всего | AM7: ВН | AN7: СН1 | AO7: СН2 | AP7: НН | AQ7: Всего | AR7: ВН | AS7: СН1 | AT7: СН2 | AU7: НН | AV7: Всего | AW7: ВН | AX7: СН1 | AY7: СН2 | AZ7: НН | BA7: Всего | BB7: ВН | BC7: СН1 | BD7: СН2 | BE7: НН | BF7: Всего | BG7: ВН | BH7: СН1 | BI7: СН2 | BJ7: НН | BK7: Всего | BL7: ВН | BM7: СН1 | BN7: СН2 | BO7: НН
A8: 1 | B8: 2 | C8: 3 | D8: 4 | E8: 5 | F8: 6 | G8: 7 | H8: 8 | I8: 9 | J8: 10 | K8: 11 | L8: 12 | M8: 13 | N8: 14 | O8: 15 | P8: 16 | Q8: 17 | R8: 18 | S8: 19 | T8: 20 | U8: 21 | V8: 22 | W8: 23 | X8: 24 | Y8: 25 | Z8: 26 | AA8: 27 | AB8: 28 | AC8: 29 | AD8: 30 | AE8: 31 | AF8: 32 | AG8: 33 | AH8: 34 | AI8: 35 | AJ8: 36 | AK8: 37 | AL8: 38 | AM8: 39 | AN8: 40 | AO8: 41 | AP8: 42 | AQ8: 43 | AR8: 44 | AS8: 45 | AT8: 46 | AU8: 47 | AV8: 48 | AW8: 49 | AX8: 50 | AY8: 51 | AZ8: 52 | BA8: 53 | BB8: 54 | BC8: 55 | BD8: 56 | BE8: 57 | BF8: 58 | BG8: 59 | BH8: 60 | BI8: 61 | BJ8: 62 | BK8: 63 | BL8: 64 | BM8: 65 | BN8: 66 | BO8: 67
A9: 1. | B9: Поступление эл.энергии в сеть , ВСЕГО | C9: =C19+C21+C22 -> 24.8759 | D9: =D15+D16+D17+D18 -> 24.8759 | E9: =E10+E15+E16+E17+E18 -> 0 | F9: =F10+F15+F16+F17+F18 -> 24.8759 | G9: =G10+G15+G16+G17+G18 -> 19.04711417 | H9: =H19+H21+H22 -> 12.9289 | I9: =I15+I16+I17+I18 -> 12.9289 | J9: =J10+J15+J16+J17+J18 -> 0 | K9: =K10+K15+K16+K17+K18 -> 12.9289 | L9: =L10+L15+L16+L17+L18 -> 9.188193485 | M9: =M19+M21+M22 -> 13.0026 | N9: =N15+N16+N17+N18 -> 13.0026 | O9: =O10+O15+O16+O17+O18 -> 0 | P9: =P10+P15+P16+P17+P18 -> 13.0026 | Q9: =Q10+Q15+Q16+Q17+Q18 -> 9.120739719 | R9: =R19+R21+R22 -> 25.9315 | S9: =S15+S16+S17+S18 -> 25.9315 | T9: =T10+T15+T16+T17+T18 -> 0 | U9: =U10+U15+U16+U17+U18 -> 25.9315 | V9: =V10+V15+V16+V17+V18 -> 18.3088794 | W9: =W19+W21+W22 -> 14.6241 | X9: =X15+X16+X17+X18 -> 14.6241 | Y9: =Y10+Y15+Y16+Y17+Y18 -> 0 | Z9: =Z10+Z15+Z16+Z17+Z18 -> 14.6241 | AA9: =AA10+AA15+AA16+AA17+AA18 -> 9.858644832 | AB9: =AB19+AB21+AB22 -> 12.1878 | AC9: =AC15+AC16+AC17+AC18 -> 12.1878 | AD9: =AD10+AD15+AD16+AD17+AD18 -> 0 | AE9: =AE10+AE15+AE16+AE17+AE18 -> 12.1878 | AF9: =AF10+AF15+AF16+AF17+AF18 -> 8.216205848 | AG9: =AG19+AG21+AG22 -> 26.8119 | AH9: =AH15+AH16+AH17+AH18 -> 26.8119 | AI9: =AI10+AI15+AI16+AI17+AI18 -> 0 | AJ9: =AJ10+AJ15+AJ16+AJ17+AJ18 -> 26.8119 | AK9: =AK10+AK15+AK16+AK17+AK18 -> 18.07485068 | AL9: =AL19+AL21+AL22 -> 13.2299 | AM9: =AM15+AM16+AM17+AM18 -> 13.2299 | AN9: =AN10+AN15+AN16+AN17+AN18 -> 0 | AO9: =AO10+AO15+AO16+AO17+AO18 -> 13.2299 | AP9: =AP10+AP15+AP16+AP17+AP18 -> 10.12774784 | AQ9: =AQ19+AQ21+AQ22 -> 13.1549 | AR9: =AR15+AR16+AR17+AR18 -> 13.1549 | AS9: =AS10+AS15+AS16+AS17+AS18 -> 0 | AT9: =AT10+AT15+AT16+AT17+AT18 -> 13.1549 | AU9: =AU10+AU15+AU16+AU17+AU18 -> 10.07037969 | AV9: =AV19+AV21+AV22 -> 26.3848 | AW9: =AW15+AW16+AW17+AW18 -> 26.3848 | AX9: =AX10+AX15+AX16+AX17+AX18 -> 0 | AY9: =AY10+AY15+AY16+AY17+AY18 -> 26.3848 | AZ9: =AZ10+AZ15+AZ16+AZ17+AZ18 -> 20.19812752 | BA9: =BA19+BA21+BA22 -> 0 | BB9: =BB15+BB16+BB17+BB18 -> 0 | BC9: =BC10+BC15+BC16+BC17+BC18 -> 0 | BD9: =BD10+BD15+BD16+BD17+BD18 -> 0 | BE9: =BE10+BE15+BE16+BE17+BE18 -> 0 | BF9: =BF19+BF21+BF22 -> 0 | BG9: =BG15+BG16+BG17+BG18 -> 0 | BH9: =BH10+BH15+BH16+BH17+BH18 -> 0 | BI9: =BI10+BI15+BI16+BI17+BI18 -> 0 | BJ9: =BJ10+BJ15+BJ16+BJ17+BJ18 -> 0 | BK9: =BK19+BK21+BK22 -> 0 | BL9: =BL15+BL16+BL17+BL18 -> 0 | BM9: =BM10+BM15+BM16+BM17+BM18 -> 0 | BN9: =BN10+BN15+BN16+BN17+BN18 -> 0 | BO9: =BO10+BO15+BO16+BO17+BO18 -> 0
A10: 1.1. | B10: из смежной сети, всего | C10: х | D10: х | E10: =E12 -> 0 | F10: =F12+F13 -> 24.8759 | G10: =G12+G13+G14 -> 19.04711417 | H10: х | I10: х | J10: =J12 -> 0 | K10: =K12+K13 -> 12.9289 | L10: =L12+L13+L14 -> 9.188193485 | M10: х | N10: х | O10: =O12 -> 0 | P10: =P12+P13 -> 13.0026 | Q10: =Q12+Q13+Q14 -> 9.120739719 | R10: х | S10: х | T10: =T12 -> 0 | U10: =U12+U13 -> 25.9315 | V10: =V12+V13+V14 -> 18.3088794 | W10: х | X10: х | Y10: =Y12 -> 0 | Z10: =Z12+Z13 -> 14.6241 | AA10: =AA12+AA13+AA14 -> 9.858644832 | AB10: х | AC10: х | AD10: =AD12 -> 0 | AE10: =AE12+AE13 -> 12.1878 | AF10: =AF12+AF13+AF14 -> 8.216205848 | AG10: х | AH10: х | AI10: =AI12 -> 0 | AJ10: =AJ12+AJ13 -> 26.8119 | AK10: =AK12+AK13+AK14 -> 18.07485068 | AL10: х | AM10: х | AN10: =AN12 -> 0 | AO10: =AO12+AO13 -> 13.2299 | AP10: =AP12+AP13+AP14 -> 10.12774784 | AQ10: х | AR10: х | AS10: =AS12 -> 0 | AT10: =AT12+AT13 -> 13.1549 | AU10: =AU12+AU13+AU14 -> 10.07037969 | AV10: х | AW10: х | AX10: =AX12 -> 0 | AY10: =AY12+AY13 -> 26.3848 | AZ10: =AZ12+AZ13+AZ14 -> 20.19812752 | BA10: х | BB10: х | BC10: =BC12 -> 0 | BD10: =BD12+BD13 -> 0 | BE10: =BE12+BE13+BE14 -> 0 | BF10: х | BG10: х | BH10: =BH12 -> 0 | BI10: =BI12+BI13 -> 0 | BJ10: =BJ12+BJ13+BJ14 -> 0 | BK10: х | BL10: х | BM10: =BM12 -> 0 | BN10: =BN12+BN13 -> 0 | BO10: =BO12+BO13+BO14 -> 0
B11: в том числе из сети | C11: х | D11: х | E11: х | F11: х | G11: х | H11: х | I11: х | J11: х | K11: х | L11: х | M11: х | N11: х | O11: х | P11: х | Q11: х | R11: х | S11: х | T11: х | U11: х | V11: х | W11: х | X11: х | Y11: х | Z11: х | AA11: х | AB11: х | AC11: х | AD11: х | AE11: х | AF11: х | AG11: х | AH11: х | AI11: х | AJ11: х | AK11: х | AL11: х | AM11: х | AN11: х | AO11: х | AP11: х | AQ11: х | AR11: х | AS11: х | AT11: х | AU11: х | AV11: х | AW11: х | AX11: х | AY11: х | AZ11: х | BA11: х | BB11: х | BC11: х | BD11: х | BE11: х | BF11: х | BG11: х | BH11: х | BI11: х | BJ11: х | BK11: х | BL11: х | BM11: х | BN11: х | BO11: х
A12: 1.1.1. | B12: ВН | C12: х | D12: х | F12: =D9-D19-D21-D22-E12-G12 -> 24.8759 | H12: х | I12: х | K12: =I9-I19-I21-I22-J12-L12 -> 12.9289 | M12: х | N12: х | P12: =N9-N19-N21-N22-O12-Q12 -> 13.0026 | R12: х | S12: х | U12: =S9-S19-S21-S22-T12-V12 -> 25.9315 | W12: х | X12: х | Z12: =X9-X19-X21-X22-Y12-AA12 -> 14.6241 | AB12: х | AC12: х | AE12: =AC9-AC19-AC21-AC22-AD12-AF12 -> 12.1878 | AG12: х | AH12: х | AJ12: =AH9-AH19-AH21-AH22-AI12-AK12 -> 26.8119 | AL12: х | AM12: х | AO12: =AM9-AM19-AM21-AM22-AN12-AP12 -> 13.2299 | AQ12: х | AR12: х | AT12: =AR9-AR19-AR21-AR22-AS12-AU12 -> 13.1549 | AV12: х | AW12: х | AY12: =AW9-AW19-AW21-AW22-AX12-AZ12 -> 26.3848 | BA12: х | BB12: х | BD12: =BB9-BB19-BB21-BB22-BC12-BE12 -> 0 | BF12: х | BG12: х | BI12: =BG9-BG19-BG21-BG22-BH12-BJ12 -> 0 | BK12: х | BL12: х | BN12: =BL9-BL19-BL21-BL22-BM12-BO12 -> 0
A13: 1.1.2. | B13: СН1 | C13: х | D13: х | E13: х | F13: =E9-E19-E21-E22-G13 -> 0 | H13: х | I13: х | J13: х | K13: =J9-J19-J21-J22-L13 -> 0 | M13: х | N13: х | O13: х | P13: =O9-O19-O21-O22-Q13 -> 0 | R13: х | S13: х | T13: х | U13: =T9-T19-T21-T22-V13 -> 0 | W13: х | X13: х | Y13: х | Z13: =Y9-Y19-Y21-Y22-AA13 -> 0 | AB13: х | AC13: х | AD13: х | AE13: =AD9-AD19-AD21-AD22-AF13 -> 0 | AG13: х | AH13: х | AI13: х | AJ13: =AI9-AI19-AI21-AI22-AK13 -> 0 | AL13: х | AM13: х | AN13: х | AO13: =AN9-AN19-AN21-AN22-AP13 -> 0 | AQ13: х | AR13: х | AS13: х | AT13: =AS9-AS19-AS21-AS22-AU13 -> 0 | AV13: х | AW13: х | AX13: х | AY13: =AX9-AX19-AX21-AX22-AZ13 -> 0 | BA13: х | BB13: х | BC13: х | BD13: =BC9-BC19-BC21-BC22-BE13 -> 0 | BF13: х | BG13: х | BH13: х | BI13: =BH9-BH19-BH21-BH22-BJ13 -> 0 | BK13: х | BL13: х | BM13: х | BN13: =BM9-BM19-BM21-BM22-BO13 -> 0
A14: 1.1.3. | B14: СН2 | C14: х | D14: х | E14: х | F14: х | G14: =F9-F19-F21-F22 -> 19.04711417 | H14: х | I14: х | J14: х | K14: х | L14: =K9-K19-K21-K22 -> 9.188193485 | M14: х | N14: х | O14: х | P14: х | Q14: =P9-P19-P21-P22 -> 9.120739719 | R14: х | S14: х | T14: х | U14: х | V14: =U9-U19-U21-U22 -> 18.3088794 | W14: х | X14: х | Y14: х | Z14: х | AA14: =Z9-Z19-Z21-Z22 -> 9.858644832 | AB14: х | AC14: х | AD14: х | AE14: х | AF14: =AE9-AE19-AE21-AE22 -> 8.216205848 | AG14: х | AH14: х | AI14: х | AJ14: х | AK14: =AJ9-AJ19-AJ21-AJ22 -> 18.07485068 | AL14: х | AM14: х | AN14: х | AO14: х | AP14: =AO9-AO19-AO21-AO22 -> 10.12774784 | AQ14: х | AR14: х | AS14: х | AT14: х | AU14: =AT9-AT19-AT21-AT22 -> 10.07037969 | AV14: х | AW14: х | AX14: х | AY14: х | AZ14: =AY9-AY19-AY21-AY22 -> 20.19812752 | BA14: х | BB14: х | BC14: х | BD14: х | BE14: =BD9-BD19-BD21-BD22 -> 0 | BF14: х | BG14: х | BH14: х | BI14: х | BJ14: =BI9-BI19-BI21-BI22 -> 0 | BK14: х | BL14: х | BM14: х | BN14: х | BO14: =BN9-BN19-BN21-BN22 -> 0
A15: 1.2. | B15: от электростанций | C15: =SUM(D15:G15) -> 0 | H15: =SUM(I15:L15) -> 0 | M15: =SUM(N15:Q15) -> 0 | R15: =SUM(S15:V15) -> 0 | W15: =SUM(X15:AA15) -> 0 | AB15: =SUM(AC15:AF15) -> 0 | AG15: =SUM(AH15:AK15) -> 0 | AL15: =SUM(AM15:AP15) -> 0 | AQ15: =SUM(AR15:AU15) -> 0 | AV15: =SUM(AW15:AZ15) -> 0 | BA15: =SUM(BB15:BE15) -> 0 | BF15: =SUM(BG15:BJ15) -> 0 | BK15: =SUM(BL15:BO15) -> 0
A16: 1.3. | B16: от ОАО "ФСК ЕЭС" | C16: =SUM(D16:G16) -> 0 | H16: =SUM(I16:L16) -> 0 | M16: =SUM(N16:Q16) -> 0 | R16: =SUM(S16:V16) -> 0 | W16: =SUM(X16:AA16) -> 0 | AB16: =SUM(AC16:AF16) -> 0 | AG16: =SUM(AH16:AK16) -> 0 | AL16: =SUM(AM16:AP16) -> 0 | AQ16: =SUM(AR16:AU16) -> 0 | AV16: =SUM(AW16:AZ16) -> 0 | BA16: =SUM(BB16:BE16) -> 0 | BF16: =SUM(BG16:BJ16) -> 0 | BK16: =SUM(BL16:BO16) -> 0
A17: 1.4. | B17: от филиала "Владимирэнерго" ОАО "МРСК Центра и Приволжья" | C17: =SUM(D17:G17) -> 24.8759 | D17: 24.8759 | H17: =SUM(I17:L17) -> 0 | M17: =SUM(N17:Q17) -> 0 | R17: =SUM(S17:V17) -> 0 | W17: =SUM(X17:AA17) -> 14.6241 | X17: 14.6241 | AB17: =SUM(AC17:AF17) -> 12.1878 | AC17: 12.1878 | AG17: =SUM(AH17:AK17) -> 26.8119 | AH17: =X17+AC17 -> 26.8119 | AL17: =SUM(AM17:AP17) -> 13.2299 | AM17: 13.2299 | AQ17: =SUM(AR17:AU17) -> 13.1549 | AR17: 13.1549 | AV17: =SUM(AW17:AZ17) -> 26.3848 | AW17: 26.3848 | BA17: =SUM(BB17:BE17) -> 0 | BF17: =SUM(BG17:BJ17) -> 0 | BK17: =SUM(BL17:BO17) -> 0
A18: 1.5. | B18: от других сетевых организаций | C18: =SUM(D18:G18) -> 0 | H18: =SUM(I18:L18) -> 12.9289 | I18: 12.9289 | M18: =SUM(N18:Q18) -> 13.0026 | N18: 13.0026 | R18: =SUM(S18:V18) -> 25.9315 | S18: 25.9315 | W18: =SUM(X18:AA18) -> 0 | AB18: =SUM(AC18:AF18) -> 0 | AG18: =SUM(AH18:AK18) -> 0 | AL18: =SUM(AM18:AP18) -> 0 | AQ18: =SUM(AR18:AU18) -> 0 | AV18: =SUM(AW18:AZ18) -> 0 | BA18: =SUM(BB18:BE18) -> 0 | BF18: =SUM(BG18:BJ18) -> 0 | BK18: =SUM(BL18:BO18) -> 0
A19: 2. | B19: Потери электроэнергии в сети | C19: =SUM(D19:G19) -> 3.888604432 | D19: =D9*D20/100 -> 0 | E19: =E9*E20/100 -> 0 | F19: =F9*F20/100 -> 1.536285832 | G19: =G9*G20/100 -> 2.3523186 | H19: =SUM(I19:L19) -> 1.90440586 | J19: =J9*J20/100 -> 0 | K19: =K9*K20/100 -> 0.7960065152 | L19: =L9*L20/100 -> 1.108399345 | M19: =SUM(N19:Q19) -> 1.766280945 | N19: =N9*N20/100 -> 0 | O19: =O9*O20/100 -> 0 | P19: =P9*P20/100 -> 0.7815602808 | Q19: =Q9*Q20/100 -> 0.9847206638 | R19: =SUM(S19:V19) -> 3.670581837 | S19: =S9*S20/100 -> 0 | T19: =T9*T20/100 -> 0 | U19: =U9*U20/100 -> 1.577620597 | V19: =V9*V20/100 -> 2.09296124 | W19: =SUM(X19:AA19) -> 2.120697805 | X19: =X9*X20/100 -> 0 | Y19: =Y9*Y20/100 -> 0 | Z19: =Z9*Z20/100 -> 0.9031551678 | AA19: =AA9*AA20/100 -> 1.217542637 | AB19: =SUM(AC19:AF19) -> 1.767395575 | AC19: =AC9*AC20/100 -> 0 | AD19: =AD9*AD20/100 -> 0 | AE19: =AE9*AE20/100 -> 0.7526941524 | AF19: =AF9*AF20/100 -> 1.014701422 | AG19: =SUM(AH19:AK19) -> 3.888093379 | AH19: =AH9*AH20/100 -> 0 | AI19: =AI9*AI20/100 -> 0 | AJ19: =AJ9*AJ20/100 -> 1.65584932 | AK19: =AK9*AK20/100 -> 2.232244059 | AL19: =SUM(AM19:AP19) -> 2.067829022 | AM19: =AM9*AM20/100 -> 0 | AN19: =AN9*AN20/100 -> 0 | AO19: =AO9*AO20/100 -> 0.8170521642 | AP19: =AP9*AP20/100 -> 1.250776858 | AQ19: =SUM(AR19:AU19) -> 2.056112205 | AR19: =AR9*AR20/100 -> 0 | AS19: =AS9*AS20/100 -> 0 | AT19: =AT9*AT20/100 -> 0.8124203142 | AU19: =AU9*AU20/100 -> 1.243691891 | AV19: =SUM(AW19:AZ19) -> 4.123941227 | AW19: =AW9*AW20/100 -> 0 | AX19: =AX9*AX20/100 -> 0 | AY19: =AY9*AY20/100 -> 1.629472478 | AZ19: =AZ9*AZ20/100 -> 2.494468749 | BA19: =SUM(BB19:BE19) -> 0 | BB19: =BB9*BB20/100 -> 0 | BC19: =BC9*BC20/100 -> 0 | BD19: =BD9*BD20/100 -> 0 | BE19: =BE9*BE20/100 -> 0 | BF19: =SUM(BG19:BJ19) -> 0 | BG19: =BG9*BG20/100 -> 0 | BH19: =BH9*BH20/100 -> 0 | BI19: =BI9*BI20/100 -> 0 | BJ19: =BJ9*BJ20/100 -> 0 | BK19: =SUM(BL19:BO19) -> 0 | BL19: =BL9*BL20/100 -> 0 | BM19: =BM9*BM20/100 -> 0 | BN19: =BN9*BN20/100 -> 0 | BO19: =BO9*BO20/100 -> 0
A20: 2.1. | B20: то же в % (п.2./п.1.) | C20: =IF(C9=0,0,C19/C9*100) -> 15.63201505 | F20: 6.1758 | G20: 12.35 | H20: =IF(H9=0,0,H19/H9*100) -> 14.72983672 | K20: 6.1568 | L20: 12.0633 | M20: =IF(M9=0,0,M19/M9*100) -> 13.58405968 | P20: 6.0108 | Q20: 10.7965 | R20: =IF(R9=0,0,R19/R9*100) -> 14.15491521 | U20: 6.0838 | V20: 11.4314 | W20: =IF(W9=0,0,W19/W9*100) -> 14.5013902 | Z20: 6.1758 | AA20: 12.35 | AB20: =IF(AB9=0,0,AB19/AB9*100) -> 14.50135032 | AE20: =Z20 -> 6.1758 | AF20: =AA20 -> 12.35 | AG20: =IF(AG9=0,0,AG19/AG9*100) -> 14.50137207 | AJ20: =AE20 -> 6.1758 | AK20: 12.35 | AL20: =IF(AL9=0,0,AL19/AL9*100) -> 15.62996713 | AO20: 6.1758 | AP20: 12.35 | AQ20: =IF(AQ9=0,0,AQ19/AQ9*100) -> 15.63001015 | AT20: 6.1758 | AU20: 12.35 | AV20: =IF(AV9=0,0,AV19/AV9*100) -> 15.62998858 | AY20: 6.1758 | AZ20: 12.35 | BA20: =IF(BA9=0,0,BA19/BA9*100) -> 0 | BF20: =IF(BF9=0,0,BF19/BF9*100) -> 0 | BK20: =IF(BK9=0,0,BK19/BK9*100) -> 0
A21: 3. | B21: Расход электроэнергии на производственные и хознужды | C21: =SUM(D21:G21) -> 0 | H21: =SUM(I21:L21) -> 0 | M21: =SUM(N21:Q21) -> 0 | R21: =SUM(S21:V21) -> 0 | W21: =SUM(X21:AA21) -> 0 | AB21: =SUM(AC21:AF21) -> 0 | AG21: =SUM(AH21:AK21) -> 0 | AL21: =SUM(AM21:AP21) -> 0 | AQ21: =SUM(AR21:AU21) -> 0 | AV21: =SUM(AW21:AZ21) -> 0 | BA21: =SUM(BB21:BE21) -> 0 | BF21: =SUM(BG21:BJ21) -> 0 | BK21: =SUM(BL21:BO21) -> 0
A22: 4. | B22: Полезный отпуск из сети | C22: =SUM(D22:G22) -> 20.98729557 | D22: =D23+D24+D25 -> 0 | E22: =E23+E24+E25 -> 0 | F22: =F23+F24+F25 -> 4.2925 | G22: =G9-G19-G21 -> 16.69479557 | H22: =SUM(I22:L22) -> 11.02449414 | I22: =I23+I24+I25 -> 0 | J22: =J23+J24+J25 -> 0 | K22: =K23+K24+K25 -> 2.9447 | L22: =L9-L19-L21 -> 8.07979414 | M22: =SUM(N22:Q22) -> 11.23631906 | N22: =N23+N24+N25 -> 0 | O22: =O23+O24+O25 -> 0 | P22: =P23+P24+P25 -> 3.1003 | Q22: =Q9-Q19-Q21 -> 8.136019055 | R22: =SUM(S22:V22) -> 22.26091816 | S22: =S23+S24+S25 -> 0 | T22: =T23+T24+T25 -> 0 | U22: =U23+U24+U25 -> 6.045 | V22: =V9-V19-V21 -> 16.21591816 | W22: =SUM(X22:AA22) -> 12.5034022 | X22: =X23+X24+X25 -> 0 | Y22: =Y23+Y24+Y25 -> 0 | Z22: =Z23+Z24+Z25 -> 3.8623 | AA22: =AA9-AA19-AA21 -> 8.641102195 | AB22: =SUM(AC22:AF22) -> 10.42040443 | AC22: =AC23+AC24+AC25 -> 0 | AD22: =AD23+AD24+AD25 -> 0 | AE22: =AE23+AE24+AE25 -> 3.2189 | AF22: =AF9-AF19-AF21 -> 7.201504425 | AG22: =SUM(AH22:AK22) -> 22.92380662 | AH22: =AH23+AH24+AH25 -> 0 | AI22: =AI23+AI24+AI25 -> 0 | AJ22: =AJ23+AJ24+AJ25 -> 7.0812 | AK22: =AK9-AK19-AK21 -> 15.84260662 | AL22: =SUM(AM22:AP22) -> 11.16207098 | AM22: =AM23+AM24+AM25 -> 0 | AN22: =AN23+AN24+AN25 -> 0 | AO22: =AO23+AO24+AO25 -> 2.2851 | AP22: =AP9-AP19-AP21 -> 8.876970978 | AQ22: =SUM(AR22:AU22) -> 11.09878779 | AR22: =AR23+AR24+AR25 -> 0 | AS22: =AS23+AS24+AS25 -> 0 | AT22: =AT23+AT24+AT25 -> 2.2721 | AU22: =AU9-AU19-AU21 -> 8.826687795 | AV22: =SUM(AW22:AZ22) -> 22.26085877 | AW22: =AW23+AW24+AW25 -> 0 | AX22: =AX23+AX24+AX25 -> 0 | AY22: =AY23+AY24+AY25 -> 4.5572 | AZ22: =AZ9-AZ19-AZ21 -> 17.70365877 | BA22: =SUM(BB22:BE22) -> 0 | BB22: =BB23+BB24+BB25 -> 0 | BC22: =BC23+BC24+BC25 -> 0 | BD22: =BD23+BD24+BD25 -> 0 | BE22: =BE9-BE19-BE21 -> 0 | BF22: =SUM(BG22:BJ22) -> 0 | BG22: =BG23+BG24+BG25 -> 0 | BH22: =BH23+BH24+BH25 -> 0 | BI22: =BI23+BI24+BI25 -> 0 | BJ22: =BJ9-BJ19-BJ21 -> 0 | BK22: =SUM(BL22:BO22) -> 0 | BL22: =BL23+BL24+BL25 -> 0 | BM22: =BM23+BM24+BM25 -> 0 | BN22: =BN23+BN24+BN25 -> 0 | BO22: =BO9-BO19-BO21 -> 0
A23: 4.1. | B23: потребителям, присоединенным к сети | C23: =SUM(D23:G23) -> 20.9873 | F23: 4.2925 | G23: 16.6948 | H23: =SUM(I23:L23) -> 11.0245 | K23: 2.9447 | L23: 8.0798 | M23: =SUM(N23:Q23) -> 11.2363 | P23: 3.1003 | Q23: 8.136 | R23: =SUM(S23:V23) -> 22.2609 | U23: 6.045 | V23: 16.2159 | W23: =SUM(X23:AA23) -> 12.5034022 | Z23: 3.8623 | AA23: 8.641102195 | AB23: =SUM(AC23:AF23) -> 10.42040443 | AE23: 3.2189 | AF23: 7.201504425 | AG23: =SUM(AH23:AK23) -> 22.92380662 | AJ23: =Z23+AE23 -> 7.0812 | AK23: 15.84260662 | AL23: =SUM(AM23:AP23) -> 11.1621 | AO23: 2.2851 | AP23: 8.877 | AQ23: =SUM(AR23:AU23) -> 11.0988 | AT23: 2.2721 | AU23: 8.8267 | AV23: =SUM(AW23:AZ23) -> 22.2609 | AY23: 4.5572 | AZ23: 17.7037 | BA23: =SUM(BB23:BE23) -> 0 | BF23: =SUM(BG23:BJ23) -> 0 | BK23: =SUM(BL23:BO23) -> 0
A24: 4.2. | B24: переток в филиал "Владимирэнерго" ОАО "МРСК Центра и Приволжья" | C24: =SUM(D24:G24) -> 0 | H24: =SUM(I24:L24) -> 0 | M24: =SUM(N24:Q24) -> 0 | R24: =SUM(S24:V24) -> 0 | W24: =SUM(X24:AA24) -> 0 | AB24: =SUM(AC24:AF24) -> 0 | AG24: =SUM(AH24:AK24) -> 0 | AL24: =SUM(AM24:AP24) -> 0 | AQ24: =SUM(AR24:AU24) -> 0 | AV24: =SUM(AW24:AZ24) -> 0 | BA24: =SUM(BB24:BE24) -> 0 | BF24: =SUM(BG24:BJ24) -> 0 | BK24: =SUM(BL24:BO24) -> 0
A25: 4.3. | B25: переток в другие сетевые организации | C25: =SUM(D25:G25) -> 0 | H25: =SUM(I25:L25) -> 0 | M25: =SUM(N25:Q25) -> 0 | R25: =SUM(S25:V25) -> 0 | W25: =SUM(X25:AA25) -> 0 | AB25: =SUM(AC25:AF25) -> 0 | AG25: =SUM(AH25:AK25) -> 0 | AL25: =SUM(AM25:AP25) -> 0 | AQ25: =SUM(AR25:AU25) -> 0 | AV25: =SUM(AW25:AZ25) -> 0 | BA25: =SUM(BB25:BE25) -> 0 | BF25: =SUM(BG25:BJ25) -> 0 | BK25: =SUM(BL25:BO25) -> 0
B26: Проверка | D26: =D9-D19-D21-D23-D24-D25-E12-F12-G12 -> 0 | E26: =E9-E19-E21-E23-E24-E25-F13-G13 -> 0 | F26: =F9-F19-F21-F23-F24-F25-G14 -> 0 | G26: =G9-G19-G21-G23-G24-G25 -> -4.431923301e-06 | I26: =I9-I19-I21-I23-I24-I25-J12-K12-L12 -> 0 | J26: =J9-J19-J21-J23-J24-J25-K13-L13 -> 0 | K26: =K9-K19-K21-K23-K24-K25-L14 -> 0 | L26: =L9-L19-L21-L23-L24-L25 -> -5.85985188e-06 | N26: =N9-N19-N21-N23-N24-N25-O12-P12-Q12 -> 0 | O26: =O9-O19-O21-O23-O24-O25-P13-Q13 -> 0 | P26: =P9-P19-P21-P23-P24-P25-Q14 -> 0 | Q26: =Q9-Q19-Q21-Q23-Q24-Q25 -> 1.905541657e-05 | S26: =S9-S19-S21-S23-S24-S25-T12-U12-V12 -> 0 | T26: =T9-T19-T21-T23-T24-T25-U13-V13 -> 0 | U26: =U9-U19-U21-U23-U24-U25-V14 -> 0 | V26: =V9-V19-V21-V23-V24-V25 -> 1.816292546e-05 | X26: =X9-X19-X21-X23-X24-X25-Y12-Z12-AA12 -> 0 | Y26: =Y9-Y19-Y21-Y23-Y24-Y25-Z13-AA13 -> 0 | Z26: =Z9-Z19-Z21-Z23-Z24-Z25-AA14 -> 0 | AA26: =AA9-AA19-AA21-AA23-AA24-AA25 -> 0 | AC26: =AC9-AC19-AC21-AC23-AC24-AC25-AD12-AE12-AF12 -> 0 | AD26: =AD9-AD19-AD21-AD23-AD24-AD25-AE13-AF13 -> 0 | AE26: =AE9-AE19-AE21-AE23-AE24-AE25-AF14 -> 0 | AF26: =AF9-AF19-AF21-AF23-AF24-AF25 -> 0 | AH26: =AH9-AH19-AH21-AH23-AH24-AH25-AI12-AJ12-AK12 -> 0 | AI26: =AI9-AI19-AI21-AI23-AI24-AI25-AJ13-AK13 -> 0 | AJ26: =AJ9-AJ19-AJ21-AJ23-AJ24-AJ25-AK14 -> 0 | AK26: =AK9-AK19-AK21-AK23-AK24-AK25 -> 1.776356839e-15 | AM26: =AM9-AM19-AM21-AM23-AM24-AM25-AN12-AO12-AP12 -> 0 | AN26: =AN9-AN19-AN21-AN23-AN24-AN25-AO13-AP13 -> 0 | AO26: =AO9-AO19-AO21-AO23-AO24-AO25-AP14 -> 0 | AP26: =AP9-AP19-AP21-AP23-AP24-AP25 -> -2.90219213e-05 | AR26: =AR9-AR19-AR21-AR23-AR24-AR25-AS12-AT12-AU12 -> 0 | AS26: =AS9-AS19-AS21-AS23-AS24-AS25-AT13-AU13 -> 0 | AT26: =AT9-AT19-AT21-AT23-AT24-AT25-AU14 -> 0 | AU26: =AU9-AU19-AU21-AU23-AU24-AU25 -> -1.22053963e-05 | AW26: =AW9-AW19-AW21-AW23-AW24-AW25-AX12-AY12-AZ12 -> 0 | AX26: =AX9-AX19-AX21-AX23-AX24-AX25-AY13-AZ13 -> 0 | AY26: =AY9-AY19-AY21-AY23-AY24-AY25-AZ14 -> 0 | AZ26: =AZ9-AZ19-AZ21-AZ23-AZ24-AZ25 -> -4.12273176e-05 | BB26: =BB9-BB19-BB21-BB23-BB24-BB25-BC12-BD12-BE12 -> 0 | BC26: =BC9-BC19-BC21-BC23-BC24-BC25-BD13-BE13 -> 0 | BD26: =BD9-BD19-BD21-BD23-BD24-BD25-BE14 -> 0 | BE26: =BE9-BE19-BE21-BE23-BE24-BE25 -> 0 | BG26: =BG9-BG19-BG21-BG23-BG24-BG25-BH12-BI12-BJ12 -> 0 | BH26: =BH9-BH19-BH21-BH23-BH24-BH25-BI13-BJ13 -> 0 | BI26: =BI9-BI19-BI21-BI23-BI24-BI25-BJ14 -> 0 | BJ26: =BJ9-BJ19-BJ21-BJ23-BJ24-BJ25 -> 0 | BL26: =BL9-BL19-BL21-BL23-BL24-BL25-BM12-BN12-BO12 -> 0 | BM26: =BM9-BM19-BM21-BM23-BM24-BM25-BN13-BO13 -> 0 | BN26: =BN9-BN19-BN21-BN23-BN24-BN25-BO14 -> 0 | BO26: =BO9-BO19-BO21-BO23-BO24-BO25 -> 0
B28: Примечание
B30: Расшифровка п. 1.5. (Поступление от других сетевых организаций)
A31: № | B31: Наименование других сетевых организаций | C31: Всего | D31: ВН | E31: СН1 | F31: СН2 | G31: НН | H31: Всего | I31: ВН | J31: СН1 | K31: СН2 | L31: НН | M31: Всего | N31: ВН | O31: СН1 | P31: СН2 | Q31: НН | R31: Всего | S31: ВН | T31: СН1 | U31: СН2 | V31: НН | W31: Всего | X31: ВН | Y31: СН1 | Z31: СН2 | AA31: НН | AB31: Всего | AC31: ВН | AD31: СН1 | AE31: СН2 | AF31: НН | AG31: Всего | AH31: ВН | AI31: СН1 | AJ31: СН2 | AK31: НН | AL31: Всего | AM31: ВН | AN31: СН1 | AO31: СН2 | AP31: НН | AQ31: Всего | AR31: ВН | AS31: СН1 | AT31: СН2 | AU31: НН | AV31: Всего | AW31: ВН | AX31: СН1 | AY31: СН2 | AZ31: НН | BA31: Всего | BB31: ВН | BC31: СН1 | BD31: СН2 | BE31: НН | BF31: Всего | BG31: ВН | BH31: СН1 | BI31: СН2 | BJ31: НН | BK31: Всего | BL31: ВН | BM31: СН1 | BN31: СН2 | BO31: НН
C32: =SUM(D32:G32) -> 0 | H32: =SUM(I32:L32) -> 0 | M32: =SUM(N32:Q32) -> 0 | R32: =SUM(S32:V32) -> 0 | W32: =SUM(X32:AA32) -> 0 | AB32: =SUM(AC32:AF32) -> 0 | AG32: =SUM(AH32:AK32) -> 0 | AL32: =SUM(AM32:AP32) -> 0 | AQ32: =SUM(AR32:AU32) -> 0 | AV32: =SUM(AW32:AZ32) -> 0 | BA32: =SUM(BB32:BE32) -> 0 | BF32: =SUM(BG32:BJ32) -> 0 | BK32: =SUM(BL32:BO32) -> 0
C33: =SUM(D33:G33) -> 0 | H33: =SUM(I33:L33) -> 0 | M33: =SUM(N33:Q33) -> 0 | R33: =SUM(S33:V33) -> 0 | W33: =SUM(X33:AA33) -> 0 | AB33: =SUM(AC33:AF33) -> 0 | AG33: =SUM(AH33:AK33) -> 0 | AL33: =SUM(AM33:AP33) -> 0 | AQ33: =SUM(AR33:AU33) -> 0 | AV33: =SUM(AW33:AZ33) -> 0 | BA33: =SUM(BB33:BE33) -> 0 | BF33: =SUM(BG33:BJ33) -> 0 | BK33: =SUM(BL33:BO33) -> 0
C34: =SUM(D34:G34) -> 0 | H34: =SUM(I34:L34) -> 0 | M34: =SUM(N34:Q34) -> 0 | R34: =SUM(S34:V34) -> 0 | W34: =SUM(X34:AA34) -> 0 | AB34: =SUM(AC34:AF34) -> 0 | AG34: =SUM(AH34:AK34) -> 0 | AL34: =SUM(AM34:AP34) -> 0 | AQ34: =SUM(AR34:AU34) -> 0 | AV34: =SUM(AW34:AZ34) -> 0 | BA34: =SUM(BB34:BE34) -> 0 | BF34: =SUM(BG34:BJ34) -> 0 | BK34: =SUM(BL34:BO34) -> 0
C35: =SUM(D35:G35) -> 0 | H35: =SUM(I35:L35) -> 0 | M35: =SUM(N35:Q35) -> 0 | R35: =SUM(S35:V35) -> 0 | W35: =SUM(X35:AA35) -> 0 | AB35: =SUM(AC35:AF35) -> 0 | AG35: =SUM(AH35:AK35) -> 0 | AL35: =SUM(AM35:AP35) -> 0 | AQ35: =SUM(AR35:AU35) -> 0 | AV35: =SUM(AW35:AZ35) -> 0 | BA35: =SUM(BB35:BE35) -> 0 | BF35: =SUM(BG35:BJ35) -> 0 | BK35: =SUM(BL35:BO35) -> 0
A36: Добавить
B37: Итого | C37: =SUM(C32:C35) -> 0 | D37: =SUM(D32:D35) -> 0 | E37: =SUM(E32:E35) -> 0 | F37: =SUM(F32:F35) -> 0 | G37: =SUM(G32:G35) -> 0 | H37: =SUM(H32:H35) -> 0 | I37: 0 | J37: 0 | K37: 0 | L37: 0 | M37: 0 | N37: 0 | O37: 0 | P37: 0 | Q37: 0 | R37: 0 | S37: 0 | T37: 0 | U37: 0 | V37: 0 | W37: 0 | X37: 0 | Y37: 0 | Z37: 0 | AA37: 0 | AB37: 0 | AC37: 0 | AD37: 0 | AE37: 0 | AF37: 0 | AG37: 0 | AH37: 0 | AI37: 0 | AJ37: 0 | AK37: 0 | AL37: 0 | AM37: 0 | AN37: 0 | AO37: 0 | AP37: 0 | AQ37: 0 | AR37: 0 | AS37: 0 | AT37: 0 | AU37: 0 | AV37: =SUM(AV32:AV35) -> 0 | AW37: =SUM(AW32:AW35) -> 0 | AX37: =SUM(AX32:AX35) -> 0 | AY37: =SUM(AY32:AY35) -> 0 | AZ37: =SUM(AZ32:AZ35) -> 0 | BA37: =SUM(BA32:BA35) -> 0 | BB37: 0 | BC37: 0 | BD37: 0 | BE37: 0 | BF37: 0 | BG37: 0 | BH37: 0 | BI37: 0 | BJ37: 0 | BK37: =SUM(BK32:BK35) -> 0 | BL37: =SUM(BL32:BL35) -> 0 | BM37: =SUM(BM32:BM35) -> 0 | BN37: =SUM(BN32:BN35) -> 0 | BO37: =SUM(BO32:BO35) -> 0
B39: Расшифровка п. 4.3. (Полезный отпуск - переток в другие сетевые организации)
A40: № | B40: Наименование других сетевых организаций | C40: Всего | D40: ВН | E40: СН1 | F40: СН2 | G40: НН | H40: Всего | I40: ВН | J40: СН1 | K40: СН2 | L40: НН | M40: Всего | N40: ВН | O40: СН1 | P40: СН2 | Q40: НН | R40: Всего | S40: ВН | T40: СН1 | U40: СН2 | V40: НН | W40: Всего | X40: ВН | Y40: СН1 | Z40: СН2 | AA40: НН | AB40: Всего | AC40: ВН | AD40: СН1 | AE40: СН2 | AF40: НН | AG40: Всего | AH40: ВН | AI40: СН1 | AJ40: СН2 | AK40: НН | AL40: Всего | AM40: ВН | AN40: СН1 | AO40: СН2 | AP40: НН | AQ40: Всего | AR40: ВН | AS40: СН1 | AT40: СН2 | AU40: НН | AV40: Всего | AW40: ВН | AX40: СН1 | AY40: СН2 | AZ40: НН | BA40: Всего | BB40: ВН | BC40: СН1 | BD40: СН2 | BE40: НН | BF40: Всего | BG40: ВН | BH40: СН1 | BI40: СН2 | BJ40: НН | BK40: Всего | BL40: ВН | BM40: СН1 | BN40: СН2 | BO40: НН
C41: =SUM(D41:G41) -> 0 | H41: =SUM(I41:L41) -> 0 | M41: =SUM(N41:Q41) -> 0 | R41: =SUM(S41:V41) -> 0 | W41: =SUM(X41:AA41) -> 0 | AB41: =SUM(AC41:AF41) -> 0 | AG41: =SUM(AH41:AK41) -> 0 | AL41: =SUM(AM41:AP41) -> 0 | AQ41: =SUM(AR41:AU41) -> 0 | AV41: =SUM(AW41:AZ41) -> 0 | BA41: =SUM(BB41:BE41) -> 0 | BF41: =SUM(BG41:BJ41) -> 0 | BK41: =SUM(BL41:BO41) -> 0
C42: 0 | H42: 0 | M42: 0 | R42: 0 | W42: 0 | AB42: 0 | AG42: 0 | AL42: 0 | AQ42: 0 | AV42: 0 | BA42: 0 | BF42: 0 | BK42: 0
C43: 0 | H43: 0 | M43: 0 | R43: 0 | W43: 0 | AB43: 0 | AG43: 0 | AL43: 0 | AQ43: 0 | AV43: 0 | BA43: 0 | BF43: 0 | BK43: 0
C44: 0 | H44: 0 | M44: 0 | R44: 0 | W44: 0 | AB44: 0 | AG44: 0 | AL44: 0 | AQ44: 0 | AV44: 0 | BA44: 0 | BF44: 0 | BK44: 0
C45: 0 | H45: 0 | M45: 0 | R45: 0 | W45: 0 | AB45: 0 | AG45: 0 | AL45: 0 | AQ45: 0 | AV45: 0 | BA45: 0 | BF45: 0 | BK45: 0
C46: 0 | H46: 0 | M46: 0 | R46: 0 | W46: 0 | AB46: 0 | AG46: 0 | AL46: 0 | AQ46: 0 | AV46: 0 | BA46: 0 | BF46: 0 | BK46: 0
A47: Добавить
B48: Итого | C48: =SUM(C41:C46) -> 0 | D48: =SUM(D41:D46) -> 0 | E48: =SUM(E41:E46) -> 0 | F48: =SUM(F41:F46) -> 0 | G48: =SUM(G41:G46) -> 0 | H48: =SUM(H41:H46) -> 0 | I48: 0 | J48: 0 | K48: 0 | L48: 0 | M48: 0 | N48: 0 | O48: 0 | P48: 0 | Q48: 0 | R48: 0 | S48: 0 | T48: 0 | U48: 0 | V48: 0 | W48: 0 | X48: 0 | Y48: 0 | Z48: 0 | AA48: 0 | AB48: 0 | AC48: 0 | AD48: 0 | AE48: 0 | AF48: 0 | AG48: 0 | AH48: 0 | AI48: 0 | AJ48: 0 | AK48: 0 | AL48: 0 | AM48: 0 | AN48: 0 | AO48: 0 | AP48: 0 | AQ48: 0 | AR48: 0 | AS48: 0 | AT48: 0 | AU48: 0 | AV48: =SUM(AV41:AV46) -> 0 | AW48: =SUM(AW41:AW46) -> 0 | AX48: =SUM(AX41:AX46) -> 0 | AY48: =SUM(AY41:AY46) -> 0 | AZ48: =SUM(AZ41:AZ46) -> 0 | BA48: =SUM(BA41:BA46) -> 0 | BB48: 0 | BC48: 0 | BD48: 0 | BE48: 0 | BF48: 0 | BG48: 0 | BH48: 0 | BI48: 0 | BJ48: 0 | BK48: =SUM(BK41:BK46) -> 0 | BL48: =SUM(BL41:BL46) -> 0 | BM48: =SUM(BM41:BM46) -> 0 | BN48: =SUM(BN41:BN46) -> 0 | BO48: =SUM(BO41:BO46) -> 0
B50: Расшифровка п. 4.1. (Полезный отпуск потребителям, присоединенным к сети)
A51: № | B51: Наименование сбытовых организаций | C51: Всего | D51: ВН | E51: СН1 | F51: СН2 | G51: НН | H51: Всего | I51: ВН | J51: СН1 | K51: СН2 | L51: НН | M51: Всего | N51: ВН | O51: СН1 | P51: СН2 | Q51: НН | R51: Всего | S51: ВН | T51: СН1 | U51: СН2 | V51: НН | W51: Всего | X51: ВН | Y51: СН1 | Z51: СН2 | AA51: НН | AB51: Всего | AC51: ВН | AD51: СН1 | AE51: СН2 | AF51: НН | AG51: Всего | AH51: ВН | AI51: СН1 | AJ51: СН2 | AK51: НН | AL51: Всего | AM51: ВН | AN51: СН1 | AO51: СН2 | AP51: НН | AQ51: Всего | AR51: ВН | AS51: СН1 | AT51: СН2 | AU51: НН | AV51: Всего | AW51: ВН | AX51: СН1 | AY51: СН2 | AZ51: НН | BA51: Всего | BB51: ВН | BC51: СН1 | BD51: СН2 | BE51: НН | BF51: Всего | BG51: ВН | BH51: СН1 | BI51: СН2 | BJ51: НН | BK51: Всего | BL51: ВН | BM51: СН1 | BN51: СН2 | BO51: НН
A52: 1. | B52: ОАО "Владимирэнергосбыт" всего, в том числе: | C52: =D52+E52+F52+G52 -> 0 | D52: =D53+D54 -> 0 | E52: =E53+E54 -> 0 | F52: =F53+F54 -> 0 | G52: =G53+G54 -> 0 | H52: =I52+J52+K52+L52 -> 0 | I52: =I53+I54 -> 0 | J52: =J53+J54 -> 0 | K52: =K53+K54 -> 0 | L52: =L53+L54 -> 0 | M52: =N52+O52+P52+Q52 -> 0 | N52: =N53+N54 -> 0 | O52: =O53+O54 -> 0 | P52: =P53+P54 -> 0 | Q52: =Q53+Q54 -> 0 | R52: =S52+T52+U52+V52 -> 0 | S52: =S53+S54 -> 0 | T52: =T53+T54 -> 0 | U52: =U53+U54 -> 0 | V52: =V53+V54 -> 0 | W52: =X52+Y52+Z52+AA52 -> 0 | X52: =X53+X54 -> 0 | Y52: =Y53+Y54 -> 0 | Z52: =Z53+Z54 -> 0 | AA52: =AA53+AA54 -> 0 | AB52: =AC52+AD52+AE52+AF52 -> 0 | AC52: =AC53+AC54 -> 0 | AD52: =AD53+AD54 -> 0 | AE52: =AE53+AE54 -> 0 | AF52: =AF53+AF54 -> 0 | AG52: =AH52+AI52+AJ52+AK52 -> 0 | AH52: =AH53+AH54 -> 0 | AI52: =AI53+AI54 -> 0 | AJ52: =AJ53+AJ54 -> 0 | AK52: =AK53+AK54 -> 0 | AL52: =AM52+AN52+AO52+AP52 -> 0 | AM52: =AM53+AM54 -> 0 | AN52: =AN53+AN54 -> 0 | AO52: =AO53+AO54 -> 0 | AP52: =AP53+AP54 -> 0 | AQ52: =AR52+AS52+AT52+AU52 -> 0 | AR52: =AR53+AR54 -> 0 | AS52: =AS53+AS54 -> 0 | AT52: =AT53+AT54 -> 0 | AU52: =AU53+AU54 -> 0 | AV52: =AW52+AX52+AY52+AZ52 -> 0 | AW52: =AW53+AW54 -> 0 | AX52: =AX53+AX54 -> 0 | AY52: =AY53+AY54 -> 0 | AZ52: =AZ53+AZ54 -> 0 | BA52: =BB52+BC52+BD52+BE52 -> 0 | BB52: =BB53+BB54 -> 0 | BC52: =BC53+BC54 -> 0 | BD52: =BD53+BD54 -> 0 | BE52: =BE53+BE54 -> 0 | BF52: =BG52+BH52+BI52+BJ52 -> 0 | BG52: =BG53+BG54 -> 0 | BH52: =BH53+BH54 -> 0 | BI52: =BI53+BI54 -> 0 | BJ52: =BJ53+BJ54 -> 0 | BK52: =BL52+BM52+BN52+BO52 -> 0 | BL52: =BL53+BL54 -> 0 | BM52: =BM53+BM54 -> 0 | BN52: =BN53+BN54 -> 0 | BO52: =BO53+BO54 -> 0
A53: 1.1. | B53: прочие потребители | C53: =D53+E53+F53+G53 -> 0 | H53: =I53+J53+K53+L53 -> 0 | M53: =N53+O53+P53+Q53 -> 0 | R53: =S53+T53+U53+V53 -> 0 | W53: =X53+Y53+Z53+AA53 -> 0 | AB53: =AC53+AD53+AE53+AF53 -> 0 | AG53: =AH53+AI53+AJ53+AK53 -> 0 | AL53: =AM53+AN53+AO53+AP53 -> 0 | AQ53: =AR53+AS53+AT53+AU53 -> 0 | AV53: =AW53+AX53+AY53+AZ53 -> 0 | BA53: =BB53+BC53+BD53+BE53 -> 0 | BF53: =BG53+BH53+BI53+BJ53 -> 0 | BK53: =BL53+BM53+BN53+BO53 -> 0
A54: 1.2. | B54: население | C54: =D54+E54+F54+G54 -> 0 | H54: 0 | M54: 0 | R54: 0 | W54: 0 | AB54: 0 | AG54: 0 | AL54: 0 | AQ54: 0 | AV54: 0 | BA54: 0 | BF54: 0 | BK54: 0
A55: 2. | B55: ОАО "ВКС" всего, в том числе: | C55: 0 | D55: =D56+D57 -> 0 | E55: =E56+E57 -> 0 | F55: =F56+F57 -> 0 | G55: =G56+G57 -> 0 | H55: 0 | I55: =I56+I57 -> 0 | J55: =J56+J57 -> 0 | K55: =K56+K57 -> 0 | L55: =L56+L57 -> 0 | M55: 0 | N55: =N56+N57 -> 0 | O55: =O56+O57 -> 0 | P55: =P56+P57 -> 0 | Q55: =Q56+Q57 -> 0 | R55: 0 | S55: =S56+S57 -> 0 | T55: =T56+T57 -> 0 | U55: =U56+U57 -> 0 | V55: =V56+V57 -> 0 | W55: 0 | X55: =X56+X57 -> 0 | Y55: =Y56+Y57 -> 0 | Z55: =Z56+Z57 -> 0 | AA55: =AA56+AA57 -> 0 | AB55: 0 | AC55: =AC56+AC57 -> 0 | AD55: =AD56+AD57 -> 0 | AE55: =AE56+AE57 -> 0 | AF55: =AF56+AF57 -> 0 | AG55: 0 | AH55: =AH56+AH57 -> 0 | AI55: =AI56+AI57 -> 0 | AJ55: =AJ56+AJ57 -> 0 | AK55: =AK56+AK57 -> 0 | AL55: 0 | AM55: =AM56+AM57 -> 0 | AN55: =AN56+AN57 -> 0 | AO55: =AO56+AO57 -> 0 | AP55: =AP56+AP57 -> 0 | AQ55: 0 | AR55: =AR56+AR57 -> 0 | AS55: =AS56+AS57 -> 0 | AT55: =AT56+AT57 -> 0 | AU55: =AU56+AU57 -> 0 | AV55: 0 | AW55: =AW56+AW57 -> 0 | AX55: =AX56+AX57 -> 0 | AY55: =AY56+AY57 -> 0 | AZ55: =AZ56+AZ57 -> 0 | BA55: 0 | BB55: =BB56+BB57 -> 0 | BC55: =BC56+BC57 -> 0 | BD55: =BD56+BD57 -> 0 | BE55: =BE56+BE57 -> 0 | BF55: 0 | BG55: =BG56+BG57 -> 0 | BH55: =BH56+BH57 -> 0 | BI55: =BI56+BI57 -> 0 | BJ55: =BJ56+BJ57 -> 0 | BK55: 0 | BL55: =BL56+BL57 -> 0 | BM55: =BM56+BM57 -> 0 | BN55: =BN56+BN57 -> 0 | BO55: =BO56+BO57 -> 0
A56: 2.1. | B56: прочие потребители | C56: 0 | H56: 0 | M56: 0 | R56: 0 | W56: 0 | AB56: 0 | AG56: 0 | AL56: 0 | AQ56: 0 | AV56: 0 | BA56: 0 | BF56: 0 | BK56: 0
A57: 2.2. | B57: население | C57: 0 | H57: 0 | M57: 0 | R57: 0 | W57: 0 | AB57: 0 | AG57: 0 | AL57: 0 | AQ57: 0 | AV57: 0 | BA57: 0 | BF57: 0 | BK57: 0
A58: 3. | B58: ОАО "Русэнергосбыт" | C58: 0 | D58: =D59+D60 -> 0 | E58: =E59+E60 -> 0 | F58: =F59+F60 -> 0 | G58: =G59+G60 -> 0 | H58: 0 | I58: =I59+I60 -> 0 | J58: =J59+J60 -> 0 | K58: =K59+K60 -> 0 | L58: =L59+L60 -> 0 | M58: 0 | N58: =N59+N60 -> 0 | O58: =O59+O60 -> 0 | P58: =P59+P60 -> 0 | Q58: =Q59+Q60 -> 0 | R58: 0 | S58: =S59+S60 -> 0 | T58: =T59+T60 -> 0 | U58: =U59+U60 -> 0 | V58: =V59+V60 -> 0 | W58: 0 | X58: =X59+X60 -> 0 | Y58: =Y59+Y60 -> 0 | Z58: =Z59+Z60 -> 0 | AA58: =AA59+AA60 -> 0 | AB58: 0 | AC58: =AC59+AC60 -> 0 | AD58: =AD59+AD60 -> 0 | AE58: =AE59+AE60 -> 0 | AF58: =AF59+AF60 -> 0 | AG58: 0 | AH58: =AH59+AH60 -> 0 | AI58: =AI59+AI60 -> 0 | AJ58: =AJ59+AJ60 -> 0 | AK58: =AK59+AK60 -> 0 | AL58: 0 | AM58: =AM59+AM60 -> 0 | AN58: =AN59+AN60 -> 0 | AO58: =AO59+AO60 -> 0 | AP58: =AP59+AP60 -> 0 | AQ58: 0 | AR58: =AR59+AR60 -> 0 | AS58: =AS59+AS60 -> 0 | AT58: =AT59+AT60 -> 0 | AU58: =AU59+AU60 -> 0 | AV58: 0 | AW58: =AW59+AW60 -> 0 | AX58: =AX59+AX60 -> 0 | AY58: =AY59+AY60 -> 0 | AZ58: =AZ59+AZ60 -> 0 | BA58: 0 | BB58: =BB59+BB60 -> 0 | BC58: =BC59+BC60 -> 0 | BD58: =BD59+BD60 -> 0 | BE58: =BE59+BE60 -> 0 | BF58: 0 | BG58: =BG59+BG60 -> 0 | BH58: =BH59+BH60 -> 0 | BI58: =BI59+BI60 -> 0 | BJ58: =BJ59+BJ60 -> 0 | BK58: 0 | BL58: =BL59+BL60 -> 0 | BM58: =BM59+BM60 -> 0 | BN58: =BN59+BN60 -> 0 | BO58: =BO59+BO60 -> 0
A59: 3.1. | B59: прочие потребители | C59: 0 | H59: 0 | M59: 0 | R59: 0 | W59: 0 | AB59: 0 | AG59: 0 | AL59: 0 | AQ59: 0 | AV59: 0 | BA59: 0 | BF59: 0 | BK59: 0
A60: 3.2. | B60: население | C60: 0 | H60: 0 | M60: 0 | R60: 0 | W60: 0 | AB60: 0 | AG60: 0 | AL60: 0 | AQ60: 0 | AV60: 0 | BA60: 0 | BF60: 0 | BK60: 0
A61: 4. | B61: ОАО "Оборонэнергосбыт" | C61: 0 | D61: =D62+D63 -> 0 | E61: =E62+E63 -> 0 | F61: =F62+F63 -> 0 | G61: =G62+G63 -> 0 | H61: 0 | I61: =I62+I63 -> 0 | J61: =J62+J63 -> 0 | K61: =K62+K63 -> 0 | L61: =L62+L63 -> 0 | M61: 0 | N61: =N62+N63 -> 0 | O61: =O62+O63 -> 0 | P61: =P62+P63 -> 0 | Q61: =Q62+Q63 -> 0 | R61: 0 | S61: =S62+S63 -> 0 | T61: =T62+T63 -> 0 | U61: =U62+U63 -> 0 | V61: =V62+V63 -> 0 | W61: 0 | X61: =X62+X63 -> 0 | Y61: =Y62+Y63 -> 0 | Z61: =Z62+Z63 -> 0 | AA61: =AA62+AA63 -> 0 | AB61: 0 | AC61: =AC62+AC63 -> 0 | AD61: =AD62+AD63 -> 0 | AE61: =AE62+AE63 -> 0 | AF61: =AF62+AF63 -> 0 | AG61: 0 | AH61: =AH62+AH63 -> 0 | AI61: =AI62+AI63 -> 0 | AJ61: =AJ62+AJ63 -> 0 | AK61: =AK62+AK63 -> 0 | AL61: 0 | AM61: =AM62+AM63 -> 0 | AN61: =AN62+AN63 -> 0 | AO61: =AO62+AO63 -> 0 | AP61: =AP62+AP63 -> 0 | AQ61: 0 | AR61: =AR62+AR63 -> 0 | AS61: =AS62+AS63 -> 0 | AT61: =AT62+AT63 -> 0 | AU61: =AU62+AU63 -> 0 | AV61: 0 | AW61: =AW62+AW63 -> 0 | AX61: =AX62+AX63 -> 0 | AY61: =AY62+AY63 -> 0 | AZ61: =AZ62+AZ63 -> 0 | BA61: 0 | BB61: =BB62+BB63 -> 0 | BC61: =BC62+BC63 -> 0 | BD61: =BD62+BD63 -> 0 | BE61: =BE62+BE63 -> 0 | BF61: 0 | BG61: =BG62+BG63 -> 0 | BH61: =BH62+BH63 -> 0 | BI61: =BI62+BI63 -> 0 | BJ61: =BJ62+BJ63 -> 0 | BK61: 0 | BL61: =BL62+BL63 -> 0 | BM61: =BM62+BM63 -> 0 | BN61: =BN62+BN63 -> 0 | BO61: =BO62+BO63 -> 0
A62: 4.1. | B62: прочие потребители | C62: 0 | H62: 0 | M62: 0 | R62: 0 | W62: 0 | AB62: 0 | AG62: 0 | AL62: 0 | AQ62: 0 | AV62: 0 | BA62: 0 | BF62: 0 | BK62: 0
A63: 4.2. | B63: население | C63: 0 | H63: 0 | M63: 0 | R63: 0 | W63: 0 | AB63: 0 | AG63: 0 | AL63: 0 | AQ63: 0 | AV63: 0 | BA63: 0 | BF63: 0 | BK63: 0
A64: Добавить
B65: Итого всего, в том числе: | C65: =D65+E65+F65+G65 -> 0 | D65: =D66+D67 -> 0 | E65: =E66+E67 -> 0 | F65: =F66+F67 -> 0 | G65: =G66+G67 -> 0 | H65: =I65+J65+K65+L65 -> 0 | I65: =I66+I67 -> 0 | J65: =J66+J67 -> 0 | K65: =K66+K67 -> 0 | L65: =L66+L67 -> 0 | M65: =N65+O65+P65+Q65 -> 0 | N65: =N66+N67 -> 0 | O65: =O66+O67 -> 0 | P65: =P66+P67 -> 0 | Q65: =Q66+Q67 -> 0 | R65: =S65+T65+U65+V65 -> 0 | S65: =S66+S67 -> 0 | T65: =T66+T67 -> 0 | U65: =U66+U67 -> 0 | V65: =V66+V67 -> 0 | W65: =X65+Y65+Z65+AA65 -> 0 | X65: =X66+X67 -> 0 | Y65: =Y66+Y67 -> 0 | Z65: =Z66+Z67 -> 0 | AA65: =AA66+AA67 -> 0 | AB65: =AC65+AD65+AE65+AF65 -> 0 | AC65: =AC66+AC67 -> 0 | AD65: =AD66+AD67 -> 0 | AE65: =AE66+AE67 -> 0 | AF65: =AF66+AF67 -> 0 | AG65: =AH65+AI65+AJ65+AK65 -> 0 | AH65: =AH66+AH67 -> 0 | AI65: =AI66+AI67 -> 0 | AJ65: =AJ66+AJ67 -> 0 | AK65: =AK66+AK67 -> 0 | AL65: =AM65+AN65+AO65+AP65 -> 0 | AM65: =AM66+AM67 -> 0 | AN65: =AN66+AN67 -> 0 | AO65: =AO66+AO67 -> 0 | AP65: =AP66+AP67 -> 0 | AQ65: =AR65+AS65+AT65+AU65 -> 0 | AR65: =AR66+AR67 -> 0 | AS65: =AS66+AS67 -> 0 | AT65: =AT66+AT67 -> 0 | AU65: =AU66+AU67 -> 0 | AV65: =AW65+AX65+AY65+AZ65 -> 0 | AW65: =AW66+AW67 -> 0 | AX65: =AX66+AX67 -> 0 | AY65: =AY66+AY67 -> 0 | AZ65: =AZ66+AZ67 -> 0 | BA65: =BB65+BC65+BD65+BE65 -> 0 | BB65: =BB66+BB67 -> 0 | BC65: =BC66+BC67 -> 0 | BD65: =BD66+BD67 -> 0 | BE65: =BE66+BE67 -> 0 | BF65: =BG65+BH65+BI65+BJ65 -> 0 | BG65: =BG66+BG67 -> 0 | BH65: =BH66+BH67 -> 0 | BI65: =BI66+BI67 -> 0 | BJ65: =BJ66+BJ67 -> 0 | BK65: =BL65+BM65+BN65+BO65 -> 0 | BL65: =BL66+BL67 -> 0 | BM65: =BM66+BM67 -> 0 | BN65: =BN66+BN67 -> 0 | BO65: =BO66+BO67 -> 0
B66: прочие потребители | C66: =D66+E66+F66+G66 -> 0 | D66: =D53+D56+D59+D62 -> 0 | E66: 0 | F66: 0 | G66: 0 | H66: =I66+J66+K66+L66 -> 0 | I66: =I53+I56+I59+I62 -> 0 | J66: 0 | K66: 0 | L66: 0 | M66: =N66+O66+P66+Q66 -> 0 | N66: =N53+N56+N59+N62 -> 0 | O66: 0 | P66: 0 | Q66: 0 | R66: =S66+T66+U66+V66 -> 0 | S66: =S53+S56+S59+S62 -> 0 | T66: 0 | U66: 0 | V66: 0 | W66: =X66+Y66+Z66+AA66 -> 0 | X66: =X53+X56+X59+X62 -> 0 | Y66: 0 | Z66: 0 | AA66: 0 | AB66: =AC66+AD66+AE66+AF66 -> 0 | AC66: =AC53+AC56+AC59+AC62 -> 0 | AD66: 0 | AE66: 0 | AF66: 0 | AG66: =AH66+AI66+AJ66+AK66 -> 0 | AH66: =AH53+AH56+AH59+AH62 -> 0 | AI66: 0 | AJ66: 0 | AK66: 0 | AL66: =AM66+AN66+AO66+AP66 -> 0 | AM66: =AM53+AM56+AM59+AM62 -> 0 | AN66: 0 | AO66: 0 | AP66: 0 | AQ66: =AR66+AS66+AT66+AU66 -> 0 | AR66: =AR53+AR56+AR59+AR62 -> 0 | AS66: 0 | AT66: 0 | AU66: 0 | AV66: =AW66+AX66+AY66+AZ66 -> 0 | AW66: =AW53+AW56+AW59+AW62 -> 0 | AX66: 0 | AY66: 0 | AZ66: 0 | BA66: =BB66+BC66+BD66+BE66 -> 0 | BB66: =BB53+BB56+BB59+BB62 -> 0 | BC66: 0 | BD66: 0 | BE66: 0 | BF66: =BG66+BH66+BI66+BJ66 -> 0 | BG66: =BG53+BG56+BG59+BG62 -> 0 | BH66: 0 | BI66: 0 | BJ66: 0 | BK66: =BL66+BM66+BN66+BO66 -> 0 | BL66: =BL53+BL56+BL59+BL62 -> 0 | BM66: 0 | BN66: 0 | BO66: 0
B67: население | C67: =D67+E67+F67+G67 -> 0 | D67: 0 | E67: =E54+E57+E60+E63 -> 0 | F67: 0 | G67: =G54+G57+G60+G63 -> 0 | H67: =I67+J67+K67+L67 -> 0 | I67: 0 | J67: 0 | K67: 0 | L67: 0 | M67: =N67+O67+P67+Q67 -> 0 | N67: 0 | O67: 0 | P67: 0 | Q67: 0 | R67: =S67+T67+U67+V67 -> 0 | S67: 0 | T67: 0 | U67: 0 | V67: 0 | W67: =X67+Y67+Z67+AA67 -> 0 | X67: 0 | Y67: 0 | Z67: 0 | AA67: 0 | AB67: =AC67+AD67+AE67+AF67 -> 0 | AC67: 0 | AD67: 0 | AE67: 0 | AF67: 0 | AG67: =AH67+AI67+AJ67+AK67 -> 0 | AH67: 0 | AI67: 0 | AJ67: 0 | AK67: 0 | AL67: =AM67+AN67+AO67+AP67 -> 0 | AM67: 0 | AN67: 0 | AO67: 0 | AP67: 0 | AQ67: =AR67+AS67+AT67+AU67 -> 0 | AR67: 0 | AS67: 0 | AT67: 0 | AU67: 0 | AV67: =AW67+AX67+AY67+AZ67 -> 0 | AW67: 0 | AX67: 0 | AY67: 0 | AZ67: 0 | BA67: =BB67+BC67+BD67+BE67 -> 0 | BB67: 0 | BC67: 0 | BD67: 0 | BE67: 0 | BF67: =BG67+BH67+BI67+BJ67 -> 0 | BG67: 0 | BH67: 0 | BI67: 0 | BJ67: 0 | BK67: =BL67+BM67+BN67+BO67 -> 0 | BL67: 0 | BM67: 0 | BN67: 0 | BO67: 0
G69: ='Инф-я'!C17 -> Окунев Василий Михайлович

Sheet Баланс мощности
A3: Электрическая мощность по диапазонам напряжения
A4: ='Инф-я'!C9 -> Общество с ограниченной ответственностью "Энергетик"
P5: МВт
A6: № п.п. | B6: Показатели | C6: Принято регулирующим органом на 2016 год | H6: Факт за 2016 год | M6: По данным организации на 2018 год | R6: Принято регулирующим органом на 2018 год
C7: Всего | D7: ВН | E7: СН1 | F7: СН2 | G7: НН | H7: Всего | I7: ВН | J7: СН1 | K7: СН2 | L7: НН | M7: Всего | N7: ВН | O7: СН1 | P7: СН2 | Q7: НН | R7: Всего | S7: ВН | T7: СН1 | U7: СН2 | V7: НН
A8: 1 | B8: 2 | C8: 3 | D8: 4 | E8: 5 | F8: 6 | G8: 7 | H8: 8 | I8: 9 | J8: 10 | K8: 11 | L8: 12 | M8: 18 | N8: 19 | O8: 20 | P8: 21 | Q8: 22 | R8: 23 | S8: 24 | T8: 25 | U8: 26 | V8: 27
A9: 1. | B9: Поступление мощности в сеть , ВСЕГО | C9: =C19+C21+C22 -> 4.41 | D9: =D15+D16+D17+D18 -> 4.41 | E9: =E10+E15+E16+E17+E18 -> 0 | F9: =F10+F15+F16+F17+F18 -> 4.41 | G9: =G10+G15+G16+G17+G18 -> 3.20164722 | H9: =H19+H21+H22 -> 4.41 | I9: =I15+I16+I17+I18 -> 4.41 | J9: =J10+J15+J16+J17+J18 -> 0 | K9: =K10+K15+K16+K17+K18 -> 4.41 | L9: =L10+L15+L16+L17+L18 -> 2.51470442 | M9: =M19+M21+M22 -> 4.47 | N9: =N15+N16+N17+N18 -> 4.47 | O9: =O10+O15+O16+O17+O18 -> 0 | P9: =P10+P15+P16+P17+P18 -> 4.47 | Q9: =Q10+Q15+Q16+Q17+Q18 -> 3.42184174 | R9: =R19+R21+R22 -> 0 | S9: =S15+S16+S17+S18 -> 0 | T9: =T10+T15+T16+T17+T18 -> 0 | U9: =U10+U15+U16+U17+U18 -> 0 | V9: =V10+V15+V16+V17+V18 -> 0
A10: 1.1. | B10: из смежной сети, всего | C10: х | D10: х | E10: =E12 -> 0 | F10: =F12+F13 -> 4.41 | G10: =G12+G13+G14 -> 3.20164722 | H10: х | I10: х | J10: =J12 -> 0 | K10: =K12+K13 -> 4.41 | L10: =L12+L13+L14 -> 2.51470442 | M10: х | N10: х | O10: =O12 -> 0 | P10: =P12+P13 -> 4.47 | Q10: =Q12+Q13+Q14 -> 3.42184174 | R10: х | S10: х | T10: =T12 -> 0 | U10: =U12+U13 -> 0 | V10: =V12+V13+V14 -> 0
B11: в том числе из сети | C11: х | D11: х | E11: х | F11: х | G11: х | H11: х | I11: х | J11: х | K11: х | L11: х | M11: х | N11: х | O11: х | P11: х | Q11: х | R11: х | S11: х | T11: х | U11: х | V11: х
A12: 1.1.1. | B12: ВН | C12: х | D12: х | F12: =D9-D19-D21-D22-G12-E12 -> 4.41 | H12: х | I12: х | K12: =I9-I19-I21-I22-L12-J12 -> 4.41 | M12: х | N12: х | P12: =N9-N19-N21-N22-Q12-O12 -> 4.47 | R12: х | S12: х | U12: =S9-S19-S21-S22-V12-T12 -> 0
A13: 1.1.2. | B13: СН1 | C13: х | D13: х | E13: х | F13: =E9-E19-E21-E22-G13 -> 0 | H13: х | I13: х | J13: х | K13: =J9-J19-J21-J22-L13 -> 0 | M13: х | N13: х | O13: х | P13: =O9-O19-O21-O22-Q13 -> 0 | R13: х | S13: х | T13: х | U13: =T9-T19-T21-T22-V13 -> 0
A14: 1.1.3. | B14: СН2 | C14: х | D14: х | E14: х | F14: х | G14: =F9-F19-F21-F22 -> 3.20164722 | H14: х | I14: х | J14: х | K14: х | L14: =K9-K19-K21-K22 -> 2.51470442 | M14: х | N14: х | O14: х | P14: х | Q14: =P9-P19-P21-P22 -> 3.42184174 | R14: х | S14: х | T14: х | U14: х | V14: =U9-U19-U21-U22 -> 0
A15: 1.2. | B15: от электростанций | C15: =SUM(D15:G15) -> 0 | H15: =SUM(I15:L15) -> 0 | M15: =SUM(N15:Q15) -> 0 | R15: =SUM(S15:V15) -> 0
A16: 1.3. | B16: от ОАО "ФСК ЕЭС" | C16: =SUM(D16:G16) -> 0 | H16: =SUM(I16:L16) -> 0 | M16: =SUM(N16:Q16) -> 0 | R16: =SUM(S16:V16) -> 0
A17: 1.4. | B17: от филиала "Владимирэнерго" ОАО "МРСК Центра и Приволжья" | C17: =SUM(D17:G17) -> 4.41 | D17: 4.41 | H17: =SUM(I17:L17) -> 4.41 | I17: 4.41 | M17: =SUM(N17:Q17) -> 4.47 | N17: 4.47 | R17: =SUM(S17:V17) -> 0
A18: 1.5. | B18: от других сетевых организаций | C18: =SUM(D18:G18) -> 0 | H18: =SUM(I18:L18) -> 0 | M18: =SUM(N18:Q18) -> 0 | R18: =SUM(S18:V18) -> 0
A19: 2. | B19: Потери мощности в сети | C19: =SUM(D19:G19) -> 0.7281584881 | D19: =D9*D20/100 -> 0 | E19: =E9*E20/100 -> 0 | F19: =F9*F20/100 -> 0.27235278 | G19: =G9*G20/100 -> 0.4558057081 | H19: =SUM(I19:L19) -> 0.624231873 | I19: =I9*I20/100 -> 0 | J19: =J9*J20/100 -> 0 | K19: =K9*K20/100 -> 0.26829558 | L19: =L9*L20/100 -> 0.355936293 | M19: =SUM(N19:Q19) -> 0.6986557149 | N19: =N9*N20/100 -> 0 | O19: =O9*O20/100 -> 0 | P19: =P9*P20/100 -> 0.27605826 | Q19: =Q9*Q20/100 -> 0.4225974549 | R19: =SUM(S19:V19) -> 0 | S19: =S9*S20/100 -> 0 | T19: =T9*T20/100 -> 0 | U19: =U9*U20/100 -> 0 | V19: =V9*V20/100 -> 0
A20: 2.1. | B20: то же в % (п.2./п.1.) | C20: =IF(C9=0,0,C19/C9*100) -> 16.51153034 | D20: ='Баланс энергии'!D20 -> 0 | E20: ='Баланс энергии'!E20 -> 0 | F20: ='Баланс энергии'!F20 -> 6.1758 | G20: 14.2366 | H20: =IF(H9=0,0,H19/H9*100) -> 14.15491776 | I20: ='Баланс энергии'!S20 -> 0 | J20: ='Баланс энергии'!T20 -> 0 | K20: ='Баланс энергии'!U20 -> 6.0838 | L20: 14.1542 | M20: =IF(M9=0,0,M19/M9*100) -> 15.62988176 | N20: ='Баланс энергии'!AW20 -> 0 | O20: ='Баланс энергии'!AX20 -> 0 | P20: ='Баланс энергии'!AY20 -> 6.1758 | Q20: 12.35 | R20: =IF(R9=0,0,R19/R9*100) -> 0 | S20: ='Баланс энергии'!BL20 -> 0 | T20: ='Баланс энергии'!BM20 -> 0 | U20: ='Баланс энергии'!BN20 -> 0
A21: 3. | B21: Расход электроэнергии на производственные и хознужды | C21: =SUM(D21:G21) -> 0 | H21: =SUM(I21:L21) -> 0 | M21: =SUM(N21:Q21) -> 0 | R21: =SUM(S21:V21) -> 0
A22: 4. | B22: Полезный отпуск из сети | C22: =SUM(D22:G22) -> 3.681841512 | D22: =D23+D24+D25 -> 0 | E22: =E23+E24+E25 -> 0 | F22: =F23+F24+F25 -> 0.936 | G22: =G9-G19-G21 -> 2.745841512 | H22: =SUM(I22:L22) -> 3.785768127 | I22: =I23+I24+I25 -> 0 | J22: =J23+J24+J25 -> 0 | K22: =K23+K24+K25 -> 1.627 | L22: =L9-L19-L21 -> 2.158768127 | M22: =SUM(N22:Q22) -> 3.771344285 | N22: =N23+N24+N25 -> 0 | O22: =O23+O24+O25 -> 0 | P22: =P23+P24+P25 -> 0.7721 | Q22: =Q9-Q19-Q21 -> 2.999244285 | R22: =SUM(S22:V22) -> 0 | S22: =S23+S24+S25 -> 0 | T22: =T23+T24+T25 -> 0 | U22: =U23+U24+U25 -> 0 | V22: =V9-V19-V21 -> 0
A23: 4.1. | B23: потребителям, присоединенным к сети | C23: =SUM(D23:G23) -> 3.6818 | F23: 0.936 | G23: 2.7458 | H23: =SUM(I23:L23) -> 3.7858 | K23: 1.627 | L23: 2.1588 | M23: =SUM(N23:Q23) -> 3.7713 | P23: 0.7721 | Q23: 2.9992 | R23: =SUM(S23:V23) -> 0
A24: 4.2. | B24: переток в филиал "Владимирэнерго" ОАО "МРСК Центра и Приволжья" | C24: =SUM(D24:G24) -> 0 | H24: =SUM(I24:L24) -> 0 | M24: =SUM(N24:Q24) -> 0 | R24: =SUM(S24:V24) -> 0
A25: 4.3. | B25: переток в другие сетевые организации | C25: =SUM(D25:G25) -> 0 | H25: =SUM(I25:L25) -> 0 | M25: =SUM(N25:Q25) -> 0 | R25: =SUM(S25:V25) -> 0
B26: Проверка | D26: =D9-D19-D21-D23-D24-D25-E12-F12-G12 -> 0 | E26: =E9-E19-E21-E23-E24-E25-F13-G13 -> 0 | F26: =F9-F19-F21-F23-F24-F25-G14 -> 0 | G26: =G9-G19-G21-G23-G24-G25 -> 4.151187748e-05 | I26: =I9-I19-I21-I23-I24-I25-J12-K12-L12 -> 0 | J26: =J9-J19-J21-J23-J24-J25-K13-L13 -> 0 | K26: =K9-K19-K21-K23-K24-K25-L14 -> 0 | L26: =L9-L19-L21-L23-L24-L25 -> -3.187301564e-05 | N26: =N9-N19-N21-N23-N24-N25-O12-P12-Q12 -> 0 | O26: =O9-O19-O21-O23-O24-O25-P13-Q13 -> 0 | P26: =P9-P19-P21-P23-P24-P25-Q14 -> 0 | Q26: =Q9-Q19-Q21-Q23-Q24-Q25 -> 4.428511e-05 | S26: =S9-S19-S21-S23-S24-S25-T12-U12-V12 -> 0 | T26: =T9-T19-T21-T23-T24-T25-U13-V13 -> 0 | U26: =U9-U19-U21-U23-U24-U25-V14 -> 0 | V26: =V9-V19-V21-V23-V24-V25 -> 0
B28: Примечание
B30: Расшифровка п. 1.5. (Поступление от других сетевых организаций)
A31: № | B31: Наименование других сетевых организаций | C31: Всего | D31: ВН | E31: СН1 | F31: СН2 | G31: НН | H31: Всего | I31: ВН | J31: СН1 | K31: СН2 | L31: НН | M31: Всего | N31: ВН | O31: СН1 | P31: СН2 | Q31: НН | R31: Всего | S31: ВН | T31: СН1 | U31: СН2 | V31: НН
C32: =SUM(D32:G32) -> 0 | H32: =SUM(I32:L32) -> 0 | M32: =SUM(N32:Q32) -> 0 | R32: =SUM(S32:V32) -> 0
C33: =SUM(D33:G33) -> 0 | H33: =SUM(I33:L33) -> 0 | M33: =SUM(N33:Q33) -> 0 | R33: =SUM(S33:V33) -> 0
B34: Добавить
B35: Итого | C35: =SUM(C32:C33) -> 0 | D35: 0 | E35: 0 | F35: 0 | G35: 0 | H35: 0 | I35: 0 | J35: 0 | K35: 0 | L35: 0 | M35: 0 | N35: 0 | O35: 0 | P35: 0 | Q35: 0 | R35: 0 | S35: 0 | T35: 0 | U35: 0 | V35: 0
B37: Расшифровка п. 4.3. (Полезный отпуск - переток в другие сетевые организации)
A38: № | B38: Наименование других сетевых организаций | C38: Всего | D38: ВН | E38: СН1 | F38: СН2 | G38: НН | H38: Всего | I38: ВН | J38: СН1 | K38: СН2 | L38: НН | M38: Всего | N38: ВН | O38: СН1 | P38: СН2 | Q38: НН | R38: Всего | S38: ВН | T38: СН1 | U38: СН2 | V38: НН
C39: =SUM(D39:G39) -> 0 | H39: =SUM(I39:L39) -> 0 | M39: =SUM(N39:Q39) -> 0 | R39: =SUM(S39:V39) -> 0
C40: =SUM(D40:G40) -> 0 | H40: =SUM(I40:L40) -> 0 | M40: =SUM(N40:Q40) -> 0 | R40: =SUM(S40:V40) -> 0
C41: =SUM(D41:G41) -> 0 | H41: =SUM(I41:L41) -> 0 | M41: =SUM(N41:Q41) -> 0 | R41: =SUM(S41:V41) -> 0
B42: Добавить
B43: Итого | C43: =SUM(C39:C41) -> 0 | D43: =SUM(D39:D41) -> 0 | E43: =SUM(E39:E41) -> 0 | F43: =SUM(F39:F41) -> 0 | G43: =SUM(G39:G41) -> 0 | H43: =SUM(H39:H41) -> 0 | I43: 0 | J43: 0 | K43: 0 | L43: 0 | M43: 0 | N43: 0 | O43: 0 | P43: 0 | Q43: 0 | R43: 0 | S43: 0 | T43: 0 | U43: 0 | V43: 0
B45: Расшифровка п. 4.1. (Полезный отпуск потребителям, присоединенным к сети)
A46: № | B46: Наименование сбытовых организаций | C46: Всего | D46: ВН | E46: СН1 | F46: СН2 | G46: НН | H46: Всего | I46: ВН | J46: СН1 | K46: СН2 | L46: НН | M46: Всего | N46: ВН | O46: СН1 | P46: СН2 | Q46: НН | R46: Всего | S46: ВН | T46: СН1 | U46: СН2 | V46: НН
A47: 1. | B47: ОАО "Владимирэнергосбыт" всего, в том числе: | C47: =D47+E47+F47+G47 -> 0 | D47: =D48+D49 -> 0 | E47: =E48+E49 -> 0 | F47: =F48+F49 -> 0 | G47: =G48+G49 -> 0 | H47: =I47+J47+K47+L47 -> 0 | I47: =I48+I49 -> 0 | J47: =J48+J49 -> 0 | K47: =K48+K49 -> 0 | L47: =L48+L49 -> 0 | M47: =N47+O47+P47+Q47 -> 0 | N47: =N48+N49 -> 0 | O47: =O48+O49 -> 0 | P47: =P48+P49 -> 0 | Q47: =Q48+Q49 -> 0 | R47: =S47+T47+U47+V47 -> 0 | S47: =S48+S49 -> 0 | T47: =T48+T49 -> 0 | U47: =U48+U49 -> 0 | V47: =V48+V49 -> 0
A48: 1.1. | B48: прочие потребители | C48: =D48+E48+F48+G48 -> 0 | H48: =I48+J48+K48+L48 -> 0 | M48: =N48+O48+P48+Q48 -> 0 | R48: =S48+T48+U48+V48 -> 0
A49: 1.2. | B49: население | C49: 0 | H49: 0 | M49: 0 | R49: 0
A50: 2. | B50: ОАО "ВКС" всего, в том числе: | C50: 0 | D50: =D51+D52 -> 0 | E50: =E51+E52 -> 0 | F50: =F51+F52 -> 0 | G50: =G51+G52 -> 0 | H50: 0 | I50: =I51+I52 -> 0 | J50: =J51+J52 -> 0 | K50: =K51+K52 -> 0 | L50: =L51+L52 -> 0 | M50: 0 | N50: =N51+N52 -> 0 | O50: =O51+O52 -> 0 | P50: =P51+P52 -> 0 | Q50: =Q51+Q52 -> 0 | R50: 0 | S50: =S51+S52 -> 0 | T50: =T51+T52 -> 0 | U50: =U51+U52 -> 0 | V50: =V51+V52 -> 0
A51: 2.1. | B51: прочие потребители | C51: 0 | H51: 0 | M51: 0 | R51: 0
A52: 2.2. | B52: население | C52: 0 | H52: 0 | M52: 0 | R52: 0
A53: 3. | B53: ОАО "Русэнергосбыт" | C53: 0 | D53: =D54+D55 -> 0 | E53: =E54+E55 -> 0 | F53: =F54+F55 -> 0 | G53: =G54+G55 -> 0 | H53: 0 | I53: =I54+I55 -> 0 | J53: =J54+J55 -> 0 | K53: =K54+K55 -> 0 | L53: =L54+L55 -> 0 | M53: 0 | N53: =N54+N55 -> 0 | O53: =O54+O55 -> 0 | P53: =P54+P55 -> 0 | Q53: =Q54+Q55 -> 0 | R53: 0 | S53: =S54+S55 -> 0 | T53: =T54+T55 -> 0 | U53: =U54+U55 -> 0 | V53: =V54+V55 -> 0
A54: 3.1. | B54: прочие потребители | C54: 0 | H54: 0 | M54: 0 | R54: 0
A55: 3.2. | B55: население | C55: 0 | H55: 0 | M55: 0 | R55: 0
A56: 4. | B56: ОАО "Оборонэнергосбыт" | C56: 0 | D56: =D57+D58 -> 0 | E56: =E57+E58 -> 0 | F56: =F57+F58 -> 0 | G56: =G57+G58 -> 0 | H56: 0 | I56: =I57+I58 -> 0 | J56: =J57+J58 -> 0 | K56: =K57+K58 -> 0 | L56: =L57+L58 -> 0 | M56: 0 | N56: =N57+N58 -> 0 | O56: =O57+O58 -> 0 | P56: =P57+P58 -> 0 | Q56: =Q57+Q58 -> 0 | R56: 0 | S56: =S57+S58 -> 0 | T56: =T57+T58 -> 0 | U56: =U57+U58 -> 0 | V56: =V57+V58 -> 0
A57: 4.1. | B57: прочие потребители | C57: 0 | H57: 0 | M57: 0 | R57: 0
A58: 4.2. | B58: население | C58: 0 | H58: 0 | M58: 0 | R58: 0
A59: Добавить
B60: Итого всего, в том числе: | C60: =D60+E60+F60+G60 -> 0 | D60: =D61+D62 -> 0 | E60: =E61+E62 -> 0 | F60: =F61+F62 -> 0 | G60: =G61+G62 -> 0 | H60: =I60+J60+K60+L60 -> 0 | I60: =I61+I62 -> 0 | J60: =J61+J62 -> 0 | K60: =K61+K62 -> 0 | L60: =L61+L62 -> 0 | M60: =N60+O60+P60+Q60 -> 0 | N60: =N61+N62 -> 0 | O60: =O61+O62 -> 0 | P60: =P61+P62 -> 0 | Q60: =Q61+Q62 -> 0 | R60: =S60+T60+U60+V60 -> 0 | S60: =S61+S62 -> 0 | T60: =T61+T62 -> 0 | U60: =U61+U62 -> 0 | V60: =V61+V62 -> 0
B61: прочие потребители | C61: =D61+E61+F61+G61 -> 0 | D61: =D48+D51+D54+D57 -> 0 | E61: =E48+E51+E54+E57 -> 0 | F61: 0 | G61: 0 | H61: =I61+J61+K61+L61 -> 0 | I61: =I48+I51+I54+I57 -> 0 | J61: =J48+J51+J54+J57 -> 0 | K61: 0 | L61: 0 | M61: =N61+O61+P61+Q61 -> 0 | N61: =N48+N51+N54+N57 -> 0 | O61: =O48+O51+O54+O57 -> 0 | P61: 0 | Q61: 0 | R61: =S61+T61+U61+V61 -> 0 | S61: =S48+S51+S54+S57 -> 0 | T61: 0 | U61: 0 | V61: 0
B62: население | C62: =D62+E62+F62+G62 -> 0 | D62: =D49+D52+D55+D58 -> 0 | E62: 0 | F62: 0 | G62: 0 | H62: =I62+J62+K62+L62 -> 0 | I62: =I49+I52+I55+I58 -> 0 | J62: 0 | K62: 0 | L62: 0 | M62: =N62+O62+P62+Q62 -> 0 | N62: =N49+N52+N55+N58 -> 0 | O62: 0 | P62: 0 | Q62: 0 | R62: =S62+T62+U62+V62 -> 0 | S62: 0 | T62: 0 | U62: 0 | V62: 0
B64: Руководитель организации | G64: ='Инф-я'!C17 -> Окунев Василий Михайлович
B66: Справочная информация:
B67: Фактические данные по мощности заполняются по данным приборов учета электрической мощности, в случае отсутствия приборов учета по результатам контрольных замеров мощности

Sheet УЕ ВЛЭП 2015-2018
A3: Объем воздушных линий электропередач (ВЛЭП) и кабельных линий электропередач (КЛЭП) в условных единицах в зависимости от протяженности, напряжения, конструктивного использования и материала опор в период с 2015 по 2018 годы
A4: ='Инф-я'!C9 -> Общество с ограниченной ответственностью "Энергетик"
A6: ЛЭП | B6: Напряжение, кВ | C6: Количество цепей на опоре | D6: Материал опор | E6: Наименование | F6: Количество условных единиц (у) на 100 км трассы ЛЭП | G6: Протяженность | H6: Объем условных единиц | I6: Протяженность | J6: Объем условных единиц | K6: Протяженность | L6: Объем условных единиц | M6: Протяженность | N6: Объем условных единиц | O6: Протяженность | P6: Объем условных единиц | Q6: Протяженность | R6: Объем условных единиц
F7: у/100км | G7: км | H7: у | I7: км | J7: у | K7: км | L7: у | M7: км | N7: у | O7: км | P7: у | Q7: км | R7: у
G8: 2015 год факт | I8: 2016 год утверждено | K8: 2016 год факт | M8: 2017 год утверждено | O8: 2018 год план по данным организации | Q8: 2018 год по данным экспертов
A9: 1 | B9: =+A9+1 -> 2 | C9: =+B9+1 -> 3 | D9: =+C9+1 -> 4 | E9: 5 | F9: 6 | G9: 7 | H9: 8 | I9: 9 | J9: 10 | K9: 11 | L9: 12 | M9: 13 | N9: 14 | O9: 15 | P9: 16 | Q9: 17 | R9: 18
A10: ВЛЭП | B10: 1150 | C10: - | D10: металл | E10: ВЛЭП-1150кВ-металл | F10: 800 | H10: =G10*F10/100 -> 0 | J10: =I10*F10/100 -> 0 | L10: =K10*F10/100 -> 0 | N10: =F10*M10/100 -> 0 | P10: =F10*O10/100 -> 0 | R10: =$F10*Q10/100 -> 0
B11: 750 | C11: 1 | D11: металл | E11: ВЛЭП-750кВ-цепей:1-металл | F11: 600 | H11: =G11*F11/100 -> 0 | J11: =I11*F11/100 -> 0 | L11: 0 | N11: 0 | P11: 0 | R11: 0
B12: 400-500 | C12: 1 | D12: металл | E12: ВЛЭП-400-500кВ-цепей:1-металл | F12: 400 | H12: 0 | J12: 0 | L12: 0 | N12: 0 | P12: 0 | R12: 0
D13: ж/бетон | E13: ВЛЭП-400-500кВ-ж/бетон | F13: 300 | H13: 0 | J13: 0 | L13: 0 | N13: 0 | P13: 0 | R13: 0
B14: 330 | C14: 1 | D14: металл | E14: ВЛЭП-330кВ-цепей:1-металл | F14: 230 | H14: 0 | J14: 0 | L14: 0 | N14: 0 | P14: 0 | R14: 0
D15: ж/бетон | E15: ВЛЭП-330кВ-ж/бетон | F15: 170 | H15: 0 | J15: 0 | L15: 0 | N15: 0 | P15: 0 | R15: 0
C16: 2 | D16: металл | E16: ВЛЭП-330кВ-цепей:2-металл | F16: 290 | H16: 0 | J16: 0 | L16: 0 | N16: 0 | P16: 0 | R16: 0
D17: ж/бетон | E17: ВЛЭП-330кВ-ж/бетон | F17: 210 | H17: 0 | J17: 0 | L17: 0 | N17: 0 | P17: 0 | R17: 0
B18: 220 | C18: 1 | D18: дерево | E18: ВЛЭП-220кВ-цепей:1-дерево | F18: 260 | H18: 0 | J18: 0 | L18: 0 | N18: 0 | P18: 0 | R18: 0
D19: металл | E19: ВЛЭП-220кВ-металл | F19: 210 | H19: 0 | J19: 0 | L19: 0 | N19: 0 | P19: 0 | R19: 0
D20: ж/бетон | E20: ВЛЭП-220кВ-ж/бетон | F20: 140 | H20: 0 | J20: 0 | L20: 0 | N20: 0 | P20: 0 | R20: 0
C21: 2 | D21: металл | E21: ВЛЭП-220кВ-цепей:2-металл | F21: 270 | H21: 0 | J21: 0 | L21: 0 | N21: 0 | P21: 0 | R21: 0
D22: ж/бетон | E22: ВЛЭП-220кВ-ж/бетон | F22: 180 | H22: 0 | J22: 0 | L22: 0 | N22: 0 | P22: 0 | R22: 0
B23: 110-150 | C23: 1 | D23: дерево | E23: ВЛЭП-110-150кВ-цепей:1-дерево | F23: 180 | H23: 0 | J23: 0 | L23: 0 | N23: 0 | P23: 0 | R23: 0
D24: металл | E24: ВЛЭП-110-150кВ-металл | F24: 160 | H24: 0 | J24: 0 | L24: 0 | N24: 0 | P24: 0 | R24: 0
D25: ж/бетон | E25: ВЛЭП-110-150кВ-ж/бетон | F25: 130 | H25: 0 | J25: 0 | L25: 0 | N25: 0 | P25: 0 | R25: 0
C26: 2 | D26: металл | E26: ВЛЭП-110-150кВ-цепей:2-металл | F26: 190 | H26: 0 | J26: 0 | L26: 0 | N26: 0 | P26: 0 | R26: 0
D27: ж/бетон | E27: ВЛЭП-110-150кВ-ж/бетон | F27: 160 | H27: 0 | J27: 0 | L27: 0 | N27: 0 | P27: 0 | R27: 0
A28: КЛЭП | B28: 220 | C28: - | D28: - | E28: КЛЭП-220кВ | F28: 3000 | H28: 0 | J28: 0 | L28: 0 | N28: 0 | P28: 0 | R28: 0
B29: 110 | C29: - | D29: - | E29: КЛЭП-110кВ | F29: 2300 | H29: 0 | J29: 0 | L29: 0 | N29: 0 | P29: 0 | R29: 0
A30: ВН, всего | E30: Итого: | G30: =SUM(G10:G29) -> 0 | H30: =SUM(H10:H29) -> 0 | I30: =SUM(I10:I29) -> 0 | J30: =SUM(J10:J29) -> 0 | K30: =SUM(K10:K29) -> 0 | L30: 0 | M30: 0 | N30: 0 | O30: 0 | P30: 0 | Q30: =SUM(Q10:Q29) -> 0 | R30: 0
A31: ВЛЭП | B31: 35 | C31: 1 | D31: дерево | E31: ВЛЭП-35кВ-цепей:1-дерево | F31: 170 | H31: 0 | J31: 0 | L31: =K31*F31/100 -> 0 | N31: =F31*M31/100 -> 0 | P31: =F31*O31/100 -> 0 | R31: =$F31*Q31/100 -> 0
D32: металл | E32: ВЛЭП-35кВ-металл | F32: 140 | H32: 0 | J32: 0 | L32: 0 | N32: 0 | P32: 0 | R32: 0
D33: ж/бетон | E33: ВЛЭП-35кВ-ж/бетон | F33: 120 | H33: 0 | J33: 0 | L33: 0 | N33: 0 | P33: 0 | R33: 0
C34: 2 | D34: металл | E34: ВЛЭП-35кВ-цепей:2-металл | F34: 180 | H34: 0 | J34: 0 | L34: 0 | N34: 0 | P34: 0 | R34: 0
D35: ж/бетон | E35: ВЛЭП-35кВ-ж/бетон | F35: 150 | H35: 0 | J35: 0 | L35: 0 | N35: 0 | P35: 0 | R35: 0
B36: 1 - 20 | C36: - | D36: дерево | E36: ВЛЭП-1-20кВ-дерево | F36: 160 | H36: 0 | J36: 0 | L36: 0 | N36: 0 | P36: 0 | R36: 0
D37: дерево на ж/б пасынках | E37: ВЛЭП-1-20кВ-дерево на ж/б пасынках | F37: 140 | G37: 7.74 | H37: 10.836 | I37: 7.735 | J37: 10.829 | K37: 7.52 | L37: 10.528 | M37: 7.74 | N37: 10.836 | O37: 7.52 | P37: 10.528 | R37: 0
D38: ж/бетон, металл | E38: ВЛЭП-1-20кВ-ж/бетон,металл | F38: 110 | G38: 33.72 | H38: 37.092 | I38: 33.719 | J38: 37.0909 | K38: 36.18 | L38: 39.798 | M38: 33.72 | N38: 37.092 | O38: 38.77 | P38: 42.647 | R38: 0
A39: КЛЭП | B39: 20 -35 | C39: - | D39: - | E39: КЛЭП-20-35кВ | F39: 470 | H39: 0 | J39: 0 | L39: 0 | N39: 0 | P39: 0 | R39: 0
B40: 3 - 10 | C40: - | D40: - | E40: КЛЭП-3-10кВ | F40: 350 | G40: 16.7 | H40: 58.45 | I40: 16.7 | J40: 58.45 | K40: 16.7 | L40: 58.45 | M40: 16.7 | N40: 58.45 | O40: 16.7 | P40: 58.45 | R40: 0
A41: СН-1, всего | E41: Итого: | G41: =SUM(G31:G35)+G39 -> 0 | H41: =SUM(H31:H35)+H39 -> 0 | I41: =SUM(I31:I35)+I39 -> 0 | J41: =SUM(J31:J35)+J39 -> 0 | K41: =SUM(K31:K35)+K39 -> 0 | L41: 0 | M41: 0 | N41: 0 | O41: 0 | P41: 0 | Q41: =SUM(Q31:Q35)+Q39 -> 0 | R41: 0
A42: СН-2, всего | E42: Итого: | G42: =SUM(G36:G38)+G40 -> 58.16 | H42: =SUM(H36:H38)+H40 -> 106.378 | I42: =SUM(I36:I38)+I40 -> 58.154 | J42: =SUM(J36:J38)+J40 -> 106.3699 | K42: =SUM(K36:K38)+K40 -> 60.4 | L42: 108.776 | M42: 58.16 | N42: 106.378 | O42: 62.99 | P42: 111.625 | Q42: =SUM(Q36:Q38)+Q40 -> 0 | R42: 0
A43: ВЛЭП | B43: 0,4 кВ | C43: - | D43: дерево | E43: ВЛЭП-0,4кВ-дерево | F43: 260 | H43: =G43*F43/100 -> 0 | J43: =I43*F43/100 -> 0 | L43: =K43*F43/100 -> 0 | N43: =F43*M43/100 -> 0 | P43: =F43*O43/100 -> 0 | R43: =$F43*Q43/100 -> 0
D44: дерево на ж/б пасынках | E44: ВЛЭП-0,4кВ-дерево на ж/б пасынках | F44: 220 | G44: 130.2 | H44: =G44*F44/100 -> 286.44 | I44: 130.2 | J44: 286.44 | K44: 122.81 | L44: =K44*F44/100 -> 270.182 | M44: 130.2 | N44: =F44*M44/100 -> 286.44 | O44: 122.81 | P44: =F44*O44/100 -> 270.182 | R44: =$F44*Q44/100 -> 0
D45: ж/бетон, металл | E45: ВЛЭП-0,4кВ-ж/бетон,металл | F45: 150 | G45: 6.321 | H45: =G45*F45/100 -> 9.4815 | I45: 5.691 | J45: 8.5365 | K45: 13.71 | L45: =K45*F45/100 -> 20.565 | M45: 6.321 | N45: =F45*M45/100 -> 9.4815 | O45: 15.83 | P45: =F45*O45/100 -> 23.745 | R45: =$F45*Q45/100 -> 0
A46: КЛЭП | B46: до 1 кВ | C46: - | D46: - | E46: КЛЭП-до1кВ | F46: 270 | G46: 12.4 | H46: =G46*F46/100 -> 33.48 | I46: 12.4 | J46: 33.48 | K46: 12.4 | L46: =K46*F46/100 -> 33.48 | M46: 12.4 | N46: =F46*M46/100 -> 33.48 | O46: 12.4 | P46: =F46*O46/100 -> 33.48 | R46: =$F46*Q46/100 -> 0
A47: НН, всего | E47: Итого: | G47: =SUM(G43:G46) -> 148.921 | H47: =SUM(H43:H46) -> 329.4015 | I47: =SUM(I43:I46) -> 148.291 | J47: =SUM(J43:J46) -> 328.4565 | K47: =SUM(K43:K46) -> 148.92 | L47: 324.227 | M47: 148.921 | N47: 329.4015 | O47: 151.04 | P47: 327.407 | Q47: =SUM(Q43:Q46) -> 0 | R47: 0
B48: Итого по уровням напряжения: | E48: ВН | G48: =G30 -> 0 | H48: =H30 -> 0 | I48: =I30 -> 0 | J48: =J30 -> 0 | K48: =K30 -> 0 | L48: 0 | M48: 0 | N48: 0 | O48: 0 | P48: 0 | Q48: =Q30 -> 0 | R48: 0
E49: СН1 | G49: =G41 -> 0 | H49: 0 | I49: 0 | J49: 0 | K49: =K41 -> 0 | L49: 0 | M49: 0 | N49: 0 | O49: 0 | P49: 0 | Q49: =Q41 -> 0 | R49: 0
E50: СН2 | G50: 58.16 | H50: 106.378 | I50: 58.154 | J50: 106.3699 | K50: 60.4 | L50: 108.776 | M50: 58.16 | N50: 106.378 | O50: 62.99 | P50: 111.625 | Q50: =Q42 -> 0 | R50: 0
E51: НН | G51: =G47 -> 148.921 | H51: =H47 -> 329.4015 | I51: =I47 -> 148.291 | J51: =J47 -> 328.4565 | K51: =K47 -> 148.92 | L51: 324.227 | M51: 148.921 | N51: 329.4015 | O51: 151.04 | P51: 327.407 | Q51: =Q47 -> 0 | R51: 0
A52: ВСЕГО: | G52: =SUM(G48:G51) -> 207.081 | H52: =SUM(H48:H51) -> 435.7795 | I52: =SUM(I48:I51) -> 206.445 | J52: =SUM(J48:J51) -> 434.8264 | K52: =SUM(K48:K51) -> 209.32 | L52: 433.003 | M52: 207.081 | N52: 435.7795 | O52: 214.03 | P52: 439.032 | Q52: =SUM(Q48:Q51) -> 0 | R52: 0
B54: Руководитель организации | G54: ='Инф-я'!C17 -> Окунев Василий Михайлович

Sheet УЕ ТП 2015-2018
A2: Объем подстанций 35-1150 кВ, трансформаторных подстанций (ТП), комплексных трансформаторных подстанций (КТП) и распределительных пунктов(РП) 0,4-20 кВ в условных единицах в период с 2015 по 2018 годы
B3: ='Инф-я'!C9 -> Общество с ограниченной ответственностью "Энергетик"
A5: № п.п. | B5: Наименование | D5: Единица измерения | E5: Напряжение, кВ | F5: Количество условных единиц (у) на единицу измерения | G5: Количество единиц измерения | H5: Объем условных единиц | I5: Количество единиц измерения | J5: Объем условных единиц | K5: Количество единиц измерения | L5: Объем условных единиц | M5: Количество единиц измерения | N5: Объем условных единиц | O5: Количество единиц измерения | P5: Объем условных единиц | Q5: Количество единиц измерения | R5: Объем условных единиц
F6: у/ед.изм. | G6: ед.изм. | H6: у | I6: ед.изм. | J6: у | K6: ед.изм. | L6: у | M6: ед.изм. | N6: у | O6: ед.изм. | P6: у | Q6: ед.изм. | R6: у
G7: 2015 год факт | I7: 2016 год утверждено | K7: 2016 год факт | M7: 2017 год утверждено | O7: 2018 год план по данным организации | Q7: 2018 год по данным экспертов
A8: 1 | B8: =+A8+1 -> 2 | C8: 3 | D8: 4 | E8: 5 | F8: 6 | G8: 7 | H8: 8 | I8: 9 | J8: 10 | K8: 11 | L8: 12 | M8: 13 | N8: 14 | O8: 15 | P8: 16 | Q8: 17 | R8: 18
A9: 1 | B9: Подстанция | C9: =B9 -> Подстанция | D9: П/ст | E9: 1150 | F9: 1000 | H9: =F9*G9 -> 0 | J9: =I9*F9 -> 0 | L9: =K9*F9 -> 0 | N9: =F9*M9 -> 0 | P9: =F9*O9 -> 0 | R9: =$F9*Q9 -> 0
C10: =B9 -> Подстанция | E10: 750 | F10: 600 | H10: 0 | J10: =I10*F10 -> 0 | L10: 0 | N10: 0 | P10: 0 | R10: =$F10*Q10 -> 0
C11: =B9 -> Подстанция | E11: 400-500 | F11: 500 | H11: 0 | J11: 0 | L11: 0 | N11: 0 | P11: 0 | R11: 0
C12: =B9 -> Подстанция | E12: 330 | F12: 250 | H12: 0 | J12: 0 | L12: 0 | N12: 0 | P12: 0 | R12: 0
C13: =B9 -> Подстанция | E13: 220 | F13: 210 | H13: 0 | J13: 0 | L13: 0 | N13: 0 | P13: 0 | R13: 0
C14: =B9 -> Подстанция | E14: 110-150 | F14: 105 | H14: 0 | J14: 0 | L14: 0 | N14: 0 | P14: 0 | R14: 0
C15: =B9 -> Подстанция | E15: 35 | F15: 75 | H15: 0 | J15: 0 | L15: 0 | N15: 0 | P15: 0 | R15: 0
A16: 2 | B16: Силовой трансформатор или реактор (одно- или трехфазный), или вольтодобавочный трансформатор | C16: =B16 -> Силовой трансформатор или реактор (одно- или трехфазный), или вольтодобавочный трансформатор | D16: Ед. оборуд. | E16: 1150 | F16: 60 | H16: 0 | J16: 0 | L16: 0 | N16: 0 | P16: 0 | R16: 0
C17: =B16 -> Силовой трансформатор или реактор (одно- или трехфазный), или вольтодобавочный трансформатор | E17: 750 | F17: 43 | H17: 0 | J17: 0 | L17: 0 | N17: 0 | P17: 0 | R17: 0
C18: =B16 -> Силовой трансформатор или реактор (одно- или трехфазный), или вольтодобавочный трансформатор | E18: 400-500 | F18: 28 | H18: 0 | J18: 0 | L18: 0 | N18: 0 | P18: 0 | R18: 0
C19: =B16 -> Силовой трансформатор или реактор (одно- или трехфазный), или вольтодобавочный трансформатор | E19: 330 | F19: 18 | H19: 0 | J19: 0 | L19: 0 | N19: 0 | P19: 0 | R19: 0
C20: =B16 -> Силовой трансформатор или реактор (одно- или трехфазный), или вольтодобавочный трансформатор | E20: 220 | F20: 14 | H20: 0 | J20: 0 | L20: 0 | N20: 0 | P20: 0 | R20: 0
C21: =B16 -> Силовой трансформатор или реактор (одно- или трехфазный), или вольтодобавочный трансформатор | E21: 110-150 | F21: 7.8 | H21: 0 | J21: 0 | L21: 0 | N21: 0 | P21: 0 | R21: 0
C22: =B16 -> Силовой трансформатор или реактор (одно- или трехфазный), или вольтодобавочный трансформатор | E22: 35 | F22: 2.1 | H22: 0 | J22: 0 | L22: 0 | N22: 0 | P22: 0 | R22: 0
C23: =B16 -> Силовой трансформатор или реактор (одно- или трехфазный), или вольтодобавочный трансформатор | E23: 1-20 | F23: 1 | H23: 0 | J23: 0 | L23: 0 | N23: 0 | P23: 0 | R23: 0
A24: 3 | B24: Воздушный выключатель | C24: =B24 -> Воздушный выключатель | D24: 3 фазы | E24: 1150 | F24: 180 | H24: 0 | J24: 0 | L24: 0 | N24: 0 | P24: 0 | R24: 0
C25: =B24 -> Воздушный выключатель | E25: 750 | F25: 130 | H25: 0 | J25: 0 | L25: 0 | N25: 0 | P25: 0 | R25: 0
C26: =B24 -> Воздушный выключатель | E26: 400-500 | F26: 88 | H26: 0 | J26: 0 | L26: 0 | N26: 0 | P26: 0 | R26: 0
C27: =B24 -> Воздушный выключатель | E27: 330 | F27: 66 | H27: 0 | J27: 0 | L27: 0 | N27: 0 | P27: 0 | R27: 0
C28: =B24 -> Воздушный выключатель | E28: 220 | F28: 43 | H28: 0 | J28: 0 | L28: 0 | N28: 0 | P28: 0 | R28: 0
C29: =B24 -> Воздушный выключатель | E29: 110-150 | F29: 26 | H29: 0 | J29: 0 | L29: 0 | N29: 0 | P29: 0 | R29: 0
C30: =B24 -> Воздушный выключатель | E30: 35 | F30: 11 | H30: 0 | J30: 0 | L30: 0 | N30: 0 | P30: 0 | R30: 0
C31: =B24 -> Воздушный выключатель | E31: 1-20 | F31: 5.5 | H31: 0 | J31: 0 | L31: 0 | N31: 0 | P31: 0 | R31: 0
A32: 4 | B32: Масляный (вакуумный) выключатель | C32: =B32 -> Масляный (вакуумный) выключатель | D32: - " - | E32: 220 | F32: 23 | H32: 0 | J32: 0 | L32: 0 | N32: 0 | P32: 0 | R32: 0
C33: =B32 -> Масляный (вакуумный) выключатель | E33: 110-150 | F33: 14 | H33: 0 | J33: 0 | L33: 0 | N33: 0 | P33: 0 | R33: 0
C34: =B32 -> Масляный (вакуумный) выключатель | E34: 35 | F34: 6.4 | H34: 0 | J34: 0 | L34: 0 | N34: 0 | P34: 0 | R34: 0
C35: =B32 -> Масляный (вакуумный) выключатель | E35: 1-20 | F35: 3.1 | G35: 9 | H35: 27.9 | I35: 9 | J35: 27.9 | K35: 9 | L35: 27.9 | M35: 9 | N35: 27.9 | O35: 9 | P35: 27.9 | R35: 0
A36: 5 | B36: Отделитель с короткозамыкателем | C36: =B36 -> Отделитель с короткозамыкателем | D36: Ед. оборуд. | E36: 400-500 | F36: 35 | H36: 0 | J36: 0 | L36: 0 | N36: 0 | P36: 0 | R36: 0
C37: =B36 -> Отделитель с короткозамыкателем | E37: 330 | F37: 24 | H37: 0 | J37: 0 | L37: 0 | N37: 0 | P37: 0 | R37: 0
C38: =B36 -> Отделитель с короткозамыкателем | E38: 220 | F38: 19 | H38: 0 | J38: 0 | L38: 0 | N38: 0 | P38: 0 | R38: 0
C39: =B36 -> Отделитель с короткозамыкателем | E39: 110-150 | F39: 9.5 | H39: 0 | J39: 0 | L39: 0 | N39: 0 | P39: 0 | R39: 0
C40: =B36 -> Отделитель с короткозамыкателем | E40: 35 | F40: 4.7 | H40: 0 | J40: 0 | L40: 0 | N40: 0 | P40: 0 | R40: 0
A41: 6 | B41: Выключатель нагрузки | C41: =B41 -> Выключатель нагрузки | D41: - " - | E41: 1-20 | F41: 2.3 | G41: 142 | H41: 326.6 | I41: 142 | J41: 326.6 | K41: 157 | L41: 361.1 | M41: 142 | N41: 326.6 | O41: 157 | P41: 361.1 | R41: 0
A42: 7 | B42: Синхронный компенсатор мощн. до 50 Мвар | C42: =B42 -> Синхронный компенсатор мощн. до 50 Мвар | D42: - " - | E42: 1-20 | F42: 26 | H42: 0 | J42: 0 | L42: 0 | N42: 0 | P42: 0 | R42: 0
A43: 8 | B43: То же, 50 Мвар и более | C43: Синхронный компенсатор мощн. 50 Мвар и выше | D43: - " - | E43: 1-20 | F43: 48 | H43: 0 | J43: 0 | L43: 0 | N43: 0 | P43: 0 | R43: 0
A44: 9 | B44: Статические конденсаторы | C44: =B44 -> Статические конденсаторы | D44: 100 конд. | E44: 35 | F44: 2.4 | H44: 0 | J44: 0 | L44: 0 | N44: 0 | P44: 0 | R44: 0
C45: =B44 -> Статические конденсаторы | E45: 1-20 | F45: 2.4 | H45: 0 | J45: 0 | L45: 0 | N45: 0 | P45: 0 | R45: 0
A46: 10 | B46: Мачтовая (столбовая) ТП | C46: =B46 -> Мачтовая (столбовая) ТП | D46: ТП | E46: 1-20 | F46: 2.5 | G46: 5 | H46: 12.5 | I46: 5 | J46: 12.5 | K46: 18 | L46: 45 | M46: 9 | N46: 22.5 | O46: 18 | P46: 45 | R46: 0
A47: 11 | B47: Однотрансфор-маторная ТП, КТП | C47: =B47 -> Однотрансфор-маторная ТП, КТП | D47: ТП, КТП | E47: 1-20 | F47: 2.3 | G47: 28 | H47: 64.4 | I47: 28 | J47: 64.4 | K47: 29 | L47: 66.7 | M47: 28 | N47: 64.4 | O47: 29 | P47: 66.7 | R47: 0
A48: 12 | B48: Двухтрансформаторная ТП, КТП | C48: =B48 -> Двухтрансформаторная ТП, КТП | D48: ТП, КТП | E48: 1-20 | F48: 3 | G48: 9 | H48: 27 | I48: 12 | J48: 36 | K48: 9 | L48: 27 | M48: 9 | N48: 27 | O48: 9 | P48: 27 | R48: 0
A49: 13 | B49: Однотрансфор-маторная подстанция 34/0,4 кВ | C49: =B49 -> Однотрансфор-маторная подстанция 34/0,4 кВ | D49: п/ст | E49: 35 | F49: 3.5 | H49: 0 | J49: 0 | L49: 0 | N49: 0 | P49: 0 | R49: 0
B50: Итого оборудование по уровням напряжения: | E50: ВН | G50: х | H50: =H9+H10+H11+H12+H16+H17+H18+H19+H24+H25+H26+H27+H36+H37+H39+H38+H33+H32+H29+H28+H21+H20+H14+H13 -> 0 | I50: х | J50: 0 | K50: х | L50: 0 | M50: х | N50: =N9+N10+N11+N12+N16+N17+N18+N19+N24+N25+N26+N27+N36+N37+N39+N38+N33+N32+N29+N28+N21+N20+N14+N13 -> 0 | O50: х | P50: =P9+P10+P11+P12+P16+P17+P18+P19+P24+P25+P26+P27+P36+P37+P39+P38+P33+P32+P29+P28+P21+P20+P14+P13 -> 0 | Q50: х | R50: =R9+R10+R11+R12+R16+R17+R18+R19+R24+R25+R26+R27+R36+R37+R39+R38+R33+R32+R29+R28+R21+R20+R14+R13 -> 0
E51: СН1 | G51: х | H51: =H15+H22+H30+H34+H40+H44+H49 -> 0 | I51: х | J51: 0 | K51: х | L51: 0 | M51: х | N51: =N15+N22+N30+N34+N40+N44+N49 -> 0 | O51: х | P51: =P15+P22+P30+P34+P40+P44+P49 -> 0 | Q51: х | R51: =R15+R22+R30+R34+R40+R44+R49 -> 0
E52: СН2 | G52: х | H52: =H23+H31+H35+H41+H42+H43+H45+H46+H47+H48 -> 458.4 | I52: х | J52: 467.4 | K52: х | L52: 527.7 | M52: х | N52: =N23+N31+N35+N41+N42+N43+N45+N46+N47+N48 -> 468.4 | O52: х | P52: =P23+P31+P35+P41+P42+P43+P45+P46+P47+P48 -> 527.7 | Q52: х | R52: =R23+R31+R35+R41+R42+R43+R45+R46+R47+R48 -> 0
E53: НН | G53: х | H53: =SUM(H9:H49) - H50-H51-H52 -> 0 | I53: х | J53: 0 | K53: х | L53: 0 | M53: х | N53: =SUM(N9:N49) - N50-N51-N52 -> 0 | O53: х | P53: =SUM(P9:P49) - P50-P51-P52 -> 0 | Q53: х | R53: =SUM(R9:R49) - R50-R51-R52 -> 0
B54: Итого по оборудованию | G54: х | H54: =SUM(H50:H53) -> 458.4 | I54: х | J54: 467.4 | K54: х | L54: 527.7 | M54: х | N54: =SUM(N50:N53) -> 468.4 | O54: х | P54: =SUM(P50:P53) -> 527.7 | Q54: х | R54: =SUM(R50:R53) -> 0
B55: Всего активов по уровням напряжения: | E55: ВН | G55: х | H55: =H50+'УЕ ВЛЭП 2015-2018'!H48 -> 0 | I55: х | J55: =J50+'УЕ ВЛЭП 2015-2018'!J48 -> 0 | K55: х | L55: =L50+'УЕ ВЛЭП 2015-2018'!L48 -> 0 | M55: х | N55: =N50+'УЕ ВЛЭП 2015-2018'!N48 -> 0 | O55: х | P55: =P50+'УЕ ВЛЭП 2015-2018'!P48 -> 0 | Q55: х | R55: =R50+'УЕ ВЛЭП 2015-2018'!R48 -> 0
E56: СН1 | G56: х | H56: =H51+'УЕ ВЛЭП 2015-2018'!H49 -> 0 | I56: х | J56: =J51+'УЕ ВЛЭП 2015-2018'!J49 -> 0 | K56: х | L56: =L51+'УЕ ВЛЭП 2015-2018'!L49 -> 0 | M56: х | N56: =N51+'УЕ ВЛЭП 2015-2018'!N49 -> 0 | O56: х | P56: =P51+'УЕ ВЛЭП 2015-2018'!P49 -> 0 | Q56: х | R56: =R51+'УЕ ВЛЭП 2015-2018'!R49 -> 0
E57: СН2 | G57: х | H57: =H52+'УЕ ВЛЭП 2015-2018'!H50 -> 564.778 | I57: х | J57: =J52+'УЕ ВЛЭП 2015-2018'!J50 -> 573.7699 | K57: х | L57: =L52+'УЕ ВЛЭП 2015-2018'!L50 -> 636.476 | M57: х | N57: =N52+'УЕ ВЛЭП 2015-2018'!N50 -> 574.778 | O57: х | P57: =P52+'УЕ ВЛЭП 2015-2018'!P50 -> 639.325 | Q57: х | R57: =R52+'УЕ ВЛЭП 2015-2018'!R50 -> 0
E58: НН | G58: х | H58: =H53+'УЕ ВЛЭП 2015-2018'!H51 -> 329.4015 | I58: х | J58: =J53+'УЕ ВЛЭП 2015-2018'!J51 -> 328.4565 | K58: х | L58: =L53+'УЕ ВЛЭП 2015-2018'!L51 -> 324.227 | M58: х | N58: =N53+'УЕ ВЛЭП 2015-2018'!N51 -> 329.4015 | O58: х | P58: =P53+'УЕ ВЛЭП 2015-2018'!P51 -> 327.407 | Q58: х | R58: =R53+'УЕ ВЛЭП 2015-2018'!R51 -> 0
B59: Количество активов - всего | G59: х | H59: =H58+H57+H56+H55 -> 894.1795 | I59: х | J59: =J58+J57+J56+J55 -> 902.2264 | K59: х | L59: =L58+L57+L56+L55 -> 960.703 | M59: х | N59: =N58+N57+N56+N55 -> 904.1795 | O59: х | P59: =P58+P57+P56+P55 -> 966.732 | Q59: х | R59: =R58+R57+R56+R55 -> 0
B61: Руководитель организации | F61: ='Инф-я'!$C$17 -> Окунев Василий Михайлович

Sheet Подконтрольные расходы
A2: Подконтрольные расходы на 2018 год долгосрочного периода регулирования 2017 - 2019 годы
A4: ='Инф-я'!C9 -> Общество с ограниченной ответственностью "Энергетик"
A6: № п.п. | B6: Наименование | C6: Ед.изм. | D6: 2017 год | E6: 2018 год | G6: 2019 год
D7: Утверждено | E7: По данным организации | F7: По данным экспертов
A8: 1 | B8: 2 | C8: 3 | D8: 4 | E8: 5 | F8: 6 | G8: 7
A9: Показатели для расчета подконтрольных расходов
A10: 1 | B10: Индекс эффективности подконтрольных расходов (Хэф) | C10: % | D10: 0.01 | E10: =D10 -> 0.01 | F10: =E10 -> 0.01 | G10: =F10 -> 0.01
A11: 2 | B11: Коэффициент эластичности подконтрольных расходов по количеству активов (К эл) | C11: знач. | D11: 0.75 | E11: 0.75 | F11: 0.75 | G11: 0.75
A12: 3 | B12: Индекс потребительских цен (ИПЦ) | C12: % | D12: 0.045 | E12: 0.049
A13: 4 | B13: Количество активов (УЕ) | C13: усл.ед. | D13: ='УЕ ТП 2015-2018'!N59 -> 904.1795 | E13: ='УЕ ТП 2015-2018'!P59 -> 966.732 | F13: ='УЕ ТП 2015-2018'!R59 -> 0 | G13: =F13 -> 0
A14: 5 | B14: Индекс изменения количества активов (ИКА) | C14: % | D14: Х | E14: =IF(D13=0,0,(E13-D13)/D13) -> 0.06918150655 | F14: =IF(D13=0,0,(F13-D13)/D13) -> -1 | G14: =IF(F13=0,0,(G13-F13)/F13) -> 0
A15: 6 | B15: Общий коэффициент индексации подконтрольных расходов ПР= ИПЦ*(1+(Кэл*ИКА))*(1-Хэф) | C15: знач. | D15: Х | E15: =(1+E12)*(1+(E11*E14))*(1-E10) -> 1.092394265 | F15: =(1+F12)*(1+(F11*F14))*(1-F10) -> 0.2475 | G15: =(1+G12)*(1+(G11*G14))*(1-G10) -> 0.99
A16: Подконтрольные расходы организации (ПР)
A17: 1 | B17: Расходы из фонда оплаты труда | C17: тыс.руб. | D17: 11429.16225 | E17: =D17*$E$15 -> 12485.15129 | F17: =D17*$F$15 -> 2828.717657 | G17: =F17*$G$15 -> 2800.43048
A18: 2 | B18: Материалы | C18: тыс.руб. | D18: 4134.922244 | E18: =D18*$E$15 -> 4516.965344 | F18: =D18*$F$15 -> 1023.393255 | G18: =F18*$G$15 -> 1013.159323
A19: 3 | B19: Ремонт основных фондов | C19: тыс.руб. | D19: 14635.53971 | E19: 15987.77964 | F19: =D19*$F$15 -> 3622.296079 | G19: 3586.073118
A20: 4 | B20: Другие обоснованные подконтрольные расходы, в том числе: | C20: тыс.руб. | D20: =D21+D22+D23+D24+D25+D26+D27+D28 -> 887.0468787 | E20: 969.0049229 | F20: 219.5441025 | G20: 217.3486615
A21: 4.1 | B21: Работы и услуги производственного характера | C21: тыс.руб. | D21: 0 | E21: 0 | F21: 0 | G21: 0
A22: 4.2 | B22: Работы и услуги непроизводственного характера | C22: тыс.руб. | D22: 553.2565789 | E22: 604.3743137 | F22: 136.9310033 | G22: 135.5616932
A23: 4.3 | B23: Обеспечение нормальных условий труда и техники безопасности | C23: тыс.руб. | D23: 76.52583824 | E23: 83.5963868 | F23: 18.94014496 | G23: 18.75074352
A24: 4.4. | B24: Расходы на командировки | C24: тыс.руб. | D24: 0 | E24: 0 | F24: 0 | G24: 0
A25: 4.5 | B25: Расходы на обучение персонала | C25: тыс.руб. | D25: 99.25851115 | E25: 108.4294283 | F25: 24.56648151 | G25: 24.32081669
A26: 4.6 | B26: Расходы на страхование | C26: тыс.руб. | D26: 0 | E26: 0 | F26: 0 | G26: 0
A27: 4.7 | B27: Расходы на услуги банков | C27: тыс.руб. | D27: 158.0059504 | E27: 172.604794 | F27: 39.10647272 | G27: 38.715408
A28: 4.8 | B28: Прочие обоснованные подконтрольные расходы | C28: тыс.руб. | D28: 0 | E28: 0 | F28: 0 | G28: 0
A29: 5 | B29: Расходы из прибыли, в том числе: | C29: тыс.руб. | D29: =D30+D31 -> 329.8439377 | E29: 360.3196258 | F29: 81.63637458 | G29: 80.82001084
A30: 5.1 | B30: Расходы по коллективным договорам | C30: тыс.руб. | D30: 329.8439377 | E30: 360.3196258 | F30: 81.63637458 | G30: 80.82001084
A31: 5.2 | B31: Прочие обоснованные расходы из прибыли | C31: тыс.руб. | D31: 0 | E31: 0 | F31: 0 | G31: 0
B32: Итого ПР | C32: тыс.руб. | D32: =D17+D18+D19+D20+D29 -> 31416.51502 | E32: 34319.22083 | F32: =D32*F$15 -> 7775.587468 | G32: 7697.831593
B34: Руководитель организации | D34: ='Инф-я'!C17 -> Окунев Василий Михайлович

Sheet Расчет аморт. max срок
A1: Заполняется в Рублях !
A2: Расчет амортизационных отчислений основных средств, участвующих в передаче электрической энергии по максимальному сроку использования и расчет среднегодовой стоимости ОС
A3: ='Инф-я'!C9 -> Общество с ограниченной ответственностью "Энергетик"
X4: руб.
A5: Группа учета ОС \ Амортизационная группа \ Основное средство, Инвентарный номер, Дата принятия к учету | B5: Год ввода | C5: Срок полезного использования, мес. | E5: На начало 01.01.2017 г. | H5: За 1 квартал 2017 года | L5: На конец 31.03.2017 г. | O5: Амортизация (2-4 квартал 2017) | P5: Амортизация (2017 год) | Q5: Амортизация (2017 год) с учетом амортизации расчитанной по максимальному сроку | R5: Остаточная стоимость на начало 2018 года | S5: Остаточная стоимость на начало 2018 года с учетом амортизации расчитанной по максимальному сроку | T5: Амортизация на 2018 год | V5: Остаточная стоимость на начало 2019 года | W5: Налоговая ставка (%) | X5: Налог на имущество (2016 год) | Y5: Среднегодовая остаточная стоимость ОС
C6: бух.учет | D6: Максимальный срок по группе | E6: Стоимость | F6: Накопленная амортизация (износ) | G6: Остаточная стоимость | H6: Увеличение стоимости | I6: Начисление амортизации (износа) | J6: Уменьшение стоимости | K6: Списание амортизации (износа) | L6: Стоимость | M6: Накопленная амортизация (износ) | N6: Остаточная стоимость | P6: Амортизация (2015 год) | Q6: Амортизация (2015 год) | R6: Остаточная стоимость на начало 2016 года | S6: Остаточная стоимость на начало 2016 года | T6: бух.учет | U6: Максимальный срок по группе | X6: Амортизация (2015 год) | Y6: облагаемых по ставке 2,2 % | Z6: облагаемых по ставке 1,9 % | AA6: необлагаемых налогом (движимое имущество, введенное с 01.01.2013 года
A7: Первая группа (от 1 года до 2 лет включительно)
D8: 24 | O8: =IF(C8>0,IF(N8>L8/C8*9,(L8/C8*9),N8),0) -> 0 | P8: =I8+O8 -> 0 | Q8: =IF(C8-D8=0,P8,E8/D8*12) -> 0 | R8: =IF((N8-O8)>0,(N8-O8),0) -> 0 | S8: =IF(P8-Q8=0,R8,E8-(I8*4*(F8/(I8*4)-2))-Q8*3) -> 0 | T8: =IF(C8>0,IF(R8>L8/C8*12,(L8/C8*12),R8),0) -> 0 | U8: =IF(D8>0,IF(R8>L8/D8*12,(L8/D8*12),R8),0) -> 0 | V8: =IF((R8-T8)>0,(R8-T8),0) -> 0 | X8: =(R8+V8)/2*W8 -> 0 | Y8: =IF(W8=2.2,(V8+R8)/2,0) -> 0 | Z8: =IF(W8=1.9,(V8+R8)/2,0) -> 0 | AA8: =IF(W8=0,(V8+R8)/2,0) -> 0
D9: =$D$8 -> 24 | O9: 0 | P9: =I9+O9 -> 0 | Q9: 0 | R9: =IF((N9-O9)>0,(N9-O9),0) -> 0 | S9: 0 | T9: =IF(C9>0,IF(R9>L9/C9*12,(L9/C9*12),R9),0) -> 0 | U9: =IF(D9>0,IF(R9>L9/D9*12,(L9/D9*12),R9),0) -> 0 | V9: 0 | X9: =(R9+V9)/2*W9 -> 0 | Y9: =IF(W9=2.2,(V9+R9)/2,0) -> 0 | Z9: =IF(W9=1.9,(V9+R9)/2,0) -> 0 | AA9: =IF(W9=0,(V9+R9)/2,0) -> 0
D10: =$D$8 -> 24 | O10: 0 | P10: =I10+O10 -> 0 | Q10: 0 | R10: =IF((N10-O10)>0,(N10-O10),0) -> 0 | S10: 0 | T10: =IF(C10>0,IF(R10>L10/C10*12,(L10/C10*12),R10),0) -> 0 | U10: =IF(D10>0,IF(R10>L10/D10*12,(L10/D10*12),R10),0) -> 0 | V10: 0 | X10: =(R10+V10)/2*W10 -> 0 | Y10: 0 | Z10: 0 | AA10: 0
A11: Добавить
A12: Вторая группа (свыше 2 лет до 3 лет включительно)
D13: 36 | O13: =IF(C13>0,IF(N13>L13/C13*9,(L13/C13*9),N13),0) -> 0 | P13: =I13+O13 -> 0 | Q13: =IF(C13-D13=0,P13,E13/D13*12) -> 0 | R13: =IF((N13-O13)>0,(N13-O13),0) -> 0 | S13: =IF(P13-Q13=0,R13,E13-(I13*4*(F13/(I13*4)-2))-Q13*3) -> 0 | T13: =IF(C13>0,IF(R13>L13/C13*12,(L13/C13*12),R13),0) -> 0 | U13: =IF(D13>0,IF(R13>L13/D13*12,(L13/D13*12),R13),0) -> 0 | V13: =IF((R13-T13)>0,(R13-T13),0) -> 0 | X13: =(R13+V13)/2*W13 -> 0 | Y13: 0 | Z13: =IF(W13=1.9,(V13+R13)/2,0) -> 0 | AA13: 0
D14: =$D$13 -> 36 | O14: =IF(C14>0,IF(N14>L14/C14*9,(L14/C14*9),N14),0) -> 0 | P14: =I14+O14 -> 0 | Q14: 0 | R14: =IF((N14-O14)>0,(N14-O14),0) -> 0 | S14: 0 | T14: =IF(C14>0,IF(R14>L14/C14*12,(L14/C14*12),R14),0) -> 0 | U14: =IF(D14>0,IF(R14>L14/D14*12,(L14/D14*12),R14),0) -> 0 | V14: =IF((R14-T14)>0,(R14-T14),0) -> 0 | X14: =(R14+V14)/2*W14 -> 0 | Y14: 0 | Z14: 0 | AA14: 0
D15: =$D$13 -> 36 | O15: 0 | P15: =I15+O15 -> 0 | Q15: 0 | R15: =IF((N15-O15)>0,(N15-O15),0) -> 0 | S15: 0 | T15: =IF(C15>0,IF(R15>L15/C15*12,(L15/C15*12),R15),0) -> 0 | U15: =IF(D15>0,IF(R15>L15/D15*12,(L15/D15*12),R15),0) -> 0 | V15: 0 | X15: 0 | Y15: 0 | Z15: 0 | AA15: 0
A16: Добавить
A17: Третья группа (свыше 3 лет до 5 лет включительно)
A18: Зеркальная камера | D18: 60 | E18: 89980 | F18: 14996.7 | G18: =E18-F18 -> 74983.3 | I18: 4499.01 | L18: =E18 -> 89980 | M18: =F18+I18 -> 19495.71 | N18: =L18-M18 -> 70484.29 | O18: =IF(C18>0,IF(N18>L18/C18*9,(L18/C18*9),N18),0) -> 0 | P18: =I18+O18 -> 4499.01 | Q18: =IF(C18-D18=0,P18,E18/D18*12) -> 17996 | R18: =IF((N18-O18)>0,(N18-O18),0) -> 70484.29 | S18: =IF(P18-Q18=0,R18,E18-(I18*4*(F18/(I18*4)-2))-Q18*3) -> 56987.38 | T18: =IF(C18>0,IF(R18>L18/C18*12,(L18/C18*12),R18),0) -> 0 | U18: =IF(D18>0,IF(R18>L18/D18*12,(L18/D18*12),R18),0) -> 17996 | V18: =IF((R18-T18)>0,(R18-T18),0) -> 70484.29 | X18: =IF(C18>0,IF(V18>L18/C18*12,(L18/C18*12),V18),0) -> 0 | Y18: 0 | Z18: =IF(W18=1.9,(V18+R18)/2,0) -> 0 | AA18: 70484.29
D19: =$D$18 -> 60 | O19: =IF(C19>0,IF(N19>L19/C19*9,(L19/C19*9),N19),0) -> 0 | P19: =I19+O19 -> 0 | Q19: 0 | R19: =IF((N19-O19)>0,(N19-O19),0) -> 0 | S19: 0 | T19: =IF(C19>0,IF(R19>L19/C19*12,(L19/C19*12),R19),0) -> 0 | U19: =IF(D19>0,IF(R19>L19/D19*12,(L19/D19*12),R19),0) -> 0 | V19: =IF((R19-T19)>0,(R19-T19),0) -> 0 | X19: =IF(C19>0,IF(V19>L19/C19*12,(L19/C19*12),V19),0) -> 0 | Y19: 0 | Z19: 0 | AA19: 0
D20: =$D$18 -> 60 | O20: 0 | P20: =I20+O20 -> 0 | Q20: 0 | R20: =IF((N20-O20)>0,(N20-O20),0) -> 0 | S20: 0 | T20: =IF(C20>0,IF(R20>L20/C20*12,(L20/C20*12),R20),0) -> 0 | U20: =IF(D20>0,IF(R20>L20/D20*12,(L20/D20*12),R20),0) -> 0 | V20: 0 | X20: =IF(C20>0,IF(V20>L20/C20*12,(L20/C20*12),V20),0) -> 0 | Y20: 0 | Z20: 0 | AA20: 0
A21: Добавить
A22: Четвертая группа (свыше 5 лет до 7 лет включительно)
A23: Подъемник 2-х стоечный электрогидравлический | D23: 84 | E23: 162000 | F23: 0 | G23: =E23-F23 -> 162000 | I23: 7476.93 | L23: =E23 -> 162000 | M23: =F23+I23 -> 7476.93 | N23: =L23-M23 -> 154523.07 | O23: =IF(C23>0,IF(N23>L23/C23*9,(L23/C23*9),N23),0) -> 0 | P23: =I23+O23 -> 7476.93 | Q23: =IF(C23-D23=0,P23,E23/D23*12) -> 23142.85714 | R23: =IF((N23-O23)>0,(N23-O23),0) -> 154523.07 | S23: =IF(P23-Q23=0,R23,E23-(I23*4*(F23/(I23*4)-2))-Q23*3) -> 152386.8686 | T23: =IF(C23>0,IF(R23>L23/C23*12,(L23/C23*12),R23),0) -> 0 | U23: =IF(D23>0,IF(R23>L23/D23*12,(L23/D23*12),R23),0) -> 23142.85714 | V23: 154523.07 | X23: =(R23+V23)/2*W23 -> 0 | Y23: 0 | Z23: =IF(W23=1.9,(V23+R23)/2,0) -> 0 | AA23: 154523.07
A24: Планшет 12,9* Apple IPAD Pro Wi-Fi | D24: =$D$23 -> 84 | E24: 76990 | F24: 21386.1 | G24: =E24-F24 -> 55603.9 | I24: 6415.83 | L24: =E24 -> 76990 | M24: =F24+I24 -> 27801.93 | N24: =L24-M24 -> 49188.07 | O24: =IF(C24>0,IF(N24>L24/C24*9,(L24/C24*9),N24),0) -> 0 | P24: =I24+O24 -> 6415.83 | Q24: 10998.57143 | R24: =IF((N24-O24)>0,(N24-O24),0) -> 49188.07 | S24: 73934.82571 | T24: =IF(C24>0,IF(R24>L24/C24*12,(L24/C24*12),R24),0) -> 0 | U24: =IF(D24>0,IF(R24>L24/D24*12,(L24/D24*12),R24),0) -> 10998.57143 | V24: =IF((R24-T24)>0,(R24-T24),0) -> 49188.07 | X24: =(R24+V24)/2*W24 -> 0 | Y24: 0 | Z24: 0 | AA24: 49188.07
D25: =$D$23 -> 84 | O25: 0 | P25: =I25+O25 -> 0 | Q25: 0 | R25: =IF((N25-O25)>0,(N25-O25),0) -> 0 | S25: 0 | T25: =IF(C25>0,IF(R25>L25/C25*12,(L25/C25*12),R25),0) -> 0 | U25: =IF(D25>0,IF(R25>L25/D25*12,(L25/D25*12),R25),0) -> 0 | V25: 0 | X25: =(R25+V25)/2*W25 -> 0 | Y25: 0 | Z25: 0 | AA25: 0
A26: Добавить
A27: Пятая группа (свыше 7 лет до 10 лет включительно)
A28: Аппарат высокого давления 1,286-500 HD 10/25-4 SX | C28: 120 | D28: 120 | E28: 116394 | F28: 11639.4 | G28: =E28-F28 -> 104754.6 | I28: 2909.85 | L28: =E28 -> 116394 | M28: =F28+I28 -> 14549.25 | N28: =L28-M28 -> 101844.75 | O28: =IF(C28>0,IF(N28>L28/C28*9,(L28/C28*9),N28),0) -> 8729.55 | P28: =I28+O28 -> 11639.4 | Q28: =IF(C28-D28=0,P28,E28/D28*12) -> 11639.4 | R28: =IF((N28-O28)>0,(N28-O28),0) -> 93115.2 | S28: =IF(P28-Q28=0,R28,E28-(I28*4*(F28/(I28*4)-2))-Q28*3) -> 93115.2 | T28: =IF(C28>0,IF(R28>L28/C28*12,(L28/C28*12),R28),0) -> 11639.4 | U28: =IF(D28>0,IF(R28>L28/D28*12,(L28/D28*12),R28),0) -> 11639.4 | V28: 81475.8 | X28: =(R28+V28)/2*W28 -> 0 | Y28: 0 | Z28: =IF(W28=1.9,(V28+R28)/2,0) -> 0 | AA28: 87295.5
D29: =$D$28 -> 120 | O29: 0 | P29: =I29+O29 -> 0 | Q29: =IF(C29-D29=0,P29,E29/D29*12) -> 0 | R29: =IF((N29-O29)>0,(N29-O29),0) -> 0 | S29: 0 | T29: =IF(C29>0,IF(R29>L29/C29*12,(L29/C29*12),R29),0) -> 0 | U29: =IF(D29>0,IF(R29>L29/D29*12,(L29/D29*12),R29),0) -> 0 | V29: 0 | X29: =(R29+V29)/2*W29 -> 0 | Y29: 0 | Z29: 0 | AA29: 0
D30: =$D$28 -> 120 | O30: 0 | P30: =I30+O30 -> 0 | Q30: 0 | R30: =IF((N30-O30)>0,(N30-O30),0) -> 0 | S30: 0 | T30: =IF(C30>0,IF(R30>L30/C30*12,(L30/C30*12),R30),0) -> 0 | U30: =IF(D30>0,IF(R30>L30/D30*12,(L30/D30*12),R30),0) -> 0 | V30: 0 | X30: =IF(C30>0,IF(V30>L30/C30*12,(L30/C30*12),V30),0) -> 0 | Y30: 0 | Z30: 0 | AA30: 0
A31: Добавить
A32: Шестая группа (свыше 10 лет до 15 лет включительно)
A33: Возд. двухц(ВЛ)10кВ от ПС"Караб."доТП13ф1003,1005 | B33: 10 кВ | C33: 180 | D33: 180 | E33: 1398812.18 | F33: 93254.16 | G33: =E33-F33 -> 1305558.02 | I33: 23313.54 | L33: =E33 -> 1398812.18 | M33: =F33+I33 -> 116567.7 | N33: =L33-M33 -> 1282244.48 | O33: =IF(C33>0,IF(N33>L33/C33*9,(L33/C33*9),N33),0) -> 69940.609 | P33: =I33+O33 -> 93254.149 | Q33: =IF(C33-D33=0,P33,E33/D33*12) -> 93254.149 | R33: =IF((N33-O33)>0,(N33-O33),0) -> 1212303.871 | S33: =IF(P33-Q33=0,R33,E33-(I33*4*(F33/(I33*4)-2))-Q33*3) -> 1212303.871 | T33: =IF(C33>0,IF(R33>L33/C33*12,(L33/C33*12),R33),0) -> 93254.14533 | U33: =IF(D33>0,IF(R33>L33/D33*12,(L33/D33*12),R33),0) -> 93254.14533 | V33: 1119049.726 | X33: =(R33+V33)/2*W33 -> 0 | Y33: 0 | Z33: =IF(W33=1.9,(V33+R33)/2,0) -> 0 | AA33: 1165676.798
A34: Возд. одноц(ВЛ)10кВ от ТП 2 до ТП 62ф1003 | B34: 10 кВ | C34: 180 | D34: =$D$33 -> 180 | E34: 659289.64 | F34: 43952.64 | G34: =E34-F34 -> 615337 | I34: 10988.16 | L34: =E34 -> 659289.64 | M34: =F34+I34 -> 54940.8 | N34: =L34-M34 -> 604348.84 | O34: =IF(C34>0,IF(N34>L34/C34*9,(L34/C34*9),N34),0) -> 32964.482 | P34: 43952.642 | Q34: 43952.642 | R34: 571384.358 | S34: =IF(P34-Q34=0,R34,E34-(I34*4*(F34/(I34*4)-2))-Q34*3) -> 571384.358 | T34: 43952.64267 | U34: 43952.64267 | V34: =IF((R34-T34)>0,(R34-T34),0) -> 527431.7153 | X34: =(R34+V34)/2*W34 -> 0 | Y34: 0 | Z34: 0 | AA34: 549408.0367
A35: Возд. одноц(ВЛ)10кВ от ТП 38 до ТП3ф1004 | B35: 10 кВ | C35: 180 | D35: 180 | E35: 568953.67 | F35: 37930.2 | G35: 531023.47 | I35: 9482.55 | L35: 568953.67 | M35: 47412.75 | N35: 521540.92 | O35: 28447.6835 | P35: 37930.2335 | Q35: =IF(C35-D35=0,P35,E35/D35*12) -> 37930.2335 | R35: 493093.2365 | S35: =IF(P35-Q35=0,R35,E35-(I35*4*(F35/(I35*4)-2))-Q35*3) -> 493093.2365 | T35: 37930.24467 | U35: 37930.24467 | V35: 455162.9918 | X35: 0 | Y35: =IF(W35=2.2,(V35+R35)/2,0) -> 0 | Z35: =IF(W35=1.9,(V35+R35)/2,0) -> 0 | AA35: =IF(W35=0,(V35+R35)/2,0) -> 474128.1142
A36: Возд. одноц(ВЛ)10кВ от ТП 55 до ТП 57ф1022 | B36: 10 кВ | C36: 180 | D36: 180 | E36: 748971.92 | F36: 49931.52 | G36: 699040.4 | I36: 12482.88 | L36: 748971.92 | M36: 62414.4 | N36: 686557.52 | O36: 37448.596 | P36: 49931.476 | Q36: 49931.476 | R36: 649108.924 | S36: 649108.924 | T36: 49931.46133 | U36: 49931.46133 | V36: 599177.4627 | X36: 0 | Y36: 0 | Z36: 0 | AA36: 624143.1933
A37: Возд. одноц(ВЛ)10кВ от ТП 55 до ТП3ф1022 | B37: 10 кВ | C37: 180 | D37: 180 | E37: 558227.64 | F37: 37215.12 | G37: 521012.52 | I37: 9303.78 | L37: 558227.64 | M37: 46518.9 | N37: 511708.74 | O37: 27911.382 | P37: 37215.162 | Q37: 37215.162 | R37: 483797.358 | S37: 483797.358 | T37: 37215.176 | U37: 37215.176 | V37: 446582.182 | X37: 0 | Y37: 0 | Z37: 0 | AA37: 465189.77
A38: Возд. одноц(ВЛ)10кВ от ТП 55 до ТП54ф1022 | B38: 10 кВ | C38: 180 | D38: 180 | E38: 400737.9 | F38: 26715.84 | G38: 374022.06 | I38: 6678.96 | L38: 400737.9 | M38: 33394.8 | N38: 367343.1 | O38: 20036.895 | P38: 26715.855 | Q38: 26715.855 | R38: 347306.205 | S38: 347306.205 | T38: 26715.86 | U38: 26715.86 | V38: 320590.345 | X38: 0 | Y38: 0 | Z38: 0 | AA38: 333948.275
A39: Возд-каб. двухц(ВЛ)10кВ от ТП 1 до ТП 63ф1003,1005 | B39: 10 кВ | C39: 180 | D39: 180 | E39: 2303696.72 | F39: 153579.84 | G39: 2150116.88 | I39: 38394.96 | L39: 2303696.72 | M39: 191974.8 | N39: 2111721.92 | O39: 115184.836 | P39: 153579.796 | Q39: 153579.796 | R39: 1996537.084 | S39: 1996537.084 | T39: 153579.7813 | U39: 153579.7813 | V39: 1842957.303 | X39: 0 | Y39: 0 | Z39: 0 | AA39: 1919747.193
A40: Возд-каб. двухц(ВЛ+КЛ)10кВотПС"Караб"доТП51 | B40: 10 кВ | C40: 180 | D40: 180 | E40: 8415145.52 | F40: 501449.15 | G40: 7913696.37 | I40: 140252.43 | L40: 8415145.52 | M40: 641701.58 | N40: 7773443.94 | O40: 420757.276 | P40: 561009.706 | Q40: 561009.706 | R40: 7352686.664 | S40: 7352686.664 | T40: 561009.7013 | U40: 561009.7013 | V40: 6791676.963 | X40: 0 | Y40: 0 | Z40: 0 | AA40: 7072181.813
A41: Возд-каб. одноц(ВЛ+КЛ)10кВотТП50/23 доТп54ф1022 | B41: 10 кВ | C41: 180 | D41: 180 | E41: 1471841.27 | F41: 98122.8 | G41: 1373718.47 | I41: 24530.7 | L41: 1471841.27 | M41: 122653.5 | N41: 1349187.77 | O41: 73592.0635 | P41: 98122.7635 | Q41: 98122.7635 | R41: 1275595.707 | S41: 1275595.707 | T41: 98122.75133 | U41: 98122.75133 | V41: 1177472.955 | X41: 0 | Y41: 0 | Z41: 0 | AA41: 1226534.331
A42: Воздушн. одноц.(ВЛ)10кВ от ТП10 до ТП 45 ф1001 | B42: 10 кВ | C42: 180 | D42: 180 | E42: 504132.18 | F42: 33608.76 | G42: 470523.42 | I42: 8402.19 | L42: 504132.18 | M42: 42010.95 | N42: 462121.23 | O42: 25206.609 | P42: 33608.799 | Q42: 33608.799 | R42: 436914.621 | S42: 436914.621 | T42: 33608.812 | U42: 33608.812 | V42: 403305.809 | X42: 0 | Y42: 0 | Z42: 0 | AA42: 420110.215
A43: Воздушн. одноц.(ВЛ)10кВ от ТП8 до ТП83,84 ф1001 | B43: 10 кВ | C43: 180 | D43: 180 | E43: 616520.09 | F43: 41101.32 | G43: 575418.77 | I43: 10275.33 | L43: 616520.09 | M43: 51376.65 | N43: 565143.44 | O43: 30826.0045 | P43: 41101.3345 | Q43: 41101.3345 | R43: 534317.4355 | S43: 534317.4355 | T43: 41101.33933 | U43: 41101.33933 | V43: 493216.0962 | X43: 0 | Y43: 0 | Z43: 0 | AA43: 513766.7658
A44: Воздушн. одноц.(ВЛ)10кВот опоры№47 доТП50/23 ф1022 | B44: 10 кВ | C44: 180 | D44: 180 | E44: 719990.24 | F44: 47999.4 | G44: 671990.84 | I44: 11999.85 | L44: 719990.24 | M44: 59999.25 | N44: 659990.99 | O44: 35999.512 | P44: 47999.362 | Q44: 47999.362 | R44: 623991.478 | S44: 623991.478 | T44: 47999.34933 | U44: 47999.34933 | V44: 575992.1287 | X44: 0 | Y44: 0 | Z44: 0 | AA44: 599991.8033
A45: Воздушн. одноцеп. (ВЛ) 10кВ от ТП39 до ТП40 ф1004 | B45: 10 кВ | C45: 180 | D45: 180 | E45: 700537.25 | F45: 46702.44 | G45: 653834.81 | I45: 11675.61 | L45: 700537.25 | M45: 58378.05 | N45: 642159.2 | O45: 35026.8625 | P45: 46702.4725 | Q45: 46702.4725 | R45: 607132.3375 | S45: 607132.3375 | T45: 46702.48333 | U45: 46702.48333 | V45: 560429.8542 | X45: 0 | Y45: 0 | Z45: 0 | AA45: 583781.0958
A46: Воздушн. одноцеп. (ВЛ) 10кВ отТП38 доТП39 ф1004 | B46: 10 кВ | C46: 180 | D46: 180 | E46: 1096068.19 | F46: 73071.24 | G46: 1022996.95 | I46: 18267.81 | L46: 1096068.19 | M46: 91339.05 | N46: 1004729.14 | O46: 54803.4095 | P46: 73071.2195 | Q46: 73071.2195 | R46: 949925.7305 | S46: 949925.7305 | T46: 73071.21267 | U46: 73071.21267 | V46: 876854.5178 | X46: 0 | Y46: 0 | Z46: 0 | AA46: 913390.1242
A47: Воздушн. одноцеп. (ВЛ) 10кВ отТП40 доТП58/37 ф1004 | B47: 10 кВ | C47: 180 | D47: 180 | E47: 537327.7 | F47: 35821.8 | G47: 501505.9 | I47: 8955.45 | L47: 537327.7 | M47: 44777.25 | N47: 492550.45 | O47: 26866.385 | P47: 35821.835 | Q47: 35821.835 | R47: 465684.065 | S47: 465684.065 | T47: 35821.84667 | U47: 35821.84667 | V47: 429862.2183 | X47: 0 | Y47: 0 | Z47: 0 | AA47: 447773.1417
A48: Воздушн. одноцеп. (ВЛ) 10кВ отТП55 доТП56 ф1022 | B48: 10 кВ | C48: 180 | D48: 180 | E48: 833308.07 | F48: 55553.88 | G48: 777754.19 | I48: 13888.47 | L48: 833308.07 | M48: 69442.35 | N48: 763865.72 | O48: 41665.4035 | P48: 55553.8735 | Q48: 55553.8735 | R48: 722200.3165 | S48: 722200.3165 | T48: 55553.87133 | U48: 55553.87133 | V48: 666646.4452 | X48: 0 | Y48: 0 | Z48: 0 | AA48: 694423.3808
A49: Воздушн. одноцеп. (ВЛ) 10кВ отТП56 доТП82/20 ф1022 | B49: 10 кВ | C49: 180 | D49: 180 | E49: 429493.27 | F49: 28632.84 | G49: 400860.43 | I49: 7158.21 | L49: 429493.27 | M49: 35791.05 | N49: 393702.22 | O49: 21474.6635 | P49: 28632.8735 | Q49: 28632.8735 | R49: 372227.5565 | S49: 372227.5565 | T49: 28632.88467 | U49: 28632.88467 | V49: 343594.6718 | X49: 0 | Y49: 0 | Z49: 0 | AA49: 357911.1142
A50: Воздушн. одноцеп.(ВЛ)10кВ от опоры №16доТП44 ф1001 | B50: 10 кВ | C50: 180 | D50: 180 | E50: 187578.58 | F50: 12505.2 | G50: 175073.38 | I50: 3126.3 | L50: 187578.58 | M50: 15631.5 | N50: 171947.08 | O50: 9378.929 | P50: 12505.229 | Q50: 12505.229 | R50: 162568.151 | S50: 162568.151 | T50: 12505.23867 | U50: 12505.23867 | V50: 150062.9123 | X50: 0 | Y50: 0 | Z50: 0 | AA50: 156315.5317
A51: Воздушн. одноцеп.(ВЛ)10кВ от опоры №7 доТП52 ф1022 | B51: 10 кВ | C51: 180 | D51: 180 | E51: 355286.32 | F51: 23685.72 | G51: 331600.6 | I51: 5921.43 | L51: 355286.32 | M51: 29607.15 | N51: 325679.17 | O51: 17764.316 | P51: 23685.746 | Q51: 23685.746 | R51: 307914.854 | S51: 307914.854 | T51: 23685.75467 | U51: 23685.75467 | V51: 284229.0993 | X51: 0 | Y51: 0 | Z51: 0 | AA51: 296071.9767
A52: Воздушн. одноцеп.(ВЛ)10кВ от опоры №7 доТП92 ф1022 | B52: 10 кВ | C52: 180 | D52: 180 | E52: 342560 | F52: 22837.32 | G52: 319722.68 | I52: 5709.33 | L52: 342560 | M52: 28546.65 | N52: 314013.35 | O52: 17128 | P52: 22837.33 | Q52: 22837.33 | R52: 296885.35 | S52: 296885.35 | T52: 22837.33333 | U52: 22837.33333 | V52: 274048.0167 | X52: 0 | Y52: 0 | Z52: 0 | AA52: 285466.6833
A53: Воздушн. одноцеп.(ВЛ)10кВ от ТП51 до ТП38 ф1004 | B53: 10 кВ | C53: 180 | D53: 180 | E53: 1312173.52 | F53: 87478.2 | G53: 1224695.32 | I53: 21869.55 | L53: 1312173.52 | M53: 109347.75 | N53: 1202825.77 | O53: 65608.676 | P53: 87478.226 | Q53: 87478.226 | R53: 1137217.094 | S53: 1137217.094 | T53: 87478.23467 | U53: 87478.23467 | V53: 1049738.859 | X53: 0 | Y53: 0 | Z53: 0 | AA53: 1093477.977
A54: Воздушная двухц(ВЛ)10кВ от ТП1 до ТП61 ф1003,1005 | B54: 10 кВ | C54: 180 | D54: 180 | E54: 641304.05 | F54: 42753.6 | G54: 598550.45 | I54: 10688.4 | L54: 641304.05 | M54: 53442 | N54: 587862.05 | O54: 32065.2025 | P54: 42753.6025 | Q54: 42753.6025 | R54: 555796.8475 | S54: 555796.8475 | T54: 42753.60333 | U54: 42753.60333 | V54: 513043.2442 | X54: 0 | Y54: 0 | Z54: 0 | AA54: 534420.0458
A55: Воздушная двухц(ВЛ)10кВ от ТП13 до ТП1 ф1003,1005 | B55: 10 кВ | C55: 180 | D55: 180 | E55: 2130397.72 | F55: 142026.48 | G55: 1988371.24 | I55: 35506.62 | L55: 2130397.72 | M55: 177533.1 | N55: 1952864.62 | O55: 106519.886 | P55: 142026.506 | Q55: 142026.506 | R55: 1846344.734 | S55: 1846344.734 | T55: 142026.5147 | U55: 142026.5147 | V55: 1704318.219 | X55: 0 | Y55: 0 | Z55: 0 | AA55: 1775331.477
A56: Воздушная двухц(ВЛ)10кВ от ТП9-ТП8-ТП32-ТП18 ф1001,1005 | B56: 10 кВ | C56: 180 | D56: 180 | E56: 4547113.62 | F56: 303140.88 | G56: 4243972.74 | I56: 75785.22 | L56: 4547113.62 | M56: 378926.1 | N56: 4168187.52 | O56: 227355.681 | P56: 303140.901 | Q56: 303140.901 | R56: 3940831.839 | S56: 3940831.839 | T56: 303140.908 | U56: 303140.908 | V56: 3637690.931 | X56: 0 | Y56: 0 | Z56: 0 | AA56: 3789261.385
A57: ВЛ 10кВ ТП №11-ТП №66 Ф 1001 | B57: 10 кВ | C57: 180 | D57: 180 | E57: 2604937.89 | F57: 173662.56 | G57: 2431275.33 | I57: 43415.64 | L57: 2604937.89 | M57: 217078.2 | N57: 2387859.69 | O57: 130246.8945 | P57: 173662.5345 | Q57: 173662.5345 | R57: 2257612.796 | S57: 2257612.796 | T57: 173662.526 | U57: 173662.526 | V57: 2083950.269 | X57: 0 | Y57: 0 | Z57: 0 | AA57: 2170781.532
A58: ВЛ 10кВ ТП №12-ТП №11 Ф 1001 | B58: 10 кВ | C58: 180 | D58: 180 | E58: 1804578.12 | F58: 120305.16 | G58: 1684272.96 | I58: 30076.29 | L58: 1804578.12 | M58: 150381.45 | N58: 1654196.67 | O58: 90228.906 | P58: 120305.196 | Q58: 120305.196 | R58: 1563967.764 | S58: 1563967.764 | T58: 120305.208 | U58: 120305.208 | V58: 1443662.556 | X58: 0 | Y58: 0 | Z58: 0 | AA58: 1503815.16
A59: ВЛ 0,4 кВ ул. 1-ая Школьная | B59: 10 кВ | C59: 180 | D59: 180 | E59: 805038.75 | F59: 53669.28 | G59: 751369.47 | I59: 13417.32 | L59: 805038.75 | M59: 67086.6 | N59: 737952.15 | O59: 40251.9375 | P59: 53669.2575 | Q59: 53669.2575 | R59: 697700.2125 | S59: 697700.2125 | T59: 53669.25 | U59: 53669.25 | V59: 644030.9625 | X59: 0 | Y59: 0 | Z59: 0 | AA59: 670865.5875
A60: ВЛ 0,4 кВ ул. 2-ая Школьная | B60: 10 кВ | C60: 180 | D60: 180 | E60: 1123641.6 | F60: 74909.4 | G60: 1048732.2 | I60: 18727.35 | L60: 1123641.6 | M60: 93636.75 | N60: 1030004.85 | O60: 56182.08 | P60: 74909.43 | Q60: 74909.43 | R60: 973822.77 | S60: 973822.77 | T60: 74909.44 | U60: 74909.44 | V60: 898913.33 | X60: 0 | Y60: 0 | Z60: 0 | AA60: 936368.05
A61: ВЛ 0,4 кВ ул. Вокзальная ( левая сторона) | B61: 10 кВ | C61: 180 | D61: 180 | E61: 823108.29 | F61: 54873.84 | G61: 768234.45 | I61: 13718.46 | L61: 823108.29 | M61: 68592.3 | N61: 754515.99 | O61: 41155.4145 | P61: 54873.8745 | Q61: 54873.8745 | R61: 713360.5755 | S61: 713360.5755 | T61: 54873.886 | U61: 54873.886 | V61: 658486.6895 | X61: 0 | Y61: 0 | Z61: 0 | AA61: 685923.6325
A62: ВЛ 0,4 кВ ул. Вокзальная ( правая сторона) | B62: 10 кВ | C62: 180 | D62: 180 | E62: 885234.3 | F62: 59015.64 | G62: 826218.66 | I62: 14753.91 | L62: 885234.3 | M62: 73769.55 | N62: 811464.75 | O62: 44261.715 | P62: 59015.625 | Q62: 59015.625 | R62: 767203.035 | S62: 767203.035 | T62: 59015.62 | U62: 59015.62 | V62: 708187.415 | X62: 0 | Y62: 0 | Z62: 0 | AA62: 737695.225
A63: ВЛ 0,4 кВ ул. Первомайская | B63: 10 кВ | C63: 180 | D63: 180 | E63: 1875119.2 | F63: 125007.96 | G63: 1750111.24 | I63: 31251.99 | L63: 1875119.2 | M63: 156259.95 | N63: 1718859.25 | O63: 93755.96 | P63: 125007.95 | Q63: 125007.95 | R63: 1625103.29 | S63: 1625103.29 | T63: 125007.9467 | U63: 125007.9467 | V63: 1500095.343 | X63: 0 | Y63: 0 | Z63: 0 | AA63: 1562599.317
A64: ВЛ 0,4 кВ ул. Пионерская | B64: 10 кВ | C64: 180 | D64: 180 | E64: 773682.69 | F64: 51578.88 | G64: 722103.81 | I64: 12894.72 | L64: 773682.69 | M64: 64473.6 | N64: 709209.09 | O64: 38684.1345 | P64: 51578.8545 | Q64: 51578.8545 | R64: 670524.9555 | S64: 670524.9555 | T64: 51578.846 | U64: 51578.846 | V64: 618946.1095 | X64: 0 | Y64: 0 | Z64: 0 | AA64: 644735.5325
A65: ВЛ 0,4 кВ ул. Храмцова | B65: 10 кВ | C65: 180 | D65: 180 | E65: 943549.85 | F65: 62903.28 | G65: 880646.57 | I65: 15725.82 | L65: 943549.85 | M65: 78629.1 | N65: 864920.75 | O65: 47177.4925 | P65: 62903.3125 | Q65: 62903.3125 | R65: 817743.2575 | S65: 817743.2575 | T65: 62903.32333 | U65: 62903.32333 | V65: 754839.9342 | X65: 0 | Y65: 0 | Z65: 0 | AA65: 786291.5958
A66: ВЛ 0,4 кВ ул. Часовина | B66: 10 кВ | C66: 180 | D66: 180 | E66: 1168298.2 | F66: 77886.6 | G66: 1090411.6 | I66: 19471.65 | L66: 1168298.2 | M66: 97358.25 | N66: 1070939.95 | O66: 58414.91 | P66: 77886.56 | Q66: 77886.56 | R66: 1012525.04 | S66: 1012525.04 | T66: 77886.54667 | U66: 77886.54667 | V66: 934638.4933 | X66: 0 | Y66: 0 | Z66: 0 | AA66: 973581.7667
A67: ВЛ от ТП 24 до ул. Мира 30А | B67: 10 кВ | C67: 180 | D67: 180 | E67: 171464.46 | F67: 11430.96 | G67: 160033.5 | I67: 2857.74 | L67: 171464.46 | M67: 14288.7 | N67: 157175.76 | O67: 8573.223 | P67: 11430.963 | Q67: 11430.963 | R67: 148602.537 | S67: 148602.537 | T67: 11430.964 | U67: 11430.964 | V67: 137171.573 | X67: 0 | Y67: 0 | Z67: 0 | AA67: 142887.055
A68: ВЛ от ТП 32 по ул. Красноармейская с подкл. В ТП 18 | B68: 10 кВ | C68: 180 | D68: 180 | E68: 245516.82 | F68: 16367.76 | G68: 229149.06 | I68: 4091.94 | L68: 245516.82 | M68: 20459.7 | N68: 225057.12 | O68: 12275.841 | P68: 16367.781 | Q68: 16367.781 | R68: 212781.279 | S68: 212781.279 | T68: 16367.788 | U68: 16367.788 | V68: 196413.491 | X68: 0 | Y68: 0 | Z68: 0 | AA68: 204597.385
A69: Воздушная линия 0,4 кВ и мачтовые подстанции от ТП №62 | B69: 10 кВ | C69: 180 | D69: 180 | E69: 986396.75 | F69: 0 | G69: 986396.75 | I69: 16439.94 | L69: 986396.75 | M69: 16439.94 | N69: 969956.81 | O69: 49319.8375 | P69: =I69+O69 -> 65759.7775 | Q69: 65759.7775 | R69: =IF((N69-O69)>0,(N69-O69),0) -> 920636.9725 | S69: 920636.9725 | T69: =IF(C69>0,IF(R69>L69/C69*12,(L69/C69*12),R69),0) -> 65759.78333 | U69: =IF(D69>0,IF(R69>L69/D69*12,(L69/D69*12),R69),0) -> 65759.78333 | V69: 854877.1892 | X69: 0 | Y69: 0 | Z69: 0 | AA69: 887757.0808
A70: Воздушная линия 0,4 кВ и мачтовые подстанции от ТП №11 | B70: 10 кВ | C70: 180 | D70: 180 | E70: 5742091.26 | F70: 0 | G70: 5742091.26 | I70: 95701.53 | L70: 5742091.26 | M70: 95701.53 | N70: 5646389.73 | O70: 287104.563 | P70: 382806.093 | Q70: 382806.093 | R70: 5359285.167 | S70: 5359285.167 | T70: 382806.084 | U70: 382806.084 | V70: 4976479.083 | X70: 0 | Y70: 0 | Z70: 0 | AA70: 5167882.125
A71: Воздушная линия 0,4 кВ ул. Почтовая | B71: 10 кВ | C71: 180 | D71: 180 | E71: 788791.59 | F71: 0 | G71: 788791.59 | I71: 13146.54 | L71: 788791.59 | M71: 13146.54 | N71: 775645.05 | O71: 39439.5795 | P71: 52586.1195 | Q71: 52586.1195 | R71: 736205.4705 | S71: 736205.4705 | T71: 52586.106 | U71: 52586.106 | V71: 683619.3645 | X71: 0 | Y71: 0 | Z71: 0 | AA71: 709912.4175
A72: Воздушная линия 0,4 кВ ул.Зеленая ии мачтовая подстанция № 100 | B72: 10 кВ | C72: 180 | D72: 180 | E72: 1295023.12 | F72: 0 | G72: 1295023.12 | I72: 21583.71 | L72: 1295023.12 | M72: 21583.71 | N72: 1273439.41 | O72: 64751.156 | P72: 86334.866 | Q72: 86334.866 | R72: 1208688.254 | S72: 1208688.254 | T72: 86334.87467 | U72: 86334.87467 | V72: 1122353.379 | X72: 0 | Y72: 0 | Z72: 0 | AA72: 1165520.817
A73: Воздушная линия 0,4кВ и мачтовые трансформаторые подстанции от ТП 8 | B73: 10 кВ | C73: 180 | D73: 180 | E73: 7584542.89 | F73: 0 | G73: 7584542.89 | I73: 126409.05 | L73: 7584542.89 | M73: 126409.05 | N73: 7458133.84 | O73: 379227.1445 | P73: 505636.1945 | Q73: 505636.1945 | R73: 7078906.695 | S73: 7078906.695 | T73: 505636.1927 | U73: 505636.1927 | V73: 6573270.503 | X73: 0 | Y73: 0 | Z73: 0 | AA73: 6826088.599
A74: Воздушная линия 10 кВ Ф1004 | B74: 10 кВ | C74: 180 | D74: 180 | E74: 1910612.58 | F74: 0 | G74: 1910612.58 | I74: 31843.53 | L74: 1910612.58 | M74: 31843.53 | N74: 1878769.05 | O74: 95530.629 | P74: 127374.159 | Q74: 127374.159 | R74: 1783238.421 | S74: 1783238.421 | T74: 127374.172 | U74: 127374.172 | V74: 1655864.249 | X74: 0 | Y74: 0 | Z74: 0 | AA74: 1719551.335
A75: Воздушная линия 10 кВ и мачтовые подстанции | B75: 10 кВ | C75: 180 | D75: 180 | E75: 655861.5 | F75: 0 | G75: 655861.5 | I75: 10931.04 | L75: 655861.5 | M75: 10931.04 | N75: 644930.46 | O75: 32793.075 | P75: 43724.115 | Q75: 43724.115 | R75: 612137.385 | S75: 612137.385 | T75: 43724.1 | U75: 43724.1 | V75: 568413.285 | X75: =(R75+V75)/2*W75 -> 0 | Y75: 0 | Z75: 0 | AA75: 590275.335
A76: Добавить
A77: Седьмая группа (свыше 15 лет до 20 лет включительно)
A78: Трансформаторная подстанция ТП 61 10/0,4-250кВА | B78: 10/0,4 | C78: 240 | D78: 240 | E78: 1636018.1 | F78: 81800.88 | G78: =E78-F78 -> 1554217.22 | I78: 20450.22 | L78: =E78 -> 1636018.1 | M78: =F78+I78 -> 102251.1 | N78: =L78-M78 -> 1533767 | O78: =IF(C78>0,IF(N78>L78/C78*9,(L78/C78*9),N78),0) -> 61350.67875 | P78: =I78+O78 -> 81800.89875 | Q78: =IF(C78-D78=0,P78,E78/D78*12) -> 81800.89875 | R78: =IF((N78-O78)>0,(N78-O78),0) -> 1472416.321 | S78: =IF(P78-Q78=0,R78,E78-(I78*4*(F78/(I78*4)-2))-Q78*3) -> 1472416.321 | T78: =IF(C78>0,IF(R78>L78/C78*12,(L78/C78*12),R78),0) -> 81800.905 | U78: =IF(D78>0,IF(R78>L78/D78*12,(L78/D78*12),R78),0) -> 81800.905 | V78: 1390615.416 | X78: =(R78+V78)/2*W78 -> 0 | Y78: 0 | Z78: =IF(W78=1.9,(V78+R78)/2,0) -> 0 | AA78: 1431515.869
A79: Трансформаторная подстанция ТП 66 10/0,4-250кВА | B79: 10/0,4 | C79: 240 | D79: =$D$78 -> 240 | E79: 1653625.37 | F79: 82681.32 | G79: =E79-F79 -> 1570944.05 | I79: 20670.33 | L79: =E79 -> 1653625.37 | M79: =F79+I79 -> 103351.65 | N79: =L79-M79 -> 1550273.72 | O79: =IF(C79>0,IF(N79>L79/C79*9,(L79/C79*9),N79),0) -> 62010.95138 | P79: 82681.28138 | Q79: 82681.28138 | R79: 1488262.769 | S79: 1488262.769 | T79: 82681.2685 | U79: 82681.2685 | V79: =IF((R79-T79)>0,(R79-T79),0) -> 1405581.5 | X79: =(R79+V79)/2*W79 -> 0 | Y79: 0 | Z79: 0 | AA79: 1446922.134
A80: Мачтовая ТП 95 10/0,4-100кВА | B80: 10/0,4 | C80: 240 | D80: =$D$78 -> 240 | E80: 334555.91 | F80: 16727.76 | G80: 317828.15 | I80: 4181.94 | L80: 334555.91 | M80: 20909.7 | N80: 313646.21 | O80: 12545.84663 | P80: 16727.78663 | Q80: =IF(C80-D80=0,P80,E80/D80*12) -> 16727.78663 | R80: 301100.3634 | S80: =IF(P80-Q80=0,R80,E80-(I80*4*(F80/(I80*4)-2))-Q80*3) -> 301100.3634 | T80: 16727.7955 | U80: 16727.7955 | V80: 284372.5679 | X80: 0 | Y80: =IF(W80=2.2,(V80+R80)/2,0) -> 0 | Z80: =IF(W80=1.9,(V80+R80)/2,0) -> 0 | AA80: =IF(W80=0,(V80+R80)/2,0) -> 292736.4656
A81: Мачтовая ТП 96 10/0,4-100кВА | B81: 10/0,4 | C81: 240 | D81: =$D$78 -> 240 | E81: 334555.91 | F81: 16727.76 | G81: 317828.15 | I81: 4181.94 | L81: 334555.91 | M81: 20909.7 | N81: 313646.21 | O81: 12545.84663 | P81: 16727.78663 | Q81: 16727.78663 | R81: 301100.3634 | S81: 301100.3634 | T81: 16727.7955 | U81: 16727.7955 | V81: 284372.5679 | X81: 0 | Y81: 0 | Z81: 0 | AA81: 292736.4656
A82: АИИС КУЭ | B82: 0,4 кВ | C82: 192 | D82: =$D$78 -> 240 | E82: 15315771.43 | F82: 831584.76 | G82: 14484186.67 | I82: 239308.92 | L82: 15315771.43 | M82: 1070893.68 | N82: 14244877.75 | O82: 717926.7858 | P82: 957235.7058 | Q82: 765788.5715 | R82: 13526950.96 | S82: 14101292.32 | T82: 957235.7144 | U82: 765788.5715 | V82: 12569715.25 | X82: 0 | Y82: 0 | Z82: 0 | AA82: 13048333.11
A83: Мачтовая ТП 88 ул. Чулкова | B83: 10/0,4 | C83: 240 | D83: =$D$78 -> 240 | E83: 296331.11 | F83: 0 | G83: 296331.11 | I83: 3704.13 | L83: 296331.11 | M83: 3704.13 | N83: 292626.98 | O83: 11112.41662 | P83: 14816.54662 | Q83: 14816.54662 | R83: 281514.5634 | S83: 281514.5634 | T83: 14816.5555 | U83: 14816.5555 | V83: 266698.0079 | X83: =(R83+V83)/2*W83 -> 0 | Y83: 0 | Z83: 0 | AA83: 274106.2856
A84: Добавить
A85: Восьмая группа (свыше 20 лет до 25 лет включительно)
D86: 300 | O86: =IF(C86>0,IF(N86>L86/C86*9,(L86/C86*9),N86),0) -> 0 | P86: =I86+O86 -> 0 | Q86: =IF(C86-D86=0,P86,E86/D86*12) -> 0 | R86: =IF((N86-O86)>0,(N86-O86),0) -> 0 | S86: =IF(P86-Q86=0,R86,E86-(I86*4*(F86/(I86*4)-2))-Q86*3) -> 0 | T86: =IF(C86>0,IF(R86>L86/C86*12,(L86/C86*12),R86),0) -> 0 | U86: =IF(D86>0,IF(R86>L86/D86*12,(L86/D86*12),R86),0) -> 0 | V86: 0 | X86: =(R86+V86)/2*W86 -> 0 | Y86: 0 | Z86: =IF(W86=1.9,(V86+R86)/2,0) -> 0 | AA86: 0
D87: =$D$86 -> 300 | O87: =IF(C87>0,IF(N87>L87/C87*9,(L87/C87*9),N87),0) -> 0 | P87: =I87+O87 -> 0 | Q87: 0 | R87: =IF((N87-O87)>0,(N87-O87),0) -> 0 | S87: 0 | T87: =IF(C87>0,IF(R87>L87/C87*12,(L87/C87*12),R87),0) -> 0 | U87: =IF(D87>0,IF(R87>L87/D87*12,(L87/D87*12),R87),0) -> 0 | V87: =IF((R87-T87)>0,(R87-T87),0) -> 0 | X87: =(R87+V87)/2*W87 -> 0 | Y87: 0 | Z87: 0 | AA87: 0
D88: =$D$86 -> 300 | O88: 0 | P88: =I88+O88 -> 0 | Q88: 0 | R88: =IF((N88-O88)>0,(N88-O88),0) -> 0 | S88: 0 | T88: =IF(C88>0,IF(R88>L88/C88*12,(L88/C88*12),R88),0) -> 0 | U88: =IF(D88>0,IF(R88>L88/D88*12,(L88/D88*12),R88),0) -> 0 | V88: 0 | X88: =IF(C88>0,IF(V88>L88/C88*12,(L88/C88*12),V88),0) -> 0 | Y88: 0 | Z88: 0 | AA88: 0
A89: Добавить
A90: Девятая группа (свыше 25 лет до 30 лет включительно)
A91: Трансформаторная подстанция ТП 44 10/0,4-250кВА | B91: 10/0,4 | C91: 360 | D91: 360 | E91: 298798.03 | F91: 9959.88 | G91: =E91-F91 -> 288838.15 | I91: 2489.97 | L91: =E91 -> 298798.03 | M91: =F91+I91 -> 12449.85 | N91: =L91-M91 -> 286348.18 | O91: =IF(C91>0,IF(N91>L91/C91*9,(L91/C91*9),N91),0) -> 7469.95075 | P91: =I91+O91 -> 9959.92075 | Q91: =IF(C91-D91=0,P91,E91/D91*12) -> 9959.92075 | R91: =IF((N91-O91)>0,(N91-O91),0) -> 278878.2293 | S91: =IF(P91-Q91=0,R91,E91-(I91*4*(F91/(I91*4)-2))-Q91*3) -> 278878.2293 | T91: =IF(C91>0,IF(R91>L91/C91*12,(L91/C91*12),R91),0) -> 9959.934333 | U91: =IF(D91>0,IF(R91>L91/D91*12,(L91/D91*12),R91),0) -> 9959.934333 | V91: 268918.2949 | X91: =IF(C91>0,IF(V91>L91/C91*12,(L91/C91*12),V91),0) -> 9959.934333 | Y91: 0 | Z91: =IF(W91=1.9,(V91+R91)/2,0) -> 0 | AA91: 273898.2621
A92: Трансформаторная подстанция ТП 52 10/0,4-250кВА | B92: 10/0,4 | C92: 360 | D92: =$D$91 -> 360 | E92: 296331.11 | F92: 9877.68 | G92: =E92-F92 -> 286453.43 | I92: 2469.42 | L92: =E92 -> 296331.11 | M92: =F92+I92 -> 12347.1 | N92: =L92-M92 -> 283984.01 | O92: =IF(C92>0,IF(N92>L92/C92*9,(L92/C92*9),N92),0) -> 7408.27775 | P92: =I92+O92 -> 9877.69775 | Q92: 9877.69775 | R92: =IF((N92-O92)>0,(N92-O92),0) -> 276575.7323 | S92: 276575.7323 | T92: =IF(C92>0,IF(R92>L92/C92*12,(L92/C92*12),R92),0) -> 9877.703667 | U92: =IF(D92>0,IF(R92>L92/D92*12,(L92/D92*12),R92),0) -> 9877.703667 | V92: =IF((R92-T92)>0,(R92-T92),0) -> 266698.0286 | X92: =(R92+V92)/2*W92 -> 0 | Y92: 0 | Z92: 0 | AA92: 271636.8804
D93: =$D$91 -> 360 | O93: 0 | P93: =I93+O93 -> 0 | Q93: 0 | R93: =IF((N93-O93)>0,(N93-O93),0) -> 0 | S93: 0 | T93: =IF(C93>0,IF(R93>L93/C93*12,(L93/C93*12),R93),0) -> 0 | U93: =IF(D93>0,IF(R93>L93/D93*12,(L93/D93*12),R93),0) -> 0 | V93: 0 | X93: =(R93+V93)/2*W93 -> 0 | Y93: 0 | Z93: 0 | AA93: 0
A94: Добавить
A95: Десятая группа (свыше 30 лет)
A96: Воздушная двухц(ВЛ)10кВ от ТП2 до ТП22 ф1003,1005 | B96: 10 кВ | C96: 180 | D96: =MAX(361,C96) -> 361 | E96: 192147.14 | F96: 12809.76 | G96: =E96-F96 -> 179337.38 | I96: 3202.44 | L96: =E96 -> 192147.14 | M96: =F96+I96 -> 16012.2 | N96: =L96-M96 -> 176134.94 | O96: =IF(C96>0,IF(N96>L96/C96*9,(L96/C96*9),N96),0) -> 9607.357 | P96: =I96+O96 -> 12809.797 | Q96: =IF(C96-D96=0,P96,E96/D96*12) -> 6387.162548 | R96: =IF((N96-O96)>0,(N96-O96),0) -> 166527.583 | S96: =IF(P96-Q96=0,R96,E96-(I96*4*(F96/(I96*4)-2))-Q96*3) -> 185795.4124 | T96: =IF(C96>0,IF(R96>L96/C96*12,(L96/C96*12),R96),0) -> 12809.80933 | U96: =IF(D96>0,IF(R96>L96/D96*12,(L96/D96*12),R96),0) -> 6387.162548 | V96: 153717.7737 | X96: =(R96+V96)/2*W96 -> 0 | Y96: 0 | Z96: =IF(W96=1.9,(V96+R96)/2,0) -> 0 | AA96: 160122.6783
A97: Трансформаторная подстанция ТП 38 10/0,4-250кВА | B97: 10/0,4 | C97: 480 | D97: =MAX(361,C97) -> 480 | E97: 1200003.71 | F97: 30000.12 | G97: =E97-F97 -> 1170003.59 | I97: 7500.03 | L97: =E97 -> 1200003.71 | M97: =F97+I97 -> 37500.15 | N97: =L97-M97 -> 1162503.56 | O97: =IF(C97>0,IF(N97>L97/C97*9,(L97/C97*9),N97),0) -> 22500.06956 | P97: 30000.09956 | Q97: 30000.09956 | R97: 1140003.49 | S97: 1140003.49 | T97: 30000.09275 | U97: 30000.09275 | V97: =IF((R97-T97)>0,(R97-T97),0) -> 1110003.398 | X97: =(R97+V97)/2*W97 -> 0 | Y97: 0 | Z97: 0 | AA97: 1125003.444
A98: Трансформаторная подстанция ТП 39 10/0,4-250кВА | B98: 10/0,4 | C98: 480 | D98: =MAX(361,C98) -> 480 | E98: 1725143.97 | F98: 43128.6 | G98: 1682015.37 | I98: 10782.15 | L98: 1725143.97 | M98: 53910.75 | N98: 1671233.22 | O98: 32346.44944 | P98: 43128.59944 | Q98: =IF(C98-D98=0,P98,E98/D98*12) -> 43128.59944 | R98: 1638886.771 | S98: =IF(P98-Q98=0,R98,E98-(I98*4*(F98/(I98*4)-2))-Q98*3) -> 1638886.771 | T98: 43128.59925 | U98: 43128.59925 | V98: 1595758.171 | X98: 0 | Y98: =IF(W98=2.2,(V98+R98)/2,0) -> 0 | Z98: =IF(W98=1.9,(V98+R98)/2,0) -> 0 | AA98: =IF(W98=0,(V98+R98)/2,0) -> 1617322.471
A99: Трансформаторная подстанция ТП 45 10/0,4-250кВА | B99: 10/0,4 | C99: 600 | D99: 600 | E99: 1714123.93 | F99: 34282.44 | G99: 1679841.49 | I99: 8570.61 | L99: 1714123.93 | M99: 42853.05 | N99: 1671270.88 | O99: 25711.85895 | P99: 34282.46895 | Q99: 34282.46895 | R99: 1645559.021 | S99: 1645559.021 | T99: 34282.4786 | U99: 34282.4786 | V99: 1611276.542 | X99: 0 | Y99: 0 | Z99: 0 | AA99: 1628417.782
A100: Трансформаторная подстанция ТП 51 Очистные сооружения | B100: 10/0,4 | C100: 600 | D100: 600 | E100: 4153930.01 | F100: 83078.64 | G100: 4070851.37 | I100: 20769.66 | L100: 4153930.01 | M100: 103848.3 | N100: 4050081.71 | O100: 62308.95015 | P100: 83078.61015 | Q100: 83078.61015 | R100: 3987772.76 | S100: 3987772.76 | T100: 83078.6002 | U100: 83078.6002 | V100: 3904694.16 | X100: 0 | Y100: 0 | Z100: 0 | AA100: 3946233.46
A101: Трансформаторная подстанция ТП 54 10/0,4-250кВА | B101: 10/0,4 | C101: 480 | D101: 480 | E101: 1459986.91 | F101: 36499.68 | G101: 1423487.23 | I101: 9124.92 | L101: 1459986.91 | M101: 45624.6 | N101: 1414362.31 | O101: 27374.75456 | P101: 36499.67456 | Q101: 36499.67456 | R101: 1386987.555 | S101: 1386987.555 | T101: 36499.67275 | U101: 36499.67275 | V101: 1350487.883 | X101: 0 | Y101: 0 | Z101: 0 | AA101: 1368737.719
A102: Трансформаторная подстанция ТП 55 10/0,4-400кВА | B102: 10/0,4 | C102: 480 | D102: 480 | E102: 2112753.69 | F102: 52818.84 | G102: 2059934.85 | I102: 13204.71 | L102: 2112753.69 | M102: 66023.55 | N102: 2046730.14 | O102: 39614.13169 | P102: 52818.84169 | Q102: 52818.84169 | R102: 2007116.008 | S102: 2007116.008 | T102: 52818.84225 | U102: 52818.84225 | V102: 1954297.166 | X102: 0 | Y102: 0 | Z102: 0 | AA102: 1980706.587
A103: Трансформаторная подстанция ТП 56 10/0,4-400кВА*2 | B103: 10/0,4 | C103: 600 | D103: 600 | E103: 3337073.68 | F103: 66741.48 | G103: 3270332.2 | I103: 16685.37 | L103: 3337073.68 | M103: 83426.85 | N103: 3253646.83 | O103: 50056.1052 | P103: 66741.4752 | Q103: 66741.4752 | R103: 3203590.725 | S103: 3203590.725 | T103: 66741.4736 | U103: 66741.4736 | V103: 3136849.251 | X103: 0 | Y103: 0 | Z103: 0 | AA103: 3170219.988
A104: Трансформаторная подстанция ТП 62 10/0,4-400кВА | B104: 10/0,4 | C104: 600 | D104: 600 | E104: 4367990.75 | F104: 87359.76 | G104: 4280630.99 | I104: 21839.94 | L104: 4367990.75 | M104: 109199.7 | N104: 4258791.05 | O104: 65519.86125 | P104: 87359.80125 | Q104: 87359.80125 | R104: 4193271.189 | S104: 4193271.189 | T104: 87359.815 | U104: 87359.815 | V104: 4105911.374 | X104: 0 | Y104: 0 | Z104: 0 | AA104: 4149591.281
A105: Трансформаторная подстанция ТП 63 10/0,4-400кВА*2 | B105: 10/0,4 | C105: 600 | D105: 600 | E105: 4241739.65 | F105: 84834.84 | G105: 4156904.81 | I105: 21208.71 | L105: 4241739.65 | M105: 106043.55 | N105: 4135696.1 | O105: 63626.09475 | P105: 84834.80475 | Q105: 84834.80475 | R105: 4072070.005 | S105: 4072070.005 | T105: 84834.793 | U105: 84834.793 | V105: 3987235.212 | X105: 0 | Y105: 0 | Z105: 0 | AA105: 4029652.609
A106: Трансформаторная подстанция ТП 91 10/0,4-250кВА | B106: 10/0,4 | C106: 480 | D106: 480 | E106: 1702885.57 | F106: 42572.16 | G106: 1660313.41 | I106: 10643.04 | L106: 1702885.57 | M106: 53215.2 | N106: 1649670.37 | O106: 31929.10444 | P106: 42572.14444 | Q106: 42572.14444 | R106: 1617741.266 | S106: 1617741.266 | T106: 42572.13925 | U106: 42572.13925 | V106: 1575169.126 | X106: 0 | Y106: 0 | Z106: 0 | AA106: 1596455.196
A107: Трансформаторная подстанция ТП 10 10/0,4-100кВА | B107: 10/0,4 | C107: 600 | D107: 600 | E107: 1708942.34 | F107: 34178.88 | G107: 1674763.46 | I107: 8544.72 | L107: 1708942.34 | M107: 42723.6 | N107: 1666218.74 | O107: 25634.1351 | P107: 34178.8551 | Q107: 34178.8551 | R107: 1640584.605 | S107: 1640584.605 | T107: 34178.8468 | U107: 34178.8468 | V107: 1606405.758 | X107: 0 | Y107: 0 | Z107: 0 | AA107: 1623495.181
A108: Трансформаторная подстанция ТП 11 10/0,4-250кВА | B108: 10/0,4 | C108: 600 | D108: 600 | E108: 1339231.89 | F108: 26784.6 | G108: 1312447.29 | I108: 6696.15 | L108: 1339231.89 | M108: 33480.75 | N108: 1305751.14 | O108: 20088.47835 | P108: 26784.62835 | Q108: 26784.62835 | R108: 1285662.662 | S108: 1285662.662 | T108: 26784.6378 | U108: 26784.6378 | V108: 1258878.024 | X108: 0 | Y108: 0 | Z108: 0 | AA108: 1272270.343
A109: Трансформаторная подстанция ТП 37 10/0,4-250кВА*2 | B109: 10/0,4 | C109: 600 | D109: 600 | E109: 2315283.12 | F109: 46305.72 | G109: 2268977.4 | I109: 11576.43 | L109: 2315283.12 | M109: 57882.15 | N109: 2257400.97 | O109: 34729.2468 | P109: 46305.6768 | Q109: 46305.6768 | R109: 2222671.723 | S109: 2222671.723 | T109: 46305.6624 | U109: 46305.6624 | V109: 2176366.061 | X109: 0 | Y109: 0 | Z109: 0 | AA109: 2199518.892
A110: Подстанция ТП-13 | B110: 10/0,4 | C110: 600 | D110: 600 | E110: 660254.32 | F110: 13205.04 | G110: 647049.28 | I110: 3301.26 | L110: 660254.32 | M110: 16506.3 | N110: 643748.02 | O110: 9903.8148 | P110: 13205.0748 | Q110: 13205.0748 | R110: 633844.2052 | S110: 633844.2052 | T110: 13205.0864 | U110: 13205.0864 | V110: 620639.1188 | X110: 0 | Y110: 0 | Z110: 0 | AA110: 627241.662
A111: Подстанция ТП-2 | B111: 10/0,4 | C111: 600 | D111: 600 | E111: 875872.97 | F111: 17517.48 | G111: 858355.49 | I111: 4379.37 | L111: 875872.97 | M111: 21896.85 | N111: 853976.12 | O111: 13138.09455 | P111: 17517.46455 | Q111: 17517.46455 | R111: 840838.0254 | S111: 840838.0254 | T111: 17517.4594 | U111: 17517.4594 | V111: 823320.566 | X111: 0 | Y111: 0 | Z111: 0 | AA111: 832079.2957
A112: КТП 40 ул. 1-я Воронцова | B112: 10/0,4 | C112: 480 | D112: 480 | E112: 2028474.33 | F112: 0 | G112: 2028474.33 | I112: 12677.97 | L112: 2028474.33 | M112: 12677.97 | N112: 2015796.36 | O112: 38033.89369 | P112: =I112+O112 -> 50711.86369 | Q112: 50711.86369 | R112: =IF((N112-O112)>0,(N112-O112),0) -> 1977762.466 | S112: 1977762.466 | T112: =IF(C112>0,IF(R112>L112/C112*12,(L112/C112*12),R112),0) -> 50711.85825 | U112: =IF(D112>0,IF(R112>L112/D112*12,(L112/D112*12),R112),0) -> 50711.85825 | V112: 1927050.608 | X112: 0 | Y112: 0 | Z112: 0 | AA112: 1952406.537
D113: 361 | O113: 0 | P113: 0 | Q113: 0 | R113: 0 | S113: 0 | T113: 0 | U113: 0 | V113: 0 | X113: =(R113+V113)/2*W113 -> 0 | Y113: 0 | Z113: 0 | AA113: 0
A114: Добавить
A115: Неамортизируемое имущество (Земельные участки)
O116: х | Q116: =IF(C116-D116=0,P116,E116/D116*12) -> 0 | R116: =G116 -> 0 | T116: х | U116: х | V116: =R116 -> 0 | X116: х | Y116: 0 | Z116: =IF(W116=1.9,(V116+R116)/2,0) -> 0 | AA116: 0
O117: х | Q117: 0 | R117: =G117 -> 0 | T117: х | U117: х | V117: =R117 -> 0 | X117: х | Y117: 0 | Z117: 0 | AA117: 0
O118: х | Q118: 0 | R118: =G118 -> 0 | T118: х | U118: х | V118: 0 | X118: х | Y118: 0 | Z118: 0 | AA118: 0
O119: х | Q119: 0 | R119: =G119 -> 0 | T119: х | U119: х | V119: 0 | X119: х | Y119: 0 | Z119: 0 | AA119: 0
A120: Добавить
A121: Итого | B121: x | C121: x | D121: x | E121: =SUM(E7:E119) -> 119414146.1 | F121: 4730181.95 | G121: 114683964.1 | H121: 0 | I121: 1570581.87 | J121: 0 | K121: 0 | L121: 119414146.1 | M121: 6300763.82 | N121: 113113382.2 | O121: =SUM(O8:O10)+SUM(O13:O15)+SUM(O18:O20)+SUM(O23:O25)+SUM(O28:O30)+SUM(O33:O75)+SUM(O78:O83)+SUM(O86:O88)+SUM(O91:O93)+SUM(O96:O113)+SUM(O116:O119) -> 4656570.561 | P121: 6227152.431 | Q121: 6063028.32 | R121: 108456811.7 | S121: 109059534.5 | T121: 6208760.747 | U121: 6063028.386 | V121: 102248050.9 | W121: х | X121: =SUM(X8:X10)+SUM(X13:X15)+SUM(X18:X20)+SUM(X23:X25)+SUM(X28:X30)+SUM(X33:X75)+SUM(X78:X83)+SUM(X86:X88)+SUM(X91:X93)+SUM(X96:X113)+SUM(X116:X119) -> 9959.934333 | Y121: =SUM(Y8:Y10)+SUM(Y13:Y15)+SUM(Y18:Y20)+SUM(Y23:Y25)+SUM(Y28:Y30)+SUM(Y33:Y75)+SUM(Y78:Y83)+SUM(Y86:Y88)+SUM(Y91:Y93)+SUM(Y96:Y113)+SUM(Y116:Y119) -> 0 | Z121: =SUM(Z8:Z10)+SUM(Z13:Z15)+SUM(Z18:Z20)+SUM(Z23:Z25)+SUM(Z28:Z30)+SUM(Z33:Z75)+SUM(Z78:Z83)+SUM(Z86:Z88)+SUM(Z91:Z93)+SUM(Z96:Z113)+SUM(Z116:Z119) -> 0 | AA121: =SUM(AA8:AA10)+SUM(AA13:AA15)+SUM(AA18:AA20)+SUM(AA23:AA25)+SUM(AA28:AA30)+SUM(AA33:AA75)+SUM(AA78:AA83)+SUM(AA86:AA88)+SUM(AA91:AA93)+SUM(AA96:AA113)+SUM(AA116:AA119) -> 105352431.3
A123: Руководитель организации | F123: ='Инф-я'!$C$17 -> Окунев Василий Михайлович

Sheet Справка по ОС
A2: Справка о наличии основных средств полностью самортизированным по бухгалтерскому учету, участвующих в передаче электрической энергии на 01.01.2017
A4: ='Инф-я'!C9 -> Общество с ограниченной ответственностью "Энергетик"
A7: Основное средство, Инвентарный номер | B7: Амортизационная группа | C7: Срок полезного использования, мес. | E7: Дата принятия объекта | G7: Первоначальная стоимость, тыс. руб. | H7: Амортизация в месяц | J7: Остаточная стоимость на 01.01.2015 | Q7: Амортизация 2018 год
C8: бух.учет | D8: Максимальный срок по группе | E8: Порядковый номер месяца | F8: год | H8: бух.учет | I8: Максимальный срок по группе | Q8: По данным организации | R8: По данным экспертов
A9: 1 | B9: =+A9+1 -> 2 | C9: 3 | D9: 4 | E9: 5 | F9: 6 | G9: 7 | H9: 8 | I9: 9 | J9: 10 | K9: 11 | L9: 12 | M9: 13 | N9: 14 | O9: 15 | P9: 16 | Q9: 17 | R9: 18
H10: =IF(C10=0,0,G10/C10) -> 0 | I10: =IF(D10=0,0,G10/D10) -> 0 | J10: =G10-((2015-F10)*12-(12-(13-E10))-1)*H10 -> 0 | K10: =IF($D10>0,IF(J10>$I10*12,($I10*12),J10),0) -> 0 | L10: =IF((J10-K10)>0,(J10-K10),0) -> 0 | M10: =IF($D10>0,IF(L10>$I10*12,($I10*12),L10),0) -> 0 | N10: =IF((L10-M10)>0,(L10-M10),0) -> 0 | O10: =IF($D10>0,IF(N10>$I10*12,($I10*12),N10),0) -> 0 | P10: =IF((N10-O10)>0,(N10-O10),0) -> 0 | Q10: =IF($D10>0,IF(P10>$I10*12,($I10*12),P10),0) -> 0
H11: =IF(C11=0,0,G11/C11) -> 0 | I11: =IF(D11=0,0,G11/D11) -> 0 | J11: =G11-((2015-F11)*12-(12-(13-E11))-1)*H11 -> 0 | K11: =IF($D11>0,IF(J11>$I11*12,($I11*12),J11),0) -> 0 | L11: =IF((J11-K11)>0,(J11-K11),0) -> 0 | M11: =IF($D11>0,IF(L11>$I11*12,($I11*12),L11),0) -> 0 | N11: =IF((L11-M11)>0,(L11-M11),0) -> 0 | O11: =IF($D11>0,IF(N11>$I11*12,($I11*12),N11),0) -> 0 | P11: =IF((N11-O11)>0,(N11-O11),0) -> 0 | Q11: =IF($D11>0,IF(P11>$I11*12,($I11*12),P11),0) -> 0
H12: 0 | I12: 0 | J12: 0 | K12: 0 | L12: 0 | M12: 0 | N12: 0 | O12: 0 | P12: 0 | Q12: 0
H13: 0 | I13: 0 | J13: 0 | K13: 0 | L13: 0 | M13: 0 | N13: 0 | O13: 0 | P13: 0 | Q13: 0
H14: 0 | I14: 0 | J14: 0 | K14: 0 | L14: 0 | M14: 0 | N14: 0 | O14: 0 | P14: 0 | Q14: 0
H15: 0 | I15: 0 | J15: 0 | K15: 0 | L15: 0 | M15: 0 | N15: 0 | O15: 0 | P15: 0 | Q15: 0
H16: 0 | I16: 0 | J16: 0 | K16: 0 | L16: 0 | M16: 0 | N16: 0 | O16: 0 | P16: 0 | Q16: 0
H17: 0 | I17: 0 | J17: 0 | K17: 0 | L17: 0 | M17: 0 | N17: 0 | O17: 0 | P17: 0 | Q17: 0
H18: 0 | I18: 0 | J18: 0 | K18: 0 | L18: 0 | M18: 0 | N18: 0 | O18: 0 | P18: 0 | Q18: 0
H19: 0 | I19: 0 | J19: 0 | K19: 0 | L19: 0 | M19: 0 | N19: 0 | O19: 0 | P19: 0 | Q19: 0
A20: Добавить
A21: Всего по основным средствам полностью самортизированных по бухгалтерскому учету, участвующих в передаче электрической энергии | L21: х | M21: х | N21: х | O21: х | P21: х | Q21: =SUM(Q10:Q20) -> 0 | R21: =SUM(R10:R20) -> 0
A23: Руководитель организации | D23: ='Инф-я'!C17 -> Окунев Василий Михайлович

Sheet Ввод выбытие ОС
A2: Справка о вводе основных средств в 2017 году (с 01.04.2017 г.), участвующих в передаче электрической энергии
A4: ='Инф-я'!C9 -> Общество с ограниченной ответственностью "Энергетик"
B6: По данным организации | E6: По данным экспертов
A7: Наименование вводимых объектов основных фондов | B7: Стоимость объекта (тыс. руб.) | C7: Норма амортизационных отчислений, % | D7: Корректировка годовой суммы амортизационных отчислений по вводимым объектам (тыс. руб.) | E7: Стоимость объекта (тыс. руб.) | F7: Норма амортизационных отчислений, % | G7: Корректировка годовой суммы амортизационных отчислений по вводимым объектам (тыс. руб.)
A8: 1 | B8: 2 | C8: 3 | D8: 4 | E8: 5 | F8: 6 | G8: 7
A9: Реконструкция ВЛ 10 кВ от ТП 27 до ТП 9 (фидер 1001) | B9: 1187.71 | C9: 0.0667 | D9: =B9*C9 -> 79.220257 | G9: =E9*F9 -> 0
A10: Строительство ВЛ 10 кВ от ТП 27 до ТП 28 (фидер 1001) | B10: 1153.67 | C10: 0.0667 | D10: 76.949789 | G10: 0
A11: Строительство ВЛ 10 кВ от ТП 45 до ТП 28 (фидер 1001) | B11: 2385.17 | C11: 0.0667 | D11: 159.090839 | G11: 0
A12: Добавить
A13: Всего по вводимым объектам в 2017 году (с 01.04.2017 г.) | B13: =SUM(B9:B11) -> 4726.55 | C13: х | D13: =SUM(D9:D11) -> 315.260885 | E13: =SUM(E9:E11) -> 0 | F13: х | G13: =SUM(G9:G11) -> 0
A16: Справка о выбытии неполностью самортизированных основных средств в 2017 году (с 01.04.2017 г.), участвующих в передаче электрической энергии
B18: По данным организации | E18: По данным экспертов
A19: Наименование выводимых объектов основных фондов | B19: Стоимость объекта (тыс. руб.) | C19: Норма амортизационных отчислений | D19: Корректировка годовой суммы амортизационных отчислений по выбывающим объектам* (тыс. руб.) | E19: Стоимость объекта (тыс. руб.) | F19: Норма амортизационных отчислений | G19: Корректировка годовой суммы амортизационных отчислений по выбывающим объектам* (тыс. руб.)
A20: 1 | B20: 2 | C20: 3 | D20: 4 | E20: 5 | F20: 6 | G20: 7
D21: =B21*C21 -> 0 | G21: =E21*F21 -> 0
D22: =B22*C22 -> 0 | G22: =E22*F22 -> 0
D23: 0 | G23: 0
A24: Добавить
A25: Всего по выбывающим объектам в 2017 году (с 01.04.2017 г.) | B25: =SUM(B21:B23) -> 0 | C25: х | D25: =SUM(D21:D23) -> 0 | E25: =SUM(E21:E23) -> 0 | F25: х | G25: =SUM(G21:G23) -> 0
A27: Руководитель организации | D27: ='Инф-я'!C17 -> Окунев Василий Михайлович
A29: В справке о выбытии основных средств указывается информация о выбывающих объектах (продажа, ликвидация)

Sheet Свод по амортизации
A3: Сводный расчет амортизационных отчислений на восстановление основных производственных фондов, участвующих в передаче электрической энергии
A5: ='Инф-я'!C9 -> Общество с ограниченной ответственностью "Энергетик"
G6: тыс. руб.
A7: Наименование | B7: 2016 год | D7: 2017 год | F7: 2018 год | H7: 2019 год
B8: Утверждено | C8: Факт | D8: Утверждено | E8: Ожидаемые | F8: По данным организации | G8: По данным экспертов
A9: 1 | B9: 2 | C9: 3 | D9: 4 | E9: 5 | F9: 6 | G9: 7 | H9: 8
A10: Амортизационные отчисления на 2017 год по основным средствам по состоянию на 01.04.2017 г. | B10: х | C10: х | D10: х | E10: х | F10: ='Расчет аморт. max срок '!U121/1000 -> 6063.028386
A11: Корректировка годовой суммы амортизационных отчислений, в том числе: | B11: х | C11: х | D11: х | E11: х | F11: =F12-F13+F14 -> 315.260885 | G11: =G12-G13+G14 -> 0 | H11: 0
A12: по вводимым объектам основных средств после 01.04.2017 г. (+) | B12: х | C12: х | D12: х | E12: х | F12: ='Ввод выбытие ОС '!D13 -> 315.260885 | G12: ='Ввод выбытие ОС '!G13 -> 0
A13: по выбывающим объектам основных средств после 01.04.2017 г.(-) | B13: х | C13: х | D13: х | E13: х | F13: ='Ввод выбытие ОС '!D25 -> 0 | G13: ='Ввод выбытие ОС '!G25 -> 0
A14: по объектам основных средств полностью самортизированных по бухгалтерскому учету | F14: ='Справка по ОС'!Q21 -> 0 | G14: ='Справка по ОС'!R21 -> 0
A15: Годовая сумма амортизационных отчислений | B15: 4548.332783 | C15: 4730.18195 | D15: 4681.141312 | E15: 6227.1524 | F15: =F10+F11 -> 6378.289271 | G15: =G10+G11 -> 0 | H15: =H10+H11 -> 0
A16: в т.ч. по уровням напряжения: ВН | B16: х | C16: х | E16: х
A17: СН1 | B17: х | C17: х | E17: х
A18: СН2 | B18: х | C18: х | E18: х
A19: НН | B19: х | C19: х | E19: х
A21: Руководитель организации | D21: ='Инф-я'!C17 -> Окунев Василий Михайлович

Sheet Отчислен во внебюдж фонды
B2: Расчет отчислений во внебюджетные фонды
B4: ='Инф-я'!C9 -> Общество с ограниченной ответственностью "Энергетик"
H5: тыс. руб.
A6: № п/п | B6: Наименование | C6: Ед.изм. | D6: 2016 год | F6: 2017 год | H6: 2018 год | J6: 2019 год | K6: 2016 год
D7: Утверждено | E7: Факт | F7: Утверждено | G7: Ожидаемые | H7: По данным организации | I7: По данным экспертов | K7: Факт по данным экспертов
A8: 1 | B8: 2 | C8: 3 | D8: 4 | E8: 5 | F8: 6 | G8: 7 | H8: 8 | I8: 9 | J8: 10 | K8: 11
A9: 1. | B9: Сумма выплат и иных вознаграждений, начисленных в пользу физических лиц, в соответствии со статьей 420 НК РФ | C9: тыс. руб. | D9: х | E9: х | F9: 11759.00619 | G9: 12088.252 | H9: =H10+H11 -> 12845.47092 | I9: =H10+H11 -> 12845.47092 | J9: 2910.354031 | K9: х
A10: 1.1. | B10: Расходы из фонда оплаты труда | C10: тыс. руб. | D10: х | E10: х | F10: 11759.00619 | G10: 12088.252 | H10: ='Подконтрольные расходы'!E17 -> 12485.15129 | I10: ='Подконтрольные расходы'!F17 -> 2828.717657 | J10: ='Подконтрольные расходы'!G17 -> 2800.43048 | K10: х
A11: 1.2. | B11: Расходы по коллективным договорам | C11: тыс. руб. | D11: х | E11: х | F11: 329.8439377 | H11: ='Подконтрольные расходы'!E30 -> 360.3196258 | I11: ='Подконтрольные расходы'!F30 -> 81.63637458 | J11: ='Подконтрольные расходы'!G30 -> 80.82001084 | K11: х
A12: 2. | B12: Суммы, не подлежащие обложению страховыми взносами, в соответствии со статьей 422 НК РФ | C12: тыс. руб. | D12: х | E12: х | F12: 104.9171414 | H12: =F12*'Подконтрольные расходы'!E15 -> 114.6108835 | I12: =F12*'Подконтрольные расходы'!F15 -> 25.96699248 | J12: =I12*'Подконтрольные расходы'!G15 -> 25.70732256 | K12: х
A13: 3. | B13: Тарифы страховых взносов во внебюджетные фонды: | C13: % | D13: х | E13: х | F13: х | G13: х | H13: х | I13: х | J13: х | K13: х
A14: 3.1. | B14: ПФР | C14: % | D14: х | E14: х | F14: 0.22 | G14: 0.22 | H14: 0.22 | I14: 0.22 | J14: 0.22 | K14: х
A15: 3.2. | B15: ФФОМС | C15: % | D15: х | E15: х | F15: 0.051 | G15: 0.051 | H15: 0.051 | I15: 0.051 | J15: 0.051 | K15: х
A16: 3.3. | B16: ФСС | C16: % | D16: х | E16: х | F16: 0.029 | G16: 0.029 | H16: 0.029 | I16: 0.029 | J16: 0.029 | K16: х
A17: 3.4. | B17: на обязательное страхование от несчастных случаев | C17: % | D17: х | E17: х | F17: 0.004 | G17: 0.004 | H17: 0.004 | K17: х
A18: 4. | B18: Отчисления во внебюджетные фонды | C18: тыс. руб. | D18: 3315.861894 | E18: =SUM(E19:E22) -> 3671.31029 | F18: 3542.84307 | G18: =G19+G20+G21+G22 -> 3674.828608 | H18: =H19+H20+H21+H22 -> 3870.18145 | I18: =I19+I20+I21+I22 -> 3845.851178 | J18: =J19+J20+J21+J22 -> 865.3940126
A19: 4.1. | B19: ПФР | C19: тыс. руб. | D19: х | E19: 2613.46313 | F19: 2563.89959 | G19: =(G9-G12)*G14 -> 2659.41544 | H19: =(H9-H12)*H14 -> 2800.789208 | I19: =(I9-I12)*I14 -> 2820.290864 | J19: =(J9-J12)*J14 -> 634.6222759
A20: 4.2. | B20: ФФОМС | C20: тыс. руб. | D20: х | E20: 605.84829 | F20: 594.3585413 | G20: =(G9-G12)*G15 -> 616.500852 | H20: =(H9-H12)*H15 -> 649.2738618 | I20: =(I9-I12)*I15 -> 653.7947002 | J20: =(J9-J12)*J15 -> 147.1169821
A21: 4.3. | B21: ФСС | C21: тыс. руб. | D21: х | E21: 404.48135 | F21: 337.9685823 | G21: =(G9-G12)*G16 -> 350.559308 | H21: =(H9-H12)*H16 -> 369.194941 | I21: =(I9-I12)*I16 -> 371.7656138 | J21: =(J9-J12)*J16 -> 83.65475455
A22: 4.4. | B22: на обязательное страхование от несчастных случаев | C22: тыс. руб. | D22: х | E22: 47.51752 | F22: 46.61635618 | G22: =(G9-G12)*G17 -> 48.353008 | H22: =(H9-H12)*H17 -> 50.92344014 | I22: =(I9-I12)*I17 -> 0 | J22: =(J9-J12)*J17 -> 0
B24: Руководитель организации | E24: ='Инф-я'!C17 -> Окунев Василий Михайлович
A31: № п./п. | B31: Показатели | C31: По расчету Общества
A32: 1 | B32: 2 | C32: 3
A33: 1. | B33: Расходы на оплату труда, включаемые в базу для начисления страховых взносов | C33: =H9 -> 12845.47092
A34: 2. | B34: Выплаты работникам по коллективному договору - всего. в т. ч. | C34: 0
A35: 3. | B35: суммы, не подлежащие обложению страховыми взносами в соответствии со ст. 9 закона от 24.07.2009 г. № 212-ФЗ | C35: 0
A36: 4. | B36: Итого база страховых взносов (п.1+п.2-п.3) | C36: =C33+C34 -> 12845.47092
A37: 5. | B37: Отчисления во внебюджетные фонды | C37: =C36*C38/100 -> 3905.023159
A38: 6. | B38: Процент отчислений (%) | C38: 30.4

Sheet Расходы рег. орг-ий
A2: Расходы на оплату услуг организаций, осуществляющих регулируемые виды деятельности
A4: ='Инф-я'!C9 -> Общество с ограниченной ответственностью "Энергетик"
F6: тыс. руб.
A7: Наименование | B7: 2016 год | D7: 2017 год | F7: 2018 год | H7: 2019 год | I7: 2016 год
B8: Утверждено | C8: Факт | D8: Утверждено | E8: Ожидаемые | F8: По данным организации | G8: По данным экспертов | I8: Факт по данным экспертов
A9: 1 | B9: 2 | C9: 3 | D9: 4 | E9: 5 | F9: 6 | G9: 7 | H9: 8 | I9: 9
A10: Тепловая энергия | B10: 142.9766284 | C10: =C11 -> 200.89005 | D10: 169.3951971 | E10: =SUM(E11:E12) -> 211.14 | F10: =SUM(F11:F12) -> 221.48 | G10: 0 | H10: 0 | I10: 0
A11: договор с _____ от_____№ __ на_________ | B11: х | C11: 200.89005 | D11: х | E11: 211.14 | F11: 221.48
A12: договор с _____ от_____№ __ на_________ | B12: х | D12: х
A13: Добавить
A14: Водоснабжение и канализация | B14: 11.36186077 | C14: =C15 -> 25.25043 | D14: 22.67267163 | E14: =SUM(E15:E16) -> 26.54 | F14: 31.44 | G14: 0 | H14: 0 | I14: 0
A15: договор с _____ от_____№ __ на_________ | B15: х | C15: 25.25043 | D15: х | E15: 26.54 | F15: 31.44
A16: договор с _____ от_____№ __ на_________ | B16: х | D16: х
A17: Добавить
A18: Прочие услуги по регулируемым тарифам (вывоз ТБО) | B18: 13.2036116 | C18: =C19+C20 -> 12.46788 | D18: 13.52076757 | E18: =SUM(E19:E20) -> 13.11 | F18: =SUM(F19:F20) -> 13.79 | G18: =SUM(G19:G20) -> 0 | H18: =SUM(H19:H20) -> 0 | I18: =SUM(I19:I20) -> 0
A19: договор с _____ от_____№ __ на_________ | B19: х | C19: 12.46788 | D19: х | E19: 13.11 | F19: 13.79
A20: договор с _____ от_____№ __ на_________ | B20: х | D20: х
A21: Добавить
A22: Итого | B22: =B10+B14+B18 -> 167.5421008 | C22: 238.60836 | D22: 205.5886363 | E22: 250.79 | F22: 266.71 | G22: =G10+G14+G18 -> 0 | H22: =H10+H14+H18 -> 0 | I22: =I10+I14+I18 -> 0
A24: Руководитель организации | D24: ='Инф-я'!C17 -> Окунев Василий Михайлович

Sheet Аренда имущества
A2: Расходы по аренде имущества, в части амортизации и налогов, относимых к арендуемому имуществу
A4: ='Инф-я'!C9 -> Общество с ограниченной ответственностью "Энергетик"
M5: тыс. руб.
A6: Наименование | B6: 2016 год | D6: 2017 год | F6: 2018 год | V6: 2019 год | W6: 2016 год Факт по данным экспертов
F7: По данным организации | N7: По расчету экспертов
F8: Сумма арендной платы для включения в тариф | G8: Стоимость арендной платы по договору | H8: Стоимость арендной платы расчитанной в соответствии с требованиями п. 28 Основ ценообразования | N8: Сумма арендной платы для включения в тариф | O8: Стоимость арендной платы по договору | P8: Стоимость арендной платы расчитанной в соответствии с требованиями п. 28 Основ ценообразования | V8: Сумма арендной платы для включения в тариф
B9: Утверждено | C9: Факт | D9: Утверждено | E9: Ожидаемые | H9: Всего | I9: амортизационные отчисления | J9: налог на имущество | K9: транспортный налог | L9: плата за землю | M9: иные обязательные платежи предусмотренные законодательством, связанные с арендуемым имуществом | P9: Всего | Q9: амортизационные отчисления | R9: налог на имущество | S9: транспортный налог | T9: плата за землю | U9: иные обязательные платежи предусмотренные законодательством, связанные с арендуемым имуществом
A10: 1 | B10: 2 | C10: 3 | D10: 4 | E10: 5 | F10: 6 | G10: 7 | H10: 8 | I10: 9 | J10: 10 | K10: 11 | L10: 12 | M10: 13 | N10: 14 | O10: 15 | P10: 16 | Q10: 17 | R10: 18 | S10: 19 | T10: 20 | U10: 21 | V10: 22 | W10: 23
A11: Аренда объектов электросетевого хозяйства | B11: =SUM(B12:B14) -> 2976 | C11: =SUM(C12:C14) -> 2976 | D11: 2976 | E11: 2976 | F11: 2976 | G11: 2976 | H11: 2976 | I11: 2976 | J11: 0 | K11: 0 | L11: 0 | M11: 0 | N11: =SUM(N12:N14) -> 0 | O11: =SUM(O12:O14) -> 0 | P11: 0 | Q11: 0 | R11: 0 | S11: 0 | T11: 0 | U11: 0 | V11: =SUM(V12:V14) -> 0 | W11: =SUM(W12:W14) -> 0
A12: договор с ООО "Техстройэнерго" от 30.12.2015 № 2-16 | B12: 2976 | C12: 2976 | D12: 2976 | E12: 2976 | F12: =MIN(G12,H12) -> 2976 | G12: 2976 | H12: =I12+J12+K12+L12+M12 -> 2976 | I12: 2976 | N12: =MIN(O12,P12) -> 0 | P12: =Q12+R12+S12+T12+U12 -> 0
A13: договор с _____ от_____№ __ | F13: =MIN(G13,H13) -> 0 | H13: =I13+J13+K13+L13+M13 -> 0 | N13: =MIN(O13,P13) -> 0 | P13: =Q13+R13+S13+T13+U13 -> 0
A14: договор с _____ от_____№ __ | F14: 0 | H14: 0 | N14: 0 | P14: 0
A15: Добавить
A16: Аренда зданий, соружений, помещений, основных средств | B16: =SUM(B17:B20) -> 228.48 | C16: =SUM(C17:C20) -> 228.48 | D16: 228.48 | E16: 228.48 | F16: 228.48 | G16: 228.48 | H16: 228.48 | I16: 228.48 | J16: 0 | K16: 0 | L16: 0 | M16: 0 | N16: =SUM(N17:N20) -> 0 | O16: =SUM(O17:O20) -> 0 | P16: 0 | Q16: 0 | R16: 0 | S16: 0 | T16: 0 | U16: 0 | V16: =SUM(V17:V20) -> 0 | W16: =SUM(W17:W20) -> 0
A17: договор с ООО "Техстройэнерго" от 30.12.2015г. № 3-16 | B17: 228.48 | C17: 228.48 | D17: 228.48 | E17: 228.48 | F17: =MIN(G17,H17) -> 228.48 | G17: 228.48 | H17: =I17+J17+K17+L17+M17 -> 228.48 | I17: 228.48 | N17: =MIN(O17,P17) -> 0 | P17: =Q17+R17+S17+T17+U17 -> 0
A18: договор с _____ от_____№ __ | F18: =MIN(G18,H18) -> 0 | H18: =I18+J18+K18+L18+M18 -> 0 | N18: 0 | P18: =Q18+R18+S18+T18+U18 -> 0
A19: договор с _____ от_____№ __ | F19: 0 | H19: 0 | N19: 0 | P19: 0
A20: договор с _____ от_____№ __ | F20: 0 | H20: 0 | N20: 0 | P20: 0
A21: Добавить
A22: Аренда транспортных средств | B22: =SUM(B23:B33) -> 1405.3648 | C22: 1646.01956 | D22: 1639.8 | E22: 1686.01956 | F22: 1686.0172 | G22: 1686.02 | H22: 1686.01956 | I22: 1686.01956 | J22: 0 | K22: 0 | L22: 0 | M22: 0 | N22: 0 | O22: 0 | P22: 0 | Q22: 0 | R22: 0 | S22: 0 | T22: 0 | U22: 0 | V22: 0 | W22: 0
A23: договор с ООО "Техстройэнерго" от 01.09.2015г. № 8А-15 на аренду УАЗ-3909 (VIN XTT39090030476836) | B23: 1405.3648 | C23: 63.5772 | D23: 1639.8 | E23: 63.5772 | F23: =MIN(G23,H23) -> 63.5772 | G23: 63.58 | H23: =I23+J23+K23+L23+M23 -> 63.5772 | I23: 63.5772 | N23: =MIN(O23,P23) -> 0 | P23: =Q23+R23+S23+T23+U23 -> 0
A24: договор с ООО "Техстройэнерго" от 01.09.2015г. № 6А-15 на аренду ЗИЛ-130 Г (VIN отсутствует; год выпуска 1985г.; модель двигателя 508.400; двигатель № 292036) | C24: 240 | E24: 240 | F24: =MIN(G24,H24) -> 240 | G24: 240 | H24: =I24+J24+K24+L24+M24 -> 240 | I24: 240
A25: договор с ООО "Техстройэнерго" от 01.09.2015г. № 1А-15 на аренду ГАЗ-6612 (VIN XTH006612P0726008) | C25: 240 | E25: 240 | F25: 240 | G25: 240 | H25: 240 | I25: 240
A26: договор с ООО "Техстройэнерго" от 01.09.2015г. № 4А-15 на аренду АПТ-17Э (VIN XTH330700R1536123) | C26: 240 | E26: 240 | F26: 240 | G26: 240 | H26: 240 | I26: 240
A27: договор с ООО "Техстройэнерго" от 01.09.2015г. № 5А-15 на аренду ГАЗ-5312 (VIN XTH531200M1403186) | C27: 120 | E27: 120 | F27: 120 | G27: 120 | H27: 120 | I27: 120
A28: договор с ООО "Техстройэнерго" от 01.09.2015г. № 7А-15 на аренду ВАЗ-2105 (VIN ХТА210540А2178050) | C28: 38.44236 | E28: 38.44236 | F28: 38.44 | G28: 38.44 | H28: 38.44236 | I28: 38.44236
A29: договор с ООО "Техстройэнерго" от 01.09.2015г. № 3А-15 на аренду ВАЗ-11193 (VIN XTA11193070022812) | C29: 84 | E29: 84 | F29: 84 | G29: 84 | H29: 84 | I29: 84
A30: договор с ООО "Техстройэнерго" от 01.09.2015г. № 2А-15 на аренду ЗИЛ-131 (VIN отсутствует; год выпуска 1993г.; модель двигателя отсутствует; двигатель № 146550) | C30: 420 | E30: 420 | F30: 420 | G30: 420 | H30: 420 | I30: 420
A31: договор с ООО "Техстройэнерго" от 01.03.2016г. № 1-16 на аренду ТА-18 (VIN X89483713FCAH3011) | C31: 200 | E31: 240 | F31: 240 | G31: 240 | H31: 240 | I31: 240
A34: Добавить
A35: Лизинг | B35: =SUM(B36:B40) -> 0 | C35: =SUM(C36:C40) -> 0 | D35: 0 | E35: 0 | F35: 0 | G35: х | H35: х | I35: х | J35: х | K35: х | L35: х | M35: х | N35: =SUM(N36:N40) -> 0 | O35: х | P35: х | Q35: х | R35: х | S35: х | T35: х | U35: х | V35: =SUM(V36:V40) -> 0 | W35: =SUM(W36:W40) -> 0
A36: объектов электросетевого хозяйства договор с _____ от_____№ __ | G36: х | H36: х | I36: х | J36: х | K36: х | L36: х | M36: х | O36: х | P36: х | Q36: х | R36: х | S36: х | T36: х | U36: х
A37: иного имущества договор с _____ от_____№ __ | G37: х | H37: х | I37: х | J37: х | K37: х | L37: х | M37: х | O37: х | P37: х | Q37: х | R37: х | S37: х | T37: х | U37: х
A38: договор с _____ от_____№ __ | G38: х | H38: х | I38: х | J38: х | K38: х | L38: х | M38: х | O38: х | P38: х | Q38: х | R38: х | S38: х | T38: х | U38: х
A39: договор с _____ от_____№ __ | G39: х | H39: х | I39: х | J39: х | K39: х | L39: х | M39: х | O39: х | P39: х | Q39: х | R39: х | S39: х | T39: х | U39: х
A40: договор с _____ от_____№ __ | G40: х | H40: х | I40: х | J40: х | K40: х | L40: х | M40: х | O40: х | P40: х | Q40: х | R40: х | S40: х | T40: х | U40: х
A41: Добавить
A42: ИТОГО расходы по аренде имущества, всего в том числе | B42: =B11+B16+B22+B35 -> 4609.8448 | C42: =C11+C16+C22+C35 -> 4850.49956 | D42: =D11+D16+D22+D35 -> 4844.28 | E42: =E11+E16+E22+E35 -> 4890.49956 | F42: =F11+F16+F22+F35 -> 4890.4972 | G42: =G11+G16+G22 -> 4890.5 | H42: =H11+H16+H22 -> 4890.49956 | I42: 4890.49956 | J42: 0 | K42: 0 | L42: 0 | M42: 0 | N42: =N11+N16+N22+N35 -> 0 | O42: =O11+O16+O22 -> 0 | P42: =P11+P16+P22 -> 0 | Q42: 0 | R42: 0 | S42: 0 | T42: 0 | U42: 0 | V42: =V11+V16+V22+V35 -> 0 | W42: =W11+W16+W22+W35 -> 0
A43: в т.ч. по уровням напряжения: ВН | B43: х | C43: х | E43: х | G43: х | H43: х | I43: х | J43: х | K43: х | L43: х | M43: х | O43: х | P43: х | Q43: х | R43: х | S43: х | T43: х | U43: х
A44: СН1 | B44: х | C44: х | E44: х | G44: х | H44: х | I44: х | J44: х | K44: х | L44: х | M44: х | O44: х | P44: х | Q44: х | R44: х | S44: х | T44: х | U44: х
A45: СН2 | B45: х | C45: х | E45: х | G45: х | H45: х | I45: х | J45: х | K45: х | L45: х | M45: х | O45: х | P45: х | Q45: х | R45: х | S45: х | T45: х | U45: х
A46: НН | B46: х | C46: х | E46: х | G46: х | H46: х | I46: х | J46: х | K46: х | L46: х | M46: х | O46: х | P46: х | Q46: х | R46: х | S46: х | T46: х | U46: х
A47: Для проверки прибыли на капитальные вложения (аренда и лизинг объектов электросетевого хозяйства) | B47: =B11+B36 -> 2976 | C47: =C11+C36 -> 2976 | D47: =D11+D36 -> 2976 | E47: =E11+E36 -> 2976 | F47: =F11+F36 -> 2976 | G47: х | H47: х | I47: х | J47: х | K47: х | L47: х | M47: х | N47: =N11+N36 -> 0 | O47: х | P47: х | Q47: х | R47: х | S47: х | T47: х | U47: х | V47: =V11+V36 -> 0 | W47: =W11+W36 -> 0
A49: Руководитель организации | D49: ='Инф-я'!$C$17 -> Окунев Василий Михайлович

Sheet Плата за землю
A2: Плата за землю
A4: ='Инф-я'!C9 -> Общество с ограниченной ответственностью "Энергетик"
G5: тыс. руб.
A6: Наименование | B6: 2016 год | D6: 2017 год | F6: 2018 год | H6: 2019 год | I6: 2016 год
B7: Утверждено | C7: Факт | D7: Утверждено | E7: Ожидаемые | F7: По данным организации | G7: По данным экспертов | I7: Факт по данным экспертов
A8: 1 | B8: 2 | C8: 3 | D8: 4 | E8: 5 | F8: 6 | G8: 7 | H8: 8 | I8: 9
A9: Земельный налог
A11: Арендная плата за землю | B11: 191.9820752 | C11: =SUM(C12:C14) -> 342.03947 | D11: 200.4437656 | E11: =SUM(E12:E14) -> 334.84728 | F11: =SUM(F12:F14) -> 401.82 | G11: =SUM(G12:G14) -> 0 | H11: =SUM(H12:H14) -> 0 | I11: =SUM(I12:I14) -> 0
A12: договор № 09/2017 от 22.03.17 на 2017г. | B12: x | C12: 1.30986 | D12: x | E12: 0.18011 | F12: 0.22
A13: договор № 10/2017 от 22.03.17 на 2017г. | B13: x | C13: 340.72961 | D13: x | E13: 334.66717 | F13: 401.6
A14: договор № ___ от ____ | B14: x | D14: x
A15: Добавить
A16: Всего плата за землю | B16: =B9+B11 -> 191.9820752 | C16: 342.03947 | D16: 200.4437656 | E16: 334.84728 | F16: 401.82 | G16: 0 | H16: 0 | I16: 0
A18: Руководитель организации | D18: ='Инф-я'!$C$17 -> Окунев Василий Михайлович

Sheet Транспортный налог
A2: Расчет транспортного налога
A4: ='Инф-я'!C9 -> Общество с ограниченной ответственностью "Энергетик"
I5: тыс. руб.
A6: Объект налогообложения (вид и марка транспортного средства) | B6: Налоговая база, (л.с.) | C6: Налоговая ставка, руб. | D6: 2016 год | F6: 2017 год | H6: 2018 год | L6: 2019 год | M6: 2016 год
H7: По расчету организации | J7: По расчету экспертов | M7: Факт по данным экспертов
D8: Утверждено | E8: Факт | F8: Утверждено | G8: Ожидаемые | H8: Коэф. использ. | I8: Годовая сумма налога, тыс.руб. | J8: Коэф. использ. | K8: Годовая сумма налога, тыс. руб. | L8: Годовая сумма налога, тыс. руб.
A9: 1 | B9: 2 | C9: 3 | D9: 4 | E9: 5 | F9: 6 | G9: 7 | H9: 8 | I9: 9 | J9: 10 | K9: 11 | L9: 12 | M9: 13
D10: х | F10: х | I10: =B10*C10*H10/1000 -> 0 | K10: =B10*C10*J10/1000 -> 0
D11: х | F11: х | I11: =B11*C11*H11/1000 -> 0 | K11: =B11*C11*J11/1000 -> 0
D12: х | F12: х | I12: 0 | K12: 0
D13: х | F13: х | I13: 0 | K13: 0
A14: Добавить
A15: Транспортный налог всего, в т.ч. | B15: х | C15: х | E15: =SUM(E10:E13) -> 0 | G15: =SUM(G10:G13) -> 0 | H15: х | I15: =SUM(I10:I13) -> 0 | J15: х | K15: =SUM(K10:K13) -> 0 | L15: =SUM(L10:L13) -> 0 | M15: =SUM(M10:M13) -> 0
A16: относимый на услугу по передаче электрической энергии | B16: х | C16: х | H16: х | J16: х
A18: Руководитель организации | D18: ='Инф-я'!$C$17 -> Окунев Василий Михайлович

Sheet Налог на имущество
A2: Налог на имущество
A4: ='Инф-я'!C9 -> Общество с ограниченной ответственностью "Энергетик"
F5: тыс. руб.
A6: Наименование | B6: 2016 год | D6: 2017 год | F6: 2018 год | H6: 2019 год | I6: 2016 год
B7: Утверждено | C7: Факт | D7: Утверждено | E7: Ожидаемые | F7: По данным организации | G7: По данным экспертов | I7: Факт по данным экспертов
A8: 1 | B8: 2 | C8: 3 | D8: 4 | E8: 5 | F8: 6 | G8: 7 | H8: 8 | I8: 9
A9: Среднегодовая остаточная стоимость основных средств, всего, в том числе: | B9: х | C9: =C10+C11+C12 -> 0 | D9: х | E9: =E10+E11+E12 -> 0 | F9: =F10+F11+F12 -> 105352.4313 | G9: =G10+G11+G12 -> 0 | H9: =H10+H11+H12 -> 0 | I9: =I10+I11+I12 -> 0
A10: -облагаемых по ставке 2,2 % | B10: х | D10: х | F10: ='Расчет аморт. max срок '!Y121/1000 -> 0 | H10: =G10 -> 0
A11: -облагаемых по льготной ставке | B11: х | D11: х | F11: ='Расчет аморт. max срок '!Z121/1000 -> 0 | H11: =G11 -> 0
A12: - необлагаемых (движимое имущество, введенное с 01.01.2013 года | B12: х | D12: х | F12: ='Расчет аморт. max срок '!AA121/1000 -> 105352.4313 | H12: 0
A13: Льготная ставка налога | B13: х | C13: 0.013 | D13: х | E13: 0.016 | F13: 0.019 | G13: 0.019 | H13: 0.022 | I13: 0.013
A14: Налог на имущество | C14: =C10*2.2%+C11*C13 -> 0 | E14: =E10*2.2%+E11*E13 -> 0 | F14: 0 | G14: 0 | H14: =H10*2.2%+H11*H13 -> 0 | I14: =I10*2.2%+I11*I13 -> 0
A15: Налог на имущество, относимый на услугу по передаче электрической энергии
A16: в т.ч. по уровням напряжения: ВН | B16: x | C16: x | E16: x
A17: СН1 | B17: x | C17: x | E17: x
A18: СН11 | B18: x | C18: x | E18: x
A19: НН | B19: x | C19: x | E19: x
A21: Руководитель организации | D21: ='Инф-я'!$C$17 -> Окунев Василий Михайлович

Sheet Налог прим при УСНО
B2: Налог организаций, применяющих УСНО от деятельности по передаче и технологического присоединения
B4: ='Инф-я'!C9 -> Общество с ограниченной ответственностью "Энергетик"
F5: тыс. руб.
A6: № п/п | B6: Наименование | C6: 2016 год | E6: 2017 год | F6: 2018 год | H6: 2019 год | I6: 2016 год
C7: Утверждено | D7: Факт | E7: Утверждено | F7: По данным организации | G7: По данным экспертов | I7: Факт по данным экспертов
A8: 1 | B8: 2 | C8: 3 | D8: 4 | E8: 5 | F8: 6 | G8: 7 | H8: 8 | I8: 9
A9: 1 | B9: Налог организаций, применяющих УСНО всего по декларации | C9: х | E9: х
A10: Налог организаций, применяющих УСНО от деятельности по передаче и технологического присоединения | C10: 634.6 | D10: 991.895 | E10: 1038.262 | F10: 1428.336 | G10: =G9 -> 0 | H10: =H9 -> 0 | I10: 0
A11: в т.ч. по уровням напряжения: ВН | C11: х | D11: х
A12: СН1 | B12: СН1 | C12: х | D12: х
A13: СН11 | B13: СН11 | C13: х | D13: х
A14: НН | B14: НН | C14: х | D14: х
A16: Руководитель организации | D16: ='Инф-я'!$C$17 -> Окунев Василий Михайлович
A18: Постановлением Правительства РФ от 11 июня 2014 года № 542 внесены изменения в п. 20 Основ ценообразования в области регулируемых цен (тарифов) в электроэнергетике, утвержденных постановлением Правительства РФ от 29 декабря 2011 г. № 1178 в части определения налога на прибыль: «В необходимую валовую выручку включается величина налога на прибыль организаций по регулируемому виду деятельности, сформированная по данным бухгалтерского учета за последний истекший период. При установлении тарифов на услуги по передаче электрической энергии учитывается величина налога на прибыль организаций, которая относится по данным раздельного учета к деятельности по оказанию услуг по передаче электрической энергии и осуществлению технологического присоединения к электрическим сетям».

Sheet Негативное воздействие на ОС
B2: Расчет платы за негативное воздействие на окружающую среду
B3: ='Инф-я'!C9 -> Общество с ограниченной ответственностью "Энергетик"
G4: тыс. руб.
A5: № п./п. | B5: Наименование | C5: 2016 год | E5: 2017 год | G5: 2018 год | I5: 2019 год | J5: 2016 год
C6: Утверждено | D6: Факт | E6: Утверждено | F6: Ожидаемые | G6: По данным организации | H6: По данным экспертов | J6: Факт по данным экспертов
A7: 1 | B7: 2 | C7: 3 | D7: 4 | E7: 5 | F7: 6 | G7: 7 | H7: 8 | I7: 9 | J7: 10
A8: 1. | B8: Плата за выбросы загрязняющих веществ в атмосферный воздух стационарными объектами, исчисленная без учета корректировки, в том числе: | C8: x | D8: =SUM(D9:D11) -> 0 | E8: x | F8: x | G8: =SUM(G9:G11) -> 0 | H8: =SUM(H9:H11) -> 0 | I8: 0 | J8: 0
A9: 1.1. | B9: плата за выбросы в пределах предельно-допустимых выбросов (ПДВ) | C9: x | E9: x | F9: x
A10: 1.2. | B10: плата за выбросы в пределах лимитов на выбросы загрязняющих веществ (временно согласованные выбросы ВСВ) | C10: x | E10: x | F10: x
A11: 1.3. | B11: плата за выбросы, превышающие установленные разрешениями на выброс загрязняющих веществ в атмосферный воздух | C11: x | E11: x | F11: x
A12: 2. | B12: Плата за сбросы загрязняющих веществ в водные объекты | C12: x | D12: =SUM(D13:D15) -> 0 | E12: x | F12: x | G12: =SUM(G13:G15) -> 0 | H12: =SUM(H13:H15) -> 0 | I12: 0 | J12: 0
A13: 2.1. | B13: плата за сбросы в пределах нормативов допустимых сбросов (НДС) | C13: x | E13: x | F13: x
A14: 2.2. | B14: плата за сбросы в пределах лимитов на сбросы загрязняющих веществ (временно согласованный сбор ВСС) | C14: x | E14: x | F14: x
A15: 2.3. | B15: плата за сбросы, превышающие установленные разрешениями на сброс загрязняющих веществ (сверх лимита на сбросы) | C15: x | E15: x | F15: x
A16: 3. | B16: Плата за размещение отходов производства и потребления, исчисленная без учета корректировки, в том числе: | C16: x | D16: =SUM(D17:D18) -> 0.51091 | E16: x | F16: x | G16: =SUM(G17:G18) -> 0.52 | H16: =SUM(H17:H18) -> 0 | I16: 0 | J16: 0
A17: 3.1. | B17: плата за размещение отходов в пределах установленного лимита на их размещение | C17: x | E17: x | F17: x
A18: 3.2. | B18: плата за размещение отходов сверх установленного лимита на их размещение | C18: x | D18: 0.51091 | E18: x | F18: x | G18: 0.52
A19: 4. | B19: Сумма средств на выполнение мероприятий по снижению негативного воздействия на окружающую среду, всего (п.4.1.+п.4.2.+п.4.3.), в том числе | C19: x | D19: =D20+D22+D24 -> 0 | E19: x | F19: x | G19: =G20+G22+G24 -> 0 | H19: =H20+H22+H24 -> 0 | I19: 0 | J19: 0
A20: 4.1. | B20: платы за выбросы | C20: x | E20: x | F20: x
A21: 4.1.1. | B21: средства, уменьшающие плату за выбросы в части предельно допустимых выбросов | C21: x | D21: =IF(D8=0,0,D20*((D9+D10)/D8)) -> 0 | E21: x | F21: x | G21: =IF(G8=0,0,G20*((G9+G10)/G8)) -> 0 | H21: =IF(H8=0,0,H20*((H9+H10)/H8)) -> 0 | I21: 0 | J21: 0
A22: 4.2. | B22: платы за сбросы | C22: x | E22: x | F22: x
A23: 4.2.1. | B23: средства, уменьшающие плату за сбросы в части нормативов сбросов | C23: x | D23: =IF(D12=0,0,D22*((D13+D14)/D12)) -> 0 | E23: x | F23: x | G23: =IF(G12=0,0,G22*((G13+G14)/G12)) -> 0 | H23: =IF(H12=0,0,H22*((H13+H14)/H12)) -> 0 | I23: 0 | J23: 0
A24: 4.3. | B24: платы за размещение отходов | C24: x | E24: x | F24: x
A25: 4.3.1. | B25: средства, уменьшающие плату за размещение отходов в части лимита | C25: x | D25: =IF(D16=0,0,D24*(D17/D16)) -> 0 | E25: x | F25: x | G25: =IF(G16=0,0,G24*(G17/G16)) -> 0 | H25: =IF(H16=0,0,H24*(H17/H16)) -> 0 | I25: 0 | J25: 0
A26: 5. | B26: Сумма платы, подлежащей внесению в бюджет, всего (п.1+п.2+п.3-п.4), в том числе | C26: x | D26: =D8+D12+D16-D19 -> 0.51091 | E26: x | F26: x | G26: =G8+G12+G16-G19 -> 0.52 | H26: =H8+H12+H16-H19 -> 0 | I26: 0 | J26: 0
A27: Плата за негативное воздействие на окружающую среду в пределах лимитов | D27: =D9+D10-D21+D13+D14-D23+D17-D25 -> 0 | G27: =G9+G10-G21+G13+G14-G23+G17-G25 -> 0 | H27: =H9+H10-H21+H13+H14-H23+H17-H25 -> 0 | I27: =I9+I10-I21+I13+I14-I23+I17-I25 -> 0 | J27: 0
A28: Плата за негативное воздействие на окружающую среду, относимая на услугу по передаче электрической энергии | D28: 2
B30: Руководитель организации | E30: ='Инф-я'!$C$17 -> Окунев Василий Михайлович
B34: Плата вносится раздельно по четырем компонентам окружающей среды: плата за выбросы, плата за выбросы ПНГ, плата за сбросы в водные объекты и плата за размещение отходов. Каждая по своему КБК (коду бюджетной классификации)
B35: 1. Плата за выбросы загрязняющих веществ в атмосферный воздух стационарными объектами, исчисленная без учета корректировки, в том числе:
B36: 1.1. плата за выбросы в пределах предельно-допустимых выбросов (ПДВ)
B37: 1.2. плата за выбросы в пределах лимитов на выбросы загрязняющих веществ (временно согласованные выбросы ВСВ)
B38: 1.3. плата за выбросы, превышающие установленные разрешениями на выброс загрязняющих веществ в атмосферный воздух
B39: 2. Плата за выбросы загрязняющих веществ при сжигании и (или) рассеивании попутного нефтяного газа
B40: 2.1. плата за выбросы ПНГ в пределах ПДВ
B41: 2.2. плата за выбросы ПНГ в пределах лимитов на выбросы загрязняющих веществ (ВСВ)
B42: 2.3. плата за выбросы ПНГ сверх лимита на выбросы
B43: 3. Плата за сбросы загрязняющих веществ в водные объекты
B44: 3.1. плата за сбросы в пределах НДС
B45: 3.2. плата за сбросы в пределах лимитов на сбросы загрязняющих веществ (ВСС)
B46: 3.3. плата за сбросы, превышающие установленные разрешениями на сброс загрязняющих веществ (сверх лимита на сбросы)
B47: 4. Плата за размещение отходов производства и потребления, исчисленная без учета корректировки, в том числе:
B48: 4.1. плата за размещение отходов в пределах установленного лимита на их размещение
B49: 4.2. плата за размещение отходов сверх установленного лимита на их размещение
B50: 5. Сумма средств на выполнение мероприятий по снижению негативного воздействия на окружающую среду, всего
B51: 5.1. платы за выбросы
B52: 5.2. платы за выбросы ПНГ
B53: 5.3. платы за сбросы
B54: 5.4. платы за размещение отходов
B55: Сумма платы, подлежащей внесению в бюджет, всего (п.1+п.2+п.3+п.4-п.5)
B57: НК, Статья 270. Расходы, не учитываемые в целях налогообложения
B58: 4) в виде суммы налога, а также суммы платежей за выбросы загрязняющих веществ в атмосферный воздух, сбросы загрязняющих веществ в составе сточных вод в водные объекты,
B59: осуществляемые с превышением нормативов допустимых сбросов, за размещение отходов производства и потребления с превышением установленных лимитов на их размещение;

Sheet Услуги ФСК
A2: Оплата услуг ОАО "ФСК ЕЭС"
A3: ='Инф-я'!C9 -> Общество с ограниченной ответственностью "Энергетик"
N4: тыс. руб.
A5: Показатели | B5: 2016 год | F5: 2017 год | L5: 2018 год | R5: 2019 год | U5: 2016 год
B6: Утверждено | C6: Факт | F6: Утверждено | I6: Ожидаемые | L6: По данным организации | O6: По данным экспертов | U6: Факт по данным экспертов
B7: год | C7: 1 полугодие | D7: 2 полугодие | E7: год | F7: 1 полугодие | G7: 2 полугодие | H7: год | I7: 1 полугодие | J7: 2 полугодие | K7: год | L7: 1 полугодие | M7: 2 полугодие | N7: год | O7: 1 полугодие | P7: 2 полугодие | Q7: год | R7: 1 полугодие | S7: 2 полугодие | T7: год
A8: 1 | B8: 2 | C8: 3 | D8: 4 | E8: 5 | F8: 6 | G8: 7 | H8: 8 | I8: 9 | J8: 10 | K8: 11 | L8: 9 | M8: 10 | N8: 11 | O8: 12 | P8: 13 | Q8: 14 | R8: 15 | S8: 16 | T8: 17 | U8: 18
A9: Расходы на содержание сетей, тыс. руб. | B9: х | C9: =C10*C11*6/1000 -> 0 | D9: =D10*D11*6/1000 -> 0 | E9: =D9+C9 -> 0 | F9: =F10*F11*6/1000 -> 0 | G9: =G10*G11*6/1000 -> 0 | H9: =G9+F9 -> 0 | I9: =I10*I11*6/1000 -> 0 | J9: =J10*J11*6/1000 -> 0 | K9: =J9+I9 -> 0 | L9: =L10*L11*6/1000 -> 0 | M9: =M10*M11*6/1000 -> 0 | N9: =M9+L9 -> 0 | O9: =O10*O11*6/1000 -> 0 | P9: =P10*P11*6/1000 -> 0 | Q9: =O9+P9 -> 0 | R9: =R10*R11*6/1000 -> 0 | S9: =S10*S11*6/1000 -> 0 | T9: =R9+S9 -> 0 | U9: х
A10: Заявленная мощность в точках присоединения к сетям ОАО "ФСК ЕЭС", МВт | B10: х | E10: х | H10: х | K10: х | N10: х | Q10: х | T10: х | U10: х
A11: Ставка тарифа услуги по передаче электрической энергии на содержание объектов электросетевого хозяйства, входящих в ЕНЭС, руб. МВт/мес. | B11: х | E11: х | H11: х | K11: х | N11: х | Q11: х | T11: х | U11: х
A12: Расходы на компенсацию потерь, тыс. руб. | B12: х | C12: =C13*C16 -> 0 | D12: =D13*D16 -> 0 | E12: =C12+D12 -> 0 | F12: =F13*F16 -> 0 | G12: =G13*G16 -> 0 | H12: =F12+G12 -> 0 | I12: =I13*I16 -> 0 | J12: =J13*J16 -> 0 | K12: =I12+J12 -> 0 | L12: =L13*L16 -> 0 | M12: =M13*M16 -> 0 | N12: =L12+M12 -> 0 | O12: =O13*O16 -> 0 | P12: =P13*P16 -> 0 | Q12: =O12+P12 -> 0 | R12: =R13*R16 -> 0 | S12: =S13*S16 -> 0 | T12: =R12+S12 -> 0 | U12: х
A13: Объем технологических потерь электрической энергии при ее передаче по ЕНЭС, млн. кВт.ч | B13: х | C13: =C14*C15% -> 0 | D13: =D14*D15% -> 0 | E13: =E14*E15% -> 0 | F13: =F14*F15% -> 0 | G13: 0 | H13: 0 | I13: 0 | J13: 0 | K13: 0 | L13: =L14*L15% -> 0 | M13: 0 | N13: 0 | O13: 0 | P13: 0 | Q13: 0 | R13: =R14*R15% -> 0 | S13: 0 | T13: 0 | U13: х
A14: Объем отпуска электроэнергии из сети ОАО "ФСК ЕЭС" в сеть организации, млн. кВт.ч | B14: х | E14: =D14+C14 -> 0 | H14: =G14+F14 -> 0 | K14: =J14+I14 -> 0 | N14: =M14+L14 -> 0 | Q14: =P14+O14 -> 0 | T14: =S14+R14 -> 0 | U14: х
A15: Норматив технологических потерь электрической энергии при ее передаче по ЕНЭС, применяемый к отпуску электроэнергии из сети ОАО "ФСК ЕЭС" класса 220 кВ и ниже, % | B15: х | C15: 4.86 | D15: 4.86 | E15: 4.86 | F15: 4.86 | G15: 4.86 | H15: 4.86 | I15: 4.65 | J15: 4.65 | K15: 4.65 | L15: 4.65 | M15: 4.65 | N15: 4.65 | O15: 4.65 | P15: 4.65 | Q15: 4.65 | R15: 4.65 | S15: 4.65 | T15: 4.65 | U15: х
A16: Ставка тарифа на оплату нормативных технологических потерь электрической энергии в ЕНЭС, руб./МВт.ч | B16: х | E16: х | H16: х | K16: х | N16: х | Q16: х | T16: х | U16: х
A17: ИТОГО оплата услуг ОАО "ФСК ЕЭС" | C17: =C9+C12 -> 0 | D17: 0 | E17: 0 | F17: 0 | G17: 0 | H17: 0 | I17: 0 | J17: 0 | K17: 0 | L17: =L9+L12 -> 0 | M17: 0 | N17: 0 | O17: 0 | P17: 0 | Q17: 0 | R17: =R9+R12 -> 0 | S17: 0 | T17: 0
A19: Руководитель организации | D19: ='Инф-я'!$C$17 -> Окунев Василий Михайлович

Sheet Прочие НР
A2: Прочие обоснованные неподконтрольные расходы
A3: ='Инф-я'!C9 -> Общество с ограниченной ответственностью "Энергетик"
F4: тыс. руб.
A5: Наименование | B5: 2016 год | D5: 2017 год | F5: 2018 год | H5: 2019 год | I5: 2016 год
B6: Утверждено | C6: Факт | D6: Утверждено | E6: Ожидаемые | F6: По данным организации | G6: По данным экспертов | I6: Факт по данным экспертов
A7: 1 | B7: 2 | C7: 3 | D7: 4 | E7: 5 | F7: 6 | G7: 7 | H7: 8 | I7: 9
A8: Экспертиза НВВ по договору с ТОРИ-АУДИТ | B8: 173.1 | C8: 173.1 | D8: 190.41 | E8: 190.41 | F8: 198.026
A9: Договор о возмездном оказании услуг № 165/14-Э от 09.09.2014 г. с ООО «Региональный центр энергоэффективности и нормирования» на оказание инженерно–консультационных услуг | C9: 938.88 | E9: 1600 | F9: 1500
A10: Госпошлина за государственную регистрацию объектов и договоров аренды | C10: 22 | E10: 264
A12: Добавить
A13: ИТОГО прочие обоснованные неподконтрольные расходы: | B13: =SUM(B8:B11) -> 173.1 | C13: 1133.98 | D13: 190.41 | E13: 2054.41 | F13: 1698.026 | G13: 0 | H13: 0 | I13: 0
A15: Руководитель организации | D15: ='Инф-я'!$C$17 -> Окунев Василий Михайлович

Sheet КВЛ
A2: Расходы на капитальные вложения
A4: ='Инф-я'!C9 -> Общество с ограниченной ответственностью "Энергетик"
F5: тыс. руб.
A6: Наименование капитальных вложений | B6: 2016 год | D6: 2017 год | F6: 2018 год | H6: 2019 год
B7: Утверждено | C7: Факт | D7: Утверждено | E7: Ожидаемые | F7: По данным организации | G7: По данным экспертов
A8: 1 | B8: 2 | C8: 3 | D8: 4 | E8: 5 | F8: 6 | G8: 7 | H8: 8
A9: Монтаж ВЛ 10кВ от ТП66 до ТП45 (фидер 1001) | B9: 1804.281876 | C9: 2480.19704
A10: Монтаж ТП45 250/10/0,4кВ | B10: 2034.338817 | C10: 1777.31604
A11: Реконструкция ВЛ 10 кВ от ТП 27 до ТП 9 (фидер 1001) | D11: 1016.5 | E11: 1187.71317
A12: Строительство ВЛ 10 кВ от ТП 27 до ТП 28 (фидер 1001) | D12: 1005 | E12: 1153.67438
A13: Строительство ВЛ 10 кВ от ТП 45 до ТП 28 (фидер 1001) | D13: 2220.5 | E13: 2385.17167
A14: Строительство ВЛ 10 кВ от ТП 9 до ТП 62 Ф1001, Фидер 1001 | F14: 1386.94893
A15: Строительство ВЛ 0,4 кВ от ТП 45, Технологическое присоединение абонентов в районе ул.Чистопольная, Луговая, Сосновая, Дружбы, Тихая, Фидер 1001 | F15: 4104.91226
A16: Добавить
A17: ИТОГО капитальных вложений | B17: =SUM(B9:B15) -> 3838.620693 | C17: 4257.51308 | D17: 4242 | E17: 4726.55922 | F17: 5491.86119 | G17: 0 | H17: 0
A18: - амортизация | B18: ='Свод по амортизации'!B15 -> 4548.332783 | C18: ='Свод по амортизации'!C15 -> 4730.18195 | D18: 2891 | E18: ='Свод по амортизации'!E15 -> 6227.1524 | F18: ='Свод по амортизации'!F15 -> 6378.289271 | G18: ='Свод по амортизации'!G15 -> 0 | H18: ='Свод по амортизации'!H15 -> 0
A19: - прочие средства
A20: - прибыль | B20: =IF((B17-B18-B19)<=0,0,(B17-B18-B19)) -> 0 | C20: 0 | D20: 1351 | E20: 0 | F20: =IF((F17-F18-F19)<=0,0,(F17-F18-F19)) -> 0 | G20: 0 | H20: =IF((H17-H18-H19)<=0,0,(H17-H18-H19)) -> 0
A21: в т.ч. по уровням напряжения: ВН | B21: х | C21: х | E21: х | G21: х | H21: х
A22: СН1 | B22: х | C22: х | E22: х | G22: х | H22: х
A23: СН11 | B23: х | C23: х | E23: х | G23: х | H23: х
A24: НН | B24: х | C24: х | E24: х | G24: х | H24: х
A26: Руководитель организации | D26: ='Инф-я'!$C$17 -> Окунев Василий Михайлович

Sheet Выпадающий доход
A2: Расходы, связанные с компенсацией выпадающих доходов по льготному технологическому присоединению
A4: ='Инф-я'!C9 -> Общество с ограниченной ответственностью "Энергетик"
D5: тыс. руб.
A6: Наименование | B6: 2016 год | C6: 2017 год | D6: 2018 год
B7: Утверждено | C7: Утверждено | D7: По данным организации | E7: По данным экспертов
A8: 1 | B8: 2 | C8: 3 | D8: 4 | E8: 5
A9: выпадающие доходы сетевой организации от присоединения энергопринимающих устройств, максимальной мощностью, не превышающей 15 кВт включительно, исходя из стоимости мероприятий по технологическому присоединению в размере не более 550 рублей; | B9: =SUM(B10:B14) -> 0 | C9: 0 | D9: 0 | E9: 0
A10: за 2014 год | B10: ='Расчет выпадающих до 15 кВт'!C43 -> 0 | C10: х | D10: х | E10: х
A11: за 2015 год | B11: х | D11: х | E11: х
A12: за 2016 год | B12: ='Расчет выпадающих до 15 кВт'!C41-'Расчет выпадающих до 15 кВт'!C42 -> 0 | C12: х | D12: ='Расчет выпадающих до 15 кВт'!C44 -> 0
A13: за 2017 год | B13: х | D13: х | E13: х
A14: за 2018 год | B14: х | C14: х | D14: ='Расчет выпадающих до 15 кВт'!K28-'Расчет выпадающих до 15 кВт'!C45 -> 0
A15: выпадающие доходы сетевой организации от присоединения энергопринимающих устройств, максимальной мощностью не более чем 150 кВт, на покрытие расходов на строительство объектов электросетевого хозяйства | B15: =SUM(B16:B19) -> 0 | C15: =SUM(C16:C19) -> 0 | D15: =SUM(D16:D19) -> 0 | E15: =SUM(E16:E19) -> 0
A16: за 2015 год | B16: х | D16: х | E16: х
A17: за 2016 год | B17: ='Расчет выпадающих до 150 кВт'!C39 -> 0 | C17: х | D17: ='Расчет выпадающих до 150 кВт'!C40 -> 0
A18: за 2017 год | B18: х | D18: х | E18: х
A19: за 2018 год | B19: х | C19: х | D19: ='Расчет выпадающих до 150 кВт'!K26-'Расчет выпадающих до 150 кВт'!C41 -> 0
A20: выпадающие доходы сетевой организации от выплаты процентов по кредитным договорам, связанным с рассрочкой по оплате субъектами малого и среднего предпринимательства технологического присоединения энергопринимающих устройств максимальной мощностью свыше 15 кВт и до 150 кВт включительно. | D20: ='СВОД по % по рассрочке'!J17 -> 0
A21: Итого расходы, связанные с компенсацией выпадающих доходов по льготному технологическому присоединению, всего, в том числе: | B21: =B9+B20+B15 -> 0 | C21: =C9+C20+C15 -> 0 | D21: 0 | E21: 0
A25: Руководитель организации | C25: ='Инф-я'!$C$17 -> Окунев Василий Михайлович

Sheet Расчет выпадающих до 15 кВт
G1: Приложение 1
G2: к Методическим указаниям,
G3: утвержденным приказом ФСТ от 11.09.2014 г. №215-э/1
A5: Расчет размера расходов, связанных с осуществлением технологического присоединения энергопринимающих устройств максимальной мощностью, не превышающей 15 кВт включительно, не включаемых в состав платы за технологическое присоединение за 2016 год и плановый период 2018 года
A7: ='Инф-я'!$C$9 -> Общество с ограниченной ответственностью "Энергетик"
A9: № п./п. | B9: Показатели | C9: Фактические данные за 2016 год | F9: Расчетные (фактические) данные за 2016 год | I9: Плановые показатели на 2018 год
C11: ставка платы (руб./кВт, руб./км) | D11: мощность, длина линий, (кВт., км) | E11: Сумма (в соответствии с актами приемки выполненных работ) тыс. руб. | F11: стандартизированная тарифная ставка (руб./кВт, руб./км) | G11: мощность, длина линий, (кВт., км) | H11: Сумма, тыс. руб. | I11: стандартизированная тарифная ставка (руб./кВт, руб./км) | J11: мощность, длина линий, (кВт., км) | K11: Сумма, тыс. руб.
A12: 1 | B12: 2 | C12: 3 | D12: 4 | E12: 5 | F12: 6 | G12: 7 | H12: 8 | I12: 9 | J12: 10 | K12: 11
A13: 1. | B13: Расходы на выполнение организационно-технических мероприятий, связанные с осуществлением технологического присоединения [п. 1.1 + п. 1.2 + п. 1.3 + п. 1.4]: | C13: =SUM(C14:C17) -> 0 | D13: =F36 -> 0 | E13: =SUM(E14:E17) -> 0 | F13: =SUM(F14:F17) -> 0 | G13: =F36 -> 0 | H13: 0 | I13: 0 | J13: =F37 -> 0 | K13: 0
A14: 1.1. | B14: подготовка и выдача сетевой организацией технических условий (ТУ) Заявителю, на уровне напряжения i и (или) диапазоне мощности j | C14: =IF(D14=0,0,E14/D14*1000) -> 0 | D14: =D13 -> 0 | G14: =G13 -> 0 | H14: =F14*G14/1000 -> 0 | J14: =J13 -> 0 | K14: =I14*J14/1000 -> 0
A15: 1.2. | B15: проверка сетевой организацией выполнения Заявителем ТУ, на уровне напряжения i и (или) диапазоне мощности j | C15: =IF(D15=0,0,E15/D15*1000) -> 0 | D15: =D13 -> 0 | G15: =G13 -> 0 | H15: =F15*G15/1000 -> 0 | J15: =J13 -> 0 | K15: =I15*J15/1000 -> 0
A16: 1.3. | B16: участие в осмотре должностным лицом органа федерального, государственного энергетического надзора при участии сетевой организации и собственника присоединяемых Устройств Заявителя, на уровне напряжения i и (или) диапазоне мощности j | C16: 0 | D16: =D13 -> 0 | G16: =G13 -> 0 | H16: 0 | J16: =J13 -> 0 | K16: 0
A17: 1.4. | B17: Осуществление сетевой организацией фактического присоединения объектов Заявителя к электрическим сетям и включение коммутационного аппарата (фиксация коммутационного аппарата в положение "включено"), на уровне напряжения i и (или) диапазоне мощности j | C17: 0 | D17: =D13 -> 0 | G17: =G13 -> 0 | H17: 0 | J17: =J13 -> 0 | K17: 0
A18: 2. | B18: Расходы по мероприятиям "последней мили", связанные с осуществлением технологического присоединения [п. 2.1 + п. 2.2 + п. 2.3 + п. 2.4 + 2.5]: | C18: х | D18: х | E18: =SUM(E19:E24) -> 0 | F18: =C18 -> х | G18: х | H18: =SUM(H19:H24) -> 0 | I18: =F18 -> х | J18: х | K18: =SUM(K19:K24) -> 0
A19: 2.1. | B19: строительство воздушных линий, на уровне напряжения i и (или) диапазоне мощности j | C19: 0 | H19: 0 | K19: =I19*J19/1000 -> 0
A20: 2.2. | B20: строительство кабельных линий, на уровне напряжения i и (или) диапазоне мощности j | C20: 0 | H20: 0 | K20: 0
A21: 2.3. | B21: строительством пунктов секционирования, на уровне напряжения i и (или) диапазоне мощности j | C21: 0 | H21: 0 | K21: 0
A22: 2.4. | B22: строительство комплектных трансформаторных подстанций (КТП), распределительных трансформаторных подстанций (РТП) с уровнем напряжения до 35 кВ, на уровне напряжения i и (или) диапазоне мощности j | C22: 0 | H22: 0 | K22: 0
A23: 2.5. | B23: строительство центров питания, подстанций уровнем напряжения 35 кВ и выше (ПС), на уровне напряжения i и (или) диапазоне мощности j | C23: 0 | H23: 0 | K23: 0
A24: 2.6. | B24: Расходы на разработку сетевой организацией проектной документации | C24: 0 | H24: 0 | K24: 0
A25: 3. | B25: Суммарный размер платы за технологическое присоединение [п. 3.1 * п. 3.2 / 1000]: | C25: х | D25: х | E25: =E26*E27/1000 -> 0 | F25: х | G25: х | H25: =H26*H27/1000 -> 0 | I25: х | J25: х | K25: =K26*K27/1000 -> 0
A26: 3.1. | B26: Размер платы за технологическое присоединение (руб. без НДС) | C26: х | D26: х | E26: 466.1 | F26: х | G26: х | H26: 466.1 | I26: х | J26: х | K26: 466.1
A27: 3.2. | B27: Плановое количество договоров на осуществление технологическое присоединение к электрическим сетям (плановое количество членов объединений (организаций), указанных в п. 18 Методических указаний по определению размера платы за технологическое присоединение к электрическим сетям, утвержденных приказом ФСТ России от 11 сентября 2012 года, N 209-э/1) (шт.) | C27: х | D27: х | E27: =C36 -> 0 | F27: х | G27: х | H27: =C36 -> 0 | I27: х | J27: х | K27: =C37 -> 0
A28: 4. | B28: Размер расходов, связанных с осуществлением технологического присоединения к электрическим сетям, не включаемых в состав платы за технологическое присоединение (п. 1 + п. 2 - п. 3) | C28: х | D28: х | E28: =E13+E18-E25 -> 0 | F28: х | G28: х | H28: =H13+H18-H25 -> 0 | I28: х | J28: х | K28: =K13+K18-K25 -> 0
B31: Фактические средние данные по выполненым договорам технологического присоединения за 3 предыдущих года
B33: Год | C33: Количество договоров на осуществление технологического присоединения, ед. | F33: Присоединенная мощность, кВт | G33: Присоединенная мощность, кВт | H33: Присоединенная мощность, кВт
B34: Факт 2014 г.
B35: Факт 2015 г.
B36: Факт 2016 г.
B37: План 2018 г. (расчет плановых значений исходя из данных за 3 предыдущих периода) | C37: =(C34+C35+C36)/3 -> 0 | F37: =(F34+F35+F36)/3 -> 0
B39: Сводный расчет выпадающих доходов от льготного ТП, подлежащих учету в 2018 году, тыс. руб.
B41: Выпадающие доходы планового периода 2016 года, учтенные при тарифном регулировании на 2016 год без учета превышения фактических над расчетными расходами 2014 года, тыс. руб.
B42: Превышение фактических над расчетными расходами 2014 года, тыс. руб.
B43: Фактические расходы 2014 года не покрытые плановыми выпадающими доходами, учтенными при тарифном регулировании на 2014 год, тыс. руб.
B44: Выпадающие доходы по итогам 2016 года с учетом ИПЦ, подлежащие учету в 2018 году, тыс. руб. | C44: =(E28-C41)*(1+H45)*(1+H46) -> 0 | G44: ИПЦ, %
B45: Превышение фактических над расчетными расходами 2016 года | C45: =IF(E28-H28>0,E28-H28,0) -> 0 | G45: 2018 г. к 2017 г.
B46: Плановые выпадающие доходы на 2018 год | C46: =K28-C45 -> 0 | G46: 2017 г. к 2016 г.
B47: Итого выпадающие доходы от льготного ТП, тыс. руб. | C47: =C44+K28-C45 -> 0
B49: Руководитель организации | D49: ='Инф-я'!$C$17 -> Окунев Василий Михайлович

Sheet Расчет выпадающих до 150 кВт
G1: Приложение 3
G2: к Методическим указаниям,
G3: утвержденным приказом ФСТ от 11.09.2014 г. №215-э/1
A5: Расчет размера расходов, связанных с осуществлением технологического присоединения к электрическим сетям энергопринимающих устройств максимальной мощностью до 150 кВт включительно, не включаемых в состав платы за технологическое присоединение за 2016 год и плановый период 2018 года
B7: ='Инф-я'!$C$9 -> Общество с ограниченной ответственностью "Энергетик"
A9: № п./п. | B9: Показатели | C9: Фактические данные за 2016 год | F9: Расчетные (фактические) данные за 2016 год | I9: Плановые показатели на 2018 год
C11: ставка платы (руб./кВт, руб./км) | D11: мощность, длина линий, (кВт., км) | E11: Сумма (в соответствии с актами приемки выполненных работ) тыс. руб. | F11: стандартизированная тарифная ставка (руб./кВт, руб./км) | G11: мощность, длина линий, (кВт., км) | H11: Сумма, тыс. руб. | I11: стандартизированная тарифная ставка (руб./кВт, руб./км) | J11: мощность, длина линий, (кВт., км) | K11: Сумма, тыс. руб.
A12: 1 | B12: 2 | C12: 3 | D12: 4 | E12: 5 | F12: 6 | G12: 7 | H12: 8 | I12: 9 | J12: 10 | K12: 11
A13: 1. | B13: Расходы по мероприятиям "последней мили", связанные с осуществлением технологического присоединения к электрическим сетям [п.1.1 + п.1.2 + п.1.3 + п.1.4+ п.1.5+ п.1.6]: | C13: х | D13: х | E13: =SUM(E14:E19) -> 0 | F13: х | G13: х | H13: =SUM(H14:H19) -> 0 | I13: х | J13: х | K13: =SUM(K14:K19) -> 0
A14: 1.1. | B14: строительство воздушных линий, на уровне напряжения i и (или) диапазоне мощности j | C14: =IF(D14=0,0,E14/D14*1000) -> 0 | G14: =D14 -> 0 | H14: =F14*G14/1000 -> 0 | J14: =C35 -> 0 | K14: =I14*J14/1000 -> 0
A15: 1.2. | B15: строительство кабельных линий, на уровне напряжения i и (или) диапазоне мощности j | C15: =IF(D15=0,0,E15/D15*1000) -> 0 | G15: =D15 -> 0 | H15: =F15*G15/1000 -> 0 | J15: =D35 -> 0 | K15: =I15*J15/1000 -> 0
A16: 1.3. | B16: строительством пунктов секционирования, на уровне напряжения i и (или) диапазоне мощности j | C16: 0 | G16: 0 | H16: =F16*G16/1000 -> 0 | J16: =E35 -> 0 | K16: 0
A17: 1.4. | B17: строительство комплектных трансформаторных подстанций (КТП), распределительных трансформаторных подстанций (РТП) с уровнем напряжения до 35 кВ, на уровне напряжения i и (или) диапазоне мощности j | C17: 0 | G17: 0 | H17: 0 | J17: =F35 -> 0 | K17: 0
A18: 1.5. | B18: строительство центров питания, подстанций уровнем напряжения 35 кВ и выше (ПС), на уровне напряжения i и (или) диапазоне мощности j | C18: =IF(D18=0,0,E18/D18*1000) -> 0 | G18: 0 | H18: 0 | J18: =G35 -> 0 | K18: 0
A19: 1.6. | B19: Рразработка сетевой организацией проектной документации | C19: х | D19: х | F19: х | G19: х | I19: х | J19: х | K19: х
A20: 2. | B20: Суммарный размер платы за технологическое присоединение в части мероприятий "последней мили" [n.2.1 + п.2.2 + п.2.3 + п.2.4 + п.2.5+ п.2.6]: | C20: х | D20: х | E20: =SUM(E21:E25) -> 0 | F20: =C20 -> х | G20: х | H20: =SUM(H21:H25) -> 0 | I20: =F20 -> х | J20: х | K20: =SUM(K21:K25) -> 0
A21: 2.1. | B21: строительство воздушных линий, на уровне напряжения i и (или) диапазоне мощности j | C21: =IF(D21=0,0,E21/D21*1000) -> 0 | H21: 0 | K21: =I21*J21/1000 -> 0
A22: 2.2. | B22: строительство кабельных линий, на уровне напряжения i и (или) диапазоне мощности j | C22: 0 | H22: 0 | K22: 0
A23: 2.3. | B23: строительством пунктов секционирования, на уровне напряжения i и (или) диапазоне мощности j | C23: 0 | H23: 0 | K23: 0
A24: 2.4. | B24: строительство комплектных трансформаторных подстанций (КТП), распределительных трансформаторных подстанций (РТП) с уровнем напряжения до 35 кВ, на уровне напряжения i и (или) диапазоне мощности j | C24: 0 | H24: 0 | K24: 0
A25: 2.5. | B25: строительство центров питания, подстанций уровнем напряжения 35 кВ и выше (ПС), на уровне напряжения i и (или) диапазоне мощности j | C25: 0 | H25: 0 | K25: 0
A26: 3. | B26: Размер расходов по мероприятиям "последней мили", связанных с осуществлением технологического присоединения к электрическим сетям, не включаемых в плату за технологическое присоединение [п.1 - п.2] | C26: х | D26: х | E26: =E13-E20 -> 0 | F26: х | G26: х | H26: =H13-H20 -> 0 | I26: х | J26: х | K26: =K13-K20 -> 0
B29: Фактические средние данные по выполненым договорам технологического присоединения за 3 предыдущих года
B31: Год | C31: строительство ВЛ, км | D31: строительство КЛ, км | E31: строительством пунктов секционирования, кВт | F31: строительство КТП, РТП с уровнем напряжения до 35 кВ, кВт | G31: строительство ПС, кВт
B32: Факт 2014 г.
B33: Факт 2015 г.
B34: Факт 2016 г.
B35: План 2018 г. (расчет плановых значений исходя из данных за 3 предыдущих периода) | C35: =(C32+C33+C34)/3 -> 0 | D35: =(D32+D33+D34)/3 -> 0 | E35: 0 | F35: 0 | G35: 0
B37: Сводный расчет выпадающих доходов от льготного ТП, подлежащих учету в 2018 году, тыс. руб.
B39: Выпадающие доходы планового периода 2016 года, учтенные при тарифном регулировании на 2016 год, тыс. руб. | G39: ИПЦ, %
B40: Выпадающие доходы по итогам 2016 года с учетом ИПЦ, подлежащие учету в 2018 году, тыс. руб. | C40: =(E26-C39)*(1+H40)*(1+H41) -> 0 | G40: 2018 г. к 2017 г.
B41: Превышение фактических над расчетными расходами 2016 года | C41: =IF(E26-H26>0,E26-H26,0) -> 0 | G41: 2017 г. к 2016 г.
B42: Итого выпадающие доходы от льготного ТП, подлежащие учету в 2018 году, тыс. руб. | C42: =C40+K26-C41 -> 0
B44: Руководитель организации | D44: ='Инф-я'!$C$17 -> Окунев Василий Михайлович

Sheet СВОД по % по рассрочке
B2: Выпадающие доходы сетевой организации от выплаты процентов по кредитным договорам, связанным с рассрочкой по оплате субъектами малого и среднего предпринимательства технологического присоединения энергопринимающих устройств максимальной мощностью свыше 15 кВт и до 150 кВт включительно в 2018 году
A4: ='Инф-я'!$C$9 -> Общество с ограниченной ответственностью "Энергетик"
A6: N п/п | B6: Информация о договоре технологического присоединения (Контрагент (наименование), № договора ТП, Дата заключения договора) | F6: Ставка рефинансирования Центрального банка Российской Федерации | G6: Год закрытия | H6: Квартал закрытия | I6: Сумма договора,тыс. руб. с НДС | J6: Размера расходов, связанных с предоставлением беспроцентной рассрочки в 2018 году, тыс. руб.
A9: 1 | B9: 2 | F9: 3 | G9: 4 | H9: 5 | I9: 6 | J9: 7
A10: 1 | B10: =Заявитель1!A4 -> 0 | F10: =Заявитель1!B31 -> 0 | G10: =Заявитель1!B34 -> 0 | H10: =Заявитель1!B32 -> 0 | I10: =Заявитель1!B33 -> 0 | J10: =Заявитель1!G36 -> 0
A11: 2 | B11: =Заявитель2!A4 -> 0 | F11: =Заявитель2!B31 -> 0 | G11: =Заявитель2!B34 -> 0 | H11: =Заявитель2!B32 -> 0 | I11: =Заявитель2!B33 -> 0 | J11: =Заявитель2!G36 -> 0
A12: 3 | B12: =Заявитель3!A4 -> 0 | F12: =Заявитель3!B31 -> 0 | G12: =Заявитель3!B34 -> 0 | H12: =Заявитель3!B32 -> 0 | I12: =Заявитель3!B33 -> 0 | J12: =Заявитель3!G36 -> 0
A13: 4 | B13: =Заявитель4!A4 -> 0 | F13: =Заявитель4!B31 -> 0 | G13: =Заявитель4!B34 -> 0 | H13: =Заявитель4!B32 -> 0 | I13: =Заявитель4!B33 -> 0 | J13: =Заявитель4!G36 -> 0
A16: Добавить
A17: ИТОГО | I17: =SUM(I10:I16) -> 0 | J17: =SUM(J10:J16) -> 0
B19: Свод по кварталам | C19: Сумма по договорам
B20: 1 | C20: =SUMIF(H$6:H$21,B20,I$6:I$21) -> 0
B21: 2 | C21: =SUMIF(H$6:H$21,B21,I$6:I$21) -> 0
B22: 3 | C22: =SUMIF(H$6:H$21,B22,I$6:I$21) -> 0
B23: 4 | C23: =SUMIF(H$6:H$21,B23,I$6:I$21) -> 0
B24: ГОД | C24: =SUM(C20:C23) -> 0
C25: =C24-I17 -> 0
F27: Приложение 2 к Методическим указаниям, утвержденным приказом ФСТ от 11.09.2014 г. №215-э/1
A31: Таблица 1. Расчет суммарного размера платы за технологическое присоединение, подлежащего беспроцентной рассрочке
B33: ='Инф-я'!C9 -> Общество с ограниченной ответственностью "Энергетик"
Q34: тыс. руб. с НДС
A35: N п/п | B35: Показатель | F35: Фактические данные за предыдущий период регулирования | K35: Ожидаемые данные за текущий период регулирования | P35: Плановые показатели на следующий период регулирования
F36: 1 кв. | G36: 2 кв. | H36: 3 кв. | I36: 4 кв. | J36: всего за год | K36: 1 кв. | L36: 2 кв. | M36: 3 кв. | N36: 4 кв. | O36: всего за год | P36: 1 кв. | Q36: 2 кв. | R36: 3 кв. | S36: 4 кв. | T36: всего за год
A37: 1 | B37: Суммарный размер платы за технологическое присоединение, тыс. руб., в т.ч.: | J37: =SUM(F37:I37) -> 0 | O37: =SUM(K37:N37) -> 0 | P37: =C20 -> 0 | Q37: =C21 -> 0 | R37: =C22 -> 0 | S37: =C23 -> 0 | T37: =SUM(P37:S37) -> 0
A38: 2 | B38: Суммарный размер платы за технологическое присоединение, подлежащий беспроцентной рассрочке | J38: =SUM(F38:I38) -> 0 | O38: =SUM(K38:N38) -> 0 | P38: =P37*0.95 -> 0 | Q38: =Q37*0.95 -> 0 | R38: 0 | S38: 0 | T38: 0
B40: Руководитель организации | D40: ='Инф-я'!$C$17 -> Окунев Василий Михайлович
A42: Примечание:
A43: 1) Суммарный размер платы за технологическое присоединение (п. 1) за каждый квартал следующего расчетного периода регулирования представляет собой прогнозную величину платы за технологическое присоединение для заявителей, обращающихся за беспроцентной рассрочкой, определенную на основе фактических данных о заявителях, обратившихся за рассрочкой за последний год, но не ниже документально подтвержденных данных о заявителях, обратившихся за рассрочкой на следующий период регулирования.
A44: 2) Суммарный размер платы за технологическое присоединение, подлежащий беспроцентной рассрочке (п. 2), за каждый квартал определяется как суммарный размер платы за технологическое присоединение (п. 1) за каждый квартал, умноженный на 0,95.

Sheet Заявитель1
C1: Приложение 2 к Методическим указаниям, утвержденным приказом ФСТ от 11.09.2014 г. №215-э/1
A3: Расчет размера расходов, связанных с предоставлением беспроцентной рассрочки (для конкретного заявителя)
B5: (Контрагент (наименование), № договора ТП, Дата заключения договора)
A7: N п/п | B7: Квартал, на который рассчитывается размер расходов, связанных с предоставлением беспроцентной рассрочки | C7: Расходы, связанные с предоставлением беспроцентной рассрочки, тыс. руб. (с учетом НДС) | H7: Номер квартала i
C8: в отношении суммарного размера платы за технологическое присоединение в 1 квартале | D8: в отношении суммарного размера платы за технологическое присоединение во 2 квартале | E8: в отношении суммарного размера платы за технологическое присоединение в 3 квартале | F8: в отношении суммарного размера платы за технологическое присоединение в 4 квартале | G8: всего в год
A9: 1 | B9: =CONCATENATE("1 год (",$B$34,"г.):") -> 1 год (г.): | C9: =SUM(C10:C13) -> 0 | D9: =SUM(D10:D13) -> 0 | E9: =SUM(E10:E13) -> 0 | F9: =SUM(F10:F13) -> 0 | G9: =SUM(C9:F9) -> 0
A10: 1.1. | B10: 1 квартал | C10: =IF($H10>=$B$32,Заявитель1!$B$33*0.95*((12+$B$32-$H10)/12)*($B$31/4),0) -> 0 | G10: 0 | H10: 1
A11: 1.2. | B11: 2 квартал | D11: =IF($H11>=$B$32,Заявитель1!$B$33*0.95*((12+$B$32-$H11)/12)*($B$31/4),0) -> 0 | G11: 0 | H11: 2
A12: 1.3. | B12: 3 квартал | E12: =IF($H12>=$B$32,Заявитель1!$B$33*0.95*((12+$B$32-$H12)/12)*($B$31/4),0) -> 0 | G12: 0 | H12: 3
A13: 1.4. | B13: 4 квартал | F13: =IF($H13>=$B$32,Заявитель1!$B$33*0.95*((12+$B$32-$H13)/12)*($B$31/4),0) -> 0 | G13: 0 | H13: 4
A14: 2 | B14: =CONCATENATE("1 год (",$B$34+1,"г.):") -> 1 год (1г.): | C14: =SUM(C15:C18) -> 0 | D14: =SUM(D15:D18) -> 0 | E14: =SUM(E15:E18) -> 0 | F14: =SUM(F15:F18) -> 0 | G14: 0
A15: 2.1. | B15: 5 квартал | C15: =Заявитель1!$B$33*0.95*((12+$B$32-$H15)/12)*($B$31/4) -> 0 | G15: 0 | H15: 5
A16: 2.2. | B16: 6 квартал | D16: =Заявитель1!$B$33*0.95*((12+$B$32-$H16)/12)*($B$31/4) -> 0 | G16: 0 | H16: 6
A17: 2.3. | B17: 7 квартал | E17: =Заявитель1!$B$33*0.95*((12+$B$32-$H17)/12)*($B$31/4) -> 0 | G17: 0 | H17: 7
A18: 2.4. | B18: 8 квартал | F18: =Заявитель1!$B$33*0.95*((12+$B$32-$H18)/12)*($B$31/4) -> 0 | G18: 0 | H18: 8
A19: 3 | B19: =CONCATENATE("1 год (",$B$34+2,"г.):") -> 1 год (2г.): | C19: =SUM(C20:C23) -> 0 | D19: =SUM(D20:D23) -> 0 | E19: =SUM(E20:E23) -> 0 | F19: =SUM(F20:F23) -> 0 | G19: 0
A20: 3.1. | B20: 9 квартал | C20: =Заявитель1!$B$33*0.95*((12+$B$32-$H20)/12)*($B$31/4) -> 0 | G20: 0 | H20: 9
A21: 3.2. | B21: 10 квартал | D21: =Заявитель1!$B$33*0.95*((12+$B$32-$H21)/12)*($B$31/4) -> 0 | G21: 0 | H21: 10
A22: 3.3. | B22: 11 квартал | E22: =Заявитель1!$B$33*0.95*((12+$B$32-$H22)/12)*($B$31/4) -> 0 | G22: 0 | H22: 11
A23: 3.4. | B23: 12 квартал | F23: =Заявитель1!$B$33*0.95*((12+$B$32-$H23)/12)*($B$31/4) -> 0 | G23: 0 | H23: 12
A24: 4 | B24: =CONCATENATE("1 год (",$B$34+3,"г.):") -> 1 год (3г.): | C24: =SUM(C25:C27) -> 0 | D24: =SUM(D25:D27) -> 0 | E24: =SUM(E25:E27) -> 0 | F24: =SUM(F25:F27) -> 0 | G24: 0
A25: 4.1. | B25: 13 квартал | C25: =Заявитель1!$B$33*0.95*((12+$B$32-$H25)/12)*($B$31/4) -> 0 | G25: 0 | H25: 13
A26: 4.2. | B26: 14 квартал | D26: =IF((Заявитель1!$B$33*0.95*((12+$B$32-$H26)/12)*($B$31/4))<0,0,Заявитель1!$B$33*0.95*((12+$B$32-$H26)/12)*($B$31/4)) -> 0 | G26: 0 | H26: 14
A27: 4.3. | B27: 15 квартал | E27: =IF((Заявитель1!$B$33*0.95*((12+$B$32-$H27)/12)*($B$31/4))<0,0,Заявитель1!$B$33*0.95*((12+$B$32-$H27)/12)*($B$31/4)) -> 0 | G27: 0 | H27: 15
A28: 5 | B28: Итого | C28: =C9+C14+C19+C24 -> 0 | D28: =D9+D14+D19+D24 -> 0 | E28: =E9+E14+E19+E24 -> 0 | F28: =F9+F14+F19+F24 -> 0 | G28: =G9+G14+G19+G24 -> 0
A32: k
A34: Год закрытия договора
A36: Размера расходов, связанных с предоставлением беспроцентной рассрочки в 2018 году | G36: =IF(B34<2015,0,IF(B34=2015,G24,IF(B34=2016,G19,IF(B34=2017,G14)))) -> 0 | H36: тыс. руб.
A38: Размер расходов, связанных с предоставлением беспроцентной рассрочки, в i-м квартале в течение трехлетнего периода предоставления беспроцентной рассрочки рассчитывается по формуле (1):
D40: , (1)
A42: где:
A43: - суммарный размер платы за технологическое присоединение, начисляемый заявителям, которым предоставляется рассрочка, в квартале k периода регулирования (тыс. руб.);
A44: k - номер квартала по порядку в периоде регулирования, в который начисляется размер платы за технологическое присоединение (равен от 1 до 4);
A45: i - номер квартала по порядку, начиная с момента начисления размера платы за технологическое присоединение с условием предоставления беспроцентной рассрочки в квартале k, с учетом квартала, в котором произведены начисления, в течение трехлетнего периода предоставления беспроцентной рассрочки (равен от k до 12 + k - 1);
A46: - ставка рефинансирования Центрального банка Российской Федерации на дату представления сетевой организацией заявки на установление размера платы за технологическое присоединение в регулирующий орган.
A47: В случае отклонения фактического значения процентной ставки по кредитам, связанным с рассрочкой по оплате технологического присоединения, от ставки рефинансирования Центрального банка Российской Федерации, при расчете фактического размера расходов, связанных с предоставлением беспроцентной рассрочки, применяется величина процентной ставки в соответствии с пунктом 87 Основ ценообразования.
A49: Примечание:
A50: 1) Периодом предоставления беспроцентной рассрочки считается 3 года.
A51: 2) Размер расходов, связанных с предоставлением беспроцентной рассрочки, в каждый квартал периода регулирования в течение трехлетнего периода предоставления беспроцентной рассрочки в отношении планируемого к получению (фактически полученного) от заявителей суммарного размера платы за технологическое присоединение, определяется в соответствии с формулой (1) Методических указаний по определению выпадающих доходов, связанных с осуществлением технологического присоединения к электрическим сетям.
A52: 3) При расчете планируемых значений показателей при заполнении таблиц 1 и 2 применяется планируемая к получению величина суммарного размера платы за технологическое присоединение, подлежащего беспроцентной рассрочке.
A53: 4) При расчете фактических значений показателей при заполнении таблиц 1 и 2 применяется суммарная плата за технологическое присоединение, начисленная с беспроцентной рассрочкой в соответствии с заключенными договорами об осуществлении технологического присоединения к электрическим сетям.

Sheet Заявитель2
C1: Приложение 2 к Методическим указаниям, утвержденным приказом ФСТ от 11.09.2014 г. №215-э/1
A3: Расчет размера расходов, связанных с предоставлением беспроцентной рассрочки (для конкретного заявителя)
B5: (Контрагент (наименование), № договора ТП, Дата заключения договора)
A7: N п/п | B7: Квартал, на который рассчитывается размер расходов, связанных с предоставлением беспроцентной рассрочки | C7: Расходы, связанные с предоставлением беспроцентной рассрочки, тыс. руб. (с учетом НДС) | H7: Номер квартала i
C8: в отношении суммарного размера платы за технологическое присоединение в 1 квартале | D8: в отношении суммарного размера платы за технологическое присоединение во 2 квартале | E8: в отношении суммарного размера платы за технологическое присоединение в 3 квартале | F8: в отношении суммарного размера платы за технологическое присоединение в 4 квартале | G8: всего в год
A9: 1 | B9: =CONCATENATE("1 год (",$B$34,"г.):") -> 1 год (г.): | C9: =SUM(C10:C13) -> 0 | D9: =SUM(D10:D13) -> 0 | E9: =SUM(E10:E13) -> 0 | F9: =SUM(F10:F13) -> 0 | G9: =SUM(C9:F9) -> 0
A10: 1.1. | B10: 1 квартал | C10: =IF($H10>=$B$32,Заявитель2!$B$33*0.95*((12+$B$32-$H10)/12)*($B$31/4),0) -> 0 | G10: 0 | H10: 1
A11: 1.2. | B11: 2 квартал | D11: =IF($H11>=$B$32,Заявитель2!$B$33*0.95*((12+$B$32-$H11)/12)*($B$31/4),0) -> 0 | G11: 0 | H11: 2
A12: 1.3. | B12: 3 квартал | E12: =IF($H12>=$B$32,Заявитель2!$B$33*0.95*((12+$B$32-$H12)/12)*($B$31/4),0) -> 0 | G12: 0 | H12: 3
A13: 1.4. | B13: 4 квартал | F13: =IF($H13>=$B$32,Заявитель2!$B$33*0.95*((12+$B$32-$H13)/12)*($B$31/4),0) -> 0 | G13: 0 | H13: 4
A14: 2 | B14: =CONCATENATE("1 год (",$B$34+1,"г.):") -> 1 год (1г.): | C14: =SUM(C15:C18) -> 0 | D14: =SUM(D15:D18) -> 0 | E14: =SUM(E15:E18) -> 0 | F14: =SUM(F15:F18) -> 0 | G14: 0
A15: 2.1. | B15: 5 квартал | C15: =Заявитель2!$B$33*0.95*((12+$B$32-$H15)/12)*($B$31/4) -> 0 | G15: 0 | H15: 5
A16: 2.2. | B16: 6 квартал | D16: =Заявитель2!$B$33*0.95*((12+$B$32-$H16)/12)*($B$31/4) -> 0 | G16: 0 | H16: 6
A17: 2.3. | B17: 7 квартал | E17: =Заявитель2!$B$33*0.95*((12+$B$32-$H17)/12)*($B$31/4) -> 0 | G17: 0 | H17: 7
A18: 2.4. | B18: 8 квартал | F18: =Заявитель2!$B$33*0.95*((12+$B$32-$H18)/12)*($B$31/4) -> 0 | G18: 0 | H18: 8
A19: 3 | B19: =CONCATENATE("1 год (",$B$34+2,"г.):") -> 1 год (2г.): | C19: =SUM(C20:C23) -> 0 | D19: =SUM(D20:D23) -> 0 | E19: =SUM(E20:E23) -> 0 | F19: =SUM(F20:F23) -> 0 | G19: 0
A20: 3.1. | B20: 9 квартал | C20: =Заявитель2!$B$33*0.95*((12+$B$32-$H20)/12)*($B$31/4) -> 0 | G20: 0 | H20: 9
A21: 3.2. | B21: 10 квартал | D21: =Заявитель2!$B$33*0.95*((12+$B$32-$H21)/12)*($B$31/4) -> 0 | G21: 0 | H21: 10
A22: 3.3. | B22: 11 квартал | E22: =Заявитель2!$B$33*0.95*((12+$B$32-$H22)/12)*($B$31/4) -> 0 | G22: 0 | H22: 11
A23: 3.4. | B23: 12 квартал | F23: =Заявитель2!$B$33*0.95*((12+$B$32-$H23)/12)*($B$31/4) -> 0 | G23: 0 | H23: 12
A24: 4 | B24: =CONCATENATE("1 год (",$B$34+3,"г.):") -> 1 год (3г.): | C24: =SUM(C25:C27) -> 0 | D24: =SUM(D25:D27) -> 0 | E24: =SUM(E25:E27) -> 0 | F24: =SUM(F25:F27) -> 0 | G24: 0
A25: 4.1. | B25: 13 квартал | C25: =Заявитель2!$B$33*0.95*((12+$B$32-$H25)/12)*($B$31/4) -> 0 | G25: 0 | H25: 13
A26: 4.2. | B26: 14 квартал | D26: =IF((Заявитель2!$B$33*0.95*((12+$B$32-$H26)/12)*($B$31/4))<0,0,Заявитель2!$B$33*0.95*((12+$B$32-$H26)/12)*($B$31/4)) -> 0 | G26: 0 | H26: 14
A27: 4.3. | B27: 15 квартал | E27: =IF((Заявитель2!$B$33*0.95*((12+$B$32-$H27)/12)*($B$31/4))<0,0,Заявитель2!$B$33*0.95*((12+$B$32-$H27)/12)*($B$31/4)) -> 0 | G27: 0 | H27: 15
A28: 5 | B28: Итого | C28: =C9+C14+C19+C24 -> 0 | D28: =D9+D14+D19+D24 -> 0 | E28: =E9+E14+E19+E24 -> 0 | F28: =F9+F14+F19+F24 -> 0 | G28: =G9+G14+G19+G24 -> 0
A32: k
A34: Год закрытия договора
A36: Размера расходов, связанных с предоставлением беспроцентной рассрочки в 2018 году | G36: =IF(B34<2015,0,IF(B34=2015,G24,IF(B34=2016,G19,IF(B34=2017,G14)))) -> 0 | H36: тыс. руб.
A38: Размер расходов, связанных с предоставлением беспроцентной рассрочки, в i-м квартале в течение трехлетнего периода предоставления беспроцентной рассрочки рассчитывается по формуле (1):
D40: , (1)
A42: где:
A43: - суммарный размер платы за технологическое присоединение, начисляемый заявителям, которым предоставляется рассрочка, в квартале k периода регулирования (тыс. руб.);
A44: k - номер квартала по порядку в периоде регулирования, в который начисляется размер платы за технологическое присоединение (равен от 1 до 4);
A45: i - номер квартала по порядку, начиная с момента начисления размера платы за технологическое присоединение с условием предоставления беспроцентной рассрочки в квартале k, с учетом квартала, в котором произведены начисления, в течение трехлетнего периода предоставления беспроцентной рассрочки (равен от k до 12 + k - 1);
A46: - ставка рефинансирования Центрального банка Российской Федерации на дату представления сетевой организацией заявки на установление размера платы за технологическое присоединение в регулирующий орган.
A47: В случае отклонения фактического значения процентной ставки по кредитам, связанным с рассрочкой по оплате технологического присоединения, от ставки рефинансирования Центрального банка Российской Федерации, при расчете фактического размера расходов, связанных с предоставлением беспроцентной рассрочки, применяется величина процентной ставки в соответствии с пунктом 87 Основ ценообразования.
A49: Примечание:
A50: 1) Периодом предоставления беспроцентной рассрочки считается 3 года.
A51: 2) Размер расходов, связанных с предоставлением беспроцентной рассрочки, в каждый квартал периода регулирования в течение трехлетнего периода предоставления беспроцентной рассрочки в отношении планируемого к получению (фактически полученного) от заявителей суммарного размера платы за технологическое присоединение, определяется в соответствии с формулой (1) Методических указаний по определению выпадающих доходов, связанных с осуществлением технологического присоединения к электрическим сетям.
A52: 3) При расчете планируемых значений показателей при заполнении таблиц 1 и 2 применяется планируемая к получению величина суммарного размера платы за технологическое присоединение, подлежащего беспроцентной рассрочке.
A53: 4) При расчете фактических значений показателей при заполнении таблиц 1 и 2 применяется суммарная плата за технологическое присоединение, начисленная с беспроцентной рассрочкой в соответствии с заключенными договорами об осуществлении технологического присоединения к электрическим сетям.

Sheet Заявитель3
C1: Приложение 2 к Методическим указаниям, утвержденным приказом ФСТ от 11.09.2014 г. №215-э/1
A3: Расчет размера расходов, связанных с предоставлением беспроцентной рассрочки (для конкретного заявителя)
B5: (Контрагент (наименование), № договора ТП, Дата заключения договора)
A7: N п/п | B7: Квартал, на который рассчитывается размер расходов, связанных с предоставлением беспроцентной рассрочки | C7: Расходы, связанные с предоставлением беспроцентной рассрочки, тыс. руб. (с учетом НДС) | H7: Номер квартала i
C8: в отношении суммарного размера платы за технологическое присоединение в 1 квартале | D8: в отношении суммарного размера платы за технологическое присоединение во 2 квартале | E8: в отношении суммарного размера платы за технологическое присоединение в 3 квартале | F8: в отношении суммарного размера платы за технологическое присоединение в 4 квартале | G8: всего в год
A9: 1 | B9: =CONCATENATE("1 год (",$B$34,"г.):") -> 1 год (г.): | C9: =SUM(C10:C13) -> 0 | D9: =SUM(D10:D13) -> 0 | E9: =SUM(E10:E13) -> 0 | F9: =SUM(F10:F13) -> 0 | G9: =SUM(C9:F9) -> 0
A10: 1.1. | B10: 1 квартал | C10: =IF($H10>=$B$32,Заявитель3!$B$33*0.95*((12+$B$32-$H10)/12)*($B$31/4),0) -> 0 | G10: 0 | H10: 1
A11: 1.2. | B11: 2 квартал | D11: =IF($H11>=$B$32,Заявитель3!$B$33*0.95*((12+$B$32-$H11)/12)*($B$31/4),0) -> 0 | G11: 0 | H11: 2
A12: 1.3. | B12: 3 квартал | E12: =IF($H12>=$B$32,Заявитель3!$B$33*0.95*((12+$B$32-$H12)/12)*($B$31/4),0) -> 0 | G12: 0 | H12: 3
A13: 1.4. | B13: 4 квартал | F13: =IF($H13>=$B$32,Заявитель3!$B$33*0.95*((12+$B$32-$H13)/12)*($B$31/4),0) -> 0 | G13: 0 | H13: 4
A14: 2 | B14: =CONCATENATE("1 год (",$B$34+1,"г.):") -> 1 год (1г.): | C14: =SUM(C15:C18) -> 0 | D14: =SUM(D15:D18) -> 0 | E14: =SUM(E15:E18) -> 0 | F14: =SUM(F15:F18) -> 0 | G14: 0
A15: 2.1. | B15: 5 квартал | C15: =Заявитель3!$B$33*0.95*((12+$B$32-$H15)/12)*($B$31/4) -> 0 | G15: 0 | H15: 5
A16: 2.2. | B16: 6 квартал | D16: =Заявитель3!$B$33*0.95*((12+$B$32-$H16)/12)*($B$31/4) -> 0 | G16: 0 | H16: 6
A17: 2.3. | B17: 7 квартал | E17: =Заявитель3!$B$33*0.95*((12+$B$32-$H17)/12)*($B$31/4) -> 0 | G17: 0 | H17: 7
A18: 2.4. | B18: 8 квартал | F18: =Заявитель3!$B$33*0.95*((12+$B$32-$H18)/12)*($B$31/4) -> 0 | G18: 0 | H18: 8
A19: 3 | B19: =CONCATENATE("1 год (",$B$34+2,"г.):") -> 1 год (2г.): | C19: =SUM(C20:C23) -> 0 | D19: =SUM(D20:D23) -> 0 | E19: =SUM(E20:E23) -> 0 | F19: =SUM(F20:F23) -> 0 | G19: 0
A20: 3.1. | B20: 9 квартал | C20: =Заявитель3!$B$33*0.95*((12+$B$32-$H20)/12)*($B$31/4) -> 0 | G20: 0 | H20: 9
A21: 3.2. | B21: 10 квартал | D21: =Заявитель3!$B$33*0.95*((12+$B$32-$H21)/12)*($B$31/4) -> 0 | G21: 0 | H21: 10
A22: 3.3. | B22: 11 квартал | E22: =Заявитель3!$B$33*0.95*((12+$B$32-$H22)/12)*($B$31/4) -> 0 | G22: 0 | H22: 11
A23: 3.4. | B23: 12 квартал | F23: =Заявитель3!$B$33*0.95*((12+$B$32-$H23)/12)*($B$31/4) -> 0 | G23: 0 | H23: 12
A24: 4 | B24: =CONCATENATE("1 год (",$B$34+3,"г.):") -> 1 год (3г.): | C24: =SUM(C25:C27) -> 0 | D24: =SUM(D25:D27) -> 0 | E24: =SUM(E25:E27) -> 0 | F24: =SUM(F25:F27) -> 0 | G24: 0
A25: 4.1. | B25: 13 квартал | C25: =Заявитель3!$B$33*0.95*((12+$B$32-$H25)/12)*($B$31/4) -> 0 | G25: 0 | H25: 13
A26: 4.2. | B26: 14 квартал | D26: =IF((Заявитель3!$B$33*0.95*((12+$B$32-$H26)/12)*($B$31/4))<0,0,Заявитель3!$B$33*0.95*((12+$B$32-$H26)/12)*($B$31/4)) -> 0 | G26: 0 | H26: 14
A27: 4.3. | B27: 15 квартал | E27: =IF((Заявитель3!$B$33*0.95*((12+$B$32-$H27)/12)*($B$31/4))<0,0,Заявитель3!$B$33*0.95*((12+$B$32-$H27)/12)*($B$31/4)) -> 0 | G27: 0 | H27: 15
A28: 5 | B28: Итого | C28: =C9+C14+C19+C24 -> 0 | D28: =D9+D14+D19+D24 -> 0 | E28: =E9+E14+E19+E24 -> 0 | F28: =F9+F14+F19+F24 -> 0 | G28: =G9+G14+G19+G24 -> 0
A32: k
A34: Год закрытия договора
A36: Размера расходов, связанных с предоставлением беспроцентной рассрочки в 2018 году | G36: =IF(B34<2015,0,IF(B34=2015,G24,IF(B34=2016,G19,IF(B34=2017,G14)))) -> 0 | H36: тыс. руб.
A38: Размер расходов, связанных с предоставлением беспроцентной рассрочки, в i-м квартале в течение трехлетнего периода предоставления беспроцентной рассрочки рассчитывается по формуле (1):
D40: , (1)
A42: где:
A43: - суммарный размер платы за технологическое присоединение, начисляемый заявителям, которым предоставляется рассрочка, в квартале k периода регулирования (тыс. руб.);
A44: k - номер квартала по порядку в периоде регулирования, в который начисляется размер платы за технологическое присоединение (равен от 1 до 4);
A45: i - номер квартала по порядку, начиная с момента начисления размера платы за технологическое присоединение с условием предоставления беспроцентной рассрочки в квартале k, с учетом квартала, в котором произведены начисления, в течение трехлетнего периода предоставления беспроцентной рассрочки (равен от k до 12 + k - 1);
A46: - ставка рефинансирования Центрального банка Российской Федерации на дату представления сетевой организацией заявки на установление размера платы за технологическое присоединение в регулирующий орган.
A47: В случае отклонения фактического значения процентной ставки по кредитам, связанным с рассрочкой по оплате технологического присоединения, от ставки рефинансирования Центрального банка Российской Федерации, при расчете фактического размера расходов, связанных с предоставлением беспроцентной рассрочки, применяется величина процентной ставки в соответствии с пунктом 87 Основ ценообразования.
A49: Примечание:
A50: 1) Периодом предоставления беспроцентной рассрочки считается 3 года.
A51: 2) Размер расходов, связанных с предоставлением беспроцентной рассрочки, в каждый квартал периода регулирования в течение трехлетнего периода предоставления беспроцентной рассрочки в отношении планируемого к получению (фактически полученного) от заявителей суммарного размера платы за технологическое присоединение, определяется в соответствии с формулой (1) Методических указаний по определению выпадающих доходов, связанных с осуществлением технологического присоединения к электрическим сетям.
A52: 3) При расчете планируемых значений показателей при заполнении таблиц 1 и 2 применяется планируемая к получению величина суммарного размера платы за технологическое присоединение, подлежащего беспроцентной рассрочке.
A53: 4) При расчете фактических значений показателей при заполнении таблиц 1 и 2 применяется суммарная плата за технологическое присоединение, начисленная с беспроцентной рассрочкой в соответствии с заключенными договорами об осуществлении технологического присоединения к электрическим сетям.

Sheet Заявитель4
C1: Приложение 2 к Методическим указаниям, утвержденным приказом ФСТ от 11.09.2014 г. №215-э/1
A3: Расчет размера расходов, связанных с предоставлением беспроцентной рассрочки (для конкретного заявителя)
B5: (Контрагент (наименование), № договора ТП, Дата заключения договора)
A7: N п/п | B7: Квартал, на который рассчитывается размер расходов, связанных с предоставлением беспроцентной рассрочки | C7: Расходы, связанные с предоставлением беспроцентной рассрочки, тыс. руб. (с учетом НДС) | H7: Номер квартала i
C8: в отношении суммарного размера платы за технологическое присоединение в 1 квартале | D8: в отношении суммарного размера платы за технологическое присоединение во 2 квартале | E8: в отношении суммарного размера платы за технологическое присоединение в 3 квартале | F8: в отношении суммарного размера платы за технологическое присоединение в 4 квартале | G8: всего в год
A9: 1 | B9: =CONCATENATE("1 год (",$B$34,"г.):") -> 1 год (г.): | C9: =SUM(C10:C13) -> 0 | D9: =SUM(D10:D13) -> 0 | E9: =SUM(E10:E13) -> 0 | F9: =SUM(F10:F13) -> 0 | G9: =SUM(C9:F9) -> 0
A10: 1.1. | B10: 1 квартал | C10: =IF($H10>=$B$32,Заявитель4!$B$33*0.95*((12+$B$32-$H10)/12)*($B$31/4),0) -> 0 | G10: 0 | H10: 1
A11: 1.2. | B11: 2 квартал | D11: =IF($H11>=$B$32,Заявитель4!$B$33*0.95*((12+$B$32-$H11)/12)*($B$31/4),0) -> 0 | G11: 0 | H11: 2
A12: 1.3. | B12: 3 квартал | E12: =IF($H12>=$B$32,Заявитель4!$B$33*0.95*((12+$B$32-$H12)/12)*($B$31/4),0) -> 0 | G12: 0 | H12: 3
A13: 1.4. | B13: 4 квартал | F13: =IF($H13>=$B$32,Заявитель4!$B$33*0.95*((12+$B$32-$H13)/12)*($B$31/4),0) -> 0 | G13: 0 | H13: 4
A14: 2 | B14: =CONCATENATE("1 год (",$B$34+1,"г.):") -> 1 год (1г.): | C14: =SUM(C15:C18) -> 0 | D14: =SUM(D15:D18) -> 0 | E14: =SUM(E15:E18) -> 0 | F14: =SUM(F15:F18) -> 0 | G14: 0
A15: 2.1. | B15: 5 квартал | C15: =Заявитель4!$B$33*0.95*((12+$B$32-$H15)/12)*($B$31/4) -> 0 | G15: 0 | H15: 5
A16: 2.2. | B16: 6 квартал | D16: =Заявитель4!$B$33*0.95*((12+$B$32-$H16)/12)*($B$31/4) -> 0 | G16: 0 | H16: 6
A17: 2.3. | B17: 7 квартал | E17: =Заявитель4!$B$33*0.95*((12+$B$32-$H17)/12)*($B$31/4) -> 0 | G17: 0 | H17: 7
A18: 2.4. | B18: 8 квартал | F18: =Заявитель4!$B$33*0.95*((12+$B$32-$H18)/12)*($B$31/4) -> 0 | G18: 0 | H18: 8
A19: 3 | B19: =CONCATENATE("1 год (",$B$34+2,"г.):") -> 1 год (2г.): | C19: =SUM(C20:C23) -> 0 | D19: =SUM(D20:D23) -> 0 | E19: =SUM(E20:E23) -> 0 | F19: =SUM(F20:F23) -> 0 | G19: 0
A20: 3.1. | B20: 9 квартал | C20: =Заявитель4!$B$33*0.95*((12+$B$32-$H20)/12)*($B$31/4) -> 0 | G20: 0 | H20: 9
A21: 3.2. | B21: 10 квартал | D21: =Заявитель4!$B$33*0.95*((12+$B$32-$H21)/12)*($B$31/4) -> 0 | G21: 0 | H21: 10
A22: 3.3. | B22: 11 квартал | E22: =Заявитель4!$B$33*0.95*((12+$B$32-$H22)/12)*($B$31/4) -> 0 | G22: 0 | H22: 11
A23: 3.4. | B23: 12 квартал | F23: =Заявитель4!$B$33*0.95*((12+$B$32-$H23)/12)*($B$31/4) -> 0 | G23: 0 | H23: 12
A24: 4 | B24: =CONCATENATE("1 год (",$B$34+3,"г.):") -> 1 год (3г.): | C24: =SUM(C25:C27) -> 0 | D24: =SUM(D25:D27) -> 0 | E24: =SUM(E25:E27) -> 0 | F24: =SUM(F25:F27) -> 0 | G24: 0
A25: 4.1. | B25: 13 квартал | C25: =Заявитель4!$B$33*0.95*((12+$B$32-$H25)/12)*($B$31/4) -> 0 | G25: 0 | H25: 13
A26: 4.2. | B26: 14 квартал | D26: =IF((Заявитель4!$B$33*0.95*((12+$B$32-$H26)/12)*($B$31/4))<0,0,Заявитель4!$B$33*0.95*((12+$B$32-$H26)/12)*($B$31/4)) -> 0 | G26: 0 | H26: 14
A27: 4.3. | B27: 15 квартал | E27: =IF((Заявитель4!$B$33*0.95*((12+$B$32-$H27)/12)*($B$31/4))<0,0,Заявитель4!$B$33*0.95*((12+$B$32-$H27)/12)*($B$31/4)) -> 0 | G27: 0 | H27: 15
A28: 5 | B28: Итого | C28: =C9+C14+C19+C24 -> 0 | D28: =D9+D14+D19+D24 -> 0 | E28: =E9+E14+E19+E24 -> 0 | F28: =F9+F14+F19+F24 -> 0 | G28: =G9+G14+G19+G24 -> 0
A32: k
A34: Год закрытия договора
A36: Размера расходов, связанных с предоставлением беспроцентной рассрочки в 2018 году | G36: =IF(B34<2015,0,IF(B34=2015,G24,IF(B34=2016,G19,IF(B34=2017,G14)))) -> 0 | H36: тыс. руб.
A38: Размер расходов, связанных с предоставлением беспроцентной рассрочки, в i-м квартале в течение трехлетнего периода предоставления беспроцентной рассрочки рассчитывается по формуле (1):
D40: , (1)
A42: где:
A43: - суммарный размер платы за технологическое присоединение, начисляемый заявителям, которым предоставляется рассрочка, в квартале k периода регулирования (тыс. руб.);
A44: k - номер квартала по порядку в периоде регулирования, в который начисляется размер платы за технологическое присоединение (равен от 1 до 4);
A45: i - номер квартала по порядку, начиная с момента начисления размера платы за технологическое присоединение с условием предоставления беспроцентной рассрочки в квартале k, с учетом квартала, в котором произведены начисления, в течение трехлетнего периода предоставления беспроцентной рассрочки (равен от k до 12 + k - 1);
A46: - ставка рефинансирования Центрального банка Российской Федерации на дату представления сетевой организацией заявки на установление размера платы за технологическое присоединение в регулирующий орган.
A47: В случае отклонения фактического значения процентной ставки по кредитам, связанным с рассрочкой по оплате технологического присоединения, от ставки рефинансирования Центрального банка Российской Федерации, при расчете фактического размера расходов, связанных с предоставлением беспроцентной рассрочки, применяется величина процентной ставки в соответствии с пунктом 87 Основ ценообразования.
A49: Примечание:
A50: 1) Периодом предоставления беспроцентной рассрочки считается 3 года.
A51: 2) Размер расходов, связанных с предоставлением беспроцентной рассрочки, в каждый квартал периода регулирования в течение трехлетнего периода предоставления беспроцентной рассрочки в отношении планируемого к получению (фактически полученного) от заявителей суммарного размера платы за технологическое присоединение, определяется в соответствии с формулой (1) Методических указаний по определению выпадающих доходов, связанных с осуществлением технологического присоединения к электрическим сетям.
A52: 3) При расчете планируемых значений показателей при заполнении таблиц 1 и 2 применяется планируемая к получению величина суммарного размера платы за технологическое присоединение, подлежащего беспроцентной рассрочке.
A53: 4) При расчете фактических значений показателей при заполнении таблиц 1 и 2 применяется суммарная плата за технологическое присоединение, начисленная с беспроцентной рассрочкой в соответствии с заключенными договорами об осуществлении технологического присоединения к электрическим сетям.

Sheet Возврат заемных средств
A2: Расходы на возврат и обслуживание долгосрочных заемных средств, направляемых на финансирования капитальных вложений
A4: ='Инф-я'!C9 -> Общество с ограниченной ответственностью "Энергетик"
F5: тыс. руб.
A6: Показатели | B6: 2016 год | D6: 2017 год | F6: 2018 год | H6: 2019 год
B7: Утверждено | C7: Факт | D7: Утверждено | E7: Ожидаемые | F7: По данным организации | G7: По данным экспертов
A8: 1 | B8: 2 | C8: 3 | D8: 4 | E8: 5 | F8: 6 | G8: 7 | H8: 8
A9: Расходы по возврату заемных средств, направляемых на финансирования капитальных вложений | C9: 4636.77203 | D9: 506.68 | E9: 5615.5473 | F9: 1042.42443
A10: Расходы на обслуживание долгосрочных заемных вредств, направляемых на финансирования капитальных вложений | C10: 1764.66217 | D10: 184.9382 | E10: 785.8869 | F10: 24.4815
A11: Итого расходы на возврат и обслуживание долгосрочных заемных средств, направляемых на финансирования капитальных вложений | B11: =B10+B9 -> 0 | C11: 6401.4342 | D11: 691.6182 | E11: 6401.4342 | F11: 1066.90593 | G11: 0 | H11: =H10+H9 -> 0
A12: в т.ч. по уровням напряжения: ВН | B12: х | C12: х | E12: х
A13: СН1 | B13: х | C13: х | E13: х
A14: СН11 | B14: х | C14: х | E14: х
A15: НН | B15: х | C15: х | E15: х
A17: Руководитель организации | D17: ='Инф-я'!$C$17 -> Окунев Василий Михайлович

Sheet Корр. ПР
A2: Корректировка подконтрольных расходов по результатам 2016 года
A4: ='Инф-я'!C9 -> Общество с ограниченной ответственностью "Энергетик"
A6: № п.п. | B6: Наименование | C6: Ед.изм. | D6: 2016 год
D8: По расчету организации | E8: По расчету экспертов
A9: 1 | B9: 2 | C9: 3 | D9: 4 | E9: 5
A10: 1. | B10: Величина подконтрольных расходов, утвержденных на 2015 год | C10: тыс.руб. | D10: 28486.08466
A11: 2. | B11: Величина подконтрольных расходов, утвержденных на 2016 год | C11: тыс.руб. | D11: 30260.18628
A12: 3. | B12: Фактический индекс потребительских цен 2016 года (ИПЦ) | C12: % | D12: 0.042
A13: 4. | B13: Индекс эффективности подконтрольных расходов (Хэф) | C13: % | D13: ='Подконтрольные расходы'!E10 -> 0.01 | E13: =D13 -> 0.01
A14: 5. | B14: Индекс изменения количества активов (ИКАф) ((стр.5.1.- стр. 5.2.)/стр.5.2*100) | C14: % | D14: =IF(D16=0,0,(D15-D16)/D16) -> 0.07439613635 | E14: =IF(E16=0,0,(E15-E16)/E16) -> 0.07439613635
A15: 5.1. | B15: фактический объем условных единиц 2016 года | C15: усл.ед. | D15: ='УЕ ТП 2015-2018'!L59 -> 960.703 | E15: =D15 -> 960.703
A16: 5.2. | B16: фактический объем условных единиц 2015 года | C16: усл.ед. | D16: ='УЕ ТП 2015-2018'!H59 -> 894.1795 | E16: =D16 -> 894.1795
A17: 6. | B17: Коэффициент эластичности подконтрольных расходов по количеству активов (К эл) | C17: знач. | D17: 0.75 | E17: 0.75
A18: Итого корректировка подконтрольных расходов | C18: тыс.руб. | D18: =D10*(1+D12)*(1+D17*D14)*(1-D13)-D11 -> 765.1244615 | E18: =E10*(1+E12)*(1+E17*E14)*(1-E13)-E11 -> 0
B20: Руководитель организации | D20: ='Инф-я'!$C$17 -> Окунев Василий Михайлович

Sheet Корр. ПО
A2: Корректировка НВВ с учетом изменения полезного отпуска и цен на электрическую энергию за 2016 год
A4: ='Инф-я'!C9 -> Общество с ограниченной ответственностью "Энергетик"
A6: Месяц (Период) | B6: Вход электрической энергии в сеть организации | D6: Норматив потерь | E6: Объем потерь 2016 года | G6: Цена покупки потерь электрической энергии | I6: Величина корректировки
B7: План | C7: Факт | E7: Согласовано регулирующим органом | F7: Факт | G7: Учтенная при установлении тарифа | H7: Фактическая цена | I7: По данным организации | J7: По данным экспертов
A8: Ед.изм. | B8: тыс.кВт.ч. | C8: тыс.кВт.ч. | D8: % | E8: тыс.кВт.ч. | F8: тыс.кВт.ч. | G8: руб/тыс.кВт.ч | H8: руб/тыс.кВт.ч | I8: тыс. руб. | J8: тыс. руб.
A9: По данным организации
A10: Январь | B10: х | C10: 2691.972 | D10: х | E10: х | F10: 417.951 | G10: х | H10: =1761.82*1.18 -> 2078.9476 | I10: х | J10: х
A11: Февраль | B11: х | C11: 2294.106 | D11: х | E11: х | F11: 358.158 | G11: х | H11: =1708.04*1.18 -> 2015.4872 | I11: х | J11: х
A12: Март | B12: х | C12: 2344.646 | D12: х | E12: х | F12: 366.416 | G12: х | H12: =1808.52*1.18 -> 2134.0536 | I12: х | J12: х
A13: Апрель | B13: х | C13: 2098.938 | D13: х | E13: х | F13: 327.577 | G13: х | H13: =1771.21*1.18 -> 2090.0278 | I13: х | J13: х
A14: Май | B14: х | C14: 1771.954 | D14: х | E14: х | F14: 233.703 | G14: х | H14: =1853.53*1.18 -> 2187.1654 | I14: х | J14: х
A15: Июнь | B15: х | C15: 1727.252 | D15: х | E15: х | F15: 200.553 | G15: х | H15: =1886.52*1.18 -> 2226.0936 | I15: х | J15: х
A16: 1 полугодие | B16: 13569 | C16: =C10+C11+C12+C13+C14+C15 -> 12928.868 | D16: х | E16: 2121.1 | F16: =F10+F11+F12+F13+F14+F15 -> 1904.358 | G16: 2219.067366 | H16: х | I16: х | L16: 0.41116 | M16: 0.48028
A17: Июль | B17: х | C17: 1752.87 | D17: х | E17: х | F17: 256.825 | G17: х | H17: =2174.21*1.18 -> 2565.5678 | I17: х | J17: х
A18: Август | B18: х | C18: 1814.842 | D18: х | E18: х | F18: 246.302 | G18: х | H18: =2199.57*1.18 -> 2595.4926 | I18: х | J18: х
A19: Сентябрь | B19: х | C19: 2046.058 | D19: х | E19: х | F19: 259.022 | G19: х | H19: =2098.165*1.18 -> 2475.8347 | I19: х | J19: х
A20: Октябрь | B20: х | C20: 2351.234 | D20: х | E20: х | F20: 286.409 | G20: х | H20: =2020.37*1.18 -> 2384.0366 | I20: х | J20: х
A21: Ноябрь | B21: х | C21: 2447.976 | D21: х | E21: х | F21: 342.203 | G21: х | H21: =2012.16*1.18 -> 2374.3488 | I21: х | J21: х
A22: Декабрь | B22: х | C22: 2589.632 | D22: х | E22: х | F22: 375.497 | G22: х | H22: =1929.17*1.18 -> 2276.4206 | I22: х | J22: х
A23: 2 полугодие | B23: 11306.9 | C23: =C17+C18+C19+C20+C21+C22 -> 13002.612 | D23: х | E23: 1767.5 | F23: =F17+F18+F19+F20+F21+F22 -> 1766.258 | G23: 2592.11193 | H23: х | I23: х | J23: х
A24: ВСЕГО: | B24: =B16+B23 -> 24875.9 | C24: =C16+C23 -> 25931.48 | D24: =E24/B24 -> 0.1563199723 | E24: =E16+E23 -> 3888.6 | F24: =F16+F23 -> 3670.616 | G24: =IF(E24=0,0,(E16*G16+E23*G23)/E24) -> 2388.628716 | H24: =IF(F24=0,0,(F10*H10+F11*H11+F12*H12+F13*H13+F14*H14+F15*H15+F17*H17+F18*H18+F19*H19+F20*H20+F21*H21+F22*H22)/F24) -> 2262.436313 | I24: =((C24-B24)*D24*H24+B24*(H24-G24)*D24)/1000 -> -117.391153 | J24: х
A25: По данным экспертов
A26: Январь | B26: х | D26: х | E26: х | G26: х | I26: х | J26: х
A27: Февраль | B27: х | D27: х | E27: х | G27: х | I27: х | J27: х
A28: Март | B28: х | D28: х | E28: х | G28: х | I28: х | J28: х
A29: Апрель | B29: х | D29: х | E29: х | G29: х | I29: х | J29: х
A30: Май | B30: х | D30: х | E30: х | G30: х | I30: х | J30: х
A31: Июнь | B31: х | D31: х | E31: х | G31: х | I31: х | J31: х
A32: 1 полугодие | C32: =C26+C27+C28+C29+C30+C31 -> 0 | D32: х | F32: =F26+F27+F28+F29+F30+F31 -> 0 | H32: х | I32: х | J32: х
A33: Июль | B33: х | D33: х | E33: х | G33: х | I33: х | J33: х
A34: Август | B34: х | D34: х | E34: х | G34: х | I34: х | J34: х
A35: Сентябрь | B35: х | D35: х | E35: х | G35: х | I35: х | J35: х
A36: Октябрь | B36: х | D36: х | E36: х | G36: х | I36: х | J36: х
A37: Ноябрь | B37: х | D37: х | E37: х | G37: х | I37: х | J37: х
A38: Декабрь | B38: х | D38: х | E38: х | G38: х | I38: х | J38: х
A39: 2 полугодие | C39: =C33+C34+C35+C36+C37+C38 -> 0 | D39: х | F39: =F33+F34+F35+F36+F37+F38 -> 0 | H39: х | I39: х | J39: х
A40: ВСЕГО: | B40: =B32+B39 -> 0 | C40: =C32+C39 -> 0 | D40: =E40/B40 ->  | E40: =E32+E39 -> 0 | F40: =F32+F39 -> 0 | G40: =IF(E40=0,0,(E32*G32+E39*G39)/E40) -> 0 | H40: =IF(F40=0,0,(F26*H26+F27*H27+F28*H28+F29*H29+F30*H30+F31*H31+F33*H33+F34*H34+F35*H35+F36*H36+F37*H37+F38*H38)/F40) -> 0 | I40: х | J40: =((C40-B40)*D40*H40+B40*(H40-G40)*D40)/1000 -> 
A42: Руководитель организации | F42: ='Инф-я'!$C$17 -> Окунев Василий Михайлович
A45: Справочная информация:
A47: Наименование энергосбытовой организации - Гарантирующего поставщика | C47: Ед.изм. | D47: Цена (тариф) покупки потерь электрической энергии, учтенная при расчете тарифа на компенсацию потерь на 2016 год
D48: с 01.01.2016г. | F48: с 01.07.2016г.
A49: ОАО "Владимирэнергосбыт" | C49: руб./МВт.ч.
A50: ОАО "Владимирские коммунальные сети" | C50: руб./МВт.ч.
A51: ООО "Русэнергосбыт" | C51: руб./МВт.ч.
A52: ОАО "Оборонэнергосбыт" | C52: руб./МВт.ч.

Sheet Корр. НР
A2: Корректировка неподконтрольных расходов по результатам 2016 года
A4: ='Инф-я'!C9 -> Общество с ограниченной ответственностью "Энергетик"
A6: № п/п | B6: Наименование показателей | C6: 2016 год утверждено | D6: По данным организации | F6: По данным экспертов
D7: Факт 2016 год | E7: Величина корректировки НР | F7: Факт 2016 год | G7: Величина корректировки НР
A8: 1 | B8: 2 | C8: 3 | D8: 4 | E8: 5 | F8: 6 | G8: 7
A9: 1. | B9: Отчисления во внебюджетные фонды | C9: ='Отчислен во внебюдж фонды'!D18 -> 3315.861894 | D9: ='Отчислен во внебюдж фонды'!E18 -> 3671.31029 | E9: =D9-C9 -> 355.4483963 | F9: ='Отчислен во внебюдж фонды'!K18 -> 0 | G9: =F9-C9 -> -3315.861894
A10: 2. | B10: Расходы на оплату услуг организаций, осуществляющие регулируемые виды деятельности | C10: ='Расходы рег. орг-ий'!B22 -> 167.5421008 | D10: ='Расходы рег. орг-ий'!C22 -> 238.60836 | E10: 71.06625925 | F10: ='Расходы рег. орг-ий'!I22 -> 0 | G10: -167.5421008
A11: 3. | B11: Плата за землю | C11: ='Плата за землю'!B16 -> 191.9820752 | D11: ='Плата за землю'!C16 -> 342.03947 | E11: 150.0573948 | F11: ='Плата за землю'!I16 -> 0 | G11: -191.9820752
A12: 4. | B12: Транспортный налог | C12: ='Транспортный налог'!D16 -> 0 | D12: ='Транспортный налог'!E16 -> 0 | E12: 0 | F12: ='Транспортный налог'!M16 -> 0 | G12: 0
A13: 5. | B13: Налог на имущество | C13: ='Налог на имущество'!B15 -> 0 | D13: ='Налог на имущество'!C15 -> 0 | E13: 0 | F13: ='Налог на имущество'!I15 -> 0 | G13: 0
A14: 6. | B14: Плата за негативное воздействие на окружающую среду | C14: ='Негативное воздействие на ОС'!C28 -> 0 | D14: ='Негативное воздействие на ОС'!D28 -> 2 | E14: 2 | F14: ='Негативное воздействие на ОС'!J28 -> 0 | G14: 0
A15: 7. | B15: Налог на прибыль | C15: ='Налог прим при УСНО'!C10 -> 634.6 | D15: ='Налог прим при УСНО'!D10 -> 991.895 | E15: 357.295 | F15: ='Налог прим при УСНО'!I10 -> 0 | G15: -634.6
A16: 8. | B16: Плата за аренду имущества | C16: ='Аренда имущества'!B42 -> 4609.8448 | D16: ='Аренда имущества'!C42 -> 4850.49956 | E16: 240.65476 | F16: ='Аренда имущества'!W42 -> 0 | G16: -4609.8448
A17: 9. | B17: Оплата услуг ОАО "ФСК ЕЭС" | C17: ='Услуги ФСК'!B17 -> 0 | D17: ='Услуги ФСК'!E17 -> 0 | E17: 0 | F17: ='Услуги ФСК'!U17 -> 0 | G17: 0
A18: 10. | B18: Прочие обоснованные неподконтрольные расходы | C18: ='Прочие НР'!B13 -> 173.1 | D18: ='Прочие НР'!C13 -> 1133.98 | E18: 960.88 | F18: ='Прочие НР'!I13 -> 0 | G18: -173.1
B19: Итого корректировка неподконтрольных расходов по результатам 2016 года | C19: =SUM(C9:C18) -> 9092.93087 | D19: =SUM(D9:D18) -> 11230.33268 | E19: =SUM(E9:E18) -> 2137.40181 | F19: =SUM(F9:F18) -> 0 | G19: =SUM(G9:G18) -> -9092.93087
A21: Руководитель организации | C21: ='Инф-я'!$C$17 -> Окунев Василий Михайлович

Sheet Корр. ИП
A2: Корректировка НВВ в связи с изменением (неисполнением) инвестиционной программы по результатам 2016 года
A4: ='Инф-я'!C9 -> Общество с ограниченной ответственностью "Энергетик"
A6: № п/п | B6: Наименование показателей | C6: Обозначение в Мет. указаниях | D6: По данным организации | E6: По данным экспертов
A7: 1 | B7: 2 | C7: 3 | D7: 4 | E7: 5
A8: 1. | B8: Расчетная величина собственных средств организации для финансирования инвестиционной программы , всего, в том числе: | D8: =IF((D9+D10)>=D20,D20,(D9+D10)) -> 3838.620693 | E8: =IF((E9+E10)>=E20,E20,(E9+E10)) -> 0
B9: -амортизация | D9: =' КВЛ'!B18 -> 4548.332783
B10: - капитальные вложения из прибыли | D10: =' КВЛ'!B20 -> 0
A11: 2. | B11: Утвержденная инвестиционная программа (в случае, если договорная схема организации предполагает взаиморасчет по одноставочному тарифу, величина принимается равной расчетному значению) | D11: =D26 -> 4071.557458 | E11: =E26 -> 0
A12: 3. | B12: Объем фактического исполнения инвестиционной программы | D12: =' КВЛ'!C17-' КВЛ'!C19 -> 4257.51308
A13: 4. | B13: Учтенная при расчете тарифов на (i-1) год корректировка необходимой валовой выручки на (i-2)-ой год долгосрочного периода регулирования, осуществленная в связи с изменением (неисполнением) инвестиционной программы за истекший период на (i-2)-го года по результатам 9 месяцев
B14: Итого корректировка НВВ в связи с изменением (неисполнением) инвестиционной программы по результатам 2015 года | D14: =IF(D11=0,0,D8*(D12/D11-1)-D13) -> 175.3169657 | E14: =IF(E11=0,0,E8*(E12/E11-1)) -> 0
A16: Расчет утвержденной инвестиционной программы в случае, если договорная схема организации предполагает взаиморасчет по одноставочному тарифу
A18: № п/п | B18: Наименование показателей | C18: Обозначение в Метод. указаниях | D18: По данным организации | E18: По данным экспертов
A19: 1 | B19: 2 | C19: 3 | D19: 4 | E19: 5
A20: 1. | B20: Утвержденная инвестиционная программа | D20: =' КВЛ'!B17-' КВЛ'!B19 -> 3838.620693
A21: 2. | B21: Полезный отпуск электрической энергии, учтенный при формировании тарифов (млн.кВт.ч.) | D21: 20.9873
A22: 3. | B22: Фактический полезный отпуск электроэнергии (млн.кВт.ч.) | D22: 22.26086
A23: 4. | B23: Доля необходимой валовой выручки, относящейся на потребителей услуг по передаче электрической энергии, договорная схема которых предусматривает расчеты по одноставочным тарифам | D23: х | E23: х
A24: 4.1. | B24: - плановая | D24: 1 | E24: 1
A25: 4.2. | B25: - фактическая | D25: 1 | E25: 1
A26: 5. | B26: Утвержденная инвестиционная программа, в случае если договорная схема предполагает взаиморасчет по одноставочному тарифу | D26: =IF((D21*D24)*D20=0,0,(D22*D25)/(D21*D24)*D20) -> 4071.557458 | E26: =IF((E21*E24)*E20=0,0,(E22*E25)/(E21*E24)*E20) -> 0
A28: Руководитель организации | C28: ='Инф-я'!$C$17 -> Окунев Василий Михайлович

Sheet Корр. КНК
A2: Корректировка НВВ с учетом надежности и качества оказываемых услуг по результатам 2016 года
A4: ='Инф-я'!C9 -> Общество с ограниченной ответственностью "Энергетик"
A6: № п/п | B6: Наименование показателей | C6: Обзнач. в Методических указаниях | D6: По данным организации | E6: По данным экспертов
A7: 1 | B7: 2 | C7: 3 | D7: 4 | E7: 5
A8: 1. | B8: Оценка достижения показателя уровня надежности оказываемых услуг | D8: =(IF(AND(D22=0,E22=0),0,IF(AND(67<F22,F22<133),0,IF(F22>=133,-1,IF(F22<=67,1))))) -> 1 | E8: =(IF(AND(G22=0,D22=0),0,IF(AND(67<H22,H22<133),0,IF(H22>=133,-1,IF(H22<=67,1))))) -> 1
A9: 2. | B9: Оценка достижения показателя уровня качества осуществляемого технологического присоединения к сети | D9: =(IF(AND(D23=0,E23=0),0,IF(AND(67<F23,F23<133),0,IF(F23>=133,-1,IF(F23<=67,1))))) -> 0 | E9: =(IF(AND(G23=0,D23=0),0,IF(AND(67<H23,H23<133),0,IF(H23>=133,-1,IF(H23<=67,1))))) -> 1
A10: 3. | B10: Оценка достижения показателя уровня качества оказываемых услуг | D10: =(IF(AND(67<F24,F24<133),0,IF(F24>=133,-1,IF(F24<=67,1)))) -> 0 | E10: =(IF(AND(67<H24,H24<133),0,IF(H24>=133,-1,IF(H24<=67,1)))) -> 1
A11: 4. | B11: Обобщенный показатель уровня надежности и качества оказываемых услуг | D11: =D8*0.65+D9*0.25+D10*0.1 -> 0.65 | E11: =E8*0.65+E9*0.25+E10*0.1 -> 1
A12: 5. | B12: Максимальный процент корректировки, % | D12: 0.02 | E12: 0.02
A13: 6. | B13: Коэффициент, корректирующий НВВ с учетом надежности и качества оказываемых услуг | D13: =D11*D12 -> 0.013 | E13: =E11*E12 -> 0.02
A14: 7. | B14: Утвержденная НВВ на содержание электрических сетей (тыс. руб.) | D14: =' НВВ содержание'!C47 -> 47476.8245 | E14: =' НВВ содержание'!C47 -> 47476.8245
A15: 8. | B15: Величина корректировки НВВ с учетом надежности и качества оказываемых услуг | D15: =D13*D14 -> 617.1987185 | E15: =E13*E14 -> 949.5364901
A17: Показатели уровня надежности и уровня качества оказываемых услуг
A19: № п/п | B19: Наименование показателей | C19: Обозначение в Методических указаниях | D19: Утверждено на 2016 год | E19: По данным организации | G19: По данным экспертов
E20: Факт | F20: % отклонения | G20: Факт | H20: % отклонения
A21: 1 | B21: 2 | C21: 3 | D21: 4 | E21: 5 | F21: 6 | G21: 7 | H21: 8
A22: 1. | B22: Показатель средней продолжительности прекращений передачи электрической энергии | D22: 0.9976 | E22: ='Форма 1.2'!E8 -> 0.001309476996 | F22: =IF(D22=0,0,E22/D22*100) -> 0.1312627301 | H22: =IF(D22=0,0,G22/D22*100) -> 0
A23: 2. | B23: Показатель уровня качества осуществляемого технологического присоединения к сети | D23: 1.0096 | E23: ='форма 3 '!D37 -> 1 | F23: =IF(D23=0,0,E23/D23*100) -> 99.04912837 | H23: =IF(D23=0,0,G23/D23*100) -> 0
A24: 3. | B24: Показатель уровня качества обслуживания потребителей услуг | D24: 0.8975 | E24: ='форма 2.4'!C14 -> 0.9388222222 | F24: =IF(D24=0,0,E24/D24*100) -> 104.6041473 | H24: =IF(D24=0,0,G24/D24*100) -> 0
A27: Руководитель организации | C27: ='Инф-я'!$C$17 -> Окунев Василий Михайлович
A30: Приказ Министерства энергетики РФ от 14 октября 2013 г. N 718 "Об утверждении Методических указаний по расчету уровня надежности и качества поставляемых товаров и оказываемых услуг для организации по управлению единой национальной (общероссийской) электрической сетью и территориальных сетевых организаций" (с изменениями и дополнениями) Методические указания по расчету уровня надежности и качества поставляемых товаров и оказываемых услуг для организации по управлению единой национальной (общероссийской) электрической сетью и территориальных сетевых организаций 4. Порядок определения плановых и фактических значений показателей надежности и качества услуг 4.3. Коэффициенты допустимого отклонения на первый долгосрочный период регулирования устанавливаются равными: для организации по управлению единой национальной (общероссийской) электрической сетью для показателя уровня надежности оказания услуг - 25% на первые три расчетных периода регулирования и 20% на следующие расчетные периоды регулирования первого долгосрочного периода регулирования, а для показателя уровня качества оказания услуг - 15%; для территориальных сетевых организаций, в отношении которых переход к регулированию цен (тарифов) на услуги по передаче электрической энергии в форме долгосрочных тарифов на основе долгосрочных параметров регулирования деятельности осуществлен до 1 июля 2010 г., - 30% на первые три расчетных периода регулирования и 25% на следующие расчетные периоды регулирования первого долгосрочного периода регулирования; для остальных территориальных сетевых организаций - 35% на первые три расчетных периода регулирования и 30% на следующие расчетные периоды регулирования первого долгосрочного периода регулирования. В последующие долгосрочные периоды регулирования коэффициенты снижаются в случае достижения показателей на 1% в год - до 15% для организации по управлению единой национальной (общероссийской) электрической сетью и до 25% для территориальных сетевых организаций.

Sheet НВВ содержание
A2: Расчет необходимой валовой выручки на содержание электрических сетей на 2018 год
A4: ='Инф-я'!C9 -> Общество с ограниченной ответственностью "Энергетик"
A6: № | B6: Наименование | C6: 2016 год | E6: 2017 год | F6: 2018 год | H6: Темп роста планируемых затрат по расчету организации, % | J6: Темп роста затрат организации по расчету экспертов, %
C7: Утверждено | D7: Факт | E7: Утверждено | F7: По данным организации | G7: По данным экспертов | H7: к факту 2016 года | I7: к утвержденным 2017 года | J7: к факту 2016 года | K7: к утвержденным 2017 года
A8: 1 | B8: 2 | C8: 3 | D8: 4 | E8: 5 | F8: 7 | G8: 8 | H8: 9 | I8: 10 | J8: 11 | K8: 12
A9: 1. | B9: Подконтрольные расходы | C9: =C10+C11+C12+C13+C22 -> 30260.18628 | D9: =D10+D11+D12+D13+D22 -> 37074.89192 | E9: ='Подконтрольные расходы'!D32 -> 31416.51502 | F9: ='Подконтрольные расходы'!E32 -> 34319.22083 | G9: ='Подконтрольные расходы'!F32 -> 7775.587468 | H9: =IF(D9=0,IF(F9=0,0,100),F9/D9*100) -> 92.5672849 | I9: =IF(E9=0,IF(F9=0,0,100),F9/E9*100) -> 109.2394265 | J9: =IF(D9=0,IF(G9=0,0,100),G9/D9*100) -> 20.9726504 | K9: =IF(E9=0,IF(G9=0,0,100),G9/E9*100) -> 24.75
A10: 1.1. | B10: Расходы на оплату труда | C10: 11008.49596 | D10: 11959 | E10: ='Подконтрольные расходы'!D17 -> 11429.16225 | F10: ='Подконтрольные расходы'!E17 -> 12485.15129 | G10: ='Подконтрольные расходы'!F17 -> 2828.717657 | H10: =IF(D10=0,IF(F10=0,0,100),F10/D10*100) -> 104.3996262 | I10: =IF(E10=0,IF(F10=0,0,100),F10/E10*100) -> 109.2394265 | J10: =IF(D10=0,IF(G10=0,0,100),G10/D10*100) -> 23.65346314 | K10: =IF(E10=0,IF(G10=0,0,100),G10/E10*100) -> 24.75
A11: 1.2 | B11: Материалы | C11: 3982.730652 | D11: 6479.08215 | E11: ='Подконтрольные расходы'!D18 -> 4134.922244 | F11: ='Подконтрольные расходы'!E18 -> 4516.965344 | G11: ='Подконтрольные расходы'!F18 -> 1023.393255 | H11: 69.71613015 | I11: 109.2394265 | J11: 15.7953431 | K11: 24.75
A12: 1.3 | B12: Ремонт основных фондов | C12: 14096.85822 | D12: 14820.42012 | E12: ='Подконтрольные расходы'!D19 -> 14635.53971 | F12: ='Подконтрольные расходы'!E19 -> 15987.77964 | G12: ='Подконтрольные расходы'!F19 -> 3622.296079 | H12: 107.8766966 | I12: 109.2394265 | J12: 24.44125099 | K12: 24.75
A13: 1.4 | B13: Другие обоснованные подконтрольные расходы, в том числе: | C13: =SUM(C14:C21) -> 854.3978786 | D13: =SUM(D14:D21) -> 3417.48829 | E13: ='Подконтрольные расходы'!D20 -> 887.0468787 | F13: ='Подконтрольные расходы'!E20 -> 969.0049229 | G13: ='Подконтрольные расходы'!F20 -> 219.5441025 | H13: 28.35430119 | I13: 109.2394265 | J13: 6.424136203 | K13: 24.75
A14: 1.4.1 | B14: Работы и услуги производственного характера | C14: 0 | D14: 919.46425 | E14: ='Подконтрольные расходы'!D21 -> 0 | F14: ='Подконтрольные расходы'!E21 -> 0 | G14: ='Подконтрольные расходы'!F21 -> 0 | H14: 0 | I14: 0 | J14: 0 | K14: 0
A15: 1.4.2 | B15: Работы и услуги непроизводственного характера | C15: 532.8931973 | D15: 609.88306 | E15: ='Подконтрольные расходы'!D22 -> 553.2565789 | F15: ='Подконтрольные расходы'!E22 -> 604.3743137 | G15: ='Подконтрольные расходы'!F22 -> 136.9310033 | H15: 99.09675368 | I15: 109.2394265 | J15: 22.45200962 | K15: 24.75
A16: 1.4.3 | B16: Обеспечение нормальных условий труда и техники безопасности | C16: 73.70919781 | D16: 365.09555 | E16: ='Подконтрольные расходы'!D23 -> 76.52583824 | F16: ='Подконтрольные расходы'!E23 -> 83.5963868 | G16: ='Подконтрольные расходы'!F23 -> 18.94014496 | H16: 22.89712564 | I16: 109.2394265 | J16: 5.187722766 | K16: 24.75
A17: 1.4.4. | B17: Расходы на командировки | C17: 0 | D17: 0 | E17: ='Подконтрольные расходы'!D24 -> 0 | F17: ='Подконтрольные расходы'!E24 -> 0 | G17: ='Подконтрольные расходы'!F24 -> 0 | H17: 0 | I17: 0 | J17: 0 | K17: 0
A18: 1.4.5 | B18: Расходы на обучение персонала | C18: 95.60516292 | D18: 34.45 | E18: ='Подконтрольные расходы'!D25 -> 99.25851115 | F18: ='Подконтрольные расходы'!E25 -> 108.4294283 | G18: ='Подконтрольные расходы'!F25 -> 24.56648151 | H18: 314.7443492 | I18: 109.2394265 | J18: 71.31054139 | K18: 24.75
A19: 1.4.6 | B19: Расходы на страхование | C19: 0 | D19: 1375.19594 | E19: ='Подконтрольные расходы'!D26 -> 0 | F19: ='Подконтрольные расходы'!E26 -> 0 | G19: ='Подконтрольные расходы'!F26 -> 0 | H19: 0 | I19: 0 | J19: 0 | K19: 0
A20: 1.4.7 | B20: Расходы на услуги банков | C20: 152.1903206 | D20: 113.39949 | E20: ='Подконтрольные расходы'!D27 -> 158.0059504 | F20: ='Подконтрольные расходы'!E27 -> 172.604794 | G20: ='Подконтрольные расходы'!F27 -> 39.10647272 | H20: 152.2094976 | I20: 109.2394265 | J20: 34.48558078 | K20: 24.75
A21: 1.4.8 | B21: Прочие обоснованные подконтрольные расходы | C21: 0 | E21: ='Подконтрольные расходы'!D28 -> 0 | F21: ='Подконтрольные расходы'!E28 -> 0 | G21: ='Подконтрольные расходы'!F28 -> 0 | H21: 0 | I21: 0 | J21: 0 | K21: 0
A22: 1.5 | B22: Расходы из прибыли, в том числе: | C22: =SUM(C23:C24) -> 317.7035706 | D22: =SUM(D23:D24) -> 398.90136 | E22: ='Подконтрольные расходы'!D29 -> 329.8439377 | F22: ='Подконтрольные расходы'!E29 -> 360.3196258 | G22: ='Подконтрольные расходы'!F29 -> 81.63637458 | H22: 90.32800134 | I22: 109.2394265 | J22: 20.46530365 | K22: 24.75
A23: 1.5.1 | B23: Расходы по коллективным договорам | C23: 317.7035706 | E23: ='Подконтрольные расходы'!D30 -> 329.8439377 | F23: ='Подконтрольные расходы'!E30 -> 360.3196258 | G23: ='Подконтрольные расходы'!F30 -> 81.63637458 | H23: 100 | I23: 109.2394265 | J23: 100 | K23: 24.75
A24: 1.5.2 | B24: Прочие обоснованные расходы из прибыли | D24: 398.90136 | E24: ='Подконтрольные расходы'!D31 -> 0 | F24: ='Подконтрольные расходы'!E31 -> 0 | G24: ='Подконтрольные расходы'!F31 -> 0 | H24: 0 | I24: 0 | J24: 0 | K24: 0
A25: 2. | B25: Неподконтрольные расходы | C25: =C26+C27+C28+C29+C35+C36+C37+C38+C39+C40 -> 13641.26365 | D25: =D26+D27+D28+D29+D35+D36+D37+D38+D40 -> 22361.94883 | E25: 16745.58698 | F25: =F26+F27+F28+F29+F35+F36+F37+F38+F39+F40 -> 20000.76585 | G25: 3845.851178 | H25: =IF(D25=0,IF(F25=0,0,100),F25/D25*100) -> 89.44106797 | I25: =IF(E25=0,IF(F25=0,0,100),F25/E25*100) -> 119.4390252 | J25: =IF(D25=0,IF(G25=0,0,100),G25/D25*100) -> 17.19819327 | K25: =IF(E25=0,IF(G25=0,0,100),G25/E25*100) -> 22.96635634
A26: 2.1. | B26: Амортизация основных средств | C26: ='Свод по амортизации'!B15 -> 4548.332783 | D26: ='Свод по амортизации'!C15 -> 4730.18195 | E26: ='Свод по амортизации'!D15 -> 4681.141312 | F26: ='Свод по амортизации'!F15 -> 6378.289271 | G26: ='Свод по амортизации'!G15 -> 0 | H26: =IF(D26=0,IF(F26=0,0,100),F26/D26*100) -> 134.8423663 | I26: =IF(E26=0,IF(F26=0,0,100),F26/E26*100) -> 136.2550038 | J26: 0 | K26: 0
A27: 2.2. | B27: Отчисления на социальные нужды | C27: ='Отчислен во внебюдж фонды'!D18 -> 3315.861894 | D27: ='Отчислен во внебюдж фонды'!E18 -> 3671.31029 | E27: ='Отчислен во внебюдж фонды'!F18 -> 3542.84307 | F27: ='Отчислен во внебюдж фонды'!H18 -> 3870.18145 | G27: ='Отчислен во внебюдж фонды'!I18 -> 3845.851178 | H27: =IF(D27=0,IF(F27=0,0,100),F27/D27*100) -> 105.4168987 | I27: =IF(E27=0,IF(F27=0,0,100),F27/E27*100) -> 109.2394265 | J27: 104.7541851 | K27: 108.5526822
A28: 2.3. | B28: Расходы на оплату услуг организаций, осуществляющие регулируемые виды деятельности | C28: ='Расходы рег. орг-ий'!B22 -> 167.5421008 | D28: ='Расходы рег. орг-ий'!C22 -> 238.60836 | E28: ='Расходы рег. орг-ий'!D22 -> 205.5886363 | F28: ='Расходы рег. орг-ий'!F22 -> 266.71 | G28: ='Расходы рег. орг-ий'!G22 -> 0 | H28: 111.7773074 | I28: 129.7299329 | J28: 0 | K28: 0
A29: 2.4. | B29: Налоги и сборы, в том числе: | C29: =C30+C31+C32+C33+C34 -> 826.5820752 | D29: 1335.93447 | E29: 1238.705766 | F29: 1830.156 | G29: 0 | H29: 136.994444 | I29: 147.7474353 | J29: 0 | K29: 0
A30: 2.4.1. | B30: Плата за землю | C30: ='Плата за землю'!B16 -> 191.9820752 | D30: ='Плата за землю'!C16 -> 342.03947 | E30: ='Плата за землю'!D16 -> 200.4437656 | F30: ='Плата за землю'!F16 -> 401.82 | G30: ='Плата за землю'!G16 -> 0 | H30: 117.47767 | I30: 200.4652022 | J30: 0 | K30: 0
A31: 2.4.2. | B31: Транспортный налог | C31: ='Транспортный налог'!D16 -> 0 | D31: ='Транспортный налог'!E16 -> 0 | E31: ='Транспортный налог'!F16 -> 0 | F31: ='Транспортный налог'!I16 -> 0 | G31: ='Транспортный налог'!K16 -> 0 | H31: 0 | I31: 0 | J31: 0 | K31: 0
A32: 2.4.3. | B32: Налог на имущество | C32: ='Налог на имущество'!B15 -> 0 | D32: ='Налог на имущество'!C15 -> 0 | E32: ='Налог на имущество'!D15 -> 0 | F32: ='Налог на имущество'!F15 -> 0 | G32: ='Налог на имущество'!G15 -> 0 | H32: 0 | I32: 0 | J32: 0 | K32: 0
A33: 2.4.4. | B33: Плата за негативное воздействие на окружающую среду | C33: ='Негативное воздействие на ОС'!C28 -> 0 | D33: ='Негативное воздействие на ОС'!D28 -> 2 | E33: ='Негативное воздействие на ОС'!E28 -> 0 | F33: ='Негативное воздействие на ОС'!G28 -> 0 | G33: ='Негативное воздействие на ОС'!H28 -> 0 | H33: 0 | I33: 0 | J33: 0 | K33: 0
A34: 2.4.5. | B34: Налог на прибыль | C34: ='Налог прим при УСНО'!C10 -> 634.6 | D34: ='Налог прим при УСНО'!D10 -> 991.895 | E34: ='Налог прим при УСНО'!E10 -> 1038.262 | F34: ='Налог прим при УСНО'!F10 -> 1428.336 | G34: ='Налог прим при УСНО'!G10 -> 0 | H34: 144.0007259 | I34: 137.5699005 | J34: 0 | K34: 0
A35: 2.5. | B35: Плата за аренду имущества | C35: ='Аренда имущества'!B42 -> 4609.8448 | D35: ='Аренда имущества'!C42 -> 4850.49956 | E35: ='Аренда имущества'!D42 -> 4844.28 | F35: ='Аренда имущества'!F42 -> 4890.4972 | G35: ='Аренда имущества'!N42 -> 0 | H35: 100.8246087 | I35: 100.9540572 | J35: 0 | K35: 0
A36: 2.6. | B36: Оплата услуг ОАО "ФСК ЕЭС" | C36: ='Услуги ФСК'!B17 -> 0 | D36: ='Услуги ФСК'!E17 -> 0 | E36: ='Услуги ФСК'!H17 -> 0 | F36: ='Услуги ФСК'!N17 -> 0 | G36: ='Услуги ФСК'!Q17 -> 0 | H36: 0 | I36: 0 | J36: 0 | K36: 0
A37: 2.7. | B37: Прочие обоснованные неподконтрольные расходы | C37: ='Прочие НР'!B13 -> 173.1 | D37: ='Прочие НР'!C13 -> 1133.98 | E37: ='Прочие НР'!D13 -> 190.41 | F37: ='Прочие НР'!F13 -> 1698.026 | G37: ='Прочие НР'!G13 -> 0 | H37: 149.7403834 | I37: 891.7735413 | J37: 0 | K37: 0
A38: 2.8. | B38: Капитальные вложения производственного характера из прибыли | C38: =' КВЛ'!B20 -> 0 | D38: =' КВЛ'!C20 -> 0 | E38: =' КВЛ'!D20 -> 1351 | F38: =' КВЛ'!F20 -> 0 | G38: =' КВЛ'!G20 -> 0 | H38: =IF(D38=0,IF(F38=0,0,100),F38/D38*100) -> 0 | I38: =IF(E38=0,IF(F38=0,0,100),F38/E38*100) -> 0 | J38: 0 | K38: 0
A39: 2.9. | B39: Расходы, связанные с компенсацией выпадающих доходов от льготного технологического присоединения | C39: ='Выпадающий доход'!B21 -> 0 | D39: х | E39: ='Выпадающий доход'!C21 -> 0 | F39: ='Выпадающий доход'!D21 -> 0 | G39: ='Выпадающий доход'!E21 -> 0 | H39: х | I39: 0 | J39: х | K39: 0
A40: 2.10. | B40: Расходы на возврат и обслуживание долгосрочных заемных средств, направляемых для финансирования капитальных вложений | C40: ='Возврат заемных средств'!B11 -> 0 | D40: ='Возврат заемных средств'!C11 -> 6401.4342 | E40: ='Возврат заемных средств'!D11 -> 691.6182 | F40: ='Возврат заемных средств'!F11 -> 1066.90593 | G40: ='Возврат заемных средств'!G11 -> 0 | H40: =IF(D40=0,IF(F40=0,0,100),F40/D40*100) -> 16.66667026 | I40: 154.2622693 | J40: =IF(D40=0,IF(G40=0,0,100),G40/D40*100) -> 0 | K40: 0
A41: 3. | B41: Корректировка необходимой валовой выручки | C41: =C43+C42+C44+C45+C46 -> 3575.374572 | D41: x | E41: =E43+E42+E44+E45+E46 -> 2782.220104 | F41: =F42+F43+F44+F45+F46 -> 3577.650803 | G41: =G42+G43+G44+G45+G46 ->  | H41: x | I41: 128.5897833 | J41: х
A42: 3.1. | B42: Корректировка подконтрольных расходов | C42: 1131.008353 | D42: x | E42: 0 | F42: ='Корр. ПР'!D18 -> 765.1244615 | G42: ='Корр. ПР'!E18 -> 0 | H42: x | I42: х | J42: х | K42: =IF(E42=0,IF(G42=0,0,100),G42/E42*100) -> 0
A43: 3.2. | B43: Корректировка неподконтрольных расходов | C43: 822.9020463 | D43: x | E43: 156.8966187 | F43: ='Корр. НР'!E19 -> 2137.40181 | G43: ='Корр. НР'!G19 -> -9092.93087 | H43: x | I43: 1362.299474 | J43: х | K43: -5795.491928
A44: 3.3. | B44: Корректировка НВВ с учетом изменения полезного отпуска и цен на электрическую энергию | C44: 989.9030493 | D44: x | E44: 1126.813508 | F44: ='Корр. ПО'!I24 -> -117.391153 | G44: ='Корр. ПО'!J40 ->  | H44: x | I44: -10.4179753 | J44: х
A45: 3.4. | B45: Корректировка НВВ в связи с изменением (неисполнением) инвестиционной программы | C45: 148.4534056 | D45: x | E45: 915.1858239 | F45: ='Корр. ИП'!D14 -> 175.3169657 | G45: ='Корр. ИП'!E14 -> 0 | H45: x | I45: 19.15643372 | J45: х | K45: 0
A46: 3.5. | B46: Корректировка НВВ с учетом надежности и качества оказываемых услуг | C46: 483.1077182 | D46: x | E46: 583.324153 | F46: ='Корр. КНК'!D15 -> 617.1987185 | G46: ='Корр. КНК'!E15 -> 949.5364901 | H46: x | I46: 105.8071598 | J46: х | K46: 162.7802458
A47: 4. | B47: ИТОГО необходимая валовая выручка на содержание электрических сетей | C47: =C41+C25+C9 -> 47476.8245 | D47: =D25+D9 -> 59436.84075 | E47: 50944.32211 | F47: =F41+F25+F9 -> 57897.63748 | H47: =IF(D47=0,IF(F47=0,0,100),F47/D47*100) -> 97.41035484 | I47: =IF(E47=0,IF(F47=0,0,100),F47/E47*100) -> 113.6488525 | J47: =IF(D47=0,IF(G47=0,0,100),G47/D47*100) -> 
A49: Руководитель организации | C49: ='Инф-я'!$C$17 -> Окунев Василий Михайлович

Sheet НВВ по данным предпр.
A2: Расчет необходимой валовой выручки (НВВ) на оказание услуги по передаче электрической энергии на 2018 год долгосрочного периода регулирования 2015 - 2019 годы
A3: ='Инф-я'!C9 -> Общество с ограниченной ответственностью "Энергетик"
A5: № п.п. | B5: Наименование | C5: Ед.изм. | D5: 2016 год | F5: 2017 год утверждено | G5: 2018 год
D6: Утверждено | E6: Факт
A7: 1 | B7: 2 | C7: 3 | D7: 4 | E7: 5 | F7: 6 | G7: 7
A8: Долгосрочные параметры регулирования
A9: 1 | B9: Базовый уровень подконтрольных расходов (ПР) | C9: тыс.руб. | D9: 30260.19 | E9: х | F9: х | G9: х
A10: 2 | B10: Индекс эффективности подконтрольных расходов (Хэф) | C10: % | D10: ='Подконтрольные расходы'!D10 -> 0.01 | E10: ='Подконтрольные расходы'!D10 -> 0.01 | F10: ='Подконтрольные расходы'!E10 -> 0.01 | G10: ='Подконтрольные расходы'!F10 -> 0.01
A11: 3 | B11: Коэффициент эластичности подконтрольных расходов по количеству активов (К эл) | C11: знач. | D11: 0.75 | E11: 0.75 | F11: 0.75 | G11: 0.75
A12: 5 | B12: Уровень надежности и качества оказываемых услуг | C12: х | D12: х | E12: х | F12: х | G12: х
A13: 5.1. | B13: Показатель средней продолжительности прекращения передачи электрическолй энергии (Пп) | C13: знач. | D13: ='Корр. КНК'!D22 -> 0.9976 | E13: ='Корр. КНК'!E22 -> 0.001309476996 | F13: 0.9827 | G13: 0.9679
A14: 5.2. | B14: Показатель уровня качества осуществляемого технологического присоединения (Птпр) | C14: знач. | D14: ='Корр. КНК'!D23 -> 1.0096 | E14: ='Корр. КНК'!E23 -> 1 | F14: 0.9945 | G14: 0.9796
A15: 5.3. | B15: Показатель уровня качества оказываемых услуг территориальных сетевых организаций (Птсо) | C15: знач. | D15: ='Корр. КНК'!D24 -> 0.8975 | E15: ='Корр. КНК'!E24 -> 0.9388222222 | F15: 0.8975 | G15: 0.8975
A16: Планируемые значения параметров расчета тарифов
A17: 1 | B17: Индекс потребительских цен (ИПЦ) | C17: % | D17: х | E17: х | F17: ='Подконтрольные расходы'!D12 -> 0.045 | G17: ='Подконтрольные расходы'!E12 -> 0.049
A18: 2 | B18: Количество активов (УЕ) | C18: усл.ед. | D18: ='УЕ ТП 2015-2018'!J59 -> 902.2264 | E18: ='УЕ ТП 2015-2018'!L59 -> 960.703 | F18: ='УЕ ТП 2015-2018'!N59 -> 904.1795 | G18: ='УЕ ТП 2015-2018'!P59 -> 966.732
A19: 3 | B19: Величина неподконтрольных расходов (НР) | C19: тыс.руб. | D19: =D47 -> 13641.26365 | E19: =E47 -> 22361.94883 | F19: =F47 -> 16745.58698 | G19: =G47 -> 20000.76585
A20: 4 | B20: Величина мощности | C20: МВт | D20: ='Баланс мощности'!C9 -> 4.41 | E20: ='Баланс мощности'!H9 -> 4.41 | F20: ='Баланс мощности'!#REF! ->  | G20: ='Баланс мощности'!M9 -> 4.47
A21: 5 | B21: Величина полезного отпуска электрической энергии | C21: млн.кВт.ч. | D21: ='Баланс энергии'!C22 -> 20.98729557 | E21: ='Баланс энергии'!R22 -> 22.26091816 | F21: ='Баланс энергии'!AG22 -> 22.92380662 | G21: ='Баланс энергии'!AV22 -> 22.26085877
A22: 6 | B22: Прогнозная цена (тариф) покупки потерь электрической энергии | C22: руб./МВт.ч. | D22: =D63 -> 2388.628716 | E22: =E63 -> 2262.436313 | F22: =F63 -> 2631.908206 | G22: =G63 -> 2741.263411
A23: Расчетные показатели
A24: 1 | B24: Доля подконтрольных расходов на МВт.ч. | C24: руб.МВт.ч. | D24: =IF(D21=0,0,D30/D21/10) -> 144.1833522 | E24: =IF(E21=0,0,E30/E21/10) -> 166.5470025 | F24: =IF(F21=0,0,F30/F21/10) -> 137.0475486 | G24: =IF(G21=0,0,G30/G21/10) -> 154.1684496
A25: 2 | B25: Проверка прибыли на капитальные вложения (не более 12 % от НВВ на содержание сетей) | C25: % | D25: х | E25: х | F25: х | G25: =IF(G26=0,0,G44/G26) -> 0
A26: 3 | B26: НВВ для расчета КВЛ | C26: тыс.руб. | D26: х | E26: х | F26: х | G26: =G60-' КВЛ'!F20/0.8-'Услуги ФСК'!N17-'Аренда имущества'!F47-'Возврат заемных средств'!F11 -> 53854.73155
A27: 4 | B27: Индекс изменения количества активов (ИКА) | C27: % | D27: х | E27: х | F27: х | G27: ='Подконтрольные расходы'!E14 -> 0.06918150655
A28: 5 | B28: Общий коэффициент индексации подконтрольных расходов ПР= ИПЦ*(1+(Кэл*ИКА))*(1-Хэф) | C28: знач. | D28: х | E28: х | F28: х | G28: ='Подконтрольные расходы'!E15 -> 1.092394265
A29: Подконтрольные расходы организации (ПР)
B30: Итого ПР с учетом индексации: | C30: тыс.руб. | D30: =' НВВ содержание'!C9 -> 30260.18628 | E30: =' НВВ содержание'!D9 -> 37074.89192 | F30: =' НВВ содержание'!E9 -> 31416.51502 | G30: =' НВВ содержание'!F9 -> 34319.22083
A31: Неподконтрольные расходы организации (НР)
A32: 1 | B32: Амортизация основных средств | C32: тыс.руб. | D32: ='Свод по амортизации'!B15 -> 4548.332783 | E32: ='Свод по амортизации'!C15 -> 4730.18195 | F32: ='Свод по амортизации'!D15 -> 4681.141312 | G32: ='Свод по амортизации'!F15 -> 6378.289271
A33: 2 | B33: Отчисления на социальные нужды | C33: тыс.руб. | D33: ='Отчислен во внебюдж фонды'!D18 -> 3315.861894 | E33: ='Отчислен во внебюдж фонды'!E18 -> 3671.31029 | F33: ='Отчислен во внебюдж фонды'!F18 -> 3542.84307 | G33: ='Отчислен во внебюдж фонды'!H18 -> 3870.18145
A34: 3 | B34: Расходы на оплату услуг организаций, осуществляющие регулируемые виды деятельности | C34: тыс.руб. | D34: ='Расходы рег. орг-ий'!B22 -> 167.5421008 | E34: ='Расходы рег. орг-ий'!C22 -> 238.60836 | F34: ='Расходы рег. орг-ий'!D22 -> 205.5886363 | G34: ='Расходы рег. орг-ий'!F22 -> 266.71
A35: 4 | B35: Налоги и сборы, в том числе: | C35: тыс.руб. | D35: =SUM(D36:D40) -> 826.5820752 | E35: =SUM(E36:E40) -> 1335.93447 | F35: 1238.705766 | G35: 1830.156
A36: 4.1 | B36: Плата за землю | C36: тыс.руб. | D36: ='Плата за землю'!B16 -> 191.9820752 | E36: ='Плата за землю'!C16 -> 342.03947 | F36: ='Плата за землю'!D16 -> 200.4437656 | G36: ='Плата за землю'!F16 -> 401.82
A37: 4.2 | B37: Транспортный налог | C37: тыс.руб. | D37: ='Транспортный налог'!D16 -> 0 | E37: ='Транспортный налог'!E16 -> 0 | F37: ='Транспортный налог'!F16 -> 0 | G37: ='Транспортный налог'!I16 -> 0
A38: 4.3 | B38: Налог на имущество | C38: тыс.руб. | D38: ='Налог на имущество'!B15 -> 0 | E38: ='Налог на имущество'!C15 -> 0 | F38: ='Налог на имущество'!D15 -> 0 | G38: ='Налог на имущество'!F15 -> 0
A39: 4.4 | B39: Плата за негативное воздействие на окружающую среду | C39: тыс.руб. | D39: ='Негативное воздействие на ОС'!C28 -> 0 | E39: ='Негативное воздействие на ОС'!D28 -> 2 | F39: ='Негативное воздействие на ОС'!E28 -> 0 | G39: ='Негативное воздействие на ОС'!G28 -> 0
A40: 4.5 | B40: Налог на прибыль | C40: тыс.руб. | D40: ='Налог прим при УСНО'!C10 -> 634.6 | E40: ='Налог прим при УСНО'!D10 -> 991.895 | F40: ='Налог прим при УСНО'!E10 -> 1038.262 | G40: ='Налог прим при УСНО'!F10 -> 1428.336
A41: 5 | B41: Плата за аренду имущества | C41: тыс.руб. | D41: ='Аренда имущества'!B42 -> 4609.8448 | E41: ='Аренда имущества'!C42 -> 4850.49956 | F41: ='Аренда имущества'!D42 -> 4844.28 | G41: ='Аренда имущества'!F42 -> 4890.4972
A42: 6 | B42: Оплата услуг ОАО "ФСК ЕЭС" | C42: тыс.руб. | D42: ='Услуги ФСК'!B17 -> 0 | E42: ='Услуги ФСК'!E17 -> 0 | F42: ='Услуги ФСК'!H17 -> 0 | G42: ='Услуги ФСК'!N17 -> 0
A43: 7 | B43: Прочие обоснованные неподконтрольные расходы | C43: тыс.руб. | D43: ='Прочие НР'!B13 -> 173.1 | E43: ='Прочие НР'!C13 -> 1133.98 | F43: ='Прочие НР'!D13 -> 190.41 | G43: ='Прочие НР'!F13 -> 1698.026
A44: 8 | B44: Капитальные вложения производственного характера из прибыли | C44: тыс.руб. | D44: =' КВЛ'!B20 -> 0 | E44: =' КВЛ'!C20 -> 0 | F44: =' КВЛ'!D20 -> 1351 | G44: =' КВЛ'!F20 -> 0
A45: 9 | B45: Расходы, связанные с компенсацией выпадающих доходов от льготного технологического присоединения | C45: тыс.руб. | D45: ='Выпадающий доход'!B21 -> 0 | E45: х | F45: ='Выпадающий доход'!C21 -> 0 | G45: ='Выпадающий доход'!D21 -> 0
A46: 10 | B46: =' НВВ содержание'!B40 -> Расходы на возврат и обслуживание долгосрочных заемных средств, направляемых для финансирования капитальных вложений | C46: тыс.руб. | D46: ='Возврат заемных средств'!B11 -> 0 | E46: ='Возврат заемных средств'!C11 -> 6401.4342 | F46: ='Возврат заемных средств'!D11 -> 691.6182 | G46: ='Возврат заемных средств'!F11 -> 1066.90593
B47: Итого НР: | C47: тыс.руб. | D47: =SUM(D32:D35,D41:D46) -> 13641.26365 | E47: =SUM(E32:E35,E41:E46) -> 22361.94883 | F47: 16745.58698 | G47: =SUM(G32:G35,G41:G46) -> 20000.76585
A49: Корректировка необходимой валовой выручки
A50: 1 | B50: Корректировка подконтрольных расходов | C50: тыс.руб. | D50: =' НВВ содержание'!C42 -> 1131.008353 | E50: =' НВВ содержание'!D42 -> x | F50: =' НВВ содержание'!E42 -> 0 | G50: =' НВВ содержание'!F42 -> 765.1244615
A51: 2 | B51: Корректировка неподконтрольных расходов | C51: тыс.руб. | D51: =' НВВ содержание'!C43 -> 822.9020463 | E51: =' НВВ содержание'!D43 -> x | F51: =' НВВ содержание'!E43 -> 156.8966187 | G51: =' НВВ содержание'!F43 -> 2137.40181
A52: 3 | B52: Корректировка НВВ с учетом изменения полезного отпуска и цен на электрическую энергию | C52: тыс.руб. | D52: =' НВВ содержание'!C44 -> 989.9030493 | E52: =' НВВ содержание'!D44 -> x | F52: =' НВВ содержание'!E44 -> 1126.813508 | G52: =' НВВ содержание'!F44 -> -117.391153
A53: 4 | B53: Корректировка НВВ в связи с изменением (неисполнением) инвестиционной программы | C53: тыс.руб. | D53: =' НВВ содержание'!C45 -> 148.4534056 | E53: =' НВВ содержание'!D45 -> x | F53: =' НВВ содержание'!E45 -> 915.1858239 | G53: =' НВВ содержание'!F45 -> 175.3169657
A54: 5 | B54: Корректировка НВВ с учетом надежности и качества оказываемых услуг | C54: тыс.руб. | D54: =' НВВ содержание'!C46 -> 483.1077182 | E54: =' НВВ содержание'!D46 -> x | F54: =' НВВ содержание'!E46 -> 583.324153 | G54: =' НВВ содержание'!F46 -> 617.1987185
B55: Итого корректировка НВВ | C55: тыс.руб. | D55: =SUM(D50:D54) -> 3575.374572 | E55: х | F55: =SUM(F50:F54) -> 2782.220104 | G55: =SUM(G50:G54) -> 3577.650803
A56: Расходы организации на содержание сетей
A57: 1 | B57: Подконтрольные расходы | C57: тыс.руб. | D57: =D30 -> 30260.18628 | E57: =E30 -> 37074.89192 | F57: =F30 -> 31416.51502 | G57: =G30 -> 34319.22083
A58: 2 | B58: Неподконтрольные расходы | C58: тыс.руб. | D58: =D47 -> 13641.26365 | E58: =E47 -> 22361.94883 | F58: =F47 -> 16745.58698 | G58: =G47 -> 20000.76585
A59: 3 | B59: Корректировка необходимой валовой выручки | C59: тыс.руб. | D59: =D55 -> 3575.374572 | E59: =E55 -> х | F59: =F55 -> 2782.220104 | G59: =G55 -> 3577.650803
B60: Итого расходы на содержание электрических сетей: | C60: тыс.руб. | D60: =D57+D58+D59 -> 47476.8245 | E60: =E57+E58 -> 59436.84075 | F60: =F57+F58+F59 -> 50944.32211 | G60: =G57+G58+G59 -> 57897.63748
A61: Расходы организации на компенсацию потерь
A62: 1 | B62: Величина технологического расхода (потерь) электрической энергии | C62: млн.кВт.ч. | D62: ='Баланс энергии'!C19 -> 3.888604432 | E62: ='Баланс энергии'!R19 -> 3.670581837 | F62: ='Баланс энергии'!AG19 -> 3.888093379 | G62: ='Баланс энергии'!AV19 -> 4.123941227
A63: 2 | B63: Прогнозная цена (тариф) покупки потерь электрической энергии | C63: руб./МВт.ч. | D63: ='Корр. ПО'!G24 -> 2388.628716 | E63: ='Корр. ПО'!H24 -> 2262.436313 | F63: ='НВВ на потери'!F11 -> 2631.908206 | G63: ='НВВ на потери'!I11 -> 2741.263411
B64: Итого расходы на компенсацию потерь: | C64: тыс.руб. | D64: =D62*D63 -> 9288.432213 | E64: =E62*E63 -> 8304.457639 | F64: =F62*F63 -> 10233.10487 | G64: =G62*G63 -> 11304.8092
A65: Необходимая валовая выручка (НВВ) организации на оказание услуги по передаче электрической энергии
A66: 1 | B66: Расходы на содержание электрических сетей | C66: тыс.руб. | D66: =D60 -> 47476.8245 | E66: =E60 -> 59436.84075 | F66: =F60 -> 50944.32211 | G66: =G60 -> 57897.63748
A67: 2 | B67: Расходы на компенсацию потерь | C67: тыс.руб. | D67: =D64 -> 9288.432213 | E67: 8304.457639 | F67: 10233.10487 | G67: 11304.8092
B68: Необходимая валовая выручка (НВВ) организации на оказание услуги по передаче электрической энергии | C68: тыс.руб. | D68: =D66+D67 -> 56765.25672 | E68: 67741.29839 | F68: 61177.42698 | G68: =G66+G67 -> 69202.44668
A70: Руководитель организации | C70: ='Инф-я'!$C$17 -> Окунев Василий Михайлович

Sheet НВВ по данным экспертов
A2: Экспертиза необходимой валовой выручки (НВВ) на оказание услуги по передаче электрической энергии на 2018-2019 годы долгосрочного периода регулирования 2015 - 2019 годы
A3: ='Инф-я'!C9 -> Общество с ограниченной ответственностью "Энергетик"
A5: № п.п. | B5: Наименование | C5: Ед.изм. | D5: 2016 год | F5: 2017 год утверждено | G5: 2018 год | H5: 2019 год
D6: Утверждено | E6: Факт
A7: 1 | B7: 2 | C7: 3 | D7: 4 | E7: 5 | F7: 6 | G7: 7 | H7: 8
A8: Долгосрочные параметры регулирования
A9: 1 | B9: Базовый уровень подконтрольных расходов (ПР) | C9: тыс.руб. | E9: х | F9: х | G9: х | H9: х
A10: 2 | B10: Индекс эффективности подконтрольных расходов (Хэф) | C10: % | D10: ='Подконтрольные расходы'!D10 -> 0.01 | E10: ='Подконтрольные расходы'!D10 -> 0.01 | F10: ='Подконтрольные расходы'!E10 -> 0.01 | G10: ='Подконтрольные расходы'!F10 -> 0.01 | H10: ='Подконтрольные расходы'!G10 -> 0.01
A11: 3 | B11: Коэффициент эластичности подконтрольных расходов по количеству активов (К эл) | C11: знач. | D11: 0.75 | E11: 0.75 | F11: ='Подконтрольные расходы'!E11 -> 0.75 | G11: ='Подконтрольные расходы'!F11 -> 0.75 | H11: ='Подконтрольные расходы'!G11 -> 0.75
A12: 5 | B12: Уровень надежности и качества оказываемых услуг | C12: х | D12: х | E12: х | F12: х | G12: х | H12: х
A13: 5.1. | B13: Показатель средней продолжительности прекращения передачи электрическолй энергии (Пп) | C13: знач. | D13: ='Корр. КНК'!D22 -> 0.9976 | E13: ='Корр. КНК'!G22 -> 0
A14: 5.2. | B14: Показатель уровня качества осуществляемого технологического присоединения (Птпр) | C14: знач. | D14: ='Корр. КНК'!D23 -> 1.0096 | E14: ='Корр. КНК'!G23 -> 0
A15: 5.3. | B15: Показатель уровня качества оказываемых услуг территориальных сетевых организаций (Птсо) | C15: знач. | D15: ='Корр. КНК'!D24 -> 0.8975 | E15: ='Корр. КНК'!G24 -> 0
A16: Планируемые значения параметров расчета тарифов
A17: 1 | B17: Индекс потребительских цен (ИПЦ) | C17: % | D17: х | E17: ='НВВ по данным предпр.'!E17 -> х | F17: ='НВВ по данным предпр.'!F17 -> 0.045 | G17: ='Подконтрольные расходы'!F12 -> 0 | H17: ='Подконтрольные расходы'!G12 -> 0
A18: 2 | B18: Количество активов (УЕ) | C18: усл.ед. | D18: ='УЕ ТП 2015-2018'!J59 -> 902.2264 | E18: ='УЕ ТП 2015-2018'!L59 -> 960.703 | F18: ='УЕ ТП 2015-2018'!N59 -> 904.1795 | G18: ='УЕ ТП 2015-2018'!R59 -> 0 | H18: =G18 -> 0
A19: 3 | B19: Величина неподконтрольных расходов (НР) | C19: тыс.руб. | D19: =D47 -> 13641.26365 | E19: 22361.94883 | F19: 16745.58698 | G19: =G47 -> 3845.851178 | H19: =H47 -> 865.3940126
A20: 4 | B20: Величина мощности | C20: МВт | D20: ='НВВ по данным предпр.'!D20 -> 4.41 | E20: ='НВВ по данным предпр.'!E20 -> 4.41 | F20: ='НВВ по данным предпр.'!F20 ->  | G20: ='Баланс мощности'!R9 -> 0 | H20: =G20 -> 0
A21: 5 | B21: Величина полезного отпуска электрической энергии | C21: млн.кВт.ч. | D21: ='НВВ по данным предпр.'!D21 -> 20.98729557 | E21: ='НВВ по данным предпр.'!E21 -> 22.26091816 | F21: ='НВВ по данным предпр.'!F21 -> 22.92380662 | G21: ='Баланс энергии'!BK22 -> 0 | H21: =G21 -> 0
A22: 6 | B22: Прогнозная цена (тариф) покупки потерь электрической энергии | C22: руб./МВт.ч. | D22: ='НВВ по данным предпр.'!D22 -> 2388.628716 | E22: ='НВВ по данным предпр.'!E22 -> 2262.436313 | F22: ='НВВ по данным предпр.'!F22 -> 2631.908206 | G22: ='НВВ на потери'!L11 -> 0 | H22: ='НВВ на потери'!O11 -> 0
A23: Расчетные показатели
A24: 1 | B24: Доля подконтрольных расходов на МВт.ч. | C24: руб.МВт.ч. | D24: =IF(D21=0,0,D30/D21/10) -> 144.1833522 | E24: =IF(E21=0,0,E30/E21/10) -> 166.5470025 | F24: =IF(F21=0,0,F30/F21/10) -> 137.0475486 | G24: =IF(G21=0,0,G30/G21/10) -> 0 | H24: =IF(H21=0,0,H30/H21/10) -> 0
A25: 2 | B25: Проверка прибыли на капитальные вложения (не более 12 % от НВВ на содержание сетей) | C25: % | D25: х | E25: х | F25: х | G25: =IF(G26=0,0,(G44+'Возврат заемных средств'!G9)/G26) ->  | H25: =IF(H26=0,0,(H44+'Возврат заемных средств'!H9)/H26) -> 0
A26: 3 | B26: НВВ для расчета КВЛ | C26: тыс.руб. | D26: х | E26: х | F26: х | G26: =G60-G44/0.8-G42-'Аренда имущества'!N47-'Возврат заемных средств'!G9 ->  | H26: =H60-H44/0.8-H42-'Аренда имущества'!V47-'Возврат заемных средств'!H9 -> 8563.225606
A27: 4 | B27: Индекс изменения количества активов (ИКА) | C27: % | D27: х | E27: х | F27: х | G27: ='Подконтрольные расходы'!F14 -> -1 | H27: ='Подконтрольные расходы'!G14 -> 0
A28: 5 | B28: Общий коэффициент индексации подконтрольных расходов ПР= ИПЦ*(1+(Кэл*ИКА))*(1-Хэф) | C28: знач. | D28: х | E28: х | F28: х | G28: ='Подконтрольные расходы'!F15 -> 0.2475 | H28: ='Подконтрольные расходы'!G15 -> 0.99
A29: Подконтрольные расходы организации (ПР)
B30: Итого ПР с учетом индексации: | C30: тыс.руб. | D30: =' НВВ содержание'!C9 -> 30260.18628 | E30: =' НВВ содержание'!D9 -> 37074.89192 | F30: =' НВВ содержание'!E9 -> 31416.51502 | G30: =' НВВ содержание'!G9 -> 7775.587468 | H30: ='Подконтрольные расходы'!G32 -> 7697.831593
A31: Неподконтрольные расходы организации (НР)
A32: 1 | B32: Амортизация основных средств | C32: тыс.руб. | D32: ='Свод по амортизации'!B15 -> 4548.332783 | E32: ='Свод по амортизации'!C15 -> 4730.18195 | F32: ='Свод по амортизации'!D15 -> 4681.141312 | G32: ='Свод по амортизации'!G15 -> 0 | H32: ='Свод по амортизации'!H15 -> 0
A33: 2 | B33: Отчисления на социальные нужды | C33: тыс.руб. | D33: ='Отчислен во внебюдж фонды'!D18 -> 3315.861894 | E33: ='Отчислен во внебюдж фонды'!E18 -> 3671.31029 | F33: ='Отчислен во внебюдж фонды'!F18 -> 3542.84307 | G33: ='Отчислен во внебюдж фонды'!I18 -> 3845.851178 | H33: ='Отчислен во внебюдж фонды'!J18 -> 865.3940126
A34: 3 | B34: Расходы на оплату услуг организаций, осуществляющие регулируемые виды деятельности | C34: тыс.руб. | D34: ='Расходы рег. орг-ий'!B22 -> 167.5421008 | E34: ='Расходы рег. орг-ий'!C22 -> 238.60836 | F34: ='Расходы рег. орг-ий'!D22 -> 205.5886363 | G34: ='Расходы рег. орг-ий'!G22 -> 0 | H34: ='Расходы рег. орг-ий'!H22 -> 0
A35: 4 | B35: Налоги и сборы, в том числе: | C35: тыс.руб. | D35: =SUM(D36:D40) -> 826.5820752 | E35: 1335.93447 | F35: 1238.705766 | G35: 0 | H35: =SUM(H36:H40) -> 0
A36: 4.1 | B36: Плата за землю | C36: тыс.руб. | D36: ='Плата за землю'!B16 -> 191.9820752 | E36: ='Плата за землю'!C16 -> 342.03947 | F36: ='Плата за землю'!D16 -> 200.4437656 | G36: ='Плата за землю'!G16 -> 0 | H36: ='Плата за землю'!H16 -> 0
A37: 4.2 | B37: Транспортный налог | C37: тыс.руб. | D37: ='Транспортный налог'!D16 -> 0 | E37: ='Транспортный налог'!E16 -> 0 | F37: ='Транспортный налог'!F16 -> 0 | G37: ='Транспортный налог'!K16 -> 0 | H37: ='Транспортный налог'!L16 -> 0
A38: 4.3 | B38: Налог на имущество | C38: тыс.руб. | D38: ='Налог на имущество'!B15 -> 0 | E38: ='Налог на имущество'!C15 -> 0 | F38: ='Налог на имущество'!D15 -> 0 | G38: ='Налог на имущество'!G15 -> 0 | H38: ='Налог на имущество'!H15 -> 0
A39: 4.4 | B39: Плата за негативное воздействие на окружающую среду | C39: тыс.руб. | D39: ='Негативное воздействие на ОС'!C28 -> 0 | E39: ='Негативное воздействие на ОС'!D28 -> 2 | F39: ='Негативное воздействие на ОС'!E28 -> 0 | G39: ='Негативное воздействие на ОС'!H28 -> 0 | H39: ='Негативное воздействие на ОС'!I28 -> 0
A40: 4.5 | B40: Налог на прибыль | C40: тыс.руб. | D40: ='Налог прим при УСНО'!C10 -> 634.6 | E40: ='Налог прим при УСНО'!D10 -> 991.895 | F40: ='Налог прим при УСНО'!E10 -> 1038.262 | G40: ='Налог прим при УСНО'!G10 -> 0 | H40: ='Налог прим при УСНО'!H10 -> 0
A41: 5 | B41: Плата за аренду имущества | C41: тыс.руб. | D41: ='Аренда имущества'!B42 -> 4609.8448 | E41: ='Аренда имущества'!C42 -> 4850.49956 | F41: ='Аренда имущества'!D42 -> 4844.28 | G41: ='Аренда имущества'!N42 -> 0 | H41: ='Аренда имущества'!V42 -> 0
A42: 6 | B42: Оплата услуг ОАО "ФСК ЕЭС" | C42: тыс.руб. | D42: ='Услуги ФСК'!B17 -> 0 | E42: ='Услуги ФСК'!E17 -> 0 | F42: ='Услуги ФСК'!H17 -> 0 | G42: ='Услуги ФСК'!Q17 -> 0 | H42: ='Услуги ФСК'!T17 -> 0
A43: 7 | B43: Прочие обоснованные неподконтрольные расходы | C43: тыс.руб. | D43: ='Прочие НР'!B13 -> 173.1 | E43: ='Прочие НР'!C13 -> 1133.98 | F43: ='Прочие НР'!D13 -> 190.41 | G43: ='Прочие НР'!G13 -> 0 | H43: ='Прочие НР'!H13 -> 0
A44: 8 | B44: Капитальные вложения производственного характера из прибыли | C44: тыс.руб. | D44: =' КВЛ'!B20 -> 0 | E44: =' КВЛ'!C20 -> 0 | F44: =' КВЛ'!D20 -> 1351 | G44: =' НВВ содержание'!G38 -> 0 | H44: =' КВЛ'!H20 -> 0
A45: 9 | B45: Расходы, связанные с компенсацией выпадающих доходов от льготного технологического присоединения | C45: тыс.руб. | D45: ='Выпадающий доход'!B21 -> 0 | E45: х | F45: ='Выпадающий доход'!C21 -> 0 | G45: ='Выпадающий доход'!E21 -> 0 | H45: x
A46: 10 | B46: ='НВВ по данным предпр.'!B46 -> Расходы на возврат и обслуживание долгосрочных заемных средств, направляемых для финансирования капитальных вложений | C46: тыс.руб. | D46: ='Возврат заемных средств'!B11 -> 0 | E46: ='Возврат заемных средств'!C11 -> 6401.4342 | F46: ='Возврат заемных средств'!D11 -> 691.6182 | G46: ='Возврат заемных средств'!G11 -> 0 | H46: ='Возврат заемных средств'!H11 -> 0
B47: Итого НР: | C47: тыс.руб. | D47: =SUM(D32:D35,D41:D46) -> 13641.26365 | E47: 22361.94883 | F47: 16745.58698 | G47: 3845.851178 | H47: =SUM(H32:H35,H41:H46) -> 865.3940126
A49: Корректировка необходимой валовой выручки
A50: 1 | B50: Корректировка подконтрольных расходов | C50: тыс.руб. | D50: =' НВВ содержание'!C42 -> 1131.008353 | E50: =' НВВ содержание'!D42 -> x | F50: =' НВВ содержание'!E42 -> 0 | G50: =' НВВ содержание'!G42 -> 0 | H50: x
A51: 2 | B51: Корректировка неподконтрольных расходов | C51: тыс.руб. | D51: =' НВВ содержание'!C43 -> 822.9020463 | E51: =' НВВ содержание'!D43 -> x | F51: =' НВВ содержание'!E43 -> 156.8966187 | G51: =' НВВ содержание'!G43 -> -9092.93087 | H51: x
A52: 3 | B52: Корректировка НВВ с учетом изменения полезного отпуска и цен на электрическую энергию | C52: тыс.руб. | D52: =' НВВ содержание'!C44 -> 989.9030493 | E52: =' НВВ содержание'!D44 -> x | F52: =' НВВ содержание'!E44 -> 1126.813508 | G52: =' НВВ содержание'!G44 ->  | H52: x
A53: 4 | B53: Корректировка НВВ в связи с изменением (неисполнением) инвестиционной программы | C53: тыс.руб. | D53: =' НВВ содержание'!C45 -> 148.4534056 | E53: =' НВВ содержание'!D45 -> x | F53: =' НВВ содержание'!E45 -> 915.1858239 | G53: =' НВВ содержание'!G45 -> 0 | H53: x
A54: 5 | B54: Корректировка НВВ с учетом надежности и качества оказываемых услуг | C54: тыс.руб. | D54: =' НВВ содержание'!C46 -> 483.1077182 | E54: =' НВВ содержание'!D46 -> x | F54: =' НВВ содержание'!E46 -> 583.324153 | G54: =' НВВ содержание'!G46 -> 949.5364901 | H54: x
B55: Итого корректировка НВВ | C55: тыс.руб. | D55: =SUM(D50:D54) -> 3575.374572 | E55: х | F55: =SUM(F50:F54) -> 2782.220104 | G55: =SUM(G50:G54) ->  | H55: х
A56: Расходы организации на содержание сетей на долгосрочный период регулирования
A57: 1 | B57: Подконтрольные расходы | C57: тыс.руб. | D57: =D30 -> 30260.18628 | E57: =E30 -> 37074.89192 | F57: =F30 -> 31416.51502 | G57: =G30 -> 7775.587468 | H57: =H30 -> 7697.831593
A58: 2 | B58: Неподконтрольные расходы | C58: тыс.руб. | D58: =D47 -> 13641.26365 | E58: =E47 -> 22361.94883 | F58: =F47 -> 16745.58698 | G58: =G47 -> 3845.851178 | H58: =H47 -> 865.3940126
A59: 3 | B59: Корректировка необходимой валовой выручки | C59: тыс.руб. | D59: =D55 -> 3575.374572 | E59: =E55 -> х | F59: 2782.220104 | H59: =H55 -> х
B60: Итого расходы на содержание электрических сетей: | C60: тыс.руб. | D60: =D57+D58+D59 -> 47476.8245 | E60: =E57+E58 -> 59436.84075 | F60: =F57+F58+F59 -> 50944.32211 | H60: =SUM(H57:H59) -> 8563.225606
A61: Расходы организации на компенсацию потерь на долгосрочный период регулирования
A62: 1 | B62: Величина технологического расхода (потерь) электрической энергии | C62: млн.кВт.ч. | D62: ='Баланс энергии'!C19 -> 3.888604432 | E62: ='Баланс энергии'!R19 -> 3.670581837 | F62: ='Баланс энергии'!AG19 -> 3.888093379 | G62: ='Баланс энергии'!BK19 -> 0 | H62: =G62 -> 0
A63: 2 | B63: Прогнозная цена (тариф) покупки потерь электрической энергии | C63: руб./МВт.ч. | D63: ='Корр. ПО'!G40 -> 0 | E63: ='Корр. ПО'!H40 -> 0 | F63: ='НВВ на потери'!F11 -> 2631.908206 | G63: ='НВВ на потери'!L11 -> 0 | H63: ='НВВ на потери'!O11 -> 0
B64: Итого расходы на компенсацию потерь: | C64: тыс.руб. | D64: =D62*D63 -> 0 | E64: =E62*E63 -> 0 | F64: =F62*F63 -> 10233.10487 | G64: =G62*G63 -> 0 | H64: =H62*H63 -> 0
A65: Необходимая валовая выручка (НВВ) организации на оказание услуги по передаче электрической энергии
A66: 1 | B66: Расходы на содержание электрических сетей | C66: тыс.руб. | D66: =D60 -> 47476.8245 | E66: =E60 -> 59436.84075 | F66: =F60 -> 50944.32211 | G66: =G60 ->  | H66: =H60 -> 8563.225606
A67: 2 | B67: Расходы на компенсацию потерь | C67: тыс.руб. | D67: =D64 -> 0 | E67: 0 | F67: 10233.10487 | G67: 0 | H67: =H64 -> 0
B68: Необходимая валовая выручка (НВВ) организации на оказание услуги по передаче электрической энергии | C68: тыс.руб. | D68: =D66+D67 -> 47476.8245 | E68: 59436.84075 | F68: 61177.42698 | H68: =H66+H67 -> 8563.225606
B70: Руководитель организации | D70: ='Инф-я'!$C$17 -> Окунев Василий Михайлович

Sheet НВВ на потери
A3: Расходы организации на компенсацию потерь на 2018 год долгосрочного периода регулирования 2015 - 2019 годы
A4: ='Инф-я'!C9 -> Общество с ограниченной ответственностью "Энергетик"
A6: № п/п | B6: Показатели | C6: Ед.измер. | D6: 2017 год утверждено | G6: 2018 год | M6: 2019 год
G7: По данным организации | J7: По данным экспертов
D8: 1-е полугодие | E8: 2-е полугодие | F8: Год | G8: 1-е полугодие | H8: 2-е полугодие | I8: Год | J8: 1-е полугодие | K8: 2-е полугодие | L8: Год | M8: 1-е полугодие | N8: 2-е полугодие | O8: Год
A9: 1 | B9: 2 | C9: 3 | D9: 4 | E9: 5 | F9: 6 | G9: 7 | H9: 8 | I9: 9 | J9: 7 | K9: 8 | L9: 9 | M9: 10 | N9: 11 | O9: 12
A10: 1 | B10: Величина технологического расхода (потерь) электрической энергии | C10: млн.кВт.ч. | D10: ='Баланс энергии'!W19 -> 2.120697805 | E10: ='Баланс энергии'!AB19 -> 1.767395575 | F10: =D10+E10 -> 3.888093379 | G10: ='Баланс энергии'!AL19 -> 2.067829022 | H10: ='Баланс энергии'!AQ19 -> 2.056112205 | I10: ='Баланс энергии'!AV19 -> 4.123941227 | J10: ='Баланс энергии'!BA19 -> 0 | K10: ='Баланс энергии'!BF19 -> 0 | L10: ='Баланс энергии'!BK19 -> 0 | M10: =J10 -> 0 | N10: 0 | O10: 0
A11: 2 | B11: Прогнозная цена (тариф) покупки потерь электрической энергии | C11: руб./МВт.ч. | D11: 2591.42 | E11: 2680.49 | F11: =IF(F10=0,0,F12/F10) -> 2631.908206 | G11: 2695.08 | H11: 2787.71 | I11: =IF(I10=0,0,I12/I10) -> 2741.263411 | L11: =IF(L10=0,0,L12/L10) -> 0 | O11: =IF(O10=0,0,O12/O10) -> 0
B12: Итого расходы на компенсацию потерь: | C12: тыс.руб. | D12: =D10*D11 -> 5495.618705 | E12: =E10*E11 -> 4737.486164 | F12: =D12+E12 -> 10233.10487 | G12: =G10*G11 -> 5572.96464 | H12: =H10*H11 -> 5731.844556 | I12: =G12+H12 -> 11304.8092 | J12: =J10*J11 -> 0 | K12: =K10*K11 -> 0 | L12: =J12+K12 -> 0 | M12: =M10*M11 -> 0 | N12: =N10*N11 -> 0 | O12: =M12+N12 -> 0
A14: Руководитель организации | C14: ='Инф-я'!$C$17 -> Окунев Василий Михайлович
A16: Справочная информация: расшифровка прогнозной цены покупки потерь электрической энергии у энергосбытовой организации
B18: Наименование энергосбытовой организации - Гарантирующего поставщика | C18: Ед.изм. | D18: Цена (тариф) покупки потерь электрической энергии, учтенная при расчете тарифа на компенсацию потерь на 2017 год | G18: Цена (тариф) покупки потерь электрической энергии, учтенная при расчете тарифа на компенсацию потерь на 2018 год
G19: По данным организации | J19: По данным экспертов
D20: с 01.01.2017 г. | E20: с 01.07.2017 г. | G20: с 01.01.2018 г. | H20: с 01.07.2018 г. | J20: с 01.01.2018 г. | K20: с 01.07.2018 г.
A21: 1 | B21: ОАО "Владимирэнергосбыт" | C21: руб./МВт.ч.
A22: 2 | B22: ОАО "Владимирские коммунальные системы" | C22: руб./МВт.ч.
A23: 3 | B23: ООО "Русэнергосбыт" | C23: руб./МВт.ч.
A24: 4 | B24: ОАО "Оборонэнергосбыт" | C24: руб./МВт.ч.

Sheet НВВ для шаблона ЕИАС (hidden)
A1: Расчет НВВ методом индексации
A2: Наименование организации | B2: Период | C2: Расчет коэффициента индексации | M2: Расчет подконтрольных расходов | AH2: Расчет неподконтрольных расходов | AZ2: Расходы, связанные с компенсацией незапланированных расходов или полученного избытка | BA2: Итого НВВ на содержание сетей | BB2: в том числе | BD2: Доля стороннего отпуска в сеть от организаций, занимающихся несколькими видами деятельности (без собственных нужд) | BE2: Отношение НВВ на содержание сетей текущего года к предыдущему года | BF2: Поступление в сеть электроэнергии | BG2: Объем технологического расхода (потерь) | BH2: Тариф на покупку потерь | BI2: Норматив техноло-гического расхода (потерь) электро-энергии | BJ2: Итого расходов на оплату потерь | BK2: в том числе | BM2: Прирост расходов на оплату потерь текущего года к предыдущему году
C3: Инфляция | D3: Индекс эффективности операционных расходов | E3: Количество активов, всего | F3: ВН | G3: СН1 | H3: СН2 | I3: НН | J3: Индекс изменения количества активов | K3: Коэффициент эластичности затрат по росту активов | L3: Итого коэффициент индексации | M3: Материальные затраты | N3: Сырье, материалы, запасные части, инструмент, топливо | O3: Работы и услуги производственного характера (в т.ч. услуги сторонних организаций по содержанию сетей и распределительных устройств) | P3: Расходы на оплату труда | Q3: Прочие расходы, всего, в том числе: | R3: Ремонт основных фондов | S3: Оплата работ и услуг сторонних организаций | T3: услуги связи | U3: Расходы на услуги вневедомственной охраны и коммунального хозяйства | V3: Расходы на юридические и информационные услуги | W3: Расходы на аудиторские и консультационные услуги | X3: Транспортные услуги | Y3: Прочие услуги сторонних организаций | Z3: Расходы на командировки и представительские | AA3: Расходы на подготовку кадров | AB3: Расходы на обеспечение нормальных условий труда и мер по технике безопасности | AC3: Расходы на страхование | AD3: Другие прочие расходы | AE3: Электроэнергия на хоз. нужды | AF3: Подконтрольные расходы из прибыли | AG3: ИТОГО подконтрольные расходы | AH3: Оплата услуг ОАО "ФСК ЕЭС" | AI3: Теплоэнергия | AJ3: Аренда, всего | AK3: в том числе аренда объектов электро- сетевого комплекса | AL3: Налоги (без учета налога на прибыль), всего, в том числе: | AM3: плата за землю | AN3: Налог на имущество | AO3: Прочие налоги и сборы | AP3: Отчисления на социальные нужды (ЕСН) | AQ3: Прочие неподконтрольные расходы | AR3: Налог на прибыль, в том числе: | AS3: налог на прибыль на капитальные вложения | AT3: Выпадающие доходы по п.87 Основ ценообразования | AU3: Амортизация ОС | AV3: Прибыль на капитальные вложения | AW3: Возврат заемных средств, направляемый на финансирование капитальных вложений | AX3: Проверка прибыли на капитальные вложения (не более 12% от НВВ на содержание сетей) | AY3: ИТОГО неподконтрольных расходов
BB4: НВВ на 1 полугодие | BC4: НВВ на 2 полугодие | BK4: расходы на 1 полугодие | BL4: расходы на 2 полугодие
C5: % | D5: % | E5: у.е. | F5: у.е. | G5: у.е. | H5: у.е. | I5: у.е. | J5: % | M5: тыс.руб | N5: тыс.руб | O5: тыс.руб | P5: тыс.руб | Q5: тыс.руб | R5: тыс.руб | S5: тыс.руб | T5: тыс.руб | U5: тыс.руб | V5: тыс.руб | W5: тыс.руб | X5: тыс.руб | Y5: тыс.руб | Z5: тыс.руб | AA5: тыс.руб | AB5: тыс.руб | AC5: тыс.руб | AD5: тыс.руб | AE5: тыс.руб | AF5: тыс.руб | AG5: тыс.руб | AH5: тыс.руб | AI5: тыс.руб | AJ5: тыс.руб | AK5: тыс.руб | AL5: тыс.руб | AM5: тыс.руб | AN5: тыс.руб | AO5: тыс.руб | AP5: тыс.руб | AQ5: тыс.руб | AR5: тыс.руб | AS5: тыс.руб | AT5: тыс.руб | AU5: тыс.руб | AV5: тыс.руб | AW5: тыс.руб | AX5: % | AY5: тыс.руб | AZ5: тыс.руб | BA5: тыс.руб | BB5: тыс.руб | BC5: тыс.руб | BD5: % | BE5: % | BF5: млн.кВтч | BG5: млн.кВтч | BH5: руб./МВтч | BI5: % | BJ5: тыс.руб | BK5: тыс.руб | BL5: тыс.руб | BM5: %
A6: 1 | B6: 2 | C6: 3 | D6: 4 | E6: 5 | F6: 6 | G6: 7 | H6: 8 | I6: 9 | J6: 10 | K6: 11 | L6: 12 | M6: 13 | N6: 14 | O6: 15 | P6: 16 | Q6: 17 | R6: 18 | S6: 19 | T6: 20 | U6: 21 | V6: 22 | W6: 23 | X6: 24 | Y6: 25 | Z6: 26 | AA6: 27 | AB6: 28 | AC6: 29 | AD6: 30 | AE6: 31 | AF6: 32 | AG6: 33 | AH6: 34 | AI6: 35 | AJ6: 36 | AK6: 37 | AL6: 38 | AM6: 39 | AN6: 40 | AO6: 41 | AP6: 42 | AQ6: 43 | AR6: 44 | AS6: 45 | AT6: 46 | AU6: 47 | AV6: 48 | AW6: 49 | AX6: 50 | AY6: 51 | AZ6: 52 | BA6: 53 | BB6: 54 | BC6: 55 | BD6: 56 | BE6: 57 | BF6: 58 | BG6: 59 | BH6: 60 | BI6: 61 | BJ6: 62 | BK6: 63 | BL6: 64 | BM6: 65
B7: 2015 | C7: ='Подконтрольные расходы'!#REF! ->  | D7: ='Подконтрольные расходы'!F10 -> 0.01 | E7: ='Подконтрольные расходы'!#REF! ->  | F7: ='УЕ ВЛЭП 2015-2018'!N48+'УЕ ТП 2015-2018'!N50 -> 0 | G7: ='УЕ ВЛЭП 2015-2018'!N49+'УЕ ТП 2015-2018'!N51 -> 0 | H7: ='УЕ ВЛЭП 2015-2018'!N50+'УЕ ТП 2015-2018'!N52 -> 574.778 | I7: ='УЕ ВЛЭП 2015-2018'!N51+'УЕ ТП 2015-2018'!N53 -> 329.4015 | M7: =SUM(N7:O7) ->  | N7: ='Подконтрольные расходы'!#REF! ->  | O7: ='Подконтрольные расходы'!#REF! ->  | P7: ='Подконтрольные расходы'!#REF! ->  | Q7: =R7+S7+Z7+AA7+AB7+AC7+AD7+AE7+AF7 ->  | R7: ='Подконтрольные расходы'!#REF! ->  | S7: =SUM(T7:Y7) ->  | Y7: ='Подконтрольные расходы'!#REF! ->  | Z7: ='Подконтрольные расходы'!#REF! ->  | AA7: ='Подконтрольные расходы'!#REF! ->  | AB7: ='Подконтрольные расходы'!#REF! ->  | AC7: ='Подконтрольные расходы'!#REF! ->  | AF7: ='Подконтрольные расходы'!#REF! ->  | AG7: =M7+P7+Q7 ->  | AH7: =' НВВ содержание'!E36 -> 0 | AI7: =' НВВ содержание'!E28 -> 205.5886363 | AJ7: =' НВВ содержание'!E35 -> 4844.28 | AL7: =SUM(AM7:AO7) -> 200.4437656 | AM7: =' НВВ содержание'!E30 -> 200.4437656 | AN7: =' НВВ содержание'!E32 -> 0 | AO7: =' НВВ содержание'!E33+' НВВ содержание'!E31 -> 0 | AP7: =' НВВ содержание'!E27 -> 3542.84307 | AQ7: =' НВВ содержание'!E37 -> 190.41 | AR7: =' НВВ содержание'!E34 -> 1038.262 | AT7: =' НВВ содержание'!E39 -> 0 | AU7: =' НВВ содержание'!E26 -> 4681.141312 | AV7: =' НВВ содержание'!E38 -> 1351 | AW7: =' НВВ содержание'!E40 -> 691.6182 | AX7: =((AV7+AW7)/(BA7-AH7-AS7-AV7-AW7-AK7)) ->  | AY7: =AH7+AI7+AJ7+AL7+AQ7+AR7+AT7+AP7+AU7+AV7+AW7 -> 16745.58698 | BA7: =SUM(AY7,AZ7,AG7) ->  | BC7: =BA7-BB7 ->  | BI7: =IF(BF7=0,0,BG7/BF7) -> 0 | BJ7: =BG7*BH7 -> 0 | BL7: =BJ7-BK7 -> 0
B8: 2016 | C8: ='Подконтрольные расходы'!E12 -> 0.049 | D8: =D7 -> 0.01 | E8: ='Подконтрольные расходы'!E13 -> 966.732 | F8: ='УЕ ВЛЭП 2015-2018'!P48+'УЕ ТП 2015-2018'!P50 -> 0 | G8: ='УЕ ВЛЭП 2015-2018'!P49+'УЕ ТП 2015-2018'!P51 -> 0 | H8: ='УЕ ВЛЭП 2015-2018'!P50+'УЕ ТП 2015-2018'!P52 -> 639.325 | I8: ='УЕ ВЛЭП 2015-2018'!P51+'УЕ ТП 2015-2018'!P53 -> 327.407 | J8: =IF(E7=0,0,(E8-E7)/E7*K8) ->  | K8: ='Подконтрольные расходы'!#REF! ->  | L8: =(1+C8)*(1-D8)*(1+J8) ->  | M8: =SUM(N8:O8) ->  | N8: =N7*$L8 ->  | O8: =O7*$L8 ->  | Q8: =R8+S8+Z8+AA8+AB8+AC8+AD8+AE8+AF8 ->  | R8: =R7*$L8 ->  | S8: =SUM(T8:Y8) ->  | T8: =T7*$L8 ->  | AG8: =M8+P8+Q8 ->  | AH8: =' НВВ содержание'!F36 -> 0 | AI8: =' НВВ содержание'!F28 -> 266.71 | AJ8: =' НВВ содержание'!F35 -> 4890.4972 | AL8: =SUM(AM8:AO8) -> 401.82 | AM8: =' НВВ содержание'!F30 -> 401.82 | AN8: =' НВВ содержание'!F32 -> 0 | AO8: =' НВВ содержание'!F31+' НВВ содержание'!F33 -> 0 | AP8: =' НВВ содержание'!F27 -> 3870.18145 | AQ8: =' НВВ содержание'!F37 -> 1698.026 | AR8: =' НВВ содержание'!F34 -> 1428.336 | AT8: =' НВВ содержание'!F39 -> 0 | AU8: =' НВВ содержание'!F26 -> 6378.289271 | AV8: =' НВВ содержание'!F38 -> 0 | AW8: =' НВВ содержание'!F40 -> 1066.90593 | AX8: =((AV8+AW8)/(BA8-AH8-AS8-AV8-AW8-AK8)) ->  | AY8: =AH8+AI8+AJ8+AL8+AQ8+AR8+AT8+AP8+AU8+AV8+AW8 -> 20000.76585 | BA8: =SUM(AY8,AZ8,AG8) ->  | BC8: =BA8-BB8 ->  | BE8: =((BA8-BA7)/BA7) ->  | BI8: =IF(BF8=0,0,BG8/BF8) -> 0 | BJ8: =BG8*BH8 -> 0 | BL8: =BJ8-BK8 -> 0 | BM8: =((BJ8-BJ7)/BJ7) -> 

Sheet Таблица № 8.2. (hidden)
A2: Расчет необходимой валовой выручки сетевых организаций, регулирование деятельности которых осуществляется методом долгосрочной индексации необходимой валовой выручки
A4: ='Инф-я'!C9 -> Общество с ограниченной ответственностью "Энергетик"
A5: тыс.руб.
A6: № | B6: Наименование | C6: Базовый период (2015 год) | D6: Период регулирования (2017 год)
D7: По данным организации | E7: По данным экспертов
A8: 1 | B8: 2 | C8: 3 | D8: 4 | E8: 5
A9: 1. | B9: ИТОГО необходимая валовая выручка на содержание электрических сетей | C9: =C10+C30+C48+C49 ->  | D9: =D10+D30+D48+D49 -> 57897.63748
A10: 1.1. | B10: Подконтрольные расходы, всего, в том числе: | C10: =C11+C13+C15+C17+C28+C29 ->  | D10: ='Подконтрольные расходы'!E32 -> 34319.22083 | E10: ='Подконтрольные расходы'!F32 -> 7775.587468
A11: 1.1.1. | B11: Сырье, материалы, запасные части, инструмент, топливо | C11: ='Подконтрольные расходы'!#REF! ->  | D11: ='Подконтрольные расходы'!E18 -> 4516.965344 | E11: ='Подконтрольные расходы'!F18 -> 1023.393255
A12: 1.1.1.1 | B12: в т.ч. на ремонт
A13: 1.1.2. | B13: Работы и услуги производственного характера (в т.ч. услуги сторонних организаций по содержанию электрических сетей и распределительных устройств) | C13: ='Подконтрольные расходы'!#REF!-C19+C14 ->  | D13: ='Подконтрольные расходы'!E21-D19+D14 -> 15987.77964 | E13: ='Подконтрольные расходы'!F21-E19+E14 -> 3622.296079
A14: 1.1.2.1 | B14: в том числе на ремонт | C14: ='Подконтрольные расходы'!#REF! ->  | D14: ='Подконтрольные расходы'!E19 -> 15987.77964 | E14: ='Подконтрольные расходы'!F19 -> 3622.296079
A15: 1.1.3. | B15: Фонд оплаты труда | C15: ='Подконтрольные расходы'!#REF! ->  | D15: ='Подконтрольные расходы'!E17 -> 12485.15129 | E15: ='Подконтрольные расходы'!F17 -> 2828.717657
A16: 1.1.3.1 | B16: в том числе на ремонт
A17: 1.1.4. | B17: Прочие подконтрольные расходы (с расшифровкой), в том числе: | C17: =C18+C19+C20 ->  | D17: =D18+D19+D20 -> 1329.324549 | E17: 301.1804771
A18: 1.1.4.1 | B18: прибыль на социальное развитие (включая социальные выплаты) | C18: ='Подконтрольные расходы'!#REF! ->  | D18: ='Подконтрольные расходы'!E30 -> 360.3196258 | E18: ='Подконтрольные расходы'!F30 -> 81.63637458
A19: 1.1.4.2 | B19: транспортные услуги
A20: 1.1.4.3 | B20: прочие услуги сторонних организаций (с расшифровкой) | C20: =C21+C22+C23+C24+C25+C26+C27 ->  | D20: =D21+D22+D23+D24+D25+D26+D27 -> 969.0049229 | E20: 219.5441025
A21: 1.1.4.3.1. | B21: Работы и услуги непроизводственного характера | C21: ='Подконтрольные расходы'!#REF! ->  | D21: ='Подконтрольные расходы'!E22 -> 604.3743137 | E21: ='Подконтрольные расходы'!F22 -> 136.9310033
A22: 1.1.4.3.2. | B22: Обеспечение нормальных условий труда и техники безопасности | C22: ='Подконтрольные расходы'!#REF! ->  | D22: ='Подконтрольные расходы'!E23 -> 83.5963868 | E22: ='Подконтрольные расходы'!F23 -> 18.94014496
A23: 1.1.4.3.3. | B23: Расходы на командировки | C23: ='Подконтрольные расходы'!#REF! ->  | D23: ='Подконтрольные расходы'!E24 -> 0 | E23: ='Подконтрольные расходы'!F24 -> 0
A24: 1.1.4.3.4. | B24: Расходы на обучение персонала | C24: ='Подконтрольные расходы'!#REF! ->  | D24: ='Подконтрольные расходы'!E25 -> 108.4294283 | E24: ='Подконтрольные расходы'!F25 -> 24.56648151
A25: 1.1.4.3.5. | B25: Расходы на страхование | C25: ='Подконтрольные расходы'!#REF! ->  | D25: ='Подконтрольные расходы'!E26 -> 0 | E25: ='Подконтрольные расходы'!F26 -> 0
A26: 1.1.4.3.6. | B26: Расходы на услуги банков | C26: ='Подконтрольные расходы'!#REF! ->  | D26: ='Подконтрольные расходы'!E27 -> 172.604794 | E26: ='Подконтрольные расходы'!F27 -> 39.10647272
A27: 1.1.4.3.7. | B27: Прочие обоснованные подконтрольные расходы | C27: ='Подконтрольные расходы'!#REF! ->  | D27: ='Подконтрольные расходы'!E28 -> 0 | E27: ='Подконтрольные расходы'!F28 -> 0
A28: 1.1.5. | B28: Расходы на обслуживание операционных заемных средств в составе подконтрольных расходов
A29: 1.1.6. | B29: Прочие расходы из прибыли в составе подконтрольных расходов | C29: ='Подконтрольные расходы'!#REF! ->  | D29: ='Подконтрольные расходы'!E31 -> 0 | E29: ='Подконтрольные расходы'!F31 -> 0
A30: 1.2. | B30: Неподконтрольные расходы, включенные в НВВ, всего, в том числе: | C30: =C31+C32+C33+C34+C35+C36+C37+C38+C39+C44+C45+C46+C47 -> 16745.58698 | D30: =D31+D32+D33+D34+D35+D36+D37+D38+D39+D44+D45+D46+D47 -> 20000.76585 | E30: 3845.851178
A31: 1.2.1. | B31: Оплата услуг организации по управлению единой национальной (общероссийской) электрической сетью | C31: ='Услуги ФСК'!H17 -> 0 | D31: ='Услуги ФСК'!N17 -> 0 | E31: ='Услуги ФСК'!Q17 -> 0
A32: 1.2.2. | B32: Расходы на оплату технологического присоединения к сетям смежной сетевой организации
A33: 1.2.3. | B33: Плата за аренду имущества | C33: ='Аренда имущества'!D42 -> 4844.28 | D33: ='Аренда имущества'!F42 -> 4890.4972 | E33: ='Аренда имущества'!N42 -> 0
A34: 1.2.4. | B34: Отчисления на социальные нужды | C34: ='Отчислен во внебюдж фонды'!F18 -> 3542.84307 | D34: ='Отчислен во внебюдж фонды'!H18 -> 3870.18145 | E34: ='Отчислен во внебюдж фонды'!I18 -> 3845.851178
A35: 1.2.5. | B35: Расходы на возврат и обслуживание долгосрочных заемных средств, направляемых на финансирование капитальных вложений | C35: ='Возврат заемных средств'!D11 -> 691.6182 | D35: ='Возврат заемных средств'!F11 -> 1066.90593 | E35: ='Возврат заемных средств'!G11 -> 0
A36: 1.2.6. | B36: Амортизация | C36: ='Свод по амортизации'!D15 -> 4681.141312 | D36: ='Свод по амортизации'!F15 -> 6378.289271 | E36: ='Свод по амортизации'!G15 -> 0
A37: 1.2.7. | B37: Прибыль на капитальные вложения | C37: =' КВЛ'!D20 -> 1351 | D37: =' КВЛ'!F20 -> 0 | E37: =' КВЛ'!G20 -> 0
A38: 1.2.8. | B38: Налог на прибыль | C38: ='Налог прим при УСНО'!E10 -> 1038.262 | D38: ='Налог прим при УСНО'!F10 -> 1428.336 | E38: ='Налог прим при УСНО'!G10 -> 0
A39: 1.2.9. | B39: Прочие налоги всего в т.ч. | C39: =C40+C41+C42+C43 -> 200.4437656 | D39: =D40+D41+D42+D43 -> 401.82 | E39: 0
A40: 1.2.9.1. | B40: Плата за землю | C40: ='Плата за землю'!D16 -> 200.4437656 | D40: ='Плата за землю'!F16 -> 401.82 | E40: ='Плата за землю'!G16 -> 0
A41: 1.2.9.2. | B41: Транспортный налог | C41: ='Транспортный налог'!F16 -> 0 | D41: ='Транспортный налог'!I16 -> 0 | E41: ='Транспортный налог'!K16 -> 0
A42: 1.2.9.3. | B42: Налог на имущество | C42: ='Налог на имущество'!D15 -> 0 | D42: ='Налог на имущество'!F15 -> 0 | E42: ='Налог на имущество'!G15 -> 0
A43: 1.2.9.4. | B43: Плата за негативное воздействие на окружающую среду | C43: ='Негативное воздействие на ОС'!E28 -> 0 | D43: ='Негативное воздействие на ОС'!G28 -> 0 | E43: ='Негативное воздействие на ОС'!H28 -> 0
A44: 1.2.10. | B44: Расходы на оплату услуг организаций, осуществляющие регулируемые виды деятельности | C44: ='Расходы рег. орг-ий'!D22 -> 205.5886363 | D44: ='Расходы рег. орг-ий'!F22 -> 266.71 | E44: ='Расходы рег. орг-ий'!G22 -> 0
A45: 1.2.11. | B45: Выпадающие доходы от льготного технологического присоединения | C45: ='Выпадающий доход'!C21 -> 0 | D45: ='Выпадающий доход'!D21 -> 0 | E45: ='Выпадающий доход'!E21 -> 0
A46: 1.2.12. | B46: Средства, подлежащие дополнительному учету по результатам вступивших в законную силу решений суда, решений ФСТ России, принятого по итогам рассмотрения разногласий или досудебного урегулирования споров, решения ФСТ России об отмене решения регулирующего органа, принятого им с превышением полномочий (предписания)
A47: 1.2.13. | B47: Прочие неподконтрольные расходы (с расшифровкой) | C47: ='Прочие НР'!D13 -> 190.41 | D47: ='Прочие НР'!F13 -> 1698.026 | E47: ='Прочие НР'!G13 -> 0
A48: 1.3. | B48: Недополученный по независящим причинам доход (+)/избыток средств, полученный в предыдущем периоде регулирования (-) | C48: =' НВВ содержание'!E41 -> 2782.220104 | D48: =' НВВ содержание'!F41 -> 3577.650803 | E48: =' НВВ содержание'!G41 -> 
A49: 1.4. | B49: Экономия от снижения технологических потерь
A50: 2. | B50: Итого необходимая валовая выручка на содержание электрических сетей | C50: =C9 ->  | D50: =D9 -> 57897.63748 | E50: =E9 -> 
A51: 2.1. | B51: Инвестиционные расходы | C51: =C52+C53+C54+C55 -> 0 | D51: =D52+D53+D54+D55 -> 0
A52: 2.1.1. | B52: ВН | C52: ='Свод по амортизации'!D16+'Аренда имущества'!D43+'Налог на имущество'!D16+'Налог прим при УСНО'!E11+' КВЛ'!D21+'Возврат заемных средств'!D12 -> 0 | D52: ='Свод по амортизации'!F16+'Аренда имущества'!F43+'Налог на имущество'!F16+'Налог прим при УСНО'!F11+' КВЛ'!F21+'Возврат заемных средств'!F12 -> 0 | E52: ='Свод по амортизации'!G16+'Аренда имущества'!N43+'Налог на имущество'!G16+'Налог прим при УСНО'!G11+' КВЛ'!G21+'Возврат заемных средств'!G12 -> 
A53: 2.1.2. | B53: СН1 | C53: ='Свод по амортизации'!D17+'Аренда имущества'!D44+'Налог на имущество'!D17+'Налог прим при УСНО'!E12+' КВЛ'!D22+'Возврат заемных средств'!D13 -> 0 | D53: ='Свод по амортизации'!F17+'Аренда имущества'!F44+'Налог на имущество'!F17+'Налог прим при УСНО'!F12+' КВЛ'!F22+'Возврат заемных средств'!F13 -> 0 | E53: ='Свод по амортизации'!G17+'Аренда имущества'!N44+'Налог на имущество'!G17+'Налог прим при УСНО'!G12+' КВЛ'!G22+'Возврат заемных средств'!G13 -> 
A54: 2.1.3. | B54: СН2 | C54: ='Свод по амортизации'!D18+'Аренда имущества'!D45+'Налог на имущество'!D18+'Налог прим при УСНО'!E13+' КВЛ'!D23+'Возврат заемных средств'!D14 -> 0 | D54: ='Свод по амортизации'!F18+'Аренда имущества'!F45+'Налог на имущество'!F18+'Налог прим при УСНО'!F13+' КВЛ'!F23+'Возврат заемных средств'!F14 -> 0 | E54: ='Свод по амортизации'!G18+'Аренда имущества'!N45+'Налог на имущество'!G18+'Налог прим при УСНО'!G13+' КВЛ'!G23+'Возврат заемных средств'!G14 -> 
A55: 2.1.4. | B55: НН | C55: ='Свод по амортизации'!D19+'Аренда имущества'!D46+'Налог на имущество'!D19+'Налог прим при УСНО'!E14+' КВЛ'!D24+'Возврат заемных средств'!D15 -> 0 | D55: ='Свод по амортизации'!F19+'Аренда имущества'!F46+'Налог на имущество'!F19+'Налог прим при УСНО'!F14+' КВЛ'!F24+'Возврат заемных средств'!F15 -> 0 | E55: ='Свод по амортизации'!G19+'Аренда имущества'!N46+'Налог на имущество'!G19+'Налог прим при УСНО'!G14+' КВЛ'!G24+'Возврат заемных средств'!G15 -> 
A56: 2.2. | B56: Эксплуатационные расходы, всего | C56: =C50-C51 ->  | D56: =D50-D51 -> 57897.63748
A57: 3. | B57: Необходимая валовая выручка на оплату технологического расхода (потерь) электроэнергии | C57: ='НВВ на потери'!F12 -> 10233.10487 | D57: ='НВВ на потери'!I12 -> 11304.8092 | E57: ='НВВ на потери'!L12 -> 0
A58: 3.1. | B58: Объем технологического расхода (потерь), млн.кВт·ч | C58: ='НВВ на потери'!F10 -> 3.888093379 | D58: ='НВВ на потери'!I10 -> 4.123941227 | E58: ='НВВ на потери'!L10 -> 0
A59: 3.2. | B59: Цена покупки потерь, руб./кВт·ч | C59: ='НВВ на потери'!F11 -> 2631.908206 | D59: ='НВВ на потери'!I11 -> 2741.263411 | E59: ='НВВ на потери'!L11 -> 0
A61: Руководитель организации | C61: ='Инф-я'!C17 -> Окунев Василий Михайлович

Sheet Тарифы
A2: Расчет индивидуальных тарифов на 2018 -2019 годы долгосрочного периода регулирования 2018 - 2019 годы
A4: ='Инф-я'!C9 -> Общество с ограниченной ответственностью "Энергетик"
A6: № п./п. | B6: Показатели | C6: Ед. изм. | D6: Утв. 2 полугодие 2017 | E6: По расчету организации | H6: По расчету экспертов
E7: 2018 | F7: 1 полугодие | G7: 2 полугодие | H7: 2018 | I7: 1 полугодие | J7: 2 полугодие | K7: 2019 | L7: 1 полугодие | M7: 2 полугодие
A8: 1 | B8: 2 | C8: 3 | D8: 4 | E8: 5 | F8: 6 | G8: 7 | H8: 8 | I8: 9 | J8: 10 | K8: 11 | L8: 12 | M8: 13
A9: 1 | B9: Необходимая валовая выручка на передачу электрической энергии, всего, в том числе: | C9: тыс. руб. | D9: х | E9: =E10+E11 -> 69202.44668 | F9: 30582.22807 | G9: 38620.21861 | I9: 0 | K9: =K10+K11 -> 8563.225606 | L9: 0 | M9: 8563.225606
A10: 1.1. | B10: Необходимая валовая выручка на содержание электрических сетей | C10: тыс. руб. | D10: х | E10: ='НВВ по данным предпр.'!G66 -> 57897.63748 | F10: =F15*F12*6 -> 25449.23811 | G10: =E10-F10 -> 32448.39937 | H10: ='НВВ по данным экспертов'!G66 ->  | J10: =H10-I10 ->  | K10: ='НВВ по данным экспертов'!H66 -> 8563.225606 | M10: =K10-L10 -> 8563.225606
A11: 1.2. | B11: Необходимая валовая выручка на оплату технологического расхода (потерь) электрической энергии | C11: тыс. руб. | D11: х | E11: ='НВВ по данным предпр.'!G67 -> 11304.8092 | F11: =F16*F13 -> 5132.98996 | G11: =E11-F11 -> 6171.819237 | H11: ='НВВ по данным экспертов'!G67 -> 0 | J11: =H11-I11 -> 0 | K11: ='НВВ по данным экспертов'!H67 -> 0 | M11: =K11-L11 -> 0
A12: 2 | B12: Договорная мощность | C12: МВт | D12: х | E12: 4.47 | F12: 4.47 | G12: 4.47
A13: 3 | B13: Полезный отпуск электрической энергии за исключением перетока в сети филиала «Владимирэнерго» ОАО «МРСК Центра и Приволжья» | C13: тыс. кВт ч. | D13: х | E13: =('Баланс энергии'!AV22-'Баланс энергии'!AV24)*1000 -> 22260.85877 | F13: =('Баланс энергии'!AL22-'Баланс энергии'!AL24)*1000 -> 11162.07098 | G13: =('Баланс энергии'!AQ22-'Баланс энергии'!AQ24)*1000 -> 11098.78779 | H13: =('Баланс энергии'!BK22-'Баланс энергии'!BK24)*1000 -> 0 | I13: =('Баланс энергии'!BA22-'Баланс энергии'!BA24)*1000 -> 0 | J13: =('Баланс энергии'!BF22-'Баланс энергии'!BF24)*1000 -> 0 | K13: =H13 -> 0 | L13: =I13 -> 0 | M13: 0
A14: 4 | B14: Двухставочный тариф
A15: 4.1. | B15: ставка на содержание электрических сетей | C15: руб./кВт мес | D15: 948.89031 | E15: =IF(E12=0,0,E10/E12/12) -> 1079.374301 | F15: =D15 -> 948.89031 | G15: =IF(G12=0,0,G10/G12/6) -> 1209.858291 | H15: =IF(H12=0,0,H10/H12/12) -> 0 | I15: =IF(I12=0,0,I10/I12/6) -> 0 | J15: =IF(J12=0,0,J10/J12/6) -> 0 | K15: =IF(K12=0,0,K10/K12/12) -> 0 | L15: =IF(L12=0,0,L10/L12/6) -> 0 | M15: =IF(M12=0,0,M10/M12/6) -> 0
A16: 4.2. | B16: ставка на оплату технологического расхода (потерь) | C16: руб./кВт ч. | D16: 0.45986 | E16: =IF(E13=0,0,E11/E13) -> 0.5078334718 | F16: =D16 -> 0.45986 | G16: 0.5560804793 | H16: 0 | I16: 0 | J16: 0 | K16: =IF(K13=0,0,K11/K13) -> 0 | L16: 0 | M16: 0
A17: 5 | B17: Одноставочный тариф | C17: руб./кВт ч. | D17: 2.9032 | E17: =IF(E13=0,0,E9/E13) -> 3.108705167 | F17: =IF(F13=0,0,F9/F13) -> 2.739834582 | G17: =IF(G13=0,0,G9/G13) -> 3.479678981 | H17: 0 | I17: 0 | J17: 0 | K17: =IF(K13=0,0,K9/K13) -> 0 | L17: 0 | M17: 0
A19: Руководитель организации | C19: ='Инф-я'!$C$17 -> Окунев Василий Михайлович

Sheet Форма 1.1
A2: Форма 1.1 - Журнал учета текущей информации о прекращении передачи электрической энергии для потребителей услуг за 2016 год
B4: ='Инф-я'!C9 -> Общество с ограниченной ответственностью "Энергетик"
A6: (наименование территориальной сетевой организации)
A7: № | B7: Период | C7: Продолжительность прекращения, час. | D7: Количество точек присоединения потребителей услуг к электрической сети электросетевой организации, шт.
A8: 1 | B8: 2 | C8: 3 | D8: 4
A9: 1 | B9: январь | D9: 2529
A10: 2 | B10: февраль | D10: 2532
A11: 3 | B11: март | D11: 2530
A12: 4 | B12: апрель | D12: 2528
A13: 5 | B13: май | D13: 2528
A14: 6 | B14: июнь | D14: 2527
A15: 7 | B15: июль | C15: 3.33 | D15: 2529
A16: 8 | B16: август | D16: 2535
A17: 9 | B17: сентябрь | D17: 2537
A18: 10 | B18: октябрь | D18: 2542
A19: 11 | B19: ноябрь | D19: 2542
A20: 12 | B20: декабрь | D20: 2543
A22: Руководитель организации | C22: ='Инф-я'!$C$17 -> Окунев Василий Михайлович
A27: Согласно п. 14 Постановления Правительства от 31.12.2009 г. № 1220 организации предоставляют регулирующим органам до 1 апреля года, следующего за отчетным, отчетные данные, используемые при расчете фактических значений показателей надежности и качества

Sheet Форма 1.2
A2: Форма 1.2 - Расчет фактического показателя средней продолжительности прекращений передачи электрической энергии за 2016 год
A3: ='Инф-я'!C9 -> Общество с ограниченной ответственностью "Энергетик"
A4: (наименование территориальной сетевой организации)
A6: Максимальное за расчетный период | D6: Максимальное за расчетный период регулирования число точек присоединения потребителей услуг к э. сети ТСО, шт. | E6: =MAX('Форма 1.1'!D9:D20) -> 2543
A7: Суммарная продолжительность прекращений передачи электрической энергии, час. (Тпр) | D7: гр. 3 формы 1.1 | E7: =SUM('Форма 1.1'!C9:C20) -> 3.33
A8: Показатель средней продолжительности прекращений передачи электрической энергии (Пп) | D8: Пп = Тпр/Nтп | E8: =IF(E6=0,0,E7/E6) -> 0.001309476996
B10: Руководитель организации | D10: ='Инф-я'!$C$17 -> Окунев Василий Михайлович

Sheet Форма 2.1
A1: Форма 2.1 - Расчет значения индикатора информативности за 2016 год
A2: ='Инф-я'!C9 -> Общество с ограниченной ответственностью "Энергетик"
A3: (наименование территориальной сетевой организации)
A6: Наименование параметра (критерия), характеризующего индикатор | B6: Ед.изм-ния | C6: Значение | E6: Ф / П * 100, % | F6: Зависи-мость | H6: Оценочный балл
C7: факти-ческое (Ф) | D7: плановое (П)
A8: 1 | C8: 2 | D8: 3 | E8: 4 | F8: 5 | H8: 6
A9: 1. Возможность личного приема заявителей и потребителей услуг уполномоченными должностными лицами территориальной сетевой организации - всего, | C9: - | D9: - | E9: - | F9: - | H9: =(H11+H12)/2 -> 2
A10: в том числе, по критериям:
A11: 1.1. Количество структурных подразделений по работе с заявителями и потребителями услуг в процентном отношении к общему количеству структурных подразделений | B11: % | C11: 0.33 | D11: 0.33 | E11: =(IF(AND(D11=0,C11=0),1,IF(AND(D11=0,C11>0),1.2,C11/D11))) -> 1 | F11: прямая | H11: =IF(E11<80%,3,IF(E11>120%,1,2)) -> 2
A12: 1.2. Количество утвержденных территориальной сетевой организацией в установленном порядке организационно-распорядительных документов по вопросам работы с заявителями и потребителями услуг - всего, шт. | B12: шт. | C12: =SUM(C14:C17) -> 10 | D12: =SUM(D14:D17) -> 9 | E12: =(IF(AND(D12=0,C12=0),1,IF(AND(D12=0,C12>0),1.2,C12/D12))) -> 1.111111111 | F12: прямая | H12: =IF(E12<80%,3,IF(E12>120%,1,2)) -> 2
A13: в том числе:
A14: а) регламенты оказания услуг и рассмотрения обращений заявителей и потребителей услуг, шт. | B14: шт. | C14: 1 | D14: 0 | E14: =(IF(AND(D14=0,C14=0),1,IF(AND(D14=0,C14>0),1.2,C14/D14))) -> 1.2 | F14: прямая | H14: -
